Workbook

Sheet Лист3
B1: Введите номер разрабатываемой части для отображения списка реальностей | M1: 64
A2: 256 | B2: =B4098+4096 -> 16384 | C2: 256. ИВО ИВО → Синтез ИВО
A3: 255 | B3: 16383 | C3: 255. ИВ Аватар ИВО → Воля ИВО
A4: 254 | B4: 16382 | C4: 254. ИВ Владыка ИВО → Мудрость ИВО
A5: 253 | B5: 16381 | C5: 253. ИВ Учитель ИВО → Любовь ИВО
A6: 252 | B6: 16380 | C6: 252. ИВ Ипостась ИВО → Творение ИВО
A7: 251 | B7: 16379 | C7: 251. ИВ Служащий ИВО → Созидание ИВО
A8: 250 | B8: 16378 | C8: 250. ИВ Посвящённый ИВО → Репликация ИВО
A9: 249 | B9: 16377 | C9: 249. ИВ Человек-Творец ИВО → Жизнь ИВО
A10: 248 | B10: 16376 | C10: 248. ИВ Человек ИВО → Воскрешение ИВО
A11: 247 | B11: 16375 | C11: 247. ИВ Человек ВЦРМ ИВО → Пробуждение ИВО
A12: 246 | B12: 16374 | C12: 246. ИВ Человек Метагалактики ФА ИВО → Генезис ИВО
A13: 245 | B13: 16373 | C13: 245. ИВ Человек Планеты Земля ИВО → Человечность ИВО
A14: 244 | B14: 16372 | C14: 244. ИВ Человек Полномочий Совершенств ИВО → Служение ИВО
A15: 243 | B15: 16371 | C15: 243. ИВ Человек Изначально Вш. Реальности Синтезности ИВО → Вершение ИВО
A16: 242 | B16: 16370 | C16: 242. ИВ Человек Вш. Реальности Творения Фа ИВО → Практика ИВО
A17: 241 | B17: 16369 | C17: 241. ИВ Человек Плана Творения ИВО → Могущество ИВО
A18: 240 | B18: 16368 | C18: 240. ИВ Человек ИВДИВО ИВО → Ивдивность ИВО
A19: 239 | B19: 16367 | C19: 239. ИВ Учитель Синтеза Синтезности ИВО → Сверхпассионарность ИВО
A20: 238 | B20: 16366 | C20: 238. ИВ Учитель Синтеза ВЦРМ ИВО → Истинность ИВО
A21: 237 | B21: 16365 | C21: 237. ИВ Учитель Синтеза Мг Фа ИВО → Окскость ИВО
A22: 236 | B22: 16364 | C22: 236. ИВ Учитель Синтеза Планеты Земля ИВО → Красота ИВО
A23: 235 | B23: 16363 | C23: 235. ИВ Учитель Синтеза ИВР Синтезности ИВО → Константа ИВО
A24: 234 | B24: 16362 | C24: 234. ИВ Учитель Синтеза Вш. Реальности Творения ИВО → Знание ИВО
A25: 233 | B25: 16361 | C25: 233. ИВ Учитель Синтеза Плана Творения ИВО → Мера ИВО
A26: 232 | B26: 16360 | C26: 232. ИВ Учитель Синтеза ИВДИВО ИВО → Стандарт ИВО
A27: 231 | B27: 16359 | C27: 231. ИВ Ипостась Творящего Синтеза ИВО → Закон ИВО
A28: 230 | B28: 16358 | C28: 230. ИВ Ипостась ВЦРМ ИВО → Императив ИВО
A29: 229 | B29: 16357 | C29: 229. ИВ Ипостась Мг Фа ИВО → Аксиома ИВО
A30: 228 | B30: 16356 | C30: 228. ИВ Ипостась Планеты Земля ИВО → Начало ИВО
A31: 227 | B31: 16355 | C31: 227. ИВ Ипостась ИВР Синтезности ИВО → Принцип ИВО
A32: 226 | B32: 16354 | C32: 226. ИВ Ипостась Вш. Реальности Творения ИВО → Метод ИВО
A33: 225 | B33: 16353 | C33: 225. ИВ Ипостась Плана Творения ИВО → Правило ИВО
A34: 224 | B34: 16352 | C34: 224. ИВ Ипостась ИВДИВО ИВО → Огонь ИВО
A35: 223 | B35: 16351 | C35: 223. ИВ Служащий Начал Творения ИВО → Дух Частей ИВО
A36: 222 | B36: 16350 | C36: 222. ИВ Служащий ВЦРМ ИВО → Свет Систем ИВО
A37: 221 | B37: 16349 | C37: 221. ИВ Служащий Мг Фа ИВО → Энергия Аппаратов ИВО
A38: 220 | B38: 16348 | C38: 220. ИВ Служащий Планеты Земля ИВО → Субъядерность Частностей ИВО
A39: 219 | B39: 16347 | C39: 219. ИВ Служащий ИВР Синтезности ИВО → Форма Абсолютности ИВО
A40: 218 | B40: 16346 | C40: 218. ИВ Служащий Вш. Реальности Творения ИВО → Содержание Воскрешения ИВО
A41: 217 | B41: 16345 | C41: 217. ИВ Служащий Плана Творения ИВО → Поле Пробуждения ИВО
A42: 216 | B42: 16344 | C42: 216. ИВ Служащий ИВДИВО ИВО → Время ИВО
A43: 215 | B43: 16343 | C43: 215. ИВ Посвящённый Прав Созидания ИВО → Пространство ИВО
A44: 214 | B44: 16342 | C44: 214. ИВ Посвящённый ВЦРМ ИВО → Скорость ИВО
A45: 213 | B45: 16341 | C45: 213. ИВ Посвящённый Мг Фа ИВО → Мерность ИВО
A46: 212 | B46: 16340 | C46: 212. ИВ Посвящённый Планеты Земля ИВО → Воссоединённость ИВО
A47: 211 | B47: 16339 | C47: 211. ИВ Посвящённый ИВР Синтезности ИВО → Матрица Самоорганизации ИВО
A48: 210 | B48: 16338 | C48: 210. ИВ Посвящённый Вш. Реальности Творения ИВО → Эманации ИВО
A49: 209 | B49: 16337 | C49: 209. ИВ Посвящённый Плана Творения ИВО → Вещество ИВО
A50: 208 | B50: 16336 | C50: 208. ИВ Посвящённый ИВДИВО ИВО → Выс. Ц. Мг Фа ИВО
A51: 207 | B51: 16335 | C51: 207. ИВ Христос ИВО → Выс. Ц. Планета Земля ИВО
A52: 206 | B52: 16334 | C52: 206. ИВ Сын ИВО → Выс. Ц. Мг Человека ИВО
A53: 205 | B53: 16333 | C53: 205. ИВ Дочь ИВО → Выс. Ц. ПараМг ИВО
A54: 204 | B54: 16332 | C54: 204 ИВ Аспект ИВО → Выс. Ц. СинтезМг ИВО
A55: 203 | B55: 16331 | C55: 203. ИВ Логос ИВО → Выс. Ц. Начальная Мг ИВО
A56: 202 | B56: 16330 | C56: 202. ИВ Ману ИВО → Выс. Ц. СуперМг Версумов ИВО
A57: 201 | B57: 16329 | C57: 201. Изначально Вышестоящая Мать ИВО → Выс. Ц. Мг Синтезверсумов ИВО
A58: 200 | B58: 16328 | C58: 200. ИВ Будда ИВО → Выс. Ц. Аматическая Мг Суперверсумов ИВО
A59: 199 | B59: 16327 | C59: 199. ИВ Неизречённый ИВО → Выс. Ц. Атмическая Мг Мультиверсумов ИВО
A60: 198 | B60: 16326 | C60: 198. ИВ Всемогущий ИВО → Выс. Ц. Буддическая Мг Универсумов ИВО
A61: 197 | B61: 16325 | C61: 197. ИВ Предвечный ИВО → Выс. Ц. Причинная Мг Вселенных ИВО
A62: 196 | B62: 16324 | C62: 196. ИВ Предначальный ИВО → Выс. Ц. Ментальная Мг Супергалактик ИВО
A63: 195 | B63: 16323 | C63: 195. ИВ Вседержитель ИВО → Выс. Ц. Изначальная Мг Галактик ИВО
A64: 194 | B64: 16322 | C64: 194. ИВ Всевышний ИВО → Выс. Ц. Основная Мг Солнечных систем ИВО
A65: 193 | B65: 16321 | C65: 193. ИВ Человек Частей ИВО → Выс. Ц. Физичность ИВО
A66: 192 | B66: =B4162+4096 -> 16320 | C66: 192. ИВАС ИВО Кут Хуми Фаинь → Синтез Синтеза ИВО
A67: 191 | B67: 16319 | C67: 191. ИВАС ИВО Иосиф Славия → Синтез Воли ИВО
A68: 190 | B68: 16318 | C68: 190. ИВАС ИВО Мория Свет → Синтез Мудрости ИВО
A69: 189 | B69: 16317 | C69: 189. ИВАС ИВО Филипп Марина → Синтез Любви ИВО
A70: 188 | B70: 16316 | C70: 188. ИВАС ИВО Византий Альбина → Синтез Творения ИВО
A71: 187 | B71: 16315 | C71: 187. ИВАС ИВО Янов Вероника → Синтез Созидания ИВО
A72: 186 | B72: 16314 | C72: 186. ИВАС ИВО Юлий Сиана → Синтез Репликации ИВО
A73: 185 | B73: 16313 | C73: 185. ИВАС ИВО Юсеф Она → Синтез Жизни ИВО
A74: 184 | B74: 16312 | C74: 184. ИВАС ИВО Владомир Стефана → Синтез Воскрешения ИВО
A75: 183 | B75: 16311 | C75: 183. ИВАС ИВО Савва Свята → Синтез Пробуждения ИВО
A76: 182 | B76: 16310 | C76: 182. ИВАС ИВО Савелий Баяна → Синтез Генезис ИВО
A77: 181 | B77: 16309 | C77: 181. ИВАС ИВО Вильгельм Екатерина → Синтез Человечности ИВО
A78: 180 | B78: 16308 | C78: 180. ИВАС ИВО Юстас Сивилла → Синтез Служения ИВО
A79: 179 | B79: 16307 | C79: 179. ИВАС ИВО Александр Тамила → Синтез Вершения ИВО
A80: 178 | B80: 16306 | C80: 178. ИВАС ИВО Яромир Ника → Синтез Практики ИВО
A81: 177 | B81: 16305 | C81: 177. ИВАС ИВО Серапис Велетте → Синтез Могущества ИВО
A82: 176 | B82: 16304 | C82: 176. ИВАС ИВО Эдуард Эмилия → Синтез ИВ Дома Аватара ИВО
A83: 175 | B83: 16303 | C83: 175. ИВАС ИВО Фадей Елена → Синтез Иерархизации ИВО
A84: 174 | B84: 16302 | C84: 174. ИВАС ИВО Серафим Валерия → Синтез Полномочий Совершенств ИВО
A85: 173 | B85: 16301 | C85: 173. ИВАС ИВО Святослав Олеся → Синтез Синтезностей ИВО
A86: 172 | B86: 16300 | C86: 172. ИВАС ИВО Эоан Антуанэтта → Синтез Творящего Синтеза ИВО
A87: 171 | B87: 16299 | C87: 171. ИВАС ИВО Сергей Юлиана → Синтез Статусов ИВО
A88: 170 | B88: 16298 | C88: 170. ИВАС ИВО Сулейман Синтия → Синтез Посвящений ИВО
A89: 169 | B89: 16297 | C89: 169. ИВАС ИВО Себастьян Виктория → Синтез Частей ИВО
A90: 168 | B90: 16296 | C90: 168. ИВАС ИВО Теодор Дарида → Синтез Систем Частей ИВО
A91: 167 | B91: 16295 | C91: 167. ИВАС ИВО Антей Алина → Синтез Аппаратов Систем Частей ИВО
A92: 166 | B92: 16294 | C92: 166. ИВАС ИВО Наум Софья → Синтез Частностей ИВО
A93: 165 | B93: 16293 | C93: 165. ИВАС ИВО Велимир Агафья → Синтез Подготовок ИВО
A94: 164 | B94: 16292 | C94: 164. ИВАС ИВО Георг Дарья → Синтез Компетенций ИВО
A95: 163 | B95: 16291 | C95: 163. ИВАС ИВО Алексей Илана → Синтез Владений ИВО
A96: 162 | B96: 16290 | C96: 162. ИВАС ИВО Эмиль Яна → Синтез Неотчуждённости ИВО
A97: 161 | B97: 16289 | C97: 161. ИВАС ИВО Дарий Давлата → Синтез Пламенности ИВО
A98: 160 | B98: 16288 | C98: 160. ИВАС ИВО Валентин Ирина → Синтез ИВ Дома Владыки ИВО
A99: 159 | B99: 16287 | C99: 159. ИВАС ИВО Савий Лина → Синтез Духа Частей ИВО
A100: 158 | B100: 16286 | C100: 158. ИВАС ИВО Вячеслав Анастасия → Синтез Света Систем ИВО
A101: 157 | B101: 16285 | C101: 157. ИВАС ИВО Андрей Ома → Синтез Энергии Аппаратов ИВО
A102: 156 | B102: 16284 | C102: 156. ИВАС ИВО Давид Сольвейг → Синтез Субъядерности Частностей ИВО
A103: 155 | B103: 16283 | C103: 155. ИВАС ИВО Евгений Октавия → Синтез Формы Абсолютности ИВО
A104: 154 | B104: 16282 | C104: 154. ИВАС ИВО Дмитрий Кристина → Синтез Содержания Воскрешения ИВО
A105: 153 | B105: 16281 | C105: 153. ИВАС ИВО Есений Версавия → Синтез Поля Пробуждения ИВО
A106: 152 | B106: 16280 | C106: 152. ИВАС ИВО Константин Ксения → Синтез Времени ИВО
A107: 151 | B107: 16279 | C107: 151. ИВАС ИВО Ростислав Эмма → Синтез Пространства ИВО
A108: 150 | B108: 16278 | C108: 150. ИВАС ИВО Ян Стафия → Синтез Скорости ИВО
A109: 149 | B109: 16277 | C109: 149. ИВАС ИВО Василий Оксана → Синтез Мерности ИВО
A110: 148 | B110: 16276 | C110: 148. ИВАС ИВО Арсений Ульяна → Синтез Воссоединённости Человека ИВО
A111: 147 | B111: 16275 | C111: 147. ИВАС ИВО Огюст Беатрисс → Синтез Матрицы Самоорганизации ИВО
A112: 146 | B112: 16274 | C112: 146. ИВАС ИВО Илий Оливия → Синтез Эманации ИВО
A113: 145 | B113: 16273 | C113: 145. ИВАС ИВО Геральд Алла → Синтез Вещества ИВО
A114: 144 | B114: 16272 | C114: 144. ИВАС ИВО Платон Натали → Синтез ИВ Дома Учителя ИВО
A115: 143 | B115: 16271 | C115: 143. ИВАС ИВО Николай Эва → Синтез Планеты Земля ИВО
A116: 142 | B116: 16270 | C116: 142. ИВАС ИВО Игорь Лана → Синтез Мг Человека ИВО
A117: 141 | B117: 16269 | C117: 141. ИВАС ИВО Яр Одель → Синтез ПараМг ИВО
A118: 140 | B118: 16268 | C118: 140. ИВАС ИВО Вадим Тамара → Синтез СинтезМг ИВО
A119: 139 | B119: 16267 | C119: 139. ИВАС ИВО Огнеслав Нина → Синтез Начальной Мг ИВО
A120: 138 | B120: 16266 | C120: 138. ИВАС ИВО Марк Орфея → Синтез СуперМг Версумов ИВО
A121: 137 | B121: 16265 | C121: 137. ИВАС ИВО Теон Вергилия → Синтез Цельной Мг Синтезверсумов ИВО
A122: 136 | B122: 16264 | C122: 136. ИВАС ИВО Трофим Василиса → Синтез Аматической Мг Суперверсумов ИВО
A123: 135 | B123: 16263 | C123: 135. ИВАС ИВО Емельян Варвара → Синтез Атмической Мг Мультиверсумов ИВО
A124: 134 | B124: 16262 | C124: 134. ИВАС ИВО Ефрем Арина → Синтез Буддической Мг Универсумов ИВО
A125: 133 | B125: 16261 | C125: 133. ИВАС ИВО Натан Амалия → Синтез Причинной Мг Вселенных ИВО
A126: 132 | B126: 16260 | C126: 132. ИВАС ИВО Артём Елизавета → Синтез Ментальной Мг Супергалактик ИВО
A127: 131 | B127: 16259 | C127: 131. ИВАС ИВО Игнатий Вера → Синтез Изначальной Мг Галактик ИВО
A128: 130 | B128: 16258 | C128: 130. ИВАС ИВО Юлиан Мирослава → Синтез Основной Мг Солнечных систем ИВО
A129: 129 | B129: 16257 | C129: 129. ИВАС ИВО Аркадий Даяна → Синтез Физичности ИВО
A130: 128 | B130: =B4226+4096 -> 16256 | C130: 128. ИВАС ИВО Никита Стелла → Синтез Мг ИВ Дома Ипостаси ИВО
A131: 127 | B131: 16255 | C131: 127. ИВАС ИВО Олег Дора → Синтез Мг Воли ИВО
A132: 126 | B132: 16254 | C132: 126. ИВАС ИВО Владимир Клавдия → Синтез Мг Мудрости ИВО
A133: 125 | B133: 16253 | C133: 125. ИВАС ИВО Стефан Лада → Синтез Мг Любви ИВО
A134: 124 | B134: 16252 | C134: 124. ИВАС ИВО Горислав Ветта → Синтез Мг Творения ИВО
A135: 123 | B135: 16251 | C135: 123. ИВАС ИВО Никон Власта → Синтез Мг Созидания ИВО
A136: 122 | B136: 16250 | C136: 122. ИВАС ИВО Эрик Офелия → Синтез Мг Репликации ИВО
A137: 121 | B137: 16249 | C137: 121. ИВАС ИВО Олаф Даная → Синтез Мг Жизни ИВО
A138: 120 | B138: 16248 | C138: 120. ИВАС ИВО Вацлав Ханна → Синтез Мг Воскрешения ИВО
A139: 119 | B139: 16247 | C139: 119. ИВАС ИВО Левий Хлоя → Синтез Мг Пробуждения ИВО
A140: 118 | B140: 16246 | C140: 118. ИВАС ИВО Руслан Надежда → Синтез Мг Генезиса ИВО
A141: 117 | B141: 16245 | C141: 117. ИВАС ИВО Генрих Олла → Синтез Мг Человечности ИВО
A142: 116 | B142: 16244 | C142: 116. ИВАС ИВО Владлен Илона → Синтез Мг Служения ИВО
A143: 115 | B143: 16243 | C143: 115. ИВАС ИВО Борислав Генриетта → Синтез Мг Вершения ИВО
A144: 114 | B144: 16242 | C144: 114. ИВАС ИВО Нестор Мария → Синтез Мг Практики ИВО
A145: 113 | B145: 16241 | C145: 113. ИВАС ИВО Аристарх Глория → Синтез Мг Могущества ИВО
A146: 112 | B146: 16240 | C146: 112. ИВАС ИВО Альфред Констанция → Синтез Мг ИВ Дома Служащего ИВО
A147: 111 | B147: 16239 | C147: 111. ИВАС ИВО Егор Стэвия → Синтез Мг Сверхпассионарности ИВО
A148: 110 | B148: 16238 | C148: 110. ИВАС ИВО Витольд Полина → Синтез Мг Истинности ИВО
A149: 109 | B149: 16237 | C149: 109. ИВАС ИВО Стократ Виру → Синтез Мг Окскости ИВО
A150: 108 | B150: 16236 | C150: 108. ИВАС ИВО Глеб Фанна → Синтез Мг Красоты ИВО
A151: 107 | B151: 16235 | C151: 107. ИВАС ИВО Клавдий Евгения → Синтез Мг Константы ИВО
A152: 106 | B152: 16234 | C152: 106. ИВАС ИВО Теонис Элина → Синтез Мг Знания ИВО
A153: 105 | B153: 16233 | C153: 105. ИВАС ИВО Донан Сара → Синтез Мг Меры ИВО
A154: 104 | B154: 16232 | C154: 104. ИВАС ИВО Альберт Алевтина → Синтез Мг Стандарта ИВО
A155: 103 | B155: 16231 | C155: 103. ИВАС ИВО Степан Раиса → Синтез Мг Закона ИВО
A156: 102 | B156: 16230 | C156: 102. ИВАС ИВО Арсан Аврора → Синтез Мг Императива ИВО
A157: 101 | B157: 16229 | C157: 101. ИВАС ИВО Остап Дилана → Синтез Мг Аксиомы ИВО
A158: 100 | B158: 16228 | C158: 100. ИВАС ИВО Роман Яся → Синтез Мг Начала ИВО
A159: 99 | B159: 16227 | C159: 099. ИВАС ИВО Клим Фира → Синтез Мг Принципа ИВО
A160: 98 | B160: 16226 | C160: 098. ИВАС ИВО Пётр Омелия → Синтез Мг Метода ИВО
A161: 97 | B161: 16225 | C161: 097. ИВАС ИВО Макей Мадлен → Синтез Мг Правила ИВО
A162: 96 | B162: 16224 | C162: 096. ИВАС ИВО Анис Римма → Синтез Мг ИВ Дома Посвящённого ИВО
A163: 95 | B163: 16223 | C163: 095. ИВАС ИВО Ар Белла → Синтез Мг Аватарскости ИВО
A164: 94 | B164: 16222 | C164: 094. ИВАС ИВО Дорадий Агния → Синтез Мг Владычества ИВО
A165: 93 | B165: 16221 | C165: 093. ИВАС ИВО Дор Фелиция → Синтез Мг Учительства ИВО
A166: 92 | B166: 16220 | C166: 092. ИВАС ИВО Понтелей Виталина → Синтез Мг Ипостасности ИВО
A167: 91 | B167: 16219 | C167: 091. ИВАС ИВО Явир Нона → Синтез Мг Статусности ИВО
A168: 90 | B168: 16218 | C168: 090. ИВАС ИВО Трис Клементина → Синтез Мг Посвящённости ИВО
A169: 89 | B169: 16217 | C169: 089. ИВАС ИВО Виктор Лира → Синтез Мг Совершенства ИВО
A170: 88 | B170: 16216 | C170: 088. ИВАС ИВО Визар Ванесса → Синтез Мг Полномочности ИВО
A171: 87 | B171: 16215 | C171: 087. ИВАС ИВО Ерёма Евдокия → Синтез Мг Непредубеждённости ИВО
A172: 86 | B172: 16214 | C172: 086. ИВАС ИВО Ираклий Клара → Синтез Мг Реализации ИВО
A173: 85 | B173: 16213 | C173: 085. ИВАС ИВО Елизар Лиза → Синтез Мг Свободы ИВО
A174: 84 | B174: 16212 | C174: 084. ИВАС ИВО Градимир Сюзанна → Синтез Мг Организованности ИВО
A175: 83 | B175: 16211 | C175: 083. ИВАС ИВО Рустам Сейла → Синтез Мг Управления ИВО
A176: 82 | B176: 16210 | C176: 082. ИВАС ИВО Октан Руслана → Синтез Мг Ответственности ИВО
A177: 81 | B177: 16209 | C177: 081. ИВАС ИВО Силуан Устина → Синтез Мг Дисциплины ИВО
A178: 80 | B178: 16208 | C178: 080. ИВАС ИВО Лукьян Марика → Синтез Мг ИВ Дома Человека-Творца ИВО
A179: 79 | B179: 16207 | C179: 079. ИВАС ИВО Люсьен Франсуаза → Синтез Мг Я Есмь ИВО
A180: 78 | B180: 16206 | C180: 078. ИВАС ИВО Андриан Христина → Синтез Мг Имперации ИВО
A181: 77 | B181: 16205 | C181: 077. ИВАС ИВО Прокофий Иолана → Синтез Мг Взгляда ИВО
A182: 76 | B182: 16204 | C182: 076. ИВАС ИВО Зарк Джесика → Синтез Мг Синтезначала ИВО
A183: 75 | B183: 16203 | C183: 075. ИВАС ИВО Станис Сабина → Синтез Мг Основы ИВО
A184: 74 | B184: 16202 | C184: 074. ИВАС ИВО Панкрат Нелли → Синтез Мг Параметода ИВО
A185: 73 | B185: 16201 | C185: 073. ИВАС ИВО Старк Санта → Синтез Мг Мощи ИВО
A186: 72 | B186: 16200 | C186: 072. ИВАС ИВО Дорофей Доротея → Синтез Мг Права ИВО
A187: 71 | B187: 16199 | C187: 071. ИВАС ИВО Яков Янина → Синтез Мг Идеи ИВО
A188: 70 | B188: 16198 | C188: 070. ИВАС ИВО Ульян Люция → Синтез Мг Сути ИВО
A189: 69 | B189: 16197 | C189: 069. ИВАС ИВО Герман Ирэн → Синтез Мг Смысла ИВО
A190: 68 | B190: 16196 | C190: 068. ИВАС ИВО Радомир Сесилия → Синтез Мг Мысли ИВО
A191: 67 | B191: 16195 | C191: 067. ИВАС ИВО Октавий Верислава → Синтез Мг Чувства ИВО
A192: 66 | B192: 16194 | C192: 066. ИВАС ИВО Ким Станислава → Синтез Мг Ощущения ИВО
A193: 65 | B193: 16193 | C193: 065. ИВАС ИВО Бонифаций Милослава → Синтез Мг Движения ИВО
A194: 64 | B194: =B4290+4096 -> 16192 | C194: 064. ИВАС ИВО Фредерик Константа → Синтез Мг ИВ Дома Человека ИВО
A195: 63 | B195: 16191 | C195: 063. ИВАС ИВО Станислав Александра → Синтез Мг Физического Тела ИВО
A196: 62 | B196: 16190 | C196: 062. ИВАС ИВО Алан Илария → Синтез Мг Истины ИВО
A197: 61 | B197: 16189 | C197: 061. ИВАС ИВО Арий Феодора → Синтез Мг Око ИВО
A198: 60 | B198: 16188 | C198: 060. ИВАС ИВО Мирослав Владислава → Синтез Мг Хум ИВО
A199: 59 | B199: 16187 | C199: 059. ИВАС ИВО Рудольф Агнесса → Синтез Мг Абсолюта ИВО
A200: 58 | B200: 16186 | C200: 058. ИВАС ИВО Феликс Ония → Синтез Мг Омеги ИВО
... 16185 more rows

Sheet Лист2
F2: Части
C4: 16384 | D4: .256. ИВО ИВО → Синтез ИВО ВЦ ИВ Дом ИВО | E4: 16128 | F4: 256. ИВАС ИВО ИВ → Синтез ВЦРМ Мг ИВДИВО ИВ Аватара ИВО | G4: 15872 | H4: 256. ИВАС ИВО ИВ → Синтез ВЦРМ Мг ИВДИВО ИВ Владыки ИВО | I4: 15616 | J4: 256. ИВАС ИВО ИВ → Синтез ВЦРМ Мг ИВДИВО ИВ Учителя ИВО | K4: 15360 | L4: 256. ИВАС ИВО ИВ → Синтез ВЦРМ Мг ИВДИВО ИВ Ипостаси ИВО | M4: 15104 | N4: 256. ИВАС ИВО ИВ → Синтез ВЦРМ Мг ИВДИВО ИВ Служащего ИВО | O4: 14848 | P4: 256. ИВАС ИВО ИВ → Синтез ВЦРМ Мг ИВДИВО ИВ Посвященного ИВО | Q4: 14592 | R4: 256. ИВАС ИВО ИВ → Синтез ВЦРМ Мг ИВДИВО ИВ Майтрейи ИВО | S4: 14336 | T4: 256. ИВАС ИВО ИВ → Синтез ВЦРМ Мг ИВДИВО ИВ Христа ИВО | U4: 14080 | V4: 256. ИВАС ИВО ИВ → Синтез ВЦРМ Мг ИВДИВО ИВ Будды ИВО | W4: 13824 | X4: 256. ИВАС ИВО ИВ → Синтез ВЦРМ Мг ИВДИВО ИВ Теурга ИВО | Y4: 13568 | Z4: 256. ИВАС ИВО ИВ → Синтез ВЦРМ Мг ИВДИВО ИВ Творца ИВО | AA4: 13312 | AB4: 256. ИВАС ИВО ИВ → Синтез ВЦРМ Мг ИВДИВО ИВ Человека ИВО ИВО | AC4: 13056 | AD4: 256. ИВАС ИВО ИВ → Синтез ВЦРМ Мг ИВДИВО ИВ Человека ВЦРМ ИВО | AE4: 12800 | AF4: 256. ИВАС ИВО ИВ → Синтез ВЦРМ Мг ИВДИВО ИВ Человека Мг ФаИВО | AG4: 12544 | AH4: 256. ИВАС ИВО ИВ → Синтез ВЦРМ Мг ИВДИВО ИВ Человека Планеты Земля ИВО
C5: 16383 | D5: 255. ИВ Аватар → ИВО Воля ИВО ВЦ Изначально Вышестоящая Иерархия ИВО | E5: 16127 | F5: .255. ИВАС ИВО ИВ → Синтез ВЦРМ Мг Иерархии ИВ Аватара ИВО | G5: 15871 | H5: .255. ИВАС ИВО ИВ → Синтез ВЦРМ Мг Иерархии ИВ Владыки ИВО | I5: 15615 | J5: .255. ИВАС ИВО ИВ → Синтез ВЦРМ Мг Иерархии ИВ Учителя ИВО | K5: 15359 | L5: .255. ИВАС ИВО ИВ → Синтез ВЦРМ Мг Иерархии ИВ Ипостаси ИВО | M5: 15103 | N5: .255. ИВАС ИВО ИВ → Синтез ВЦРМ Мг Иерархии ИВ Служащего ИВО | O5: 14847 | P5: .255. ИВАС ИВО ИВ → Синтез ВЦРМ Мг Иерархии ИВ Посвященного ИВО | Q5: 14591 | R5: .255. ИВАС ИВО ИВ → Синтез ВЦРМ Мг Иерархии ИВ Майтрейи ИВО | S5: 14335 | T5: .255. ИВАС ИВО ИВ → Синтез ВЦРМ Мг Иерархии ИВ Христа ИВО | U5: 14079 | V5: .255. ИВАС ИВО ИВ → Синтез ВЦРМ Мг Иерархии ИВ Будды ИВО | W5: 13823 | X5: .255. ИВАС ИВО ИВ → Синтез ВЦРМ Мг Иерархии ИВ Теурга ИВО | Y5: 13567 | Z5: .255. ИВАС ИВО ИВ → Синтез ВЦРМ Мг Иерархии ИВ Творца ИВО | AA5: 13311 | AB5: .255. ИВАС ИВО ИВ → Синтез ВЦРМ Мг Иерархии ИВ Человека ИВО ИВО | AC5: 13055 | AD5: .255. ИВАС ИВО ИВ → Синтез ВЦРМ Мг Иерархии ИВ Человека ВЦРМ ИВО | AE5: 12799 | AF5: .255. ИВАС ИВО ИВ → Синтез ВЦРМ Мг Иерархии ИВ Человека Мг ФаИВО | AG5: 12543 | AH5: .255. ИВАС ИВО ИВ → Синтез ВЦРМ Мг Иерархии ИВ Человека Планеты Земля ИВО
C6: 16382 | D6: 254. ИВ Владыка → ИВО Мудрость ИВО ВЦ Человек ИВО | E6: 16126 | F6: 254. ИВАС ИВО ИВ → Синтез ВЦРМ Мг Человека ИВ Аватара ИВО | G6: 15870 | H6: 254. ИВАС ИВО ИВ → Синтез ВЦРМ Мг Человека ИВ Владыки ИВО | I6: 15614 | J6: 254. ИВАС ИВО ИВ → Синтез ВЦРМ Мг Человека ИВ Учителя ИВО | K6: 15358 | L6: 254. ИВАС ИВО ИВ → Синтез ВЦРМ Мг Человека ИВ Ипостаси ИВО | M6: 15102 | N6: 254. ИВАС ИВО ИВ → Синтез ВЦРМ Мг Человека ИВ Служащего ИВО | O6: 14846 | P6: 254. ИВАС ИВО ИВ → Синтез ВЦРМ Мг Человека ИВ Посвященного ИВО | Q6: 14590 | R6: 254. ИВАС ИВО ИВ → Синтез ВЦРМ Мг Человека ИВ Майтрейи ИВО | S6: 14334 | T6: 254. ИВАС ИВО ИВ → Синтез ВЦРМ Мг Человека ИВ Христа ИВО | U6: 14078 | V6: 254. ИВАС ИВО ИВ → Синтез ВЦРМ Мг Человека ИВ Будды ИВО | W6: 13822 | X6: 254. ИВАС ИВО ИВ → Синтез ВЦРМ Мг Человека ИВ Теурга ИВО | Y6: 13566 | Z6: 254. ИВАС ИВО ИВ → Синтез ВЦРМ Мг Человека ИВ Творца ИВО | AA6: 13310 | AB6: 254. ИВАС ИВО ИВ → Синтез ВЦРМ Мг Человека ИВ Человека ИВО ИВО | AC6: 13054 | AD6: 254. ИВАС ИВО ИВ → Синтез ВЦРМ Мг Человека ИВ Человека ВЦРМ ИВО | AE6: 12798 | AF6: 254. ИВАС ИВО ИВ → Синтез ВЦРМ Мг Человека ИВ Человека Мг ФаИВО | AG6: 12542 | AH6: 254. ИВАС ИВО ИВ → Синтез ВЦРМ Мг Человека ИВ Человека Планеты Земля ИВО
C7: 16381 | D7: 253. ИВ Учитель → ИВО Любовь ИВО ВЦ Учитель Синтеза ИВО | E7: 16125 | F7: 253. ИВАС ИВО ИВ → Синтез ВЦРМ Мг Аватара Синтеза ИВ Аватара ИВО | G7: 15869 | H7: 253. ИВАС ИВО ИВ → Синтез ВЦРМ Мг Владыки Синтеза ИВ Владыки ИВО | I7: 15613 | J7: 253. ИВАС ИВО ИВ → Синтез ВЦРМ Мг Учителя Синтеза ИВ Учителя ИВО | K7: 15357 | L7: 253. ИВАС ИВО ИВ → Синтез ВЦРМ Мг Ипостаси Синтеза ИВ Ипостаси ИВО | M7: 15101 | N7: 253. ИВАС ИВО ИВ → Синтез ВЦРМ Мг Служащего Синтеза ИВ Служащего ИВО | O7: 14845 | P7: 253. ИВАС ИВО ИВ → Синтез ВЦРМ Мг Посвященного Синтеза ИВ Посвященного ИВО | Q7: 14589 | R7: 253. ИВАС ИВО ИВ → Синтез ВЦРМ Мг Майтрейи Синтеза ИВ Майтрейи ИВО | S7: 14333 | T7: 253. ИВАС ИВО ИВ → Синтез ВЦРМ Мг Христа Синтеза ИВ Христа ИВО | U7: 14077 | V7: 253. ИВАС ИВО ИВ → Синтез ВЦРМ Мг Будды Синтеза ИВ Будды ИВО | W7: 13821 | X7: 253. ИВАС ИВО ИВ → Синтез ВЦРМ Мг Теурга Синтеза ИВ Теурга ИВО | Y7: 13565 | Z7: 253. ИВАС ИВО ИВ → Синтез ВЦРМ Мг Творца Синтеза ИВ Творца ИВО | AA7: 13309 | AB7: 253. ИВАС ИВО ИВ → Синтез ВЦРМ Мг Человека ИВО Синтеза ИВ Человека ИВО ИВО | AC7: 13053 | AD7: 253. ИВАС ИВО ИВ → Синтез ВЦРМ Мг Человека ВЦРМ Синтеза ИВ Человека ВЦРМ ИВО | AE7: 12797 | AF7: 253. ИВАС ИВО ИВ → Синтез ВЦРМ Мг Человека Мг ФаСинтеза ИВ Человека Мг ФаИВО | AG7: 12541 | AH7: 253. ИВАС ИВО ИВ → Синтез ВЦРМ Мг Человека Планеты Земля Синтеза ИВ Человека Планеты Земля ИВО
C8: 16380 | D8: 252. ИВ Ипостась → ИВО Творение ИВО ВЦ Высшая Школа Синтеза ИВО | E8: 16124 | F8: 252. ИВАС ИВО ИВ → Синтез ВЦРМ Высшей Школы Синтеза ИВ Аватара ИВО | G8: 15868 | H8: 252. ИВАС ИВО ИВ → Синтез ВЦРМ Высшей Школы Синтеза ИВ Владыки ИВО | I8: 15612 | J8: 252. ИВАС ИВО ИВ → Синтез ВЦРМ Высшей Школы Синтеза ИВ Учителя ИВО | K8: 15356 | L8: 252. ИВАС ИВО ИВ → Синтез ВЦРМ Высшей Школы Синтеза ИВ Ипостаси ИВО | M8: 15100 | N8: 252. ИВАС ИВО ИВ → Синтез ВЦРМ Высшей Школы Синтеза ИВ Служащего ИВО | O8: 14844 | P8: 252. ИВАС ИВО ИВ → Синтез ВЦРМ Высшей Школы Синтеза ИВ Посвященного ИВО | Q8: 14588 | R8: 252. ИВАС ИВО ИВ → Синтез ВЦРМ Высшей Школы Синтеза ИВ Майтрейи ИВО | S8: 14332 | T8: 252. ИВАС ИВО ИВ → Синтез ВЦРМ Высшей Школы Синтеза ИВ Христа ИВО | U8: 14076 | V8: 252. ИВАС ИВО ИВ → Синтез ВЦРМ Высшей Школы Синтеза ИВ Будды ИВО | W8: 13820 | X8: 252. ИВАС ИВО ИВ → Синтез ВЦРМ Высшей Школы Синтеза ИВ Теурга ИВО | Y8: 13564 | Z8: 252. ИВАС ИВО ИВ → Синтез ВЦРМ Высшей Школы Синтеза ИВ Творца ИВО | AA8: 13308 | AB8: 252. ИВАС ИВО ИВ → Синтез ВЦРМ Высшей Школы Синтеза ИВ Человека ИВО ИВО | AC8: 13052 | AD8: 252. ИВАС ИВО ИВ → Синтез ВЦРМ Высшей Школы Синтеза ИВ Человека ВЦРМ ИВО | AE8: 12796 | AF8: 252. ИВАС ИВО ИВ → Синтез ВЦРМ Высшей Школы Синтеза ИВ Человека Мг ФаИВО | AG8: 12540 | AH8: 252. ИВАС ИВО ИВ → Синтез ВЦРМ Высшей Школы Синтеза ИВ Человека Планеты Земля ИВО
C9: 16379 | D9: 251. ИВ Служащий → ИВО Созидание ИВО ВЦ Психодинамическое Мастерство ИВО | E9: 16123 | F9: 251. ИВАС ИВО ИВ → Синтез ВЦРМ Психодинамического Мастерства ИВ Аватара ИВО | G9: 15867 | H9: 251. ИВАС ИВО ИВ → Синтез ВЦРМ Психодинамического Мастерства ИВ Владыки ИВО | I9: 15611 | J9: 251. ИВАС ИВО ИВ → Синтез ВЦРМ Психодинамического Мастерства ИВ Учителя ИВО | K9: 15355 | L9: 251. ИВАС ИВО ИВ → Синтез ВЦРМ Психодинамического Мастерства ИВ Ипостаси ИВО | M9: 15099 | N9: 251. ИВАС ИВО ИВ → Синтез ВЦРМ Психодинамического Мастерства ИВ Служащего ИВО | O9: 14843 | P9: 251. ИВАС ИВО ИВ → Синтез ВЦРМ Психодинамического Мастерства ИВ Посвященного ИВО | Q9: 14587 | R9: 251. ИВАС ИВО ИВ → Синтез ВЦРМ Психодинамического Мастерства ИВ Майтрейи ИВО | S9: 14331 | T9: 251. ИВАС ИВО ИВ → Синтез ВЦРМ Психодинамического Мастерства ИВ Христа ИВО | U9: 14075 | V9: 251. ИВАС ИВО ИВ → Синтез ВЦРМ Психодинамического Мастерства ИВ Будды ИВО | W9: 13819 | X9: 251. ИВАС ИВО ИВ → Синтез ВЦРМ Психодинамического Мастерства ИВ Теурга ИВО | Y9: 13563 | Z9: 251. ИВАС ИВО ИВ → Синтез ВЦРМ Психодинамического Мастерства ИВ Творца ИВО | AA9: 13307 | AB9: 251. ИВАС ИВО ИВ → Синтез ВЦРМ Психодинамического Мастерства ИВ Человека ИВО ИВО | AC9: 13051 | AD9: 251. ИВАС ИВО ИВ → Синтез ВЦРМ Психодинамического Мастерства ИВ Человека ВЦРМ ИВО | AE9: 12795 | AF9: 251. ИВАС ИВО ИВ → Синтез ВЦРМ Психодинамического Мастерства ИВ Человека Мг ФаИВО | AG9: 12539 | AH9: 251. ИВАС ИВО ИВ → Синтез ВЦРМ Психодинамического Мастерства ИВ Человека Планеты Земля ИВО
C10: 16378 | D10: 250. ИВ Посвящённый → ИВО Жива ИВО ВЦ Мг Академия Наук ИВО | E10: 16122 | F10: 250. ИВАС ИВО ИВ → Синтез ВЦРМ Мг Академии Наук ИВ Аватара ИВО | G10: 15866 | H10: 250. ИВАС ИВО ИВ → Синтез ВЦРМ Мг Академии Наук ИВ Владыки ИВО | I10: 15610 | J10: 250. ИВАС ИВО ИВ → Синтез ВЦРМ Мг Академии Наук ИВ Учителя ИВО | K10: 15354 | L10: 250. ИВАС ИВО ИВ → Синтез ВЦРМ Мг Академии Наук ИВ Ипостаси ИВО | M10: 15098 | N10: 250. ИВАС ИВО ИВ → Синтез ВЦРМ Мг Академии Наук ИВ Служащего ИВО | O10: 14842 | P10: 250. ИВАС ИВО ИВ → Синтез ВЦРМ Мг Академии Наук ИВ Посвященного ИВО | Q10: 14586 | R10: 250. ИВАС ИВО ИВ → Синтез ВЦРМ Мг Академии Наук ИВ Майтрейи ИВО | S10: 14330 | T10: 250. ИВАС ИВО ИВ → Синтез ВЦРМ Мг Академии Наук ИВ Христа ИВО | U10: 14074 | V10: 250. ИВАС ИВО ИВ → Синтез ВЦРМ Мг Академии Наук ИВ Будды ИВО | W10: 13818 | X10: 250. ИВАС ИВО ИВ → Синтез ВЦРМ Мг Академии Наук ИВ Теурга ИВО | Y10: 13562 | Z10: 250. ИВАС ИВО ИВ → Синтез ВЦРМ Мг Академии Наук ИВ Творца ИВО | AA10: 13306 | AB10: 250. ИВАС ИВО ИВ → Синтез ВЦРМ Мг Академии Наук ИВ Человека ИВО ИВО | AC10: 13050 | AD10: 250. ИВАС ИВО ИВ → Синтез ВЦРМ Мг Академии Наук ИВ Человека ВЦРМ ИВО | AE10: 12794 | AF10: 250. ИВАС ИВО ИВ → Синтез ВЦРМ Мг Академии Наук ИВ Человека Мг ФаИВО | AG10: 12538 | AH10: 250. ИВАС ИВО ИВ → Синтез ВЦРМ Мг Академии Наук ИВ Человека Планеты Земля ИВО
C11: 16377 | D11: 249. ИВ Майтрейя → ИВО Жизнь ИВО ВЦ Философия Синтеза ИВО | E11: 16121 | F11: 249. ИВАС ИВО ИВ → Синтез ВЦРМ Мг Центра Философии Синтеза ИВ Аватара ИВО | G11: 15865 | H11: 249. ИВАС ИВО ИВ → Синтез ВЦРМ Мг Центра Философии Синтеза ИВ Владыки ИВО | I11: 15609 | J11: 249. ИВАС ИВО ИВ → Синтез ВЦРМ Мг Центра Философии Синтеза ИВ Учителя ИВО | K11: 15353 | L11: 249. ИВАС ИВО ИВ → Синтез ВЦРМ Мг Центра Философии Синтеза ИВ Ипостаси ИВО | M11: 15097 | N11: 249. ИВАС ИВО ИВ → Синтез ВЦРМ Мг Центра Философии Синтеза ИВ Служащего ИВО | O11: 14841 | P11: 249. ИВАС ИВО ИВ → Синтез ВЦРМ Мг Центра Философии Синтеза ИВ Посвященного ИВО | Q11: 14585 | R11: 249. ИВАС ИВО ИВ → Синтез ВЦРМ Мг Центра Философии Синтеза ИВ Майтрейи ИВО | S11: 14329 | T11: 249. ИВАС ИВО ИВ → Синтез ВЦРМ Мг Центра Философии Синтеза ИВ Христа ИВО | U11: 14073 | V11: 249. ИВАС ИВО ИВ → Синтез ВЦРМ Мг Центра Философии Синтеза ИВ Будды ИВО | W11: 13817 | X11: 249. ИВАС ИВО ИВ → Синтез ВЦРМ Мг Центра Философии Синтеза ИВ Теурга ИВО | Y11: 13561 | Z11: 249. ИВАС ИВО ИВ → Синтез ВЦРМ Мг Центра Философии Синтеза ИВ Творца ИВО | AA11: 13305 | AB11: 249. ИВАС ИВО ИВ → Синтез ВЦРМ Мг Центра Философии Синтеза ИВ Человека ИВО ИВО | AC11: 13049 | AD11: 249. ИВАС ИВО ИВ → Синтез ВЦРМ Мг Центра Философии Синтеза ИВ Человека ВЦРМ ИВО | AE11: 12793 | AF11: 249. ИВАС ИВО ИВ → Синтез ВЦРМ Мг Центра Философии Синтеза ИВ Человека Мг ФаИВО | AG11: 12537 | AH11: 249. ИВАС ИВО ИВ → Синтез ВЦРМ Мг Центра Философии Синтеза ИВ Человека Планеты Земля ИВО
C12: 16376 | D12: 248. ИВ Христос ИВО → Воскрешение ИВО ВЦ Мг Гражданская Конфедерация Человека ИВО | E12: 16120 | F12: 248. ИВАС ИВО ИВ → Синтез ВЦРМ Мг Гражданской Конфедерации ИВ Аватара ИВО | G12: 15864 | H12: 248. ИВАС ИВО ИВ → Синтез ВЦРМ Мг Гражданской Конфедерации ИВ Владыки ИВО | I12: 15608 | J12: 248. ИВАС ИВО ИВ → Синтез ВЦРМ Мг Гражданской Конфедерации ИВ Учителя ИВО | K12: 15352 | L12: 248. ИВАС ИВО ИВ → Синтез ВЦРМ Мг Гражданской Конфедерации ИВ Ипостаси ИВО | M12: 15096 | N12: 248. ИВАС ИВО ИВ → Синтез ВЦРМ Мг Гражданской Конфедерации ИВ Служащего ИВО | O12: 14840 | P12: 248. ИВАС ИВО ИВ → Синтез ВЦРМ Мг Гражданской Конфедерации ИВ Посвященного ИВО | Q12: 14584 | R12: 248. ИВАС ИВО ИВ → Синтез ВЦРМ Мг Гражданской Конфедерации ИВ Майтрейи ИВО | S12: 14328 | T12: 248. ИВАС ИВО ИВ → Синтез ВЦРМ Мг Гражданской Конфедерации ИВ Христа ИВО | U12: 14072 | V12: 248. ИВАС ИВО ИВ → Синтез ВЦРМ Мг Гражданской Конфедерации ИВ Будды ИВО | W12: 13816 | X12: 248. ИВАС ИВО ИВ → Синтез ВЦРМ Мг Гражданской Конфедерации ИВ Теурга ИВО | Y12: 13560 | Z12: 248. ИВАС ИВО ИВ → Синтез ВЦРМ Мг Гражданской Конфедерации ИВ Творца ИВО | AA12: 13304 | AB12: 248. ИВАС ИВО ИВ → Синтез ВЦРМ Мг Гражданской Конфедерации ИВ Человека ИВО ИВО | AC12: 13048 | AD12: 248. ИВАС ИВО ИВ → Синтез ВЦРМ Мг Гражданской Конфедерации ИВ Человека ВЦРМ ИВО | AE12: 12792 | AF12: 248. ИВАС ИВО ИВ → Синтез ВЦРМ Мг Гражданской Конфедерации ИВ Человека Мг ФаИВО | AG12: 12536 | AH12: 248. ИВАС ИВО ИВ → Синтез ВЦРМ Мг Гражданской Конфедерации ИВ Человека Планеты Земля ИВО
C13: 16375 | D13: 247. ИВ Будда ИВО → Пробуждение ИВОВ Ц Мг Цивилизация Человека ИВО | E13: 16119 | F13: 247. ИВАС ИВО ИВ → Синтез ВЦРМ Мг Цивилизации ИВ Аватара ИВО | G13: 15863 | H13: 247. ИВАС ИВО ИВ → Синтез ВЦРМ Мг Цивилизации ИВ Владыки ИВО | I13: 15607 | J13: 247. ИВАС ИВО ИВ → Синтез ВЦРМ Мг Цивилизации ИВ Учителя ИВО | K13: 15351 | L13: 247. ИВАС ИВО ИВ → Синтез ВЦРМ Мг Цивилизации ИВ Ипостаси ИВО | M13: 15095 | N13: 247. ИВАС ИВО ИВ → Синтез ВЦРМ Мг Цивилизации ИВ Служащего ИВО | O13: 14839 | P13: 247. ИВАС ИВО ИВ → Синтез ВЦРМ Мг Цивилизации ИВ Посвященного ИВО | Q13: 14583 | R13: 247. ИВАС ИВО ИВ → Синтез ВЦРМ Мг Цивилизации ИВ Майтрейи ИВО | S13: 14327 | T13: 247. ИВАС ИВО ИВ → Синтез ВЦРМ Мг Цивилизации ИВ Христа ИВО | U13: 14071 | V13: 247. ИВАС ИВО ИВ → Синтез ВЦРМ Мг Цивилизации ИВ Будды ИВО | W13: 13815 | X13: 247. ИВАС ИВО ИВ → Синтез ВЦРМ Мг Цивилизации ИВ Теурга ИВО | Y13: 13559 | Z13: 247. ИВАС ИВО ИВ → Синтез ВЦРМ Мг Цивилизации ИВ Творца ИВО | AA13: 13303 | AB13: 247. ИВАС ИВО ИВ → Синтез ВЦРМ Мг Цивилизации ИВ Человека ИВО ИВО | AC13: 13047 | AD13: 247. ИВАС ИВО ИВ → Синтез ВЦРМ Мг Цивилизации ИВ Человека ВЦРМ ИВО | AE13: 12791 | AF13: 247. ИВАС ИВО ИВ → Синтез ВЦРМ Мг Цивилизации ИВ Человека Мг ФаИВО | AG13: 12535 | AH13: 247. ИВАС ИВО ИВ → Синтез ВЦРМ Мг Цивилизации ИВ Человека Планеты Земля ИВО
C14: 16374 | D14: 246. ИВ Теург ИВО → Генезис ИВО ВЦ Мг Нация Человека ИВО | E14: 16118 | F14: 246. ИВАС ИВО ИВ → Синтез ВЦРМ Мг Нации ИВ Аватара ИВО | G14: 15862 | H14: 246. ИВАС ИВО ИВ → Синтез ВЦРМ Мг Нации ИВ Владыки ИВО | I14: 15606 | J14: 246. ИВАС ИВО ИВ → Синтез ВЦРМ Мг Нации ИВ Учителя ИВО | K14: 15350 | L14: 246. ИВАС ИВО ИВ → Синтез ВЦРМ Мг Нации ИВ Ипостаси ИВО | M14: 15094 | N14: 246. ИВАС ИВО ИВ → Синтез ВЦРМ Мг Нации ИВ Служащего ИВО | O14: 14838 | P14: 246. ИВАС ИВО ИВ → Синтез ВЦРМ Мг Нации ИВ Посвященного ИВО | Q14: 14582 | R14: 246. ИВАС ИВО ИВ → Синтез ВЦРМ Мг Нации ИВ Майтрейи ИВО | S14: 14326 | T14: 246. ИВАС ИВО ИВ → Синтез ВЦРМ Мг Нации ИВ Христа ИВО | U14: 14070 | V14: 246. ИВАС ИВО ИВ → Синтез ВЦРМ Мг Нации ИВ Будды ИВО | W14: 13814 | X14: 246. ИВАС ИВО ИВ → Синтез ВЦРМ Мг Нации ИВ Теурга ИВО | Y14: 13558 | Z14: 246. ИВАС ИВО ИВ → Синтез ВЦРМ Мг Нации ИВ Творца ИВО | AA14: 13302 | AB14: 246. ИВАС ИВО ИВ → Синтез ВЦРМ Мг Нации ИВ Человека ИВО ИВО | AC14: 13046 | AD14: 246. ИВАС ИВО ИВ → Синтез ВЦРМ Мг Нации ИВ Человека ВЦРМ ИВО | AE14: 12790 | AF14: 246. ИВАС ИВО ИВ → Синтез ВЦРМ Мг Нации ИВ Человека Мг ФаИВО | AG14: 12534 | AH14: 246. ИВАС ИВО ИВ → Синтез ВЦРМ Мг Нации ИВ Человека Планеты Земля ИВО
C15: 16373 | D15: 245. ИВ Творец ИВО → Человечность ИВО ВЦ Мг Раса Человека ИВО | E15: 16117 | F15: 245. ИВАС ИВО ИВ → Синтез ВЦРМ Мг Расы ИВ Аватара ИВО | G15: 15861 | H15: 245. ИВАС ИВО ИВ → Синтез ВЦРМ Мг Расы ИВ Владыки ИВО | I15: 15605 | J15: 245. ИВАС ИВО ИВ → Синтез ВЦРМ Мг Расы ИВ Учителя ИВО | K15: 15349 | L15: 245. ИВАС ИВО ИВ → Синтез ВЦРМ Мг Расы ИВ Ипостаси ИВО | M15: 15093 | N15: 245. ИВАС ИВО ИВ → Синтез ВЦРМ Мг Расы ИВ Служащего ИВО | O15: 14837 | P15: 245. ИВАС ИВО ИВ → Синтез ВЦРМ Мг Расы ИВ Посвященного ИВО | Q15: 14581 | R15: 245. ИВАС ИВО ИВ → Синтез ВЦРМ Мг Расы ИВ Майтрейи ИВО | S15: 14325 | T15: 245. ИВАС ИВО ИВ → Синтез ВЦРМ Мг Расы ИВ Христа ИВО | U15: 14069 | V15: 245. ИВАС ИВО ИВ → Синтез ВЦРМ Мг Расы ИВ Будды ИВО | W15: 13813 | X15: 245. ИВАС ИВО ИВ → Синтез ВЦРМ Мг Расы ИВ Теурга ИВО | Y15: 13557 | Z15: 245. ИВАС ИВО ИВ → Синтез ВЦРМ Мг Расы ИВ Творца ИВО | AA15: 13301 | AB15: 245. ИВАС ИВО ИВ → Синтез ВЦРМ Мг Расы ИВ Человека ИВО ИВО | AC15: 13045 | AD15: 245. ИВАС ИВО ИВ → Синтез ВЦРМ Мг Расы ИВ Человека ВЦРМ ИВО | AE15: 12789 | AF15: 245. ИВАС ИВО ИВ → Синтез ВЦРМ Мг Расы ИВ Человека Мг ФаИВО | AG15: 12533 | AH15: 245. ИВАС ИВО ИВ → Синтез ВЦРМ Мг Расы ИВ Человека Планеты Земля ИВО
C16: 16372 | D16: 244. ИВ Человек ИВО → Служение ИВО ВЦ Метагалактический Синтез ИВО | E16: 16116 | F16: 244. ИВАС ИВО ИВ → Синтез ВЦРМ Метагалактический Синтез ИВ Аватара ИВО | G16: 15860 | H16: 244. ИВАС ИВО ИВ → Синтез ВЦРМ Метагалактический Синтез ИВ Владыки ИВО | I16: 15604 | J16: 244. ИВАС ИВО ИВ → Синтез ВЦРМ Метагалактический Синтез ИВ Учителя ИВО | K16: 15348 | L16: 244. ИВАС ИВО ИВ → Синтез ВЦРМ Метагалактический Синтез ИВ Ипостаси ИВО | M16: 15092 | N16: 244. ИВАС ИВО ИВ → Синтез ВЦРМ Метагалактический Синтез ИВ Служащего ИВО | O16: 14836 | P16: 244. ИВАС ИВО ИВ → Синтез ВЦРМ Метагалактический Синтез ИВ Посвященного ИВО | Q16: 14580 | R16: 244. ИВАС ИВО ИВ → Синтез ВЦРМ Метагалактический Синтез ИВ Майтрейи ИВО | S16: 14324 | T16: 244. ИВАС ИВО ИВ → Синтез ВЦРМ Метагалактический Синтез ИВ Христа ИВО | U16: 14068 | V16: 244. ИВАС ИВО ИВ → Синтез ВЦРМ Метагалактический Синтез ИВ Будды ИВО | W16: 13812 | X16: 244. ИВАС ИВО ИВ → Синтез ВЦРМ Метагалактический Синтез ИВ Теурга ИВО | Y16: 13556 | Z16: 244. ИВАС ИВО ИВ → Синтез ВЦРМ Метагалактический Синтез ИВ Творца ИВО | AA16: 13300 | AB16: 244. ИВАС ИВО ИВ → Синтез ВЦРМ Метагалактический Синтез ИВ Человека ИВО ИВО | AC16: 13044 | AD16: 244. ИВАС ИВО ИВ → Синтез ВЦРМ Метагалактический Синтез ИВ Человека ВЦРМ ИВО | AE16: 12788 | AF16: 244. ИВАС ИВО ИВ → Синтез ВЦРМ Метагалактический Синтез ИВ Человека Мг ФаИВО | AG16: 12532 | AH16: 244. ИВАС ИВО ИВ → Синтез ВЦРМ Метагалактический Синтез ИВ Человека Планеты Земля ИВО
C17: 16371 | D17: 243. ИВ Человек ВЦРМ ИВО → Вершение ИВО ВЦ Синтез ИВР Синтезности ИВО | E17: 16115 | F17: 243. ИВАС ИВО ИВ → Синтез ВЦРМ ИВ Реальности Синтезности ИВ Аватара ИВО | G17: 15859 | H17: 243. ИВАС ИВО ИВ → Синтез ВЦРМ ИВ Реальности Синтезности ИВ Владыки ИВО | I17: 15603 | J17: 243. ИВАС ИВО ИВ → Синтез ВЦРМ ИВ Реальности Синтезности ИВ Учителя ИВО | K17: 15347 | L17: 243. ИВАС ИВО ИВ → Синтез ВЦРМ ИВ Реальности Синтезности ИВ Ипостаси ИВО | M17: 15091 | N17: 243. ИВАС ИВО ИВ → Синтез ВЦРМ ИВ Реальности Синтезности ИВ Служащего ИВО | O17: 14835 | P17: 243. ИВАС ИВО ИВ → Синтез ВЦРМ ИВ Реальности Синтезности ИВ Посвященного ИВО | Q17: 14579 | R17: 243. ИВАС ИВО ИВ → Синтез ВЦРМ ИВ Реальности Синтезности ИВ Майтрейи ИВО | S17: 14323 | T17: 243. ИВАС ИВО ИВ → Синтез ВЦРМ ИВ Реальности Синтезности ИВ Христа ИВО | U17: 14067 | V17: 243. ИВАС ИВО ИВ → Синтез ВЦРМ ИВ Реальности Синтезности ИВ Будды ИВО | W17: 13811 | X17: 243. ИВАС ИВО ИВ → Синтез ВЦРМ ИВ Реальности Синтезности ИВ Теурга ИВО | Y17: 13555 | Z17: 243. ИВАС ИВО ИВ → Синтез ВЦРМ ИВ Реальности Синтезности ИВ Творца ИВО | AA17: 13299 | AB17: 243. ИВАС ИВО ИВ → Синтез ВЦРМ ИВ Реальности Синтезности ИВ Человека ИВО ИВО | AC17: 13043 | AD17: 243. ИВАС ИВО ИВ → Синтез ВЦРМ ИВ Реальности Синтезности ИВ Человека ВЦРМ ИВО | AE17: 12787 | AF17: 243. ИВАС ИВО ИВ → Синтез ВЦРМ ИВ Реальности Синтезности ИВ Человека Мг ФаИВО | AG17: 12531 | AH17: 243. ИВАС ИВО ИВ → Синтез ВЦРМ ИВ Реальности Синтезности ИВ Человека Планеты Земля ИВО
C18: 16370 | D18: 242. ИВ Человек Мг Фа ИВО → Практика ИВО ВЦ Синтез Вышестоящей Реальности Творения ИВО | E18: 16114 | F18: 242. ИВАС ИВО ИВ → Синтез ВЦРМ Вышестоящей Реальности Творения ИВ Аватара ИВО | G18: 15858 | H18: 242. ИВАС ИВО ИВ → Синтез ВЦРМ Вышестоящей Реальности Творения ИВ Владыки ИВО | I18: 15602 | J18: 242. ИВАС ИВО ИВ → Синтез ВЦРМ Вышестоящей Реальности Творения ИВ Учителя ИВО | K18: 15346 | L18: 242. ИВАС ИВО ИВ → Синтез ВЦРМ Вышестоящей Реальности Творения ИВ Ипостаси ИВО | M18: 15090 | N18: 242. ИВАС ИВО ИВ → Синтез ВЦРМ Вышестоящей Реальности Творения ИВ Служащего ИВО | O18: 14834 | P18: 242. ИВАС ИВО ИВ → Синтез ВЦРМ Вышестоящей Реальности Творения ИВ Посвященного ИВО | Q18: 14578 | R18: 242. ИВАС ИВО ИВ → Синтез ВЦРМ Вышестоящей Реальности Творения ИВ Майтрейи ИВО | S18: 14322 | T18: 242. ИВАС ИВО ИВ → Синтез ВЦРМ Вышестоящей Реальности Творения ИВ Христа ИВО | U18: 14066 | V18: 242. ИВАС ИВО ИВ → Синтез ВЦРМ Вышестоящей Реальности Творения ИВ Будды ИВО | W18: 13810 | X18: 242. ИВАС ИВО ИВ → Синтез ВЦРМ Вышестоящей Реальности Творения ИВ Теурга ИВО | Y18: 13554 | Z18: 242. ИВАС ИВО ИВ → Синтез ВЦРМ Вышестоящей Реальности Творения ИВ Творца ИВО | AA18: 13298 | AB18: 242. ИВАС ИВО ИВ → Синтез ВЦРМ Вышестоящей Реальности Творения ИВ Человека ИВО ИВО | AC18: 13042 | AD18: 242. ИВАС ИВО ИВ → Синтез ВЦРМ Вышестоящей Реальности Творения ИВ Человека ВЦРМ ИВО | AE18: 12786 | AF18: 242. ИВАС ИВО ИВ → Синтез ВЦРМ Вышестоящей Реальности Творения ИВ Человека Мг ФаИВО | AG18: 12530 | AH18: 242. ИВАС ИВО ИВ → Синтез ВЦРМ Вышестоящей Реальности Творения ИВ Человека Планеты Земля ИВО
C19: 16369 | D19: 241. ИВ Человек Планеты Земля ИВО → Могущество ИВО ВЦ Синтез Реальности Плана Творения ИВО | E19: 16113 | F19: 241. ИВАС ИВО ИВ → Синтез ВЦРМ Реальности Плана Творения ИВ Аватара ИВО | G19: 15857 | H19: 241. ИВАС ИВО ИВ → Синтез ВЦРМ Реальности Плана Творения ИВ Владыки ИВО | I19: 15601 | J19: 241. ИВАС ИВО ИВ → Синтез ВЦРМ Реальности Плана Творения ИВ Учителя ИВО | K19: 15345 | L19: 241. ИВАС ИВО ИВ → Синтез ВЦРМ Реальности Плана Творения ИВ Ипостаси ИВО | M19: 15089 | N19: 241. ИВАС ИВО ИВ → Синтез ВЦРМ Реальности Плана Творения ИВ Служащего ИВО | O19: 14833 | P19: 241. ИВАС ИВО ИВ → Синтез ВЦРМ Реальности Плана Творения ИВ Посвященного ИВО | Q19: 14577 | R19: 241. ИВАС ИВО ИВ → Синтез ВЦРМ Реальности Плана Творения ИВ Майтрейи ИВО | S19: 14321 | T19: 241. ИВАС ИВО ИВ → Синтез ВЦРМ Реальности Плана Творения ИВ Христа ИВО | U19: 14065 | V19: 241. ИВАС ИВО ИВ → Синтез ВЦРМ Реальности Плана Творения ИВ Будды ИВО | W19: 13809 | X19: 241. ИВАС ИВО ИВ → Синтез ВЦРМ Реальности Плана Творения ИВ Теурга ИВО | Y19: 13553 | Z19: 241. ИВАС ИВО ИВ → Синтез ВЦРМ Реальности Плана Творения ИВ Творца ИВО | AA19: 13297 | AB19: 241. ИВАС ИВО ИВ → Синтез ВЦРМ Реальности Плана Творения ИВ Человека ИВО ИВО | AC19: 13041 | AD19: 241. ИВАС ИВО ИВ → Синтез ВЦРМ Реальности Плана Творения ИВ Человека ВЦРМ ИВО | AE19: 12785 | AF19: 241. ИВАС ИВО ИВ → Синтез ВЦРМ Реальности Плана Творения ИВ Человека Мг ФаИВО | AG19: 12529 | AH19: 241. ИВАС ИВО ИВ → Синтез ВЦРМ Реальности Плана Творения ИВ Человека Планеты Земля ИВО
C20: 16368 | D20: 240. ИВ Человек ИВР Синтезности ИВО → Ивдивность ИВО ВЦ Ивдивность ИВО | E20: 16112 | F20: 240. ИВАС ИВО ИВ → Синтез ВЦРМ Ивдивности ИВ Аватара ИВО | G20: 15856 | H20: 240. ИВАС ИВО ИВ → Синтез ВЦРМ Ивдивности ИВ Владыки ИВО | I20: 15600 | J20: 240. ИВАС ИВО ИВ → Синтез ВЦРМ Ивдивности ИВ Учителя ИВО | K20: 15344 | L20: 240. ИВАС ИВО ИВ → Синтез ВЦРМ Ивдивности ИВ Ипостаси ИВО | M20: 15088 | N20: 240. ИВАС ИВО ИВ → Синтез ВЦРМ Ивдивности ИВ Служащего ИВО | O20: 14832 | P20: 240. ИВАС ИВО ИВ → Синтез ВЦРМ Ивдивности ИВ Посвященного ИВО | Q20: 14576 | R20: 240. ИВАС ИВО ИВ → Синтез ВЦРМ Ивдивности ИВ Майтрейи ИВО | S20: 14320 | T20: 240. ИВАС ИВО ИВ → Синтез ВЦРМ Ивдивности ИВ Христа ИВО | U20: 14064 | V20: 240. ИВАС ИВО ИВ → Синтез ВЦРМ Ивдивности ИВ Будды ИВО | W20: 13808 | X20: 240. ИВАС ИВО ИВ → Синтез ВЦРМ Ивдивности ИВ Теурга ИВО | Y20: 13552 | Z20: 240. ИВАС ИВО ИВ → Синтез ВЦРМ Ивдивности ИВ Творца ИВО | AA20: 13296 | AB20: 240. ИВАС ИВО ИВ → Синтез ВЦРМ Ивдивности ИВ Человека ИВО ИВО | AC20: 13040 | AD20: 240. ИВАС ИВО ИВ → Синтез ВЦРМ Ивдивности ИВ Человека ВЦРМ ИВО | AE20: 12784 | AF20: 240. ИВАС ИВО ИВ → Синтез ВЦРМ Ивдивности ИВ Человека Мг ФаИВО | AG20: 12528 | AH20: 240. ИВАС ИВО ИВ → Синтез ВЦРМ Ивдивности ИВ Человека Планеты Земля ИВО
C21: 16367 | D21: 239. ИВ Учитель Синтеза Синтезности ИВО → Сверхпассионарность ИВО ВЦ Сверхпассионарность ИВО | E21: 16111 | F21: 239. ИВАС ИВО ИВ → Синтез ВЦРМ Сверхпассионарности ИВ Аватара ИВО | G21: 15855 | H21: 239. ИВАС ИВО ИВ → Синтез ВЦРМ Сверхпассионарности ИВ Владыки ИВО | I21: 15599 | J21: 239. ИВАС ИВО ИВ → Синтез ВЦРМ Сверхпассионарности ИВ Учителя ИВО | K21: 15343 | L21: 239. ИВАС ИВО ИВ → Синтез ВЦРМ Сверхпассионарности ИВ Ипостаси ИВО | M21: 15087 | N21: 239. ИВАС ИВО ИВ → Синтез ВЦРМ Сверхпассионарности ИВ Служащего ИВО | O21: 14831 | P21: 239. ИВАС ИВО ИВ → Синтез ВЦРМ Сверхпассионарности ИВ Посвященного ИВО | Q21: 14575 | R21: 239. ИВАС ИВО ИВ → Синтез ВЦРМ Сверхпассионарности ИВ Майтрейи ИВО | S21: 14319 | T21: 239. ИВАС ИВО ИВ → Синтез ВЦРМ Сверхпассионарности ИВ Христа ИВО | U21: 14063 | V21: 239. ИВАС ИВО ИВ → Синтез ВЦРМ Сверхпассионарности ИВ Будды ИВО | W21: 13807 | X21: 239. ИВАС ИВО ИВ → Синтез ВЦРМ Сверхпассионарности ИВ Теурга ИВО | Y21: 13551 | Z21: 239. ИВАС ИВО ИВ → Синтез ВЦРМ Сверхпассионарности ИВ Творца ИВО | AA21: 13295 | AB21: 239. ИВАС ИВО ИВ → Синтез ВЦРМ Сверхпассионарности ИВ Человека ИВО ИВО | AC21: 13039 | AD21: 239. ИВАС ИВО ИВ → Синтез ВЦРМ Сверхпассионарности ИВ Человека ВЦРМ ИВО | AE21: 12783 | AF21: 239. ИВАС ИВО ИВ → Синтез ВЦРМ Сверхпассионарности ИВ Человека Мг ФаИВО | AG21: 12527 | AH21: 239. ИВАС ИВО ИВ → Синтез ВЦРМ Сверхпассионарности ИВ Человека Планеты Земля ИВО
C22: 16366 | D22: 238. ИВ Учитель Синтеза ВЦРМ ИВО → Истинность ИВО ВЦ Истинность ИВО | E22: 16110 | F22: 238. ИВАС ИВО ИВ → Синтез ВЦРМ Истинности ИВ Аватара ИВО | G22: 15854 | H22: 238. ИВАС ИВО ИВ → Синтез ВЦРМ Истинности ИВ Владыки ИВО | I22: 15598 | J22: 238. ИВАС ИВО ИВ → Синтез ВЦРМ Истинности ИВ Учителя ИВО | K22: 15342 | L22: 238. ИВАС ИВО ИВ → Синтез ВЦРМ Истинности ИВ Ипостаси ИВО | M22: 15086 | N22: 238. ИВАС ИВО ИВ → Синтез ВЦРМ Истинности ИВ Служащего ИВО | O22: 14830 | P22: 238. ИВАС ИВО ИВ → Синтез ВЦРМ Истинности ИВ Посвященного ИВО | Q22: 14574 | R22: 238. ИВАС ИВО ИВ → Синтез ВЦРМ Истинности ИВ Майтрейи ИВО | S22: 14318 | T22: 238. ИВАС ИВО ИВ → Синтез ВЦРМ Истинности ИВ Христа ИВО | U22: 14062 | V22: 238. ИВАС ИВО ИВ → Синтез ВЦРМ Истинности ИВ Будды ИВО | W22: 13806 | X22: 238. ИВАС ИВО ИВ → Синтез ВЦРМ Истинности ИВ Теурга ИВО | Y22: 13550 | Z22: 238. ИВАС ИВО ИВ → Синтез ВЦРМ Истинности ИВ Творца ИВО | AA22: 13294 | AB22: 238. ИВАС ИВО ИВ → Синтез ВЦРМ Истинности ИВ Человека ИВО ИВО | AC22: 13038 | AD22: 238. ИВАС ИВО ИВ → Синтез ВЦРМ Истинности ИВ Человека ВЦРМ ИВО | AE22: 12782 | AF22: 238. ИВАС ИВО ИВ → Синтез ВЦРМ Истинности ИВ Человека Мг ФаИВО | AG22: 12526 | AH22: 238. ИВАС ИВО ИВ → Синтез ВЦРМ Истинности ИВ Человека Планеты Земля ИВО
C23: 16365 | D23: 237. ИВ Учитель Синтеза Мг Фа ИВО → Окскость ИВО ВЦ Окскость ИВО | E23: 16109 | F23: 237. ИВАС ИВО ИВ → Синтез ВЦРМ Окскости ИВ Аватара ИВО | G23: 15853 | H23: 237. ИВАС ИВО ИВ → Синтез ВЦРМ Окскости ИВ Владыки ИВО | I23: 15597 | J23: 237. ИВАС ИВО ИВ → Синтез ВЦРМ Окскости ИВ Учителя ИВО | K23: 15341 | L23: 237. ИВАС ИВО ИВ → Синтез ВЦРМ Окскости ИВ Ипостаси ИВО | M23: 15085 | N23: 237. ИВАС ИВО ИВ → Синтез ВЦРМ Окскости ИВ Служащего ИВО | O23: 14829 | P23: 237. ИВАС ИВО ИВ → Синтез ВЦРМ Окскости ИВ Посвященного ИВО | Q23: 14573 | R23: 237. ИВАС ИВО ИВ → Синтез ВЦРМ Окскости ИВ Майтрейи ИВО | S23: 14317 | T23: 237. ИВАС ИВО ИВ → Синтез ВЦРМ Окскости ИВ Христа ИВО | U23: 14061 | V23: 237. ИВАС ИВО ИВ → Синтез ВЦРМ Окскости ИВ Будды ИВО | W23: 13805 | X23: 237. ИВАС ИВО ИВ → Синтез ВЦРМ Окскости ИВ Теурга ИВО | Y23: 13549 | Z23: 237. ИВАС ИВО ИВ → Синтез ВЦРМ Окскости ИВ Творца ИВО | AA23: 13293 | AB23: 237. ИВАС ИВО ИВ → Синтез ВЦРМ Окскости ИВ Человека ИВО ИВО | AC23: 13037 | AD23: 237. ИВАС ИВО ИВ → Синтез ВЦРМ Окскости ИВ Человека ВЦРМ ИВО | AE23: 12781 | AF23: 237. ИВАС ИВО ИВ → Синтез ВЦРМ Окскости ИВ Человека Мг ФаИВО | AG23: 12525 | AH23: 237. ИВАС ИВО ИВ → Синтез ВЦРМ Окскости ИВ Человека Планеты Земля ИВО
C24: 16364 | D24: 236. ИВ Учитель Синтеза Планеты Земля ИВО → Красота ИВО ВЦ Красота ИВО | E24: 16108 | F24: 236. ИВАС ИВО ИВ → Синтез ВЦРМ Красоты ИВ Аватара ИВО | G24: 15852 | H24: 236. ИВАС ИВО ИВ → Синтез ВЦРМ Красоты ИВ Владыки ИВО | I24: 15596 | J24: 236. ИВАС ИВО ИВ → Синтез ВЦРМ Красоты ИВ Учителя ИВО | K24: 15340 | L24: 236. ИВАС ИВО ИВ → Синтез ВЦРМ Красоты ИВ Ипостаси ИВО | M24: 15084 | N24: 236. ИВАС ИВО ИВ → Синтез ВЦРМ Красоты ИВ Служащего ИВО | O24: 14828 | P24: 236. ИВАС ИВО ИВ → Синтез ВЦРМ Красоты ИВ Посвященного ИВО | Q24: 14572 | R24: 236. ИВАС ИВО ИВ → Синтез ВЦРМ Красоты ИВ Майтрейи ИВО | S24: 14316 | T24: 236. ИВАС ИВО ИВ → Синтез ВЦРМ Красоты ИВ Христа ИВО | U24: 14060 | V24: 236. ИВАС ИВО ИВ → Синтез ВЦРМ Красоты ИВ Будды ИВО | W24: 13804 | X24: 236. ИВАС ИВО ИВ → Синтез ВЦРМ Красоты ИВ Теурга ИВО | Y24: 13548 | Z24: 236. ИВАС ИВО ИВ → Синтез ВЦРМ Красоты ИВ Творца ИВО | AA24: 13292 | AB24: 236. ИВАС ИВО ИВ → Синтез ВЦРМ Красоты ИВ Человека ИВО ИВО | AC24: 13036 | AD24: 236. ИВАС ИВО ИВ → Синтез ВЦРМ Красоты ИВ Человека ВЦРМ ИВО | AE24: 12780 | AF24: 236. ИВАС ИВО ИВ → Синтез ВЦРМ Красоты ИВ Человека Мг ФаИВО | AG24: 12524 | AH24: 236. ИВАС ИВО ИВ → Синтез ВЦРМ Красоты ИВ Человека Планеты Земля ИВО
C25: 16363 | D25: 235. ИВ Учитель Синтеза ИВР Синтезности ИВО → Константа ИВО ВЦ Константа ИВО | E25: 16107 | F25: 235. ИВАС ИВО ИВ → Синтез ВЦРМ Константы ИВ Аватара ИВО | G25: 15851 | H25: 235. ИВАС ИВО ИВ → Синтез ВЦРМ Константы ИВ Владыки ИВО | I25: 15595 | J25: 235. ИВАС ИВО ИВ → Синтез ВЦРМ Константы ИВ Учителя ИВО | K25: 15339 | L25: 235. ИВАС ИВО ИВ → Синтез ВЦРМ Константы ИВ Ипостаси ИВО | M25: 15083 | N25: 235. ИВАС ИВО ИВ → Синтез ВЦРМ Константы ИВ Служащего ИВО | O25: 14827 | P25: 235. ИВАС ИВО ИВ → Синтез ВЦРМ Константы ИВ Посвященного ИВО | Q25: 14571 | R25: 235. ИВАС ИВО ИВ → Синтез ВЦРМ Константы ИВ Майтрейи ИВО | S25: 14315 | T25: 235. ИВАС ИВО ИВ → Синтез ВЦРМ Константы ИВ Христа ИВО | U25: 14059 | V25: 235. ИВАС ИВО ИВ → Синтез ВЦРМ Константы ИВ Будды ИВО | W25: 13803 | X25: 235. ИВАС ИВО ИВ → Синтез ВЦРМ Константы ИВ Теурга ИВО | Y25: 13547 | Z25: 235. ИВАС ИВО ИВ → Синтез ВЦРМ Константы ИВ Творца ИВО | AA25: 13291 | AB25: 235. ИВАС ИВО ИВ → Синтез ВЦРМ Константы ИВ Человека ИВО ИВО | AC25: 13035 | AD25: 235. ИВАС ИВО ИВ → Синтез ВЦРМ Константы ИВ Человека ВЦРМ ИВО | AE25: 12779 | AF25: 235. ИВАС ИВО ИВ → Синтез ВЦРМ Константы ИВ Человека Мг ФаИВО | AG25: 12523 | AH25: 235. ИВАС ИВО ИВ → Синтез ВЦРМ Константы ИВ Человека Планеты Земля ИВО
C26: 16362 | D26: 234. ИВ Учитель Синтеза Вышестоящей Реальности Творения ИВО → Знание ИВО ВЦ Знание ИВО | E26: 16106 | F26: 234. ИВАС ИВО ИВ → Синтез ВЦРМ Знания ИВ Аватара ИВО | G26: 15850 | H26: 234. ИВАС ИВО ИВ → Синтез ВЦРМ Знания ИВ Владыки ИВО | I26: 15594 | J26: 234. ИВАС ИВО ИВ → Синтез ВЦРМ Знания ИВ Учителя ИВО | K26: 15338 | L26: 234. ИВАС ИВО ИВ → Синтез ВЦРМ Знания ИВ Ипостаси ИВО | M26: 15082 | N26: 234. ИВАС ИВО ИВ → Синтез ВЦРМ Знания ИВ Служащего ИВО | O26: 14826 | P26: 234. ИВАС ИВО ИВ → Синтез ВЦРМ Знания ИВ Посвященного ИВО | Q26: 14570 | R26: 234. ИВАС ИВО ИВ → Синтез ВЦРМ Знания ИВ Майтрейи ИВО | S26: 14314 | T26: 234. ИВАС ИВО ИВ → Синтез ВЦРМ Знания ИВ Христа ИВО | U26: 14058 | V26: 234. ИВАС ИВО ИВ → Синтез ВЦРМ Знания ИВ Будды ИВО | W26: 13802 | X26: 234. ИВАС ИВО ИВ → Синтез ВЦРМ Знания ИВ Теурга ИВО | Y26: 13546 | Z26: 234. ИВАС ИВО ИВ → Синтез ВЦРМ Знания ИВ Творца ИВО | AA26: 13290 | AB26: 234. ИВАС ИВО ИВ → Синтез ВЦРМ Знания ИВ Человека ИВО ИВО | AC26: 13034 | AD26: 234. ИВАС ИВО ИВ → Синтез ВЦРМ Знания ИВ Человека ВЦРМ ИВО | AE26: 12778 | AF26: 234. ИВАС ИВО ИВ → Синтез ВЦРМ Знания ИВ Человека Мг ФаИВО | AG26: 12522 | AH26: 234. ИВАС ИВО ИВ → Синтез ВЦРМ Знания ИВ Человека Планеты Земля ИВО
C27: 16361 | D27: 233. ИВ Учитель Синтеза Реальности Плана Творения ИВО → Мера ИВО ВЦ Мера ИВО | E27: 16105 | F27: 233. ИВАС ИВО ИВ → Синтез ВЦРМ Меры ИВ Аватара ИВО | G27: 15849 | H27: 233. ИВАС ИВО ИВ → Синтез ВЦРМ Меры ИВ Владыки ИВО | I27: 15593 | J27: 233. ИВАС ИВО ИВ → Синтез ВЦРМ Меры ИВ Учителя ИВО | K27: 15337 | L27: 233. ИВАС ИВО ИВ → Синтез ВЦРМ Меры ИВ Ипостаси ИВО | M27: 15081 | N27: 233. ИВАС ИВО ИВ → Синтез ВЦРМ Меры ИВ Служащего ИВО | O27: 14825 | P27: 233. ИВАС ИВО ИВ → Синтез ВЦРМ Меры ИВ Посвященного ИВО | Q27: 14569 | R27: 233. ИВАС ИВО ИВ → Синтез ВЦРМ Меры ИВ Майтрейи ИВО | S27: 14313 | T27: 233. ИВАС ИВО ИВ → Синтез ВЦРМ Меры ИВ Христа ИВО | U27: 14057 | V27: 233. ИВАС ИВО ИВ → Синтез ВЦРМ Меры ИВ Будды ИВО | W27: 13801 | X27: 233. ИВАС ИВО ИВ → Синтез ВЦРМ Меры ИВ Теурга ИВО | Y27: 13545 | Z27: 233. ИВАС ИВО ИВ → Синтез ВЦРМ Меры ИВ Творца ИВО | AA27: 13289 | AB27: 233. ИВАС ИВО ИВ → Синтез ВЦРМ Меры ИВ Человека ИВО ИВО | AC27: 13033 | AD27: 233. ИВАС ИВО ИВ → Синтез ВЦРМ Меры ИВ Человека ВЦРМ ИВО | AE27: 12777 | AF27: 233. ИВАС ИВО ИВ → Синтез ВЦРМ Меры ИВ Человека Мг ФаИВО | AG27: 12521 | AH27: 233. ИВАС ИВО ИВ → Синтез ВЦРМ Меры ИВ Человека Планеты Земля ИВО
C28: 16360 | D28: 232. ИВ Учитель Синтеза ИВДИВО ИВО → Стандарт ИВО ВЦ Стандарт ИВО | E28: 16104 | F28: 232. ИВАС ИВО ИВ → Синтез ВЦРМ Стандарта ИВ Аватара ИВО | G28: 15848 | H28: 232. ИВАС ИВО ИВ → Синтез ВЦРМ Стандарта ИВ Владыки ИВО | I28: 15592 | J28: 232. ИВАС ИВО ИВ → Синтез ВЦРМ Стандарта ИВ Учителя ИВО | K28: 15336 | L28: 232. ИВАС ИВО ИВ → Синтез ВЦРМ Стандарта ИВ Ипостаси ИВО | M28: 15080 | N28: 232. ИВАС ИВО ИВ → Синтез ВЦРМ Стандарта ИВ Служащего ИВО | O28: 14824 | P28: 232. ИВАС ИВО ИВ → Синтез ВЦРМ Стандарта ИВ Посвященного ИВО | Q28: 14568 | R28: 232. ИВАС ИВО ИВ → Синтез ВЦРМ Стандарта ИВ Майтрейи ИВО | S28: 14312 | T28: 232. ИВАС ИВО ИВ → Синтез ВЦРМ Стандарта ИВ Христа ИВО | U28: 14056 | V28: 232. ИВАС ИВО ИВ → Синтез ВЦРМ Стандарта ИВ Будды ИВО | W28: 13800 | X28: 232. ИВАС ИВО ИВ → Синтез ВЦРМ Стандарта ИВ Теурга ИВО | Y28: 13544 | Z28: 232. ИВАС ИВО ИВ → Синтез ВЦРМ Стандарта ИВ Творца ИВО | AA28: 13288 | AB28: 232. ИВАС ИВО ИВ → Синтез ВЦРМ Стандарта ИВ Человека ИВО ИВО | AC28: 13032 | AD28: 232. ИВАС ИВО ИВ → Синтез ВЦРМ Стандарта ИВ Человека ВЦРМ ИВО | AE28: 12776 | AF28: 232. ИВАС ИВО ИВ → Синтез ВЦРМ Стандарта ИВ Человека Мг ФаИВО | AG28: 12520 | AH28: 232. ИВАС ИВО ИВ → Синтез ВЦРМ Стандарта ИВ Человека Планеты Земля ИВО
C29: 16359 | D29: 231. ИВ Ипостась Творящего Синтеза ИВО → Закон ИВО ВЦ Закон ИВО | E29: 16103 | F29: 231. ИВАС ИВО ИВ → Синтез ВЦРМ Закона ИВ Аватара ИВО | G29: 15847 | H29: 231. ИВАС ИВО ИВ → Синтез ВЦРМ Закона ИВ Владыки ИВО | I29: 15591 | J29: 231. ИВАС ИВО ИВ → Синтез ВЦРМ Закона ИВ Учителя ИВО | K29: 15335 | L29: 231. ИВАС ИВО ИВ → Синтез ВЦРМ Закона ИВ Ипостаси ИВО | M29: 15079 | N29: 231. ИВАС ИВО ИВ → Синтез ВЦРМ Закона ИВ Служащего ИВО | O29: 14823 | P29: 231. ИВАС ИВО ИВ → Синтез ВЦРМ Закона ИВ Посвященного ИВО | Q29: 14567 | R29: 231. ИВАС ИВО ИВ → Синтез ВЦРМ Закона ИВ Майтрейи ИВО | S29: 14311 | T29: 231. ИВАС ИВО ИВ → Синтез ВЦРМ Закона ИВ Христа ИВО | U29: 14055 | V29: 231. ИВАС ИВО ИВ → Синтез ВЦРМ Закона ИВ Будды ИВО | W29: 13799 | X29: 231. ИВАС ИВО ИВ → Синтез ВЦРМ Закона ИВ Теурга ИВО | Y29: 13543 | Z29: 231. ИВАС ИВО ИВ → Синтез ВЦРМ Закона ИВ Творца ИВО | AA29: 13287 | AB29: 231. ИВАС ИВО ИВ → Синтез ВЦРМ Закона ИВ Человека ИВО ИВО | AC29: 13031 | AD29: 231. ИВАС ИВО ИВ → Синтез ВЦРМ Закона ИВ Человека ВЦРМ ИВО | AE29: 12775 | AF29: 231. ИВАС ИВО ИВ → Синтез ВЦРМ Закона ИВ Человека Мг ФаИВО | AG29: 12519 | AH29: 231. ИВАС ИВО ИВ → Синтез ВЦРМ Закона ИВ Человека Планеты Земля ИВО
C30: 16358 | D30: 230. ИВ Ипостась ВЦРМ ИВО → Императив ИВО ВЦ Императив ИВО | E30: 16102 | F30: 230. ИВАС ИВО ИВ → Синтез ВЦРМ Императива ИВ Аватара ИВО | G30: 15846 | H30: 230. ИВАС ИВО ИВ → Синтез ВЦРМ Императива ИВ Владыки ИВО | I30: 15590 | J30: 230. ИВАС ИВО ИВ → Синтез ВЦРМ Императива ИВ Учителя ИВО | K30: 15334 | L30: 230. ИВАС ИВО ИВ → Синтез ВЦРМ Императива ИВ Ипостаси ИВО | M30: 15078 | N30: 230. ИВАС ИВО ИВ → Синтез ВЦРМ Императива ИВ Служащего ИВО | O30: 14822 | P30: 230. ИВАС ИВО ИВ → Синтез ВЦРМ Императива ИВ Посвященного ИВО | Q30: 14566 | R30: 230. ИВАС ИВО ИВ → Синтез ВЦРМ Императива ИВ Майтрейи ИВО | S30: 14310 | T30: 230. ИВАС ИВО ИВ → Синтез ВЦРМ Императива ИВ Христа ИВО | U30: 14054 | V30: 230. ИВАС ИВО ИВ → Синтез ВЦРМ Императива ИВ Будды ИВО | W30: 13798 | X30: 230. ИВАС ИВО ИВ → Синтез ВЦРМ Императива ИВ Теурга ИВО | Y30: 13542 | Z30: 230. ИВАС ИВО ИВ → Синтез ВЦРМ Императива ИВ Творца ИВО | AA30: 13286 | AB30: 230. ИВАС ИВО ИВ → Синтез ВЦРМ Императива ИВ Человека ИВО ИВО | AC30: 13030 | AD30: 230. ИВАС ИВО ИВ → Синтез ВЦРМ Императива ИВ Человека ВЦРМ ИВО | AE30: 12774 | AF30: 230. ИВАС ИВО ИВ → Синтез ВЦРМ Императива ИВ Человека Мг ФаИВО | AG30: 12518 | AH30: 230. ИВАС ИВО ИВ → Синтез ВЦРМ Императива ИВ Человека Планеты Земля ИВО
C31: 16357 | D31: 229. ИВ Ипостась Мг Фа ИВО → Аксиома ИВО ВЦ Аксиома ИВО | E31: 16101 | F31: 229. ИВАС ИВО ИВ → Синтез ВЦРМ Аксиомы ИВ Аватара ИВО | G31: 15845 | H31: 229. ИВАС ИВО ИВ → Синтез ВЦРМ Аксиомы ИВ Владыки ИВО | I31: 15589 | J31: 229. ИВАС ИВО ИВ → Синтез ВЦРМ Аксиомы ИВ Учителя ИВО | K31: 15333 | L31: 229. ИВАС ИВО ИВ → Синтез ВЦРМ Аксиомы ИВ Ипостаси ИВО | M31: 15077 | N31: 229. ИВАС ИВО ИВ → Синтез ВЦРМ Аксиомы ИВ Служащего ИВО | O31: 14821 | P31: 229. ИВАС ИВО ИВ → Синтез ВЦРМ Аксиомы ИВ Посвященного ИВО | Q31: 14565 | R31: 229. ИВАС ИВО ИВ → Синтез ВЦРМ Аксиомы ИВ Майтрейи ИВО | S31: 14309 | T31: 229. ИВАС ИВО ИВ → Синтез ВЦРМ Аксиомы ИВ Христа ИВО | U31: 14053 | V31: 229. ИВАС ИВО ИВ → Синтез ВЦРМ Аксиомы ИВ Будды ИВО | W31: 13797 | X31: 229. ИВАС ИВО ИВ → Синтез ВЦРМ Аксиомы ИВ Теурга ИВО | Y31: 13541 | Z31: 229. ИВАС ИВО ИВ → Синтез ВЦРМ Аксиомы ИВ Творца ИВО | AA31: 13285 | AB31: 229. ИВАС ИВО ИВ → Синтез ВЦРМ Аксиомы ИВ Человека ИВО ИВО | AC31: 13029 | AD31: 229. ИВАС ИВО ИВ → Синтез ВЦРМ Аксиомы ИВ Человека ВЦРМ ИВО | AE31: 12773 | AF31: 229. ИВАС ИВО ИВ → Синтез ВЦРМ Аксиомы ИВ Человека Мг ФаИВО | AG31: 12517 | AH31: 229. ИВАС ИВО ИВ → Синтез ВЦРМ Аксиомы ИВ Человека Планеты Земля ИВО
C32: 16356 | D32: 228. ИВ Ипостась Планеты Земля ИВО → Начало ИВО ВЦ Начало ИВО | E32: 16100 | F32: 228. ИВАС ИВО ИВ → Синтез ВЦРМ Начала ИВ Аватара ИВО | G32: 15844 | H32: 228. ИВАС ИВО ИВ → Синтез ВЦРМ Начала ИВ Владыки ИВО | I32: 15588 | J32: 228. ИВАС ИВО ИВ → Синтез ВЦРМ Начала ИВ Учителя ИВО | K32: 15332 | L32: 228. ИВАС ИВО ИВ → Синтез ВЦРМ Начала ИВ Ипостаси ИВО | M32: 15076 | N32: 228. ИВАС ИВО ИВ → Синтез ВЦРМ Начала ИВ Служащего ИВО | O32: 14820 | P32: 228. ИВАС ИВО ИВ → Синтез ВЦРМ Начала ИВ Посвященного ИВО | Q32: 14564 | R32: 228. ИВАС ИВО ИВ → Синтез ВЦРМ Начала ИВ Майтрейи ИВО | S32: 14308 | T32: 228. ИВАС ИВО ИВ → Синтез ВЦРМ Начала ИВ Христа ИВО | U32: 14052 | V32: 228. ИВАС ИВО ИВ → Синтез ВЦРМ Начала ИВ Будды ИВО | W32: 13796 | X32: 228. ИВАС ИВО ИВ → Синтез ВЦРМ Начала ИВ Теурга ИВО | Y32: 13540 | Z32: 228. ИВАС ИВО ИВ → Синтез ВЦРМ Начала ИВ Творца ИВО | AA32: 13284 | AB32: 228. ИВАС ИВО ИВ → Синтез ВЦРМ Начала ИВ Человека ИВО ИВО | AC32: 13028 | AD32: 228. ИВАС ИВО ИВ → Синтез ВЦРМ Начала ИВ Человека ВЦРМ ИВО | AE32: 12772 | AF32: 228. ИВАС ИВО ИВ → Синтез ВЦРМ Начала ИВ Человека Мг ФаИВО | AG32: 12516 | AH32: 228. ИВАС ИВО ИВ → Синтез ВЦРМ Начала ИВ Человека Планеты Земля ИВО
C33: 16355 | D33: 227. ИВ Ипостась ИВР Синтезности ИВО → Принцип ИВО ВЦ Принцип ИВО | E33: 16099 | F33: 227. ИВАС ИВО ИВ → Синтез ВЦРМ Принципа ИВ Аватара ИВО | G33: 15843 | H33: 227. ИВАС ИВО ИВ → Синтез ВЦРМ Принципа ИВ Владыки ИВО | I33: 15587 | J33: 227. ИВАС ИВО ИВ → Синтез ВЦРМ Принципа ИВ Учителя ИВО | K33: 15331 | L33: 227. ИВАС ИВО ИВ → Синтез ВЦРМ Принципа ИВ Ипостаси ИВО | M33: 15075 | N33: 227. ИВАС ИВО ИВ → Синтез ВЦРМ Принципа ИВ Служащего ИВО | O33: 14819 | P33: 227. ИВАС ИВО ИВ → Синтез ВЦРМ Принципа ИВ Посвященного ИВО | Q33: 14563 | R33: 227. ИВАС ИВО ИВ → Синтез ВЦРМ Принципа ИВ Майтрейи ИВО | S33: 14307 | T33: 227. ИВАС ИВО ИВ → Синтез ВЦРМ Принципа ИВ Христа ИВО | U33: 14051 | V33: 227. ИВАС ИВО ИВ → Синтез ВЦРМ Принципа ИВ Будды ИВО | W33: 13795 | X33: 227. ИВАС ИВО ИВ → Синтез ВЦРМ Принципа ИВ Теурга ИВО | Y33: 13539 | Z33: 227. ИВАС ИВО ИВ → Синтез ВЦРМ Принципа ИВ Творца ИВО | AA33: 13283 | AB33: 227. ИВАС ИВО ИВ → Синтез ВЦРМ Принципа ИВ Человека ИВО ИВО | AC33: 13027 | AD33: 227. ИВАС ИВО ИВ → Синтез ВЦРМ Принципа ИВ Человека ВЦРМ ИВО | AE33: 12771 | AF33: 227. ИВАС ИВО ИВ → Синтез ВЦРМ Принципа ИВ Человека Мг ФаИВО | AG33: 12515 | AH33: 227. ИВАС ИВО ИВ → Синтез ВЦРМ Принципа ИВ Человека Планеты Земля ИВО
C34: 16354 | D34: 226. ИВ Ипостась Вышестоящей Реальности Творения ИВО → Метод ИВО ВЦ Метод ИВО | E34: 16098 | F34: 226. ИВАС ИВО ИВ → Синтез ВЦРМ Метода ИВ Аватара ИВО | G34: 15842 | H34: 226. ИВАС ИВО ИВ → Синтез ВЦРМ Метода ИВ Владыки ИВО | I34: 15586 | J34: 226. ИВАС ИВО ИВ → Синтез ВЦРМ Метода ИВ Учителя ИВО | K34: 15330 | L34: 226. ИВАС ИВО ИВ → Синтез ВЦРМ Метода ИВ Ипостаси ИВО | M34: 15074 | N34: 226. ИВАС ИВО ИВ → Синтез ВЦРМ Метода ИВ Служащего ИВО | O34: 14818 | P34: 226. ИВАС ИВО ИВ → Синтез ВЦРМ Метода ИВ Посвященного ИВО | Q34: 14562 | R34: 226. ИВАС ИВО ИВ → Синтез ВЦРМ Метода ИВ Майтрейи ИВО | S34: 14306 | T34: 226. ИВАС ИВО ИВ → Синтез ВЦРМ Метода ИВ Христа ИВО | U34: 14050 | V34: 226. ИВАС ИВО ИВ → Синтез ВЦРМ Метода ИВ Будды ИВО | W34: 13794 | X34: 226. ИВАС ИВО ИВ → Синтез ВЦРМ Метода ИВ Теурга ИВО | Y34: 13538 | Z34: 226. ИВАС ИВО ИВ → Синтез ВЦРМ Метода ИВ Творца ИВО | AA34: 13282 | AB34: 226. ИВАС ИВО ИВ → Синтез ВЦРМ Метода ИВ Человека ИВО ИВО | AC34: 13026 | AD34: 226. ИВАС ИВО ИВ → Синтез ВЦРМ Метода ИВ Человека ВЦРМ ИВО | AE34: 12770 | AF34: 226. ИВАС ИВО ИВ → Синтез ВЦРМ Метода ИВ Человека Мг ФаИВО | AG34: 12514 | AH34: 226. ИВАС ИВО ИВ → Синтез ВЦРМ Метода ИВ Человека Планеты Земля ИВО
C35: 16353 | D35: 225. ИВ Ипостась Реальности Плана Творения ИВО → Правило ИВО ВЦ Правило ИВО | E35: 16097 | F35: 225. ИВАС ИВО ИВ → Синтез ВЦРМ Правила ИВ Аватара ИВО | G35: 15841 | H35: 225. ИВАС ИВО ИВ → Синтез ВЦРМ Правила ИВ Владыки ИВО | I35: 15585 | J35: 225. ИВАС ИВО ИВ → Синтез ВЦРМ Правила ИВ Учителя ИВО | K35: 15329 | L35: 225. ИВАС ИВО ИВ → Синтез ВЦРМ Правила ИВ Ипостаси ИВО | M35: 15073 | N35: 225. ИВАС ИВО ИВ → Синтез ВЦРМ Правила ИВ Служащего ИВО | O35: 14817 | P35: 225. ИВАС ИВО ИВ → Синтез ВЦРМ Правила ИВ Посвященного ИВО | Q35: 14561 | R35: 225. ИВАС ИВО ИВ → Синтез ВЦРМ Правила ИВ Майтрейи ИВО | S35: 14305 | T35: 225. ИВАС ИВО ИВ → Синтез ВЦРМ Правила ИВ Христа ИВО | U35: 14049 | V35: 225. ИВАС ИВО ИВ → Синтез ВЦРМ Правила ИВ Будды ИВО | W35: 13793 | X35: 225. ИВАС ИВО ИВ → Синтез ВЦРМ Правила ИВ Теурга ИВО | Y35: 13537 | Z35: 225. ИВАС ИВО ИВ → Синтез ВЦРМ Правила ИВ Творца ИВО | AA35: 13281 | AB35: 225. ИВАС ИВО ИВ → Синтез ВЦРМ Правила ИВ Человека ИВО ИВО | AC35: 13025 | AD35: 225. ИВАС ИВО ИВ → Синтез ВЦРМ Правила ИВ Человека ВЦРМ ИВО | AE35: 12769 | AF35: 225. ИВАС ИВО ИВ → Синтез ВЦРМ Правила ИВ Человека Мг ФаИВО | AG35: 12513 | AH35: 225. ИВАС ИВО ИВ → Синтез ВЦРМ Правила ИВ Человека Планеты Земля ИВО
C36: 16352 | D36: 224. ИВ Ипостась ИВДИВО ИВО → Огонь ИВО ВЦ Огонь ИВО | E36: 16096 | F36: 224. ИВАС ИВО ИВ → Синтез ВЦРМ Огня ИВО ИВ Аватара ИВО | G36: 15840 | H36: 224. ИВАС ИВО ИВ → Синтез ВЦРМ Огня ИВО ИВ Владыки ИВО | I36: 15584 | J36: 224. ИВАС ИВО ИВ → Синтез ВЦРМ Огня ИВО ИВ Учителя ИВО | K36: 15328 | L36: 224. ИВАС ИВО ИВ → Синтез ВЦРМ Огня ИВО ИВ Ипостаси ИВО | M36: 15072 | N36: 224. ИВАС ИВО ИВ → Синтез ВЦРМ Огня ИВО ИВ Служащего ИВО | O36: 14816 | P36: 224. ИВАС ИВО ИВ → Синтез ВЦРМ Огня ИВО ИВ Посвященного ИВО | Q36: 14560 | R36: 224. ИВАС ИВО ИВ → Синтез ВЦРМ Огня ИВО ИВ Майтрейи ИВО | S36: 14304 | T36: 224. ИВАС ИВО ИВ → Синтез ВЦРМ Огня ИВО ИВ Христа ИВО | U36: 14048 | V36: 224. ИВАС ИВО ИВ → Синтез ВЦРМ Огня ИВО ИВ Будды ИВО | W36: 13792 | X36: 224. ИВАС ИВО ИВ → Синтез ВЦРМ Огня ИВО ИВ Теурга ИВО | Y36: 13536 | Z36: 224. ИВАС ИВО ИВ → Синтез ВЦРМ Огня ИВО ИВ Творца ИВО | AA36: 13280 | AB36: 224. ИВАС ИВО ИВ → Синтез ВЦРМ Огня ИВО ИВ Человека ИВО ИВО | AC36: 13024 | AD36: 224. ИВАС ИВО ИВ → Синтез ВЦРМ Огня ИВО ИВ Человека ВЦРМ ИВО | AE36: 12768 | AF36: 224. ИВАС ИВО ИВ → Синтез ВЦРМ Огня ИВО ИВ Человека Мг ФаИВО | AG36: 12512 | AH36: 224. ИВАС ИВО ИВ → Синтез ВЦРМ Огня ИВО ИВ Человека Планеты Земля ИВО
C37: 16351 | D37: 223. ИВ Служащий Начал Творения ИВО → Дух Частей ИВО ВЦ Дух Частей ИВО | E37: 16095 | F37: 223. ИВАС ИВО ИВ → Синтез ВЦРМ Духа Частей ИВО ИВ Аватара ИВО | G37: 15839 | H37: 223. ИВАС ИВО ИВ → Синтез ВЦРМ Духа Частей ИВО ИВ Владыки ИВО | I37: 15583 | J37: 223. ИВАС ИВО ИВ → Синтез ВЦРМ Духа Частей ИВО ИВ Учителя ИВО | K37: 15327 | L37: 223. ИВАС ИВО ИВ → Синтез ВЦРМ Духа Частей ИВО ИВ Ипостаси ИВО | M37: 15071 | N37: 223. ИВАС ИВО ИВ → Синтез ВЦРМ Духа Частей ИВО ИВ Служащего ИВО | O37: 14815 | P37: 223. ИВАС ИВО ИВ → Синтез ВЦРМ Духа Частей ИВО ИВ Посвященного ИВО | Q37: 14559 | R37: 223. ИВАС ИВО ИВ → Синтез ВЦРМ Духа Частей ИВО ИВ Майтрейи ИВО | S37: 14303 | T37: 223. ИВАС ИВО ИВ → Синтез ВЦРМ Духа Частей ИВО ИВ Христа ИВО | U37: 14047 | V37: 223. ИВАС ИВО ИВ → Синтез ВЦРМ Духа Частей ИВО ИВ Будды ИВО | W37: 13791 | X37: 223. ИВАС ИВО ИВ → Синтез ВЦРМ Духа Частей ИВО ИВ Теурга ИВО | Y37: 13535 | Z37: 223. ИВАС ИВО ИВ → Синтез ВЦРМ Духа Частей ИВО ИВ Творца ИВО | AA37: 13279 | AB37: 223. ИВАС ИВО ИВ → Синтез ВЦРМ Духа Частей ИВО ИВ Человека ИВО ИВО | AC37: 13023 | AD37: 223. ИВАС ИВО ИВ → Синтез ВЦРМ Духа Частей ИВО ИВ Человека ВЦРМ ИВО | AE37: 12767 | AF37: 223. ИВАС ИВО ИВ → Синтез ВЦРМ Духа Частей ИВО ИВ Человека Мг ФаИВО | AG37: 12511 | AH37: 223. ИВАС ИВО ИВ → Синтез ВЦРМ Духа Частей ИВО ИВ Человека Планеты Земля ИВО
C38: 16350 | D38: 222. ИВ Служащий ВЦРМ ИВО → Свет Систем ИВО ВЦ Свет Систем ИВО | E38: 16094 | F38: 222. ИВАС ИВО ИВ → Синтез ВЦРМ Света Систем ИВО ИВ Аватара ИВО | G38: 15838 | H38: 222. ИВАС ИВО ИВ → Синтез ВЦРМ Света Систем ИВО ИВ Владыки ИВО | I38: 15582 | J38: 222. ИВАС ИВО ИВ → Синтез ВЦРМ Света Систем ИВО ИВ Учителя ИВО | K38: 15326 | L38: 222. ИВАС ИВО ИВ → Синтез ВЦРМ Света Систем ИВО ИВ Ипостаси ИВО | M38: 15070 | N38: 222. ИВАС ИВО ИВ → Синтез ВЦРМ Света Систем ИВО ИВ Служащего ИВО | O38: 14814 | P38: 222. ИВАС ИВО ИВ → Синтез ВЦРМ Света Систем ИВО ИВ Посвященного ИВО | Q38: 14558 | R38: 222. ИВАС ИВО ИВ → Синтез ВЦРМ Света Систем ИВО ИВ Майтрейи ИВО | S38: 14302 | T38: 222. ИВАС ИВО ИВ → Синтез ВЦРМ Света Систем ИВО ИВ Христа ИВО | U38: 14046 | V38: 222. ИВАС ИВО ИВ → Синтез ВЦРМ Света Систем ИВО ИВ Будды ИВО | W38: 13790 | X38: 222. ИВАС ИВО ИВ → Синтез ВЦРМ Света Систем ИВО ИВ Теурга ИВО | Y38: 13534 | Z38: 222. ИВАС ИВО ИВ → Синтез ВЦРМ Света Систем ИВО ИВ Творца ИВО | AA38: 13278 | AB38: 222. ИВАС ИВО ИВ → Синтез ВЦРМ Света Систем ИВО ИВ Человека ИВО ИВО | AC38: 13022 | AD38: 222. ИВАС ИВО ИВ → Синтез ВЦРМ Света Систем ИВО ИВ Человека ВЦРМ ИВО | AE38: 12766 | AF38: 222. ИВАС ИВО ИВ → Синтез ВЦРМ Света Систем ИВО ИВ Человека Мг ФаИВО | AG38: 12510 | AH38: 222. ИВАС ИВО ИВ → Синтез ВЦРМ Света Систем ИВО ИВ Человека Планеты Земля ИВО
C39: 16349 | D39: 221. ИВ Служащий Мг Фа ИВО → Энергия Аппаратов ИВО ВЦ Энергия Аппаратов ИВО | E39: 16093 | F39: 221. ИВАС ИВО ИВ → Синтез ВЦРМ Энергии Аппаратов ИВО ИВ Аватара ИВО | G39: 15837 | H39: 221. ИВАС ИВО ИВ → Синтез ВЦРМ Энергии Аппаратов ИВО ИВ Владыки ИВО | I39: 15581 | J39: 221. ИВАС ИВО ИВ → Синтез ВЦРМ Энергии Аппаратов ИВО ИВ Учителя ИВО | K39: 15325 | L39: 221. ИВАС ИВО ИВ → Синтез ВЦРМ Энергии Аппаратов ИВО ИВ Ипостаси ИВО | M39: 15069 | N39: 221. ИВАС ИВО ИВ → Синтез ВЦРМ Энергии Аппаратов ИВО ИВ Служащего ИВО | O39: 14813 | P39: 221. ИВАС ИВО ИВ → Синтез ВЦРМ Энергии Аппаратов ИВО ИВ Посвященного ИВО | Q39: 14557 | R39: 221. ИВАС ИВО ИВ → Синтез ВЦРМ Энергии Аппаратов ИВО ИВ Майтрейи ИВО | S39: 14301 | T39: 221. ИВАС ИВО ИВ → Синтез ВЦРМ Энергии Аппаратов ИВО ИВ Христа ИВО | U39: 14045 | V39: 221. ИВАС ИВО ИВ → Синтез ВЦРМ Энергии Аппаратов ИВО ИВ Будды ИВО | W39: 13789 | X39: 221. ИВАС ИВО ИВ → Синтез ВЦРМ Энергии Аппаратов ИВО ИВ Теурга ИВО | Y39: 13533 | Z39: 221. ИВАС ИВО ИВ → Синтез ВЦРМ Энергии Аппаратов ИВО ИВ Творца ИВО | AA39: 13277 | AB39: 221. ИВАС ИВО ИВ → Синтез ВЦРМ Энергии Аппаратов ИВО ИВ Человека ИВО ИВО | AC39: 13021 | AD39: 221. ИВАС ИВО ИВ → Синтез ВЦРМ Энергии Аппаратов ИВО ИВ Человека ВЦРМ ИВО | AE39: 12765 | AF39: 221. ИВАС ИВО ИВ → Синтез ВЦРМ Энергии Аппаратов ИВО ИВ Человека Мг ФаИВО | AG39: 12509 | AH39: 221. ИВАС ИВО ИВ → Синтез ВЦРМ Энергии Аппаратов ИВО ИВ Человека Планеты Земля ИВО
C40: 16348 | D40: 220. ИВ Служащий Планеты Земля ИВО → Субъядерность Частностей ИВО ВЦ Субъядерность Частностей ИВО | E40: 16092 | F40: 3804.220. ИВАС ИВО ИВ → Синтез ВЦРМ Субъядерности Частностей ИВО ИВ Аватара ИВО | G40: 15836 | H40: 3804.220. ИВАС ИВО ИВ → Синтез ВЦРМ Субъядерности Частностей ИВО ИВ Владыки ИВО | I40: 15580 | J40: 3804.220. ИВАС ИВО ИВ → Синтез ВЦРМ Субъядерности Частностей ИВО ИВ Учителя ИВО | K40: 15324 | L40: 3804.220. ИВАС ИВО ИВ → Синтез ВЦРМ Субъядерности Частностей ИВО ИВ Ипостаси ИВО | M40: 15068 | N40: 3804.220. ИВАС ИВО ИВ → Синтез ВЦРМ Субъядерности Частностей ИВО ИВ Служащего ИВО | O40: 14812 | P40: 3804.220. ИВАС ИВО ИВ → Синтез ВЦРМ Субъядерности Частностей ИВО ИВ Посвященного ИВО | Q40: 14556 | R40: 3804.220. ИВАС ИВО ИВ → Синтез ВЦРМ Субъядерности Частностей ИВО ИВ Майтрейи ИВО | S40: 14300 | T40: 3804.220. ИВАС ИВО ИВ → Синтез ВЦРМ Субъядерности Частностей ИВО ИВ Христа ИВО | U40: 14044 | V40: 3804.220. ИВАС ИВО ИВ → Синтез ВЦРМ Субъядерности Частностей ИВО ИВ Будды ИВО | W40: 13788 | X40: 3804.220. ИВАС ИВО ИВ → Синтез ВЦРМ Субъядерности Частностей ИВО ИВ Теурга ИВО | Y40: 13532 | Z40: 3804.220. ИВАС ИВО ИВ → Синтез ВЦРМ Субъядерности Частностей ИВО ИВ Творца ИВО | AA40: 13276 | AB40: 3804.220. ИВАС ИВО ИВ → Синтез ВЦРМ Субъядерности Частностей ИВО ИВ Человека ИВО ИВО | AC40: 13020 | AD40: 3804.220. ИВАС ИВО ИВ → Синтез ВЦРМ Субъядерности Частностей ИВО ИВ Человека ВЦРМ ИВО | AE40: 12764 | AF40: 3804.220. ИВАС ИВО ИВ → Синтез ВЦРМ Субъядерности Частностей ИВО ИВ Человека Мг ФаИВО | AG40: 12508 | AH40: 3804.220. ИВАС ИВО ИВ → Синтез ВЦРМ Субъядерности Частностей ИВО ИВ Человека Планеты Земля ИВО
C41: 16347 | D41: 219. ИВ Служащий ИВР Синтезности ИВО → Форма Абсолютности ИВО ВЦ Форма Абсолютности ИВО | E41: 16091 | F41: 219. ИВАС ИВО ИВ → Синтез ВЦРМ Формы Абсолютности ИВО ИВ Аватара ИВО | G41: 15835 | H41: 219. ИВАС ИВО ИВ → Синтез ВЦРМ Формы Абсолютности ИВО ИВ Владыки ИВО | I41: 15579 | J41: 219. ИВАС ИВО ИВ → Синтез ВЦРМ Формы Абсолютности ИВО ИВ Учителя ИВО | K41: 15323 | L41: 219. ИВАС ИВО ИВ → Синтез ВЦРМ Формы Абсолютности ИВО ИВ Ипостаси ИВО | M41: 15067 | N41: 219. ИВАС ИВО ИВ → Синтез ВЦРМ Формы Абсолютности ИВО ИВ Служащего ИВО | O41: 14811 | P41: 219. ИВАС ИВО ИВ → Синтез ВЦРМ Формы Абсолютности ИВО ИВ Посвященного ИВО | Q41: 14555 | R41: 219. ИВАС ИВО ИВ → Синтез ВЦРМ Формы Абсолютности ИВО ИВ Майтрейи ИВО | S41: 14299 | T41: 219. ИВАС ИВО ИВ → Синтез ВЦРМ Формы Абсолютности ИВО ИВ Христа ИВО | U41: 14043 | V41: 219. ИВАС ИВО ИВ → Синтез ВЦРМ Формы Абсолютности ИВО ИВ Будды ИВО | W41: 13787 | X41: 219. ИВАС ИВО ИВ → Синтез ВЦРМ Формы Абсолютности ИВО ИВ Теурга ИВО | Y41: 13531 | Z41: 219. ИВАС ИВО ИВ → Синтез ВЦРМ Формы Абсолютности ИВО ИВ Творца ИВО | AA41: 13275 | AB41: 219. ИВАС ИВО ИВ → Синтез ВЦРМ Формы Абсолютности ИВО ИВ Человека ИВО ИВО | AC41: 13019 | AD41: 219. ИВАС ИВО ИВ → Синтез ВЦРМ Формы Абсолютности ИВО ИВ Человека ВЦРМ ИВО | AE41: 12763 | AF41: 219. ИВАС ИВО ИВ → Синтез ВЦРМ Формы Абсолютности ИВО ИВ Человека Мг ФаИВО | AG41: 12507 | AH41: 219. ИВАС ИВО ИВ → Синтез ВЦРМ Формы Абсолютности ИВО ИВ Человека Планеты Земля ИВО
C42: 16346 | D42: 218. ИВ Служащий Вышестоящей Реальности Творения ИВО → Содержание Воскрешения ИВО ВЦ Содержание Воскрешения ИВО | E42: 16090 | F42: 218. ИВАС ИВО ИВ → Синтез ВЦРМ Содержания Воскрешения ИВО ИВ Аватара ИВО | G42: 15834 | H42: 218. ИВАС ИВО ИВ → Синтез ВЦРМ Содержания Воскрешения ИВО ИВ Владыки ИВО | I42: 15578 | J42: 218. ИВАС ИВО ИВ → Синтез ВЦРМ Содержания Воскрешения ИВО ИВ Учителя ИВО | K42: 15322 | L42: 218. ИВАС ИВО ИВ → Синтез ВЦРМ Содержания Воскрешения ИВО ИВ Ипостаси ИВО | M42: 15066 | N42: 218. ИВАС ИВО ИВ → Синтез ВЦРМ Содержания Воскрешения ИВО ИВ Служащего ИВО | O42: 14810 | P42: 218. ИВАС ИВО ИВ → Синтез ВЦРМ Содержания Воскрешения ИВО ИВ Посвященного ИВО | Q42: 14554 | R42: 218. ИВАС ИВО ИВ → Синтез ВЦРМ Содержания Воскрешения ИВО ИВ Майтрейи ИВО | S42: 14298 | T42: 218. ИВАС ИВО ИВ → Синтез ВЦРМ Содержания Воскрешения ИВО ИВ Христа ИВО | U42: 14042 | V42: 218. ИВАС ИВО ИВ → Синтез ВЦРМ Содержания Воскрешения ИВО ИВ Будды ИВО | W42: 13786 | X42: 218. ИВАС ИВО ИВ → Синтез ВЦРМ Содержания Воскрешения ИВО ИВ Теурга ИВО | Y42: 13530 | Z42: 218. ИВАС ИВО ИВ → Синтез ВЦРМ Содержания Воскрешения ИВО ИВ Творца ИВО | AA42: 13274 | AB42: 218. ИВАС ИВО ИВ → Синтез ВЦРМ Содержания Воскрешения ИВО ИВ Человека ИВО ИВО | AC42: 13018 | AD42: 218. ИВАС ИВО ИВ → Синтез ВЦРМ Содержания Воскрешения ИВО ИВ Человека ВЦРМ ИВО | AE42: 12762 | AF42: 218. ИВАС ИВО ИВ → Синтез ВЦРМ Содержания Воскрешения ИВО ИВ Человека Мг ФаИВО | AG42: 12506 | AH42: 218. ИВАС ИВО ИВ → Синтез ВЦРМ Содержания Воскрешения ИВО ИВ Человека Планеты Земля ИВО
C43: 16345 | D43: 217. ИВ Служащий Реальности Плана Творения ИВО → Поле Пробуждения ИВО ВЦ Поле Пробуждения ИВО | E43: 16089 | F43: 217. ИВАС ИВО ИВ → Синтез ВЦРМ Поле Пробуждения ИВО ИВ Аватара ИВО | G43: 15833 | H43: 217. ИВАС ИВО ИВ → Синтез ВЦРМ Поле Пробуждения ИВО ИВ Владыки ИВО | I43: 15577 | J43: 217. ИВАС ИВО ИВ → Синтез ВЦРМ Поле Пробуждения ИВО ИВ Учителя ИВО | K43: 15321 | L43: 217. ИВАС ИВО ИВ → Синтез ВЦРМ Поле Пробуждения ИВО ИВ Ипостаси ИВО | M43: 15065 | N43: 217. ИВАС ИВО ИВ → Синтез ВЦРМ Поле Пробуждения ИВО ИВ Служащего ИВО | O43: 14809 | P43: 217. ИВАС ИВО ИВ → Синтез ВЦРМ Поле Пробуждения ИВО ИВ Посвященного ИВО | Q43: 14553 | R43: 217. ИВАС ИВО ИВ → Синтез ВЦРМ Поле Пробуждения ИВО ИВ Майтрейи ИВО | S43: 14297 | T43: 217. ИВАС ИВО ИВ → Синтез ВЦРМ Поле Пробуждения ИВО ИВ Христа ИВО | U43: 14041 | V43: 217. ИВАС ИВО ИВ → Синтез ВЦРМ Поле Пробуждения ИВО ИВ Будды ИВО | W43: 13785 | X43: 217. ИВАС ИВО ИВ → Синтез ВЦРМ Поле Пробуждения ИВО ИВ Теурга ИВО | Y43: 13529 | Z43: 217. ИВАС ИВО ИВ → Синтез ВЦРМ Поле Пробуждения ИВО ИВ Творца ИВО | AA43: 13273 | AB43: 217. ИВАС ИВО ИВ → Синтез ВЦРМ Поле Пробуждения ИВО ИВ Человека ИВО ИВО | AC43: 13017 | AD43: 217. ИВАС ИВО ИВ → Синтез ВЦРМ Поле Пробуждения ИВО ИВ Человека ВЦРМ ИВО | AE43: 12761 | AF43: 217. ИВАС ИВО ИВ → Синтез ВЦРМ Поле Пробуждения ИВО ИВ Человека Мг ФаИВО | AG43: 12505 | AH43: 217. ИВАС ИВО ИВ → Синтез ВЦРМ Поле Пробуждения ИВО ИВ Человека Планеты Земля ИВО
C44: 16344 | D44: 216. ИВ Служащий ИВДИВО ИВО → Время ИВО Высокой Цельное Время ИВО | E44: 16088 | F44: 216. ИВАС ИВО ИВ → Синтез ВЦРМ Времени ИВО ИВ Аватара ИВО | G44: 15832 | H44: 216. ИВАС ИВО ИВ → Синтез ВЦРМ Времени ИВО ИВ Владыки ИВО | I44: 15576 | J44: 216. ИВАС ИВО ИВ → Синтез ВЦРМ Времени ИВО ИВ Учителя ИВО | K44: 15320 | L44: 216. ИВАС ИВО ИВ → Синтез ВЦРМ Времени ИВО ИВ Ипостаси ИВО | M44: 15064 | N44: 216. ИВАС ИВО ИВ → Синтез ВЦРМ Времени ИВО ИВ Служащего ИВО | O44: 14808 | P44: 216. ИВАС ИВО ИВ → Синтез ВЦРМ Времени ИВО ИВ Посвященного ИВО | Q44: 14552 | R44: 216. ИВАС ИВО ИВ → Синтез ВЦРМ Времени ИВО ИВ Майтрейи ИВО | S44: 14296 | T44: 216. ИВАС ИВО ИВ → Синтез ВЦРМ Времени ИВО ИВ Христа ИВО | U44: 14040 | V44: 216. ИВАС ИВО ИВ → Синтез ВЦРМ Времени ИВО ИВ Будды ИВО | W44: 13784 | X44: 216. ИВАС ИВО ИВ → Синтез ВЦРМ Времени ИВО ИВ Теурга ИВО | Y44: 13528 | Z44: 216. ИВАС ИВО ИВ → Синтез ВЦРМ Времени ИВО ИВ Творца ИВО | AA44: 13272 | AB44: 216. ИВАС ИВО ИВ → Синтез ВЦРМ Времени ИВО ИВ Человека ИВО ИВО | AC44: 13016 | AD44: 216. ИВАС ИВО ИВ → Синтез ВЦРМ Времени ИВО ИВ Человека ВЦРМ ИВО | AE44: 12760 | AF44: 216. ИВАС ИВО ИВ → Синтез ВЦРМ Времени ИВО ИВ Человека Мг ФаИВО | AG44: 12504 | AH44: 216. ИВАС ИВО ИВ → Синтез ВЦРМ Времени ИВО ИВ Человека Планеты Земля ИВО
C45: 16343 | D45: 215. ИВ Посвящённый Прав Созидания ИВО → Пространство ИВО ВЦ Пространство ИВО | E45: 16087 | F45: 215. ИВАС ИВО ИВ → Синтез ВЦРМ Пространства ИВО ИВ Аватара ИВО | G45: 15831 | H45: 215. ИВАС ИВО ИВ → Синтез ВЦРМ Пространства ИВО ИВ Владыки ИВО | I45: 15575 | J45: 215. ИВАС ИВО ИВ → Синтез ВЦРМ Пространства ИВО ИВ Учителя ИВО | K45: 15319 | L45: 215. ИВАС ИВО ИВ → Синтез ВЦРМ Пространства ИВО ИВ Ипостаси ИВО | M45: 15063 | N45: 215. ИВАС ИВО ИВ → Синтез ВЦРМ Пространства ИВО ИВ Служащего ИВО | O45: 14807 | P45: 215. ИВАС ИВО ИВ → Синтез ВЦРМ Пространства ИВО ИВ Посвященного ИВО | Q45: 14551 | R45: 215. ИВАС ИВО ИВ → Синтез ВЦРМ Пространства ИВО ИВ Майтрейи ИВО | S45: 14295 | T45: 215. ИВАС ИВО ИВ → Синтез ВЦРМ Пространства ИВО ИВ Христа ИВО | U45: 14039 | V45: 215. ИВАС ИВО ИВ → Синтез ВЦРМ Пространства ИВО ИВ Будды ИВО | W45: 13783 | X45: 215. ИВАС ИВО ИВ → Синтез ВЦРМ Пространства ИВО ИВ Теурга ИВО | Y45: 13527 | Z45: 215. ИВАС ИВО ИВ → Синтез ВЦРМ Пространства ИВО ИВ Творца ИВО | AA45: 13271 | AB45: 215. ИВАС ИВО ИВ → Синтез ВЦРМ Пространства ИВО ИВ Человека ИВО ИВО | AC45: 13015 | AD45: 215. ИВАС ИВО ИВ → Синтез ВЦРМ Пространства ИВО ИВ Человека ВЦРМ ИВО | AE45: 12759 | AF45: 215. ИВАС ИВО ИВ → Синтез ВЦРМ Пространства ИВО ИВ Человека Мг ФаИВО | AG45: 12503 | AH45: 215. ИВАС ИВО ИВ → Синтез ВЦРМ Пространства ИВО ИВ Человека Планеты Земля ИВО
C46: 16342 | D46: 214. ИВ Посвящённый ВЦРМ ИВО → Скорость ИВО ВЦ Скорость ИВО | E46: 16086 | F46: 214. ИВАС ИВО ИВ → Синтез ВЦРМ Скорости ИВО ИВ Аватара ИВО | G46: 15830 | H46: 214. ИВАС ИВО ИВ → Синтез ВЦРМ Скорости ИВО ИВ Владыки ИВО | I46: 15574 | J46: 214. ИВАС ИВО ИВ → Синтез ВЦРМ Скорости ИВО ИВ Учителя ИВО | K46: 15318 | L46: 214. ИВАС ИВО ИВ → Синтез ВЦРМ Скорости ИВО ИВ Ипостаси ИВО | M46: 15062 | N46: 214. ИВАС ИВО ИВ → Синтез ВЦРМ Скорости ИВО ИВ Служащего ИВО | O46: 14806 | P46: 214. ИВАС ИВО ИВ → Синтез ВЦРМ Скорости ИВО ИВ Посвященного ИВО | Q46: 14550 | R46: 214. ИВАС ИВО ИВ → Синтез ВЦРМ Скорости ИВО ИВ Майтрейи ИВО | S46: 14294 | T46: 214. ИВАС ИВО ИВ → Синтез ВЦРМ Скорости ИВО ИВ Христа ИВО | U46: 14038 | V46: 214. ИВАС ИВО ИВ → Синтез ВЦРМ Скорости ИВО ИВ Будды ИВО | W46: 13782 | X46: 214. ИВАС ИВО ИВ → Синтез ВЦРМ Скорости ИВО ИВ Теурга ИВО | Y46: 13526 | Z46: 214. ИВАС ИВО ИВ → Синтез ВЦРМ Скорости ИВО ИВ Творца ИВО | AA46: 13270 | AB46: 214. ИВАС ИВО ИВ → Синтез ВЦРМ Скорости ИВО ИВ Человека ИВО ИВО | AC46: 13014 | AD46: 214. ИВАС ИВО ИВ → Синтез ВЦРМ Скорости ИВО ИВ Человека ВЦРМ ИВО | AE46: 12758 | AF46: 214. ИВАС ИВО ИВ → Синтез ВЦРМ Скорости ИВО ИВ Человека Мг ФаИВО | AG46: 12502 | AH46: 214. ИВАС ИВО ИВ → Синтез ВЦРМ Скорости ИВО ИВ Человека Планеты Земля ИВО
C47: 16341 | D47: 213. ИВ Посвящённый Мг Фа ИВО → Мерность ИВО ВЦ Мерность ИВО | E47: 16085 | F47: 213. ИВАС ИВО ИВ → Синтез ВЦРМ Мерности ИВО ИВ Аватара ИВО | G47: 15829 | H47: 213. ИВАС ИВО ИВ → Синтез ВЦРМ Мерности ИВО ИВ Владыки ИВО | I47: 15573 | J47: 213. ИВАС ИВО ИВ → Синтез ВЦРМ Мерности ИВО ИВ Учителя ИВО | K47: 15317 | L47: 213. ИВАС ИВО ИВ → Синтез ВЦРМ Мерности ИВО ИВ Ипостаси ИВО | M47: 15061 | N47: 213. ИВАС ИВО ИВ → Синтез ВЦРМ Мерности ИВО ИВ Служащего ИВО | O47: 14805 | P47: 213. ИВАС ИВО ИВ → Синтез ВЦРМ Мерности ИВО ИВ Посвященного ИВО | Q47: 14549 | R47: 213. ИВАС ИВО ИВ → Синтез ВЦРМ Мерности ИВО ИВ Майтрейи ИВО | S47: 14293 | T47: 213. ИВАС ИВО ИВ → Синтез ВЦРМ Мерности ИВО ИВ Христа ИВО | U47: 14037 | V47: 213. ИВАС ИВО ИВ → Синтез ВЦРМ Мерности ИВО ИВ Будды ИВО | W47: 13781 | X47: 213. ИВАС ИВО ИВ → Синтез ВЦРМ Мерности ИВО ИВ Теурга ИВО | Y47: 13525 | Z47: 213. ИВАС ИВО ИВ → Синтез ВЦРМ Мерности ИВО ИВ Творца ИВО | AA47: 13269 | AB47: 213. ИВАС ИВО ИВ → Синтез ВЦРМ Мерности ИВО ИВ Человека ИВО ИВО | AC47: 13013 | AD47: 213. ИВАС ИВО ИВ → Синтез ВЦРМ Мерности ИВО ИВ Человека ВЦРМ ИВО | AE47: 12757 | AF47: 213. ИВАС ИВО ИВ → Синтез ВЦРМ Мерности ИВО ИВ Человека Мг ФаИВО | AG47: 12501 | AH47: 213. ИВАС ИВО ИВ → Синтез ВЦРМ Мерности ИВО ИВ Человека Планеты Земля ИВО
C48: 16340 | D48: 212. ИВ Посвящённый Планеты Земля ИВО → Воссоединённость ИВО ВЦ Воссоединённость ИВО | E48: 16084 | F48: 212. ИВАС ИВО ИВ → Синтез ВЦРМ Воссоединённости ИВО ИВ Аватара ИВО | G48: 15828 | H48: 212. ИВАС ИВО ИВ → Синтез ВЦРМ Воссоединённости ИВО ИВ Владыки ИВО | I48: 15572 | J48: 212. ИВАС ИВО ИВ → Синтез ВЦРМ Воссоединённости ИВО ИВ Учителя ИВО | K48: 15316 | L48: 212. ИВАС ИВО ИВ → Синтез ВЦРМ Воссоединённости ИВО ИВ Ипостаси ИВО | M48: 15060 | N48: 212. ИВАС ИВО ИВ → Синтез ВЦРМ Воссоединённости ИВО ИВ Служащего ИВО | O48: 14804 | P48: 212. ИВАС ИВО ИВ → Синтез ВЦРМ Воссоединённости ИВО ИВ Посвященного ИВО | Q48: 14548 | R48: 212. ИВАС ИВО ИВ → Синтез ВЦРМ Воссоединённости ИВО ИВ Майтрейи ИВО | S48: 14292 | T48: 212. ИВАС ИВО ИВ → Синтез ВЦРМ Воссоединённости ИВО ИВ Христа ИВО | U48: 14036 | V48: 212. ИВАС ИВО ИВ → Синтез ВЦРМ Воссоединённости ИВО ИВ Будды ИВО | W48: 13780 | X48: 212. ИВАС ИВО ИВ → Синтез ВЦРМ Воссоединённости ИВО ИВ Теурга ИВО | Y48: 13524 | Z48: 212. ИВАС ИВО ИВ → Синтез ВЦРМ Воссоединённости ИВО ИВ Творца ИВО | AA48: 13268 | AB48: 212. ИВАС ИВО ИВ → Синтез ВЦРМ Воссоединённости ИВО ИВ Человека ИВО ИВО | AC48: 13012 | AD48: 212. ИВАС ИВО ИВ → Синтез ВЦРМ Воссоединённости ИВО ИВ Человека ВЦРМ ИВО | AE48: 12756 | AF48: 212. ИВАС ИВО ИВ → Синтез ВЦРМ Воссоединённости ИВО ИВ Человека Мг ФаИВО | AG48: 12500 | AH48: 212. ИВАС ИВО ИВ → Синтез ВЦРМ Воссоединённости ИВО ИВ Человека Планеты Земля ИВО
C49: 16339 | D49: 211. ИВ Посвящённый ИВР Синтезности ИВО → Матрица Самоорганизации ИВО ВЦ Матрица Самоорганизации ИВО | E49: 16083 | F49: 211. ИВАС ИВО ИВ → Синтез ВЦРМ Матрицы самоорганизации ИВО ИВ Аватара ИВО | G49: 15827 | H49: 211. ИВАС ИВО ИВ → Синтез ВЦРМ Матрицы самоорганизации ИВО ИВ Владыки ИВО | I49: 15571 | J49: 211. ИВАС ИВО ИВ → Синтез ВЦРМ Матрицы самоорганизации ИВО ИВ Учителя ИВО | K49: 15315 | L49: 211. ИВАС ИВО ИВ → Синтез ВЦРМ Матрицы самоорганизации ИВО ИВ Ипостаси ИВО | M49: 15059 | N49: 211. ИВАС ИВО ИВ → Синтез ВЦРМ Матрицы самоорганизации ИВО ИВ Служащего ИВО | O49: 14803 | P49: 211. ИВАС ИВО ИВ → Синтез ВЦРМ Матрицы самоорганизации ИВО ИВ Посвященного ИВО | Q49: 14547 | R49: 211. ИВАС ИВО ИВ → Синтез ВЦРМ Матрицы самоорганизации ИВО ИВ Майтрейи ИВО | S49: 14291 | T49: 211. ИВАС ИВО ИВ → Синтез ВЦРМ Матрицы самоорганизации ИВО ИВ Христа ИВО | U49: 14035 | V49: 211. ИВАС ИВО ИВ → Синтез ВЦРМ Матрицы самоорганизации ИВО ИВ Будды ИВО | W49: 13779 | X49: 211. ИВАС ИВО ИВ → Синтез ВЦРМ Матрицы самоорганизации ИВО ИВ Теурга ИВО | Y49: 13523 | Z49: 211. ИВАС ИВО ИВ → Синтез ВЦРМ Матрицы самоорганизации ИВО ИВ Творца ИВО | AA49: 13267 | AB49: 211. ИВАС ИВО ИВ → Синтез ВЦРМ Матрицы самоорганизации ИВО ИВ Человека ИВО ИВО | AC49: 13011 | AD49: 211. ИВАС ИВО ИВ → Синтез ВЦРМ Матрицы самоорганизации ИВО ИВ Человека ВЦРМ ИВО | AE49: 12755 | AF49: 211. ИВАС ИВО ИВ → Синтез ВЦРМ Матрицы самоорганизации ИВО ИВ Человека Мг ФаИВО | AG49: 12499 | AH49: 211. ИВАС ИВО ИВ → Синтез ВЦРМ Матрицы самоорганизации ИВО ИВ Человека Планеты Земля ИВО
C50: 16338 | D50: 210. ИВ Посвящённый Вышестоящей Реальности Творения ИВО → Эманации ИВО Высокие Цельные Эманации ИВО | E50: 16082 | F50: 210. ИВАС ИВО ИВ → Синтез ВЦРМ Эманации ИВО ИВ Аватара ИВО | G50: 15826 | H50: 210. ИВАС ИВО ИВ → Синтез ВЦРМ Эманации ИВО ИВ Владыки ИВО | I50: 15570 | J50: 210. ИВАС ИВО ИВ → Синтез ВЦРМ Эманации ИВО ИВ Учителя ИВО | K50: 15314 | L50: 210. ИВАС ИВО ИВ → Синтез ВЦРМ Эманации ИВО ИВ Ипостаси ИВО | M50: 15058 | N50: 210. ИВАС ИВО ИВ → Синтез ВЦРМ Эманации ИВО ИВ Служащего ИВО | O50: 14802 | P50: 210. ИВАС ИВО ИВ → Синтез ВЦРМ Эманации ИВО ИВ Посвященного ИВО | Q50: 14546 | R50: 210. ИВАС ИВО ИВ → Синтез ВЦРМ Эманации ИВО ИВ Майтрейи ИВО | S50: 14290 | T50: 210. ИВАС ИВО ИВ → Синтез ВЦРМ Эманации ИВО ИВ Христа ИВО | U50: 14034 | V50: 210. ИВАС ИВО ИВ → Синтез ВЦРМ Эманации ИВО ИВ Будды ИВО | W50: 13778 | X50: 210. ИВАС ИВО ИВ → Синтез ВЦРМ Эманации ИВО ИВ Теурга ИВО | Y50: 13522 | Z50: 210. ИВАС ИВО ИВ → Синтез ВЦРМ Эманации ИВО ИВ Творца ИВО | AA50: 13266 | AB50: 210. ИВАС ИВО ИВ → Синтез ВЦРМ Эманации ИВО ИВ Человека ИВО ИВО | AC50: 13010 | AD50: 210. ИВАС ИВО ИВ → Синтез ВЦРМ Эманации ИВО ИВ Человека ВЦРМ ИВО | AE50: 12754 | AF50: 210. ИВАС ИВО ИВ → Синтез ВЦРМ Эманации ИВО ИВ Человека Мг ФаИВО | AG50: 12498 | AH50: 210. ИВАС ИВО ИВ → Синтез ВЦРМ Эманации ИВО ИВ Человека Планеты Земля ИВО
C51: 16337 | D51: 209. ИВ Посвящённый Реальности Плана Творения ИВО → Вещество ИВО ВЦ Вещество ИВО | E51: 16081 | F51: 209. ИВАС ИВО ИВ → Синтез ВЦРМ Вещества ИВО ИВ Аватара ИВО | G51: 15825 | H51: 209. ИВАС ИВО ИВ → Синтез ВЦРМ Вещества ИВО ИВ Владыки ИВО | I51: 15569 | J51: 209. ИВАС ИВО ИВ → Синтез ВЦРМ Вещества ИВО ИВ Учителя ИВО | K51: 15313 | L51: 209. ИВАС ИВО ИВ → Синтез ВЦРМ Вещества ИВО ИВ Ипостаси ИВО | M51: 15057 | N51: 209. ИВАС ИВО ИВ → Синтез ВЦРМ Вещества ИВО ИВ Служащего ИВО | O51: 14801 | P51: 209. ИВАС ИВО ИВ → Синтез ВЦРМ Вещества ИВО ИВ Посвященного ИВО | Q51: 14545 | R51: 209. ИВАС ИВО ИВ → Синтез ВЦРМ Вещества ИВО ИВ Майтрейи ИВО | S51: 14289 | T51: 209. ИВАС ИВО ИВ → Синтез ВЦРМ Вещества ИВО ИВ Христа ИВО | U51: 14033 | V51: 209. ИВАС ИВО ИВ → Синтез ВЦРМ Вещества ИВО ИВ Будды ИВО | W51: 13777 | X51: 209. ИВАС ИВО ИВ → Синтез ВЦРМ Вещества ИВО ИВ Теурга ИВО | Y51: 13521 | Z51: 209. ИВАС ИВО ИВ → Синтез ВЦРМ Вещества ИВО ИВ Творца ИВО | AA51: 13265 | AB51: 209. ИВАС ИВО ИВ → Синтез ВЦРМ Вещества ИВО ИВ Человека ИВО ИВО | AC51: 13009 | AD51: 209. ИВАС ИВО ИВ → Синтез ВЦРМ Вещества ИВО ИВ Человека ВЦРМ ИВО | AE51: 12753 | AF51: 209. ИВАС ИВО ИВ → Синтез ВЦРМ Вещества ИВО ИВ Человека Мг ФаИВО | AG51: 12497 | AH51: 209. ИВАС ИВО ИВ → Синтез ВЦРМ Вещества ИВО ИВ Человека Планеты Земля ИВО
C52: 16336 | D52: 208. ИВ Посвящённый ИВДИВО ИВО → ВЦ Мг Фа ИВО ВЦ Мг Фа ИВО | E52: 16080 | F52: 208. ИВАС ИВО ИВ → Синтез ВЦРМ Мг Фа ИВО ИВ Аватара ИВО | G52: 15824 | H52: 208. ИВАС ИВО ИВ → Синтез ВЦРМ Мг Фа ИВО ИВ Владыки ИВО | I52: 15568 | J52: 208. ИВАС ИВО ИВ → Синтез ВЦРМ Мг Фа ИВО ИВ Учителя ИВО | K52: 15312 | L52: 208. ИВАС ИВО ИВ → Синтез ВЦРМ Мг Фа ИВО ИВ Ипостаси ИВО | M52: 15056 | N52: 208. ИВАС ИВО ИВ → Синтез ВЦРМ Мг Фа ИВО ИВ Служащего ИВО | O52: 14800 | P52: 208. ИВАС ИВО ИВ → Синтез ВЦРМ Мг Фа ИВО ИВ Посвященного ИВО | Q52: 14544 | R52: 208. ИВАС ИВО ИВ → Синтез ВЦРМ Мг Фа ИВО ИВ Майтрейи ИВО | S52: 14288 | T52: 208. ИВАС ИВО ИВ → Синтез ВЦРМ Мг Фа ИВО ИВ Христа ИВО | U52: 14032 | V52: 208. ИВАС ИВО ИВ → Синтез ВЦРМ Мг Фа ИВО ИВ Будды ИВО | W52: 13776 | X52: 208. ИВАС ИВО ИВ → Синтез ВЦРМ Мг Фа ИВО ИВ Теурга ИВО | Y52: 13520 | Z52: 208. ИВАС ИВО ИВ → Синтез ВЦРМ Мг Фа ИВО ИВ Творца ИВО | AA52: 13264 | AB52: 208. ИВАС ИВО ИВ → Синтез ВЦРМ Мг Фа ИВО ИВ Человека ИВО ИВО | AC52: 13008 | AD52: 208. ИВАС ИВО ИВ → Синтез ВЦРМ Мг Фа ИВО ИВ Человека ВЦРМ ИВО | AE52: 12752 | AF52: 208. ИВАС ИВО ИВ → Синтез ВЦРМ Мг Фа ИВО ИВ Человека Мг ФаИВО | AG52: 12496 | AH52: 208. ИВАС ИВО ИВ → Синтез ВЦРМ Мг Фа ИВО ИВ Человека Планеты Земля ИВО
C53: 16335 | D53: 207. ИВ Человек Вышестоящей Реальности Творения ИВО → ВЦ Планета Земля ИВО ВЦ Планета Земля ИВО | E53: 16079 | F53: 207. ИВАС ИВО ИВ → Синтез ВЦРМ Планеты Земля Мг Фа ИВО ИВ Аватара ИВО | G53: 15823 | H53: 207. ИВАС ИВО ИВ → Синтез ВЦРМ Планеты Земля Мг Фа ИВО ИВ Владыки ИВО | I53: 15567 | J53: 207. ИВАС ИВО ИВ → Синтез ВЦРМ Планеты Земля Мг Фа ИВО ИВ Учителя ИВО | K53: 15311 | L53: 207. ИВАС ИВО ИВ → Синтез ВЦРМ Планеты Земля Мг Фа ИВО ИВ Ипостаси ИВО | M53: 15055 | N53: 207. ИВАС ИВО ИВ → Синтез ВЦРМ Планеты Земля Мг Фа ИВО ИВ Служащего ИВО | O53: 14799 | P53: 207. ИВАС ИВО ИВ → Синтез ВЦРМ Планеты Земля Мг Фа ИВО ИВ Посвященного ИВО | Q53: 14543 | R53: 207. ИВАС ИВО ИВ → Синтез ВЦРМ Планеты Земля Мг Фа ИВО ИВ Майтрейи ИВО | S53: 14287 | T53: 207. ИВАС ИВО ИВ → Синтез ВЦРМ Планеты Земля Мг Фа ИВО ИВ Христа ИВО | U53: 14031 | V53: 207. ИВАС ИВО ИВ → Синтез ВЦРМ Планеты Земля Мг Фа ИВО ИВ Будды ИВО | W53: 13775 | X53: 207. ИВАС ИВО ИВ → Синтез ВЦРМ Планеты Земля Мг Фа ИВО ИВ Теурга ИВО | Y53: 13519 | Z53: 207. ИВАС ИВО ИВ → Синтез ВЦРМ Планеты Земля Мг Фа ИВО ИВ Творца ИВО | AA53: 13263 | AB53: 207. ИВАС ИВО ИВ → Синтез ВЦРМ Планеты Земля Мг Фа ИВО ИВ Человека ИВО ИВО | AC53: 13007 | AD53: 207. ИВАС ИВО ИВ → Синтез ВЦРМ Планеты Земля Мг Фа ИВО ИВ Человека ВЦРМ ИВО | AE53: 12751 | AF53: 207. ИВАС ИВО ИВ → Синтез ВЦРМ Планеты Земля Мг Фа ИВО ИВ Человека Мг ФаИВО | AG53: 12495 | AH53: 207. ИВАС ИВО ИВ → Синтез ВЦРМ Планеты Земля Мг Фа ИВО ИВ Человека Планеты Земля ИВО
C54: 16334 | D54: 206. ИВ Сын ИВО → ВЦ Мг Человека ИВО ВЦ Мг Человека ИВО | E54: 16078 | F54: 206. ИВАС ИВО ИВ → Синтез ВЦРМ Мг Человека ИВО ИВ Аватара ИВО | G54: 15822 | H54: 206. ИВАС ИВО ИВ → Синтез ВЦРМ Мг Человека ИВО ИВ Владыки ИВО | I54: 15566 | J54: 206. ИВАС ИВО ИВ → Синтез ВЦРМ Мг Человека ИВО ИВ Учителя ИВО | K54: 15310 | L54: 206. ИВАС ИВО ИВ → Синтез ВЦРМ Мг Человека ИВО ИВ Ипостаси ИВО | M54: 15054 | N54: 206. ИВАС ИВО ИВ → Синтез ВЦРМ Мг Человека ИВО ИВ Служащего ИВО | O54: 14798 | P54: 206. ИВАС ИВО ИВ → Синтез ВЦРМ Мг Человека ИВО ИВ Посвященного ИВО | Q54: 14542 | R54: 206. ИВАС ИВО ИВ → Синтез ВЦРМ Мг Человека ИВО ИВ Майтрейи ИВО | S54: 14286 | T54: 206. ИВАС ИВО ИВ → Синтез ВЦРМ Мг Человека ИВО ИВ Христа ИВО | U54: 14030 | V54: 206. ИВАС ИВО ИВ → Синтез ВЦРМ Мг Человека ИВО ИВ Будды ИВО | W54: 13774 | X54: 206. ИВАС ИВО ИВ → Синтез ВЦРМ Мг Человека ИВО ИВ Теурга ИВО | Y54: 13518 | Z54: 206. ИВАС ИВО ИВ → Синтез ВЦРМ Мг Человека ИВО ИВ Творца ИВО | AA54: 13262 | AB54: 206. ИВАС ИВО ИВ → Синтез ВЦРМ Мг Человека ИВО ИВ Человека ИВО ИВО | AC54: 13006 | AD54: 206. ИВАС ИВО ИВ → Синтез ВЦРМ Мг Человека ВЦРМ ИВ Человека ВЦРМ ИВО | AE54: 12750 | AF54: 206. ИВАС ИВО ИВ → Синтез ВЦРМ Мг Человека Мг ФаИВ Человека Мг ФаИВО | AG54: 12494 | AH54: 206. ИВАС ИВО ИВ → Синтез ВЦРМ Мг Человека Планеты Земля ИВ Человека Планеты Земля ИВО
C55: 16333 | D55: 205. ИВ Дочь ИВО → ВЦ ПараМг ИВО ВЦ ПараМг ИВО | E55: 16077 | F55: 205. ИВАС ИВО ИВ → Синтез ВЦРМ ПараМг ИВО ИВ Аватара ИВО | G55: 15821 | H55: 205. ИВАС ИВО ИВ → Синтез ВЦРМ ПараМг ИВО ИВ Владыки ИВО | I55: 15565 | J55: 205. ИВАС ИВО ИВ → Синтез ВЦРМ ПараМг ИВО ИВ Учителя ИВО | K55: 15309 | L55: 205. ИВАС ИВО ИВ → Синтез ВЦРМ ПараМг ИВО ИВ Ипостаси ИВО | M55: 15053 | N55: 205. ИВАС ИВО ИВ → Синтез ВЦРМ ПараМг ИВО ИВ Служащего ИВО | O55: 14797 | P55: 205. ИВАС ИВО ИВ → Синтез ВЦРМ ПараМг ИВО ИВ Посвященного ИВО | Q55: 14541 | R55: 205. ИВАС ИВО ИВ → Синтез ВЦРМ ПараМг ИВО ИВ Майтрейи ИВО | S55: 14285 | T55: 205. ИВАС ИВО ИВ → Синтез ВЦРМ ПараМг ИВО ИВ Христа ИВО | U55: 14029 | V55: 205. ИВАС ИВО ИВ → Синтез ВЦРМ ПараМг ИВО ИВ Будды ИВО | W55: 13773 | X55: 205. ИВАС ИВО ИВ → Синтез ВЦРМ ПараМг ИВО ИВ Теурга ИВО | Y55: 13517 | Z55: 205. ИВАС ИВО ИВ → Синтез ВЦРМ ПараМг ИВО ИВ Творца ИВО | AA55: 13261 | AB55: 205. ИВАС ИВО ИВ → Синтез ВЦРМ ПараМг ИВО ИВ Человека ИВО ИВО | AC55: 13005 | AD55: 205. ИВАС ИВО ИВ → Синтез ВЦРМ ПараМг ИВО ИВ Человека ВЦРМ ИВО | AE55: 12749 | AF55: 205. ИВАС ИВО ИВ → Синтез ВЦРМ ПараМг ИВО ИВ Человека Мг ФаИВО | AG55: 12493 | AH55: 205. ИВАС ИВО ИВ → Синтез ВЦРМ ПараМг ИВО ИВ Человека Планеты Земля ИВО
C56: 16332 | D56: 204 ИВ Аспект ИВО → ВЦ СинтезМг Человека ИВО ВЦ СинтезМг Человека ИВО | E56: 16076 | F56: 204. ИВАС ИВО ИВ → Синтез ВЦРМ СинтезМг ИВО ИВ Аватара ИВО | G56: 15820 | H56: 204. ИВАС ИВО ИВ → Синтез ВЦРМ СинтезМг ИВО ИВ Владыки ИВО | I56: 15564 | J56: 204. ИВАС ИВО ИВ → Синтез ВЦРМ СинтезМг ИВО ИВ Учителя ИВО | K56: 15308 | L56: 204. ИВАС ИВО ИВ → Синтез ВЦРМ СинтезМг ИВО ИВ Ипостаси ИВО | M56: 15052 | N56: 204. ИВАС ИВО ИВ → Синтез ВЦРМ СинтезМг ИВО ИВ Служащего ИВО | O56: 14796 | P56: 204. ИВАС ИВО ИВ → Синтез ВЦРМ СинтезМг ИВО ИВ Посвященного ИВО | Q56: 14540 | R56: 204. ИВАС ИВО ИВ → Синтез ВЦРМ СинтезМг ИВО ИВ Майтрейи ИВО | S56: 14284 | T56: 204. ИВАС ИВО ИВ → Синтез ВЦРМ СинтезМг ИВО ИВ Христа ИВО | U56: 14028 | V56: 204. ИВАС ИВО ИВ → Синтез ВЦРМ СинтезМг ИВО ИВ Будды ИВО | W56: 13772 | X56: 204. ИВАС ИВО ИВ → Синтез ВЦРМ СинтезМг ИВО ИВ Теурга ИВО | Y56: 13516 | Z56: 204. ИВАС ИВО ИВ → Синтез ВЦРМ СинтезМг ИВО ИВ Творца ИВО | AA56: 13260 | AB56: 204. ИВАС ИВО ИВ → Синтез ВЦРМ СинтезМг ИВО ИВ Человека ИВО ИВО | AC56: 13004 | AD56: 204. ИВАС ИВО ИВ → Синтез ВЦРМ СинтезМг ИВО ИВ Человека ВЦРМ ИВО | AE56: 12748 | AF56: 204. ИВАС ИВО ИВ → Синтез ВЦРМ СинтезМг ИВО ИВ Человека Мг ФаИВО | AG56: 12492 | AH56: 204. ИВАС ИВО ИВ → Синтез ВЦРМ СинтезМг ИВО ИВ Человека Планеты Земля ИВО
C57: 16331 | D57: 203. ИВ Логос ИВО → ВЦ Начальная Мг ИВО ВЦ Начальная Мг ИВО | E57: 16075 | F57: 203. ИВАС ИВО ИВ → Синтез ВЦРМ Начальной Мг ИВО ИВ Аватара ИВО | G57: 15819 | H57: 203. ИВАС ИВО ИВ → Синтез ВЦРМ Начальной Мг ИВО ИВ Владыки ИВО | I57: 15563 | J57: 203. ИВАС ИВО ИВ → Синтез ВЦРМ Начальной Мг ИВО ИВ Учителя ИВО | K57: 15307 | L57: 203. ИВАС ИВО ИВ → Синтез ВЦРМ Начальной Мг ИВО ИВ Ипостаси ИВО | M57: 15051 | N57: 203. ИВАС ИВО ИВ → Синтез ВЦРМ Начальной Мг ИВО ИВ Служащего ИВО | O57: 14795 | P57: 203. ИВАС ИВО ИВ → Синтез ВЦРМ Начальной Мг ИВО ИВ Посвященного ИВО | Q57: 14539 | R57: 203. ИВАС ИВО ИВ → Синтез ВЦРМ Начальной Мг ИВО ИВ Майтрейи ИВО | S57: 14283 | T57: 203. ИВАС ИВО ИВ → Синтез ВЦРМ Начальной Мг ИВО ИВ Христа ИВО | U57: 14027 | V57: 203. ИВАС ИВО ИВ → Синтез ВЦРМ Начальной Мг ИВО ИВ Будды ИВО | W57: 13771 | X57: 203. ИВАС ИВО ИВ → Синтез ВЦРМ Начальной Мг ИВО ИВ Теурга ИВО | Y57: 13515 | Z57: 203. ИВАС ИВО ИВ → Синтез ВЦРМ Начальной Мг ИВО ИВ Творца ИВО | AA57: 13259 | AB57: 203. ИВАС ИВО ИВ → Синтез ВЦРМ Начальной Мг ИВО ИВ Человека ИВО ИВО | AC57: 13003 | AD57: 203. ИВАС ИВО ИВ → Синтез ВЦРМ Начальной Мг ИВО ИВ Человека ВЦРМ ИВО | AE57: 12747 | AF57: 203. ИВАС ИВО ИВ → Синтез ВЦРМ Начальной Мг ИВО ИВ Человека Мг ФаИВО | AG57: 12491 | AH57: 203. ИВАС ИВО ИВ → Синтез ВЦРМ Начальной Мг ИВО ИВ Человека Планеты Земля ИВО
C58: 16330 | D58: 202. ИВ Ману ИВО → ВЦ СуперМг Версумов ИВО ВЦ СуперМг Версумов ИВО | E58: 16074 | F58: 202. ИВАС ИВО ИВ → Синтез ВЦРМ СуперМг Версумов ИВО ИВ Аватара ИВО | G58: 15818 | H58: 202. ИВАС ИВО ИВ → Синтез ВЦРМ СуперМг Версумов ИВО ИВ Владыки ИВО | I58: 15562 | J58: 202. ИВАС ИВО ИВ → Синтез ВЦРМ СуперМг Версумов ИВО ИВ Учителя ИВО | K58: 15306 | L58: 202. ИВАС ИВО ИВ → Синтез ВЦРМ СуперМг Версумов ИВО ИВ Ипостаси ИВО | M58: 15050 | N58: 202. ИВАС ИВО ИВ → Синтез ВЦРМ СуперМг Версумов ИВО ИВ Служащего ИВО | O58: 14794 | P58: 202. ИВАС ИВО ИВ → Синтез ВЦРМ СуперМг Версумов ИВО ИВ Посвященного ИВО | Q58: 14538 | R58: 202. ИВАС ИВО ИВ → Синтез ВЦРМ СуперМг Версумов ИВО ИВ Майтрейи ИВО | S58: 14282 | T58: 202. ИВАС ИВО ИВ → Синтез ВЦРМ СуперМг Версумов ИВО ИВ Христа ИВО | U58: 14026 | V58: 202. ИВАС ИВО ИВ → Синтез ВЦРМ СуперМг Версумов ИВО ИВ Будды ИВО | W58: 13770 | X58: 202. ИВАС ИВО ИВ → Синтез ВЦРМ СуперМг Версумов ИВО ИВ Теурга ИВО | Y58: 13514 | Z58: 202. ИВАС ИВО ИВ → Синтез ВЦРМ СуперМг Версумов ИВО ИВ Творца ИВО | AA58: 13258 | AB58: 202. ИВАС ИВО ИВ → Синтез ВЦРМ СуперМг Версумов ИВО ИВ Человека ИВО ИВО | AC58: 13002 | AD58: 202. ИВАС ИВО ИВ → Синтез ВЦРМ СуперМг Версумов ИВО ИВ Человека ВЦРМ ИВО | AE58: 12746 | AF58: 202. ИВАС ИВО ИВ → Синтез ВЦРМ СуперМг Версумов ИВО ИВ Человека Мг ФаИВО | AG58: 12490 | AH58: 202. ИВАС ИВО ИВ → Синтез ВЦРМ СуперМг Версумов ИВО ИВ Человека Планеты Земля ИВО
C59: 16329 | D59: 201. Изначально Вышестоящая Мать ИВО → ВЦ Мг Синтезверсумов ИВО ВЦ Мг Синтезверсумов ИВО | E59: 16073 | F59: 201. ИВАС ИВО ИВ → Синтез ВЦРМ Цельной Мг Синтезверсумов ИВО ИВ Аватара ИВО | G59: 15817 | H59: 201. ИВАС ИВО ИВ → Синтез ВЦРМ Цельной Мг Синтезверсумов ИВО ИВ Владыки ИВО | I59: 15561 | J59: 201. ИВАС ИВО ИВ → Синтез ВЦРМ Цельной Мг Синтезверсумов ИВО ИВ Учителя ИВО | K59: 15305 | L59: 201. ИВАС ИВО ИВ → Синтез ВЦРМ Цельной Мг Синтезверсумов ИВО ИВ Ипостаси ИВО | M59: 15049 | N59: 201. ИВАС ИВО ИВ → Синтез ВЦРМ Цельной Мг Синтезверсумов ИВО ИВ Служащего ИВО | O59: 14793 | P59: 201. ИВАС ИВО ИВ → Синтез ВЦРМ Цельной Мг Синтезверсумов ИВО ИВ Посвященного ИВО | Q59: 14537 | R59: 201. ИВАС ИВО ИВ → Синтез ВЦРМ Цельной Мг Синтезверсумов ИВО ИВ Майтрейи ИВО | S59: 14281 | T59: 201. ИВАС ИВО ИВ → Синтез ВЦРМ Цельной Мг Синтезверсумов ИВО ИВ Христа ИВО | U59: 14025 | V59: 201. ИВАС ИВО ИВ → Синтез ВЦРМ Цельной Мг Синтезверсумов ИВО ИВ Будды ИВО | W59: 13769 | X59: 201. ИВАС ИВО ИВ → Синтез ВЦРМ Цельной Мг Синтезверсумов ИВО ИВ Теурга ИВО | Y59: 13513 | Z59: 201. ИВАС ИВО ИВ → Синтез ВЦРМ Цельной Мг Синтезверсумов ИВО ИВ Творца ИВО | AA59: 13257 | AB59: 201. ИВАС ИВО ИВ → Синтез ВЦРМ Цельной Мг Синтезверсумов ИВО ИВ Человека ИВО ИВО | AC59: 13001 | AD59: 201. ИВАС ИВО ИВ → Синтез ВЦРМ Цельной Мг Синтезверсумов ИВО ИВ Человека ВЦРМ ИВО | AE59: 12745 | AF59: 201. ИВАС ИВО ИВ → Синтез ВЦРМ Цельной Мг Синтезверсумов ИВО ИВ Человека Мг ФаИВО | AG59: 12489 | AH59: 201. ИВАС ИВО ИВ → Синтез ВЦРМ Цельной Мг Синтезверсумов ИВО ИВ Человека Планеты Земля ИВО
C60: 16328 | D60: 200. ИВ Человек Реальности Плана Творения ИВО → ВЦ Аматическая Мг Суперверсумов ИВО ВЦ Аматическая Мг Суперверсумов ИВО | E60: 16072 | F60: 200. ИВАС ИВО ИВ → Синтез ВЦРМ Аматической Мг Суперверсумов ИВО ИВ Аватара ИВО | G60: 15816 | H60: 200. ИВАС ИВО ИВ → Синтез ВЦРМ Аматической Мг Суперверсумов ИВО ИВ Владыки ИВО | I60: 15560 | J60: 200. ИВАС ИВО ИВ → Синтез ВЦРМ Аматической Мг Суперверсумов ИВО ИВ Учителя ИВО | K60: 15304 | L60: 200. ИВАС ИВО ИВ → Синтез ВЦРМ Аматической Мг Суперверсумов ИВО ИВ Ипостаси ИВО | M60: 15048 | N60: 200. ИВАС ИВО ИВ → Синтез ВЦРМ Аматической Мг Суперверсумов ИВО ИВ Служащего ИВО | O60: 14792 | P60: 200. ИВАС ИВО ИВ → Синтез ВЦРМ Аматической Мг Суперверсумов ИВО ИВ Посвященного ИВО | Q60: 14536 | R60: 200. ИВАС ИВО ИВ → Синтез ВЦРМ Аматической Мг Суперверсумов ИВО ИВ Майтрейи ИВО | S60: 14280 | T60: 200. ИВАС ИВО ИВ → Синтез ВЦРМ Аматической Мг Суперверсумов ИВО ИВ Христа ИВО | U60: 14024 | V60: 200. ИВАС ИВО ИВ → Синтез ВЦРМ Аматической Мг Суперверсумов ИВО ИВ Будды ИВО | W60: 13768 | X60: 200. ИВАС ИВО ИВ → Синтез ВЦРМ Аматической Мг Суперверсумов ИВО ИВ Теурга ИВО | Y60: 13512 | Z60: 200. ИВАС ИВО ИВ → Синтез ВЦРМ Аматической Мг Суперверсумов ИВО ИВ Творца ИВО | AA60: 13256 | AB60: 200. ИВАС ИВО ИВ → Синтез ВЦРМ Аматической Мг Суперверсумов ИВО ИВ Человека ИВО ИВО | AC60: 13000 | AD60: 200. ИВАС ИВО ИВ → Синтез ВЦРМ Аматической Мг Суперверсумов ИВО ИВ Человека ВЦРМ ИВО | AE60: 12744 | AF60: 200. ИВАС ИВО ИВ → Синтез ВЦРМ Аматической Мг Суперверсумов ИВО ИВ Человека Мг ФаИВО | AG60: 12488 | AH60: 200. ИВАС ИВО ИВ → Синтез ВЦРМ Аматической Мг Суперверсумов ИВО ИВ Человека Планеты Земля ИВО
C61: 16327 | D61: 199. ИВ Неизречённый ИВО → ВЦ Атмическая Мг Мультиверсумов ИВО ВЦ Атмическая Мг Мультиверсумов ИВО | E61: 16071 | F61: 199. ИВАС ИВО ИВ → Синтез ВЦРМ Атмической Мг Мультиверсумов ИВО ИВ Аватара ИВО | G61: 15815 | H61: 199. ИВАС ИВО ИВ → Синтез ВЦРМ Атмической Мг Мультиверсумов ИВО ИВ Владыки ИВО | I61: 15559 | J61: 199. ИВАС ИВО ИВ → Синтез ВЦРМ Атмической Мг Мультиверсумов ИВО ИВ Учителя ИВО | K61: 15303 | L61: 199. ИВАС ИВО ИВ → Синтез ВЦРМ Атмической Мг Мультиверсумов ИВО ИВ Ипостаси ИВО | M61: 15047 | N61: 199. ИВАС ИВО ИВ → Синтез ВЦРМ Атмической Мг Мультиверсумов ИВО ИВ Служащего ИВО | O61: 14791 | P61: 199. ИВАС ИВО ИВ → Синтез ВЦРМ Атмической Мг Мультиверсумов ИВО ИВ Посвященного ИВО | Q61: 14535 | R61: 199. ИВАС ИВО ИВ → Синтез ВЦРМ Атмической Мг Мультиверсумов ИВО ИВ Майтрейи ИВО | S61: 14279 | T61: 199. ИВАС ИВО ИВ → Синтез ВЦРМ Атмической Мг Мультиверсумов ИВО ИВ Христа ИВО | U61: 14023 | V61: 199. ИВАС ИВО ИВ → Синтез ВЦРМ Атмической Мг Мультиверсумов ИВО ИВ Будды ИВО | W61: 13767 | X61: 199. ИВАС ИВО ИВ → Синтез ВЦРМ Атмической Мг Мультиверсумов ИВО ИВ Теурга ИВО | Y61: 13511 | Z61: 199. ИВАС ИВО ИВ → Синтез ВЦРМ Атмической Мг Мультиверсумов ИВО ИВ Творца ИВО | AA61: 13255 | AB61: 199. ИВАС ИВО ИВ → Синтез ВЦРМ Атмической Мг Мультиверсумов ИВО ИВ Человека ИВО ИВО | AC61: 12999 | AD61: 199. ИВАС ИВО ИВ → Синтез ВЦРМ Атмической Мг Мультиверсумов ИВО ИВ Человека ВЦРМ ИВО | AE61: 12743 | AF61: 199. ИВАС ИВО ИВ → Синтез ВЦРМ Атмической Мг Мультиверсумов ИВО ИВ Человека Мг ФаИВО | AG61: 12487 | AH61: 199. ИВАС ИВО ИВ → Синтез ВЦРМ Атмической Мг Мультиверсумов ИВО ИВ Человека Планеты Земля ИВО
C62: 16326 | D62: 198. ИВ Всемогущий ИВО → ВЦ Буддическая Мг Универсумов ИВО ВЦ Буддическая Мг Универсумов ИВО | E62: 16070 | F62: 198. ИВАС ИВО ИВ → Синтез ВЦРМ Буддической Мг Универсумов ИВО ИВ Аватара ИВО | G62: 15814 | H62: 198. ИВАС ИВО ИВ → Синтез ВЦРМ Буддической Мг Универсумов ИВО ИВ Владыки ИВО | I62: 15558 | J62: 198. ИВАС ИВО ИВ → Синтез ВЦРМ Буддической Мг Универсумов ИВО ИВ Учителя ИВО | K62: 15302 | L62: 198. ИВАС ИВО ИВ → Синтез ВЦРМ Буддической Мг Универсумов ИВО ИВ Ипостаси ИВО | M62: 15046 | N62: 198. ИВАС ИВО ИВ → Синтез ВЦРМ Буддической Мг Универсумов ИВО ИВ Служащего ИВО | O62: 14790 | P62: 198. ИВАС ИВО ИВ → Синтез ВЦРМ Буддической Мг Универсумов ИВО ИВ Посвященного ИВО | Q62: 14534 | R62: 198. ИВАС ИВО ИВ → Синтез ВЦРМ Буддической Мг Универсумов ИВО ИВ Майтрейи ИВО | S62: 14278 | T62: 198. ИВАС ИВО ИВ → Синтез ВЦРМ Буддической Мг Универсумов ИВО ИВ Христа ИВО | U62: 14022 | V62: 198. ИВАС ИВО ИВ → Синтез ВЦРМ Буддической Мг Универсумов ИВО ИВ Будды ИВО | W62: 13766 | X62: 198. ИВАС ИВО ИВ → Синтез ВЦРМ Буддической Мг Универсумов ИВО ИВ Теурга ИВО | Y62: 13510 | Z62: 198. ИВАС ИВО ИВ → Синтез ВЦРМ Буддической Мг Универсумов ИВО ИВ Творца ИВО | AA62: 13254 | AB62: 198. ИВАС ИВО ИВ → Синтез ВЦРМ Буддической Мг Универсумов ИВО ИВ Человека ИВО ИВО | AC62: 12998 | AD62: 198. ИВАС ИВО ИВ → Синтез ВЦРМ Буддической Мг Универсумов ИВО ИВ Человека ВЦРМ ИВО | AE62: 12742 | AF62: 198. ИВАС ИВО ИВ → Синтез ВЦРМ Буддической Мг Универсумов ИВО ИВ Человека Мг ФаИВО | AG62: 12486 | AH62: 198. ИВАС ИВО ИВ → Синтез ВЦРМ Буддической Мг Универсумов ИВО ИВ Человека Планеты Земля ИВО
C63: 16325 | D63: 197. ИВ Предвечный ИВО → ВЦ Причинная Мг Вселенных ИВО ВЦ Причинная Мг Вселенных ИВО | E63: 16069 | F63: 197. ИВАС ИВО ИВ → Синтез ВЦРМ Причинной Мг Вселенных ИВО ИВ Аватара ИВО | G63: 15813 | H63: 197. ИВАС ИВО ИВ → Синтез ВЦРМ Причинной Мг Вселенных ИВО ИВ Владыки ИВО | I63: 15557 | J63: 197. ИВАС ИВО ИВ → Синтез ВЦРМ Причинной Мг Вселенных ИВО ИВ Учителя ИВО | K63: 15301 | L63: 197. ИВАС ИВО ИВ → Синтез ВЦРМ Причинной Мг Вселенных ИВО ИВ Ипостаси ИВО | M63: 15045 | N63: 197. ИВАС ИВО ИВ → Синтез ВЦРМ Причинной Мг Вселенных ИВО ИВ Служащего ИВО | O63: 14789 | P63: 197. ИВАС ИВО ИВ → Синтез ВЦРМ Причинной Мг Вселенных ИВО ИВ Посвященного ИВО | Q63: 14533 | R63: 197. ИВАС ИВО ИВ → Синтез ВЦРМ Причинной Мг Вселенных ИВО ИВ Майтрейи ИВО | S63: 14277 | T63: 197. ИВАС ИВО ИВ → Синтез ВЦРМ Причинной Мг Вселенных ИВО ИВ Христа ИВО | U63: 14021 | V63: 197. ИВАС ИВО ИВ → Синтез ВЦРМ Причинной Мг Вселенных ИВО ИВ Будды ИВО | W63: 13765 | X63: 197. ИВАС ИВО ИВ → Синтез ВЦРМ Причинной Мг Вселенных ИВО ИВ Теурга ИВО | Y63: 13509 | Z63: 197. ИВАС ИВО ИВ → Синтез ВЦРМ Причинной Мг Вселенных ИВО ИВ Творца ИВО | AA63: 13253 | AB63: 197. ИВАС ИВО ИВ → Синтез ВЦРМ Причинной Мг Вселенных ИВО ИВ Человека ИВО ИВО | AC63: 12997 | AD63: 197. ИВАС ИВО ИВ → Синтез ВЦРМ Причинной Мг Вселенных ИВО ИВ Человека ВЦРМ ИВО | AE63: 12741 | AF63: 197. ИВАС ИВО ИВ → Синтез ВЦРМ Причинной Мг Вселенных ИВО ИВ Человека Мг ФаИВО | AG63: 12485 | AH63: 197. ИВАС ИВО ИВ → Синтез ВЦРМ Причинной Мг Вселенных ИВО ИВ Человека Планеты Земля ИВО
C64: 16324 | D64: 196. ИВ Предначальный ИВО → ВЦ Ментальная Мг Супергалактик ИВО ВЦ Ментальная Мг Супергалактик ИВО | E64: 16068 | F64: 196. ИВАС ИВО ИВ → Синтез ВЦРМ Ментальной Мг Супергалактик ИВО ИВ Аватара ИВО | G64: 15812 | H64: 196. ИВАС ИВО ИВ → Синтез ВЦРМ Ментальной Мг Супергалактик ИВО ИВ Владыки ИВО | I64: 15556 | J64: 196. ИВАС ИВО ИВ → Синтез ВЦРМ Ментальной Мг Супергалактик ИВО ИВ Учителя ИВО | K64: 15300 | L64: 196. ИВАС ИВО ИВ → Синтез ВЦРМ Ментальной Мг Супергалактик ИВО ИВ Ипостаси ИВО | M64: 15044 | N64: 196. ИВАС ИВО ИВ → Синтез ВЦРМ Ментальной Мг Супергалактик ИВО ИВ Служащего ИВО | O64: 14788 | P64: 196. ИВАС ИВО ИВ → Синтез ВЦРМ Ментальной Мг Супергалактик ИВО ИВ Посвященного ИВО | Q64: 14532 | R64: 196. ИВАС ИВО ИВ → Синтез ВЦРМ Ментальной Мг Супергалактик ИВО ИВ Майтрейи ИВО | S64: 14276 | T64: 196. ИВАС ИВО ИВ → Синтез ВЦРМ Ментальной Мг Супергалактик ИВО ИВ Христа ИВО | U64: 14020 | V64: 196. ИВАС ИВО ИВ → Синтез ВЦРМ Ментальной Мг Супергалактик ИВО ИВ Будды ИВО | W64: 13764 | X64: 196. ИВАС ИВО ИВ → Синтез ВЦРМ Ментальной Мг Супергалактик ИВО ИВ Теурга ИВО | Y64: 13508 | Z64: 196. ИВАС ИВО ИВ → Синтез ВЦРМ Ментальной Мг Супергалактик ИВО ИВ Творца ИВО | AA64: 13252 | AB64: 196. ИВАС ИВО ИВ → Синтез ВЦРМ Ментальной Мг Супергалактик ИВО ИВ Человека ИВО ИВО | AC64: 12996 | AD64: 196. ИВАС ИВО ИВ → Синтез ВЦРМ Ментальной Мг Супергалактик ИВО ИВ Человека ВЦРМ ИВО | AE64: 12740 | AF64: 196. ИВАС ИВО ИВ → Синтез ВЦРМ Ментальной Мг Супергалактик ИВО ИВ Человека Мг ФаИВО | AG64: 12484 | AH64: 196. ИВАС ИВО ИВ → Синтез ВЦРМ Ментальной Мг Супергалактик ИВО ИВ Человека Планеты Земля ИВО
C65: 16323 | D65: 195. ИВ Вседержитель ИВО → ВЦ Изначальная Мг Галактик ИВО ВЦ Изначальная Мг Галактик ИВО | E65: 16067 | F65: 195. ИВАС ИВО ИВ → Синтез ВЦРМ Изначальной Мг Галактик ИВО ИВ Аватара ИВО | G65: 15811 | H65: 195. ИВАС ИВО ИВ → Синтез ВЦРМ Изначальной Мг Галактик ИВО ИВ Владыки ИВО | I65: 15555 | J65: 195. ИВАС ИВО ИВ → Синтез ВЦРМ Изначальной Мг Галактик ИВО ИВ Учителя ИВО | K65: 15299 | L65: 195. ИВАС ИВО ИВ → Синтез ВЦРМ Изначальной Мг Галактик ИВО ИВ Ипостаси ИВО | M65: 15043 | N65: 195. ИВАС ИВО ИВ → Синтез ВЦРМ Изначальной Мг Галактик ИВО ИВ Служащего ИВО | O65: 14787 | P65: 195. ИВАС ИВО ИВ → Синтез ВЦРМ Изначальной Мг Галактик ИВО ИВ Посвященного ИВО | Q65: 14531 | R65: 195. ИВАС ИВО ИВ → Синтез ВЦРМ Изначальной Мг Галактик ИВО ИВ Майтрейи ИВО | S65: 14275 | T65: 195. ИВАС ИВО ИВ → Синтез ВЦРМ Изначальной Мг Галактик ИВО ИВ Христа ИВО | U65: 14019 | V65: 195. ИВАС ИВО ИВ → Синтез ВЦРМ Изначальной Мг Галактик ИВО ИВ Будды ИВО | W65: 13763 | X65: 195. ИВАС ИВО ИВ → Синтез ВЦРМ Изначальной Мг Галактик ИВО ИВ Теурга ИВО | Y65: 13507 | Z65: 195. ИВАС ИВО ИВ → Синтез ВЦРМ Изначальной Мг Галактик ИВО ИВ Творца ИВО | AA65: 13251 | AB65: 195. ИВАС ИВО ИВ → Синтез ВЦРМ Изначальной Мг Галактик ИВО ИВ Человека ИВО ИВО | AC65: 12995 | AD65: 195. ИВАС ИВО ИВ → Синтез ВЦРМ Изначальной Мг Галактик ИВО ИВ Человека ВЦРМ ИВО | AE65: 12739 | AF65: 195. ИВАС ИВО ИВ → Синтез ВЦРМ Изначальной Мг Галактик ИВО ИВ Человека Мг ФаИВО | AG65: 12483 | AH65: 195. ИВАС ИВО ИВ → Синтез ВЦРМ Изначальной Мг Галактик ИВО ИВ Человека Планеты Земля ИВО
C66: 16322 | D66: 194. ИВ Всевышний ИВО → ВЦ Основная Мг Солнечных систем ИВО ВЦ Основная Мг Солнечных систем ИВО | E66: 16066 | F66: 194. ИВАС ИВО ИВ → Синтез ВЦРМ Основной Мг Солнечных систем ИВО ИВ Аватара ИВО | G66: 15810 | H66: 194. ИВАС ИВО ИВ → Синтез ВЦРМ Основной Мг Солнечных систем ИВО ИВ Владыки ИВО | I66: 15554 | J66: 194. ИВАС ИВО ИВ → Синтез ВЦРМ Основной Мг Солнечных систем ИВО ИВ Учителя ИВО | K66: 15298 | L66: 194. ИВАС ИВО ИВ → Синтез ВЦРМ Основной Мг Солнечных систем ИВО ИВ Ипостаси ИВО | M66: 15042 | N66: 194. ИВАС ИВО ИВ → Синтез ВЦРМ Основной Мг Солнечных систем ИВО ИВ Служащего ИВО | O66: 14786 | P66: 194. ИВАС ИВО ИВ → Синтез ВЦРМ Основной Мг Солнечных систем ИВО ИВ Посвященного ИВО | Q66: 14530 | R66: 194. ИВАС ИВО ИВ → Синтез ВЦРМ Основной Мг Солнечных систем ИВО ИВ Майтрейи ИВО | S66: 14274 | T66: 194. ИВАС ИВО ИВ → Синтез ВЦРМ Основной Мг Солнечных систем ИВО ИВ Христа ИВО | U66: 14018 | V66: 194. ИВАС ИВО ИВ → Синтез ВЦРМ Основной Мг Солнечных систем ИВО ИВ Будды ИВО | W66: 13762 | X66: 194. ИВАС ИВО ИВ → Синтез ВЦРМ Основной Мг Солнечных систем ИВО ИВ Теурга ИВО | Y66: 13506 | Z66: 194. ИВАС ИВО ИВ → Синтез ВЦРМ Основной Мг Солнечных систем ИВО ИВ Творца ИВО | AA66: 13250 | AB66: 194. ИВАС ИВО ИВ → Синтез ВЦРМ Основной Мг Солнечных систем ИВО ИВ Человека ИВО ИВО | AC66: 12994 | AD66: 194. ИВАС ИВО ИВ → Синтез ВЦРМ Основной Мг Солнечных систем ИВО ИВ Человека ВЦРМ ИВО | AE66: 12738 | AF66: 194. ИВАС ИВО ИВ → Синтез ВЦРМ Основной Мг Солнечных систем ИВО ИВ Человека Мг ФаИВО | AG66: 12482 | AH66: 194. ИВАС ИВО ИВ → Синтез ВЦРМ Основной Мг Солнечных систем ИВО ИВ Человека Планеты Земля ИВО
C67: 16321 | D67: 193. ИВ Человек ИВДИВО ИВО → ВЦ Физичность ИВО ВЦ Физичность ИВО | E67: 16065 | F67: 193. ИВАС ИВО ИВ → Синтез ВЦРМ Физичности ИВО ИВ Аватара ИВО | G67: 15809 | H67: 193. ИВАС ИВО ИВ → Синтез ВЦРМ Физичности ИВО ИВ Владыки ИВО | I67: 15553 | J67: 193. ИВАС ИВО ИВ → Синтез ВЦРМ Физичности ИВО ИВ Учителя ИВО | K67: 15297 | L67: 193. ИВАС ИВО ИВ → Синтез ВЦРМ Физичности ИВО ИВ Ипостаси ИВО | M67: 15041 | N67: 193. ИВАС ИВО ИВ → Синтез ВЦРМ Физичности ИВО ИВ Служащего ИВО | O67: 14785 | P67: 193. ИВАС ИВО ИВ → Синтез ВЦРМ Физичности ИВО ИВ Посвященного ИВО | Q67: 14529 | R67: 193. ИВАС ИВО ИВ → Синтез ВЦРМ Физичности ИВО ИВ Майтрейи ИВО | S67: 14273 | T67: 193. ИВАС ИВО ИВ → Синтез ВЦРМ Физичности ИВО ИВ Христа ИВО | U67: 14017 | V67: 193. ИВАС ИВО ИВ → Синтез ВЦРМ Физичности ИВО ИВ Будды ИВО | W67: 13761 | X67: 193. ИВАС ИВО ИВ → Синтез ВЦРМ Физичности ИВО ИВ Теурга ИВО | Y67: 13505 | Z67: 193. ИВАС ИВО ИВ → Синтез ВЦРМ Физичности ИВО ИВ Творца ИВО | AA67: 13249 | AB67: 193. ИВАС ИВО ИВ → Синтез ВЦРМ Физичности ИВО ИВ Человека ИВО ИВО | AC67: 12993 | AD67: 193. ИВАС ИВО ИВ → Синтез ВЦРМ Физичности ИВО ИВ Человека ВЦРМ ИВО | AE67: 12737 | AF67: 193. ИВАС ИВО ИВ → Синтез ВЦРМ Физичности ИВО ИВ Человека Мг ФаИВО | AG67: 12481 | AH67: 193. ИВАС ИВО ИВ → Синтез ВЦРМ Физичности ИВО ИВ Человека Планеты Земля ИВО
C68: 16320 | D68: 192. ИВАС ИВО Кут Хуми Фаинь Синтез → Синтеза ИВО ИВ Дом ИВО | E68: 16064 | F68: 192. ИВАС ИВО ИВ → Синтез ВЦРМ ИВ Дома ИВО ИВО ИВ Аватара ИВО | G68: 15808 | H68: 192. ИВАС ИВО ИВ → Синтез ВЦРМ ИВ Дома ИВО ИВО ИВ Владыки ИВО | I68: 15552 | J68: 192. ИВАС ИВО ИВ → Синтез ВЦРМ ИВ Дома ИВО ИВО ИВ Учителя ИВО | K68: 15296 | L68: 192. ИВАС ИВО ИВ → Синтез ВЦРМ ИВ Дома ИВО ИВО ИВ Ипостаси ИВО | M68: 15040 | N68: 192. ИВАС ИВО ИВ → Синтез ВЦРМ ИВ Дома ИВО ИВО ИВ Служащего ИВО | O68: 14784 | P68: 192. ИВАС ИВО ИВ → Синтез ВЦРМ ИВ Дома ИВО ИВО ИВ Посвященного ИВО | Q68: 14528 | R68: 192. ИВАС ИВО ИВ → Синтез ВЦРМ ИВ Дома ИВО ИВО ИВ Майтрейи ИВО | S68: 14272 | T68: 192. ИВАС ИВО ИВ → Синтез ВЦРМ ИВ Дома ИВО ИВО ИВ Христа ИВО | U68: 14016 | V68: 192. ИВАС ИВО ИВ → Синтез ВЦРМ ИВ Дома ИВО ИВО ИВ Будды ИВО | W68: 13760 | X68: 192. ИВАС ИВО ИВ → Синтез ВЦРМ ИВ Дома ИВО ИВО ИВ Теурга ИВО | Y68: 13504 | Z68: 192. ИВАС ИВО ИВ → Синтез ВЦРМ ИВ Дома ИВО ИВО ИВ Творца ИВО | AA68: 13248 | AB68: 192. ИВАС ИВО ИВ → Синтез ВЦРМ ИВ Дома ИВО ИВО ИВ Человека ИВО ИВО | AC68: 12992 | AD68: 192. ИВАС ИВО ИВ → Синтез ВЦРМ ИВ Дома ИВО ИВО ИВ Человека ВЦРМ ИВО | AE68: 12736 | AF68: 192. ИВАС ИВО ИВ → Синтез ВЦРМ ИВ Дома ИВО ИВО ИВ Человека Мг ФаИВО | AG68: 12480 | AH68: 192. ИВАС ИВО ИВ → Синтез ВЦРМ ИВ Дома ИВО ИВО ИВ Человека Планеты Земля ИВО
C69: 16319 | D69: 191. ИВАС ИВО Иосиф Славия → Синтез Воли ИВО Изначально Вышестоящая Иерархия ИВО | E69: 16063 | F69: 191. ИВАС ИВО ИВ → Синтез ВЦРМ Воли ИВ Аватара ИВО | G69: 15807 | H69: 191. ИВАС ИВО ИВ → Синтез ВЦРМ Воли ИВ Владыки ИВО | I69: 15551 | J69: 191. ИВАС ИВО ИВ → Синтез ВЦРМ Воли ИВ Учителя ИВО | K69: 15295 | L69: 191. ИВАС ИВО ИВ → Синтез ВЦРМ Воли ИВ Ипостаси ИВО | M69: 15039 | N69: 191. ИВАС ИВО ИВ → Синтез ВЦРМ Воли ИВ Служащего ИВО | O69: 14783 | P69: 191. ИВАС ИВО ИВ → Синтез ВЦРМ Воли ИВ Посвященного ИВО | Q69: 14527 | R69: 191. ИВАС ИВО ИВ → Синтез ВЦРМ Воли ИВ Майтрейи ИВО | S69: 14271 | T69: 191. ИВАС ИВО ИВ → Синтез ВЦРМ Воли ИВ Христа ИВО | U69: 14015 | V69: 191. ИВАС ИВО ИВ → Синтез ВЦРМ Воли ИВ Будды ИВО | W69: 13759 | X69: 191. ИВАС ИВО ИВ → Синтез ВЦРМ Воли ИВ Теурга ИВО | Y69: 13503 | Z69: 191. ИВАС ИВО ИВ → Синтез ВЦРМ Воли ИВ Творца ИВО | AA69: 13247 | AB69: 191. ИВАС ИВО ИВ → Синтез ВЦРМ Воли ИВ Человека ИВО ИВО | AC69: 12991 | AD69: 191. ИВАС ИВО ИВ → Синтез ВЦРМ Воли ИВ Человека ВЦРМ ИВО | AE69: 12735 | AF69: 191. ИВАС ИВО ИВ → Синтез ВЦРМ Воли ИВ Человека Мг ФаИВО | AG69: 12479 | AH69: 191. ИВАС ИВО ИВ → Синтез ВЦРМ Воли ИВ Человека Планеты Земля ИВО
C70: 16318 | D70: 190. ИВАС ИВО Мория Свет → Синтез Мудрости ИВО ИВ Синтез ВЦРМ Человека ИВО | E70: 16062 | F70: 190. ИВАС ИВО ИВ → Синтез ВЦРМ Мудрости ИВ Аватара ИВО | G70: 15806 | H70: 190. ИВАС ИВО ИВ → Синтез ВЦРМ Мудрости ИВ Владыки ИВО | I70: 15550 | J70: 190. ИВАС ИВО ИВ → Синтез ВЦРМ Мудрости ИВ Учителя ИВО | K70: 15294 | L70: 190. ИВАС ИВО ИВ → Синтез ВЦРМ Мудрости ИВ Ипостаси ИВО | M70: 15038 | N70: 190. ИВАС ИВО ИВ → Синтез ВЦРМ Мудрости ИВ Служащего ИВО | O70: 14782 | P70: 190. ИВАС ИВО ИВ → Синтез ВЦРМ Мудрости ИВ Посвященного ИВО | Q70: 14526 | R70: 190. ИВАС ИВО ИВ → Синтез ВЦРМ Мудрости ИВ Майтрейи ИВО | S70: 14270 | T70: 190. ИВАС ИВО ИВ → Синтез ВЦРМ Мудрости ИВ Христа ИВО | U70: 14014 | V70: 190. ИВАС ИВО ИВ → Синтез ВЦРМ Мудрости ИВ Будды ИВО | W70: 13758 | X70: 190. ИВАС ИВО ИВ → Синтез ВЦРМ Мудрости ИВ Теурга ИВО | Y70: 13502 | Z70: 190. ИВАС ИВО ИВ → Синтез ВЦРМ Мудрости ИВ Творца ИВО | AA70: 13246 | AB70: 190. ИВАС ИВО ИВ → Синтез ВЦРМ Мудрости ИВ Человека ИВО ИВО | AC70: 12990 | AD70: 190. ИВАС ИВО ИВ → Синтез ВЦРМ Мудрости ИВ Человека ВЦРМ ИВО | AE70: 12734 | AF70: 190. ИВАС ИВО ИВ → Синтез ВЦРМ Мудрости ИВ Человека Мг ФаИВО | AG70: 12478 | AH70: 190. ИВАС ИВО ИВ → Синтез ВЦРМ Мудрости ИВ Человека Планеты Земля ИВО
C71: 16317 | D71: 189. ИВАС ИВО Филипп Марина → Синтез Любви ИВО ИВ Синтез ВЦРМ Учителя Синтеза ИВО | E71: 16061 | F71: 189. ИВАС ИВО ИВ → Синтез ВЦРМ Любви ИВ Аватара ИВО | G71: 15805 | H71: 189. ИВАС ИВО ИВ → Синтез ВЦРМ Любви ИВ Владыки ИВО | I71: 15549 | J71: 189. ИВАС ИВО ИВ → Синтез ВЦРМ Любви ИВ Учителя ИВО | K71: 15293 | L71: 189. ИВАС ИВО ИВ → Синтез ВЦРМ Любви ИВ Ипостаси ИВО | M71: 15037 | N71: 189. ИВАС ИВО ИВ → Синтез ВЦРМ Любви ИВ Служащего ИВО | O71: 14781 | P71: 189. ИВАС ИВО ИВ → Синтез ВЦРМ Любви ИВ Посвященного ИВО | Q71: 14525 | R71: 189. ИВАС ИВО ИВ → Синтез ВЦРМ Любви ИВ Майтрейи ИВО | S71: 14269 | T71: 189. ИВАС ИВО ИВ → Синтез ВЦРМ Любви ИВ Христа ИВО | U71: 14013 | V71: 189. ИВАС ИВО ИВ → Синтез ВЦРМ Любви ИВ Будды ИВО | W71: 13757 | X71: 189. ИВАС ИВО ИВ → Синтез ВЦРМ Любви ИВ Теурга ИВО | Y71: 13501 | Z71: 189. ИВАС ИВО ИВ → Синтез ВЦРМ Любви ИВ Творца ИВО | AA71: 13245 | AB71: 189. ИВАС ИВО ИВ → Синтез ВЦРМ Любви ИВ Человека ИВО ИВО | AC71: 12989 | AD71: 189. ИВАС ИВО ИВ → Синтез ВЦРМ Любви ИВ Человека ВЦРМ ИВО | AE71: 12733 | AF71: 189. ИВАС ИВО ИВ → Синтез ВЦРМ Любви ИВ Человека Мг ФаИВО | AG71: 12477 | AH71: 189. ИВАС ИВО ИВ → Синтез ВЦРМ Любви ИВ Человека Планеты Земля ИВО
C72: 16316 | D72: 188. ИВАС ИВО Византий Альбина → Синтез Творения ИВО ИВ Синтез ВЦРМ Высшей Школы Синтеза ИВО | E72: 16060 | F72: 188. ИВАС ИВО ИВ → Синтез ВЦРМ Творения ИВ Аватара ИВО | G72: 15804 | H72: 188. ИВАС ИВО ИВ → Синтез ВЦРМ Творения ИВ Владыки ИВО | I72: 15548 | J72: 188. ИВАС ИВО ИВ → Синтез ВЦРМ Творения ИВ Учителя ИВО | K72: 15292 | L72: 188. ИВАС ИВО ИВ → Синтез ВЦРМ Творения ИВ Ипостаси ИВО | M72: 15036 | N72: 188. ИВАС ИВО ИВ → Синтез ВЦРМ Творения ИВ Служащего ИВО | O72: 14780 | P72: 188. ИВАС ИВО ИВ → Синтез ВЦРМ Творения ИВ Посвященного ИВО | Q72: 14524 | R72: 188. ИВАС ИВО ИВ → Синтез ВЦРМ Творения ИВ Майтрейи ИВО | S72: 14268 | T72: 188. ИВАС ИВО ИВ → Синтез ВЦРМ Творения ИВ Христа ИВО | U72: 14012 | V72: 188. ИВАС ИВО ИВ → Синтез ВЦРМ Творения ИВ Будды ИВО | W72: 13756 | X72: 188. ИВАС ИВО ИВ → Синтез ВЦРМ Творения ИВ Теурга ИВО | Y72: 13500 | Z72: 188. ИВАС ИВО ИВ → Синтез ВЦРМ Творения ИВ Творца ИВО | AA72: 13244 | AB72: 188. ИВАС ИВО ИВ → Синтез ВЦРМ Творения ИВ Человека ИВО ИВО | AC72: 12988 | AD72: 188. ИВАС ИВО ИВ → Синтез ВЦРМ Творения ИВ Человека ВЦРМ ИВО | AE72: 12732 | AF72: 188. ИВАС ИВО ИВ → Синтез ВЦРМ Творения ИВ Человека Мг ФаИВО | AG72: 12476 | AH72: 188. ИВАС ИВО ИВ → Синтез ВЦРМ Творения ИВ Человека Планеты Земля ИВО
C73: 16315 | D73: 187. ИВАС ИВО Янов Вероника → Синтез Созидания ИВО ИВ Синтез ВЦРМ Психодинамического Мастерства ИВО | E73: 16059 | F73: 187. ИВАС ИВО ИВ → Синтез ВЦРМ Созидания ИВ Аватара ИВО | G73: 15803 | H73: 187. ИВАС ИВО ИВ → Синтез ВЦРМ Созидания ИВ Владыки ИВО | I73: 15547 | J73: 187. ИВАС ИВО ИВ → Синтез ВЦРМ Созидания ИВ Учителя ИВО | K73: 15291 | L73: 187. ИВАС ИВО ИВ → Синтез ВЦРМ Созидания ИВ Ипостаси ИВО | M73: 15035 | N73: 187. ИВАС ИВО ИВ → Синтез ВЦРМ Созидания ИВ Служащего ИВО | O73: 14779 | P73: 187. ИВАС ИВО ИВ → Синтез ВЦРМ Созидания ИВ Посвященного ИВО | Q73: 14523 | R73: 187. ИВАС ИВО ИВ → Синтез ВЦРМ Созидания ИВ Майтрейи ИВО | S73: 14267 | T73: 187. ИВАС ИВО ИВ → Синтез ВЦРМ Созидания ИВ Христа ИВО | U73: 14011 | V73: 187. ИВАС ИВО ИВ → Синтез ВЦРМ Созидания ИВ Будды ИВО | W73: 13755 | X73: 187. ИВАС ИВО ИВ → Синтез ВЦРМ Созидания ИВ Теурга ИВО | Y73: 13499 | Z73: 187. ИВАС ИВО ИВ → Синтез ВЦРМ Созидания ИВ Творца ИВО | AA73: 13243 | AB73: 187. ИВАС ИВО ИВ → Синтез ВЦРМ Созидания ИВ Человека ИВО ИВО | AC73: 12987 | AD73: 187. ИВАС ИВО ИВ → Синтез ВЦРМ Созидания ИВ Человека ВЦРМ ИВО | AE73: 12731 | AF73: 187. ИВАС ИВО ИВ → Синтез ВЦРМ Созидания ИВ Человека Мг ФаИВО | AG73: 12475 | AH73: 187. ИВАС ИВО ИВ → Синтез ВЦРМ Созидания ИВ Человека Планеты Земля ИВО
C74: 16314 | D74: 186. ИВАС ИВО Юлий Сиана → Синтез Живы ИВО ИВ Синтез ВЦРМ Метагалактической Академии Наук ИВО | E74: 16058 | F74: 186. ИВАС ИВО ИВ → Синтез ВЦРМ Живы ИВ Аватара ИВО | G74: 15802 | H74: 186. ИВАС ИВО ИВ → Синтез ВЦРМ Живы ИВ Владыки ИВО | I74: 15546 | J74: 186. ИВАС ИВО ИВ → Синтез ВЦРМ Живы ИВ Учителя ИВО | K74: 15290 | L74: 186. ИВАС ИВО ИВ → Синтез ВЦРМ Живы ИВ Ипостаси ИВО | M74: 15034 | N74: 186. ИВАС ИВО ИВ → Синтез ВЦРМ Живы ИВ Служащего ИВО | O74: 14778 | P74: 186. ИВАС ИВО ИВ → Синтез ВЦРМ Живы ИВ Посвященного ИВО | Q74: 14522 | R74: 186. ИВАС ИВО ИВ → Синтез ВЦРМ Живы ИВ Майтрейи ИВО | S74: 14266 | T74: 186. ИВАС ИВО ИВ → Синтез ВЦРМ Живы ИВ Христа ИВО | U74: 14010 | V74: 186. ИВАС ИВО ИВ → Синтез ВЦРМ Живы ИВ Будды ИВО | W74: 13754 | X74: 186. ИВАС ИВО ИВ → Синтез ВЦРМ Живы ИВ Теурга ИВО | Y74: 13498 | Z74: 186. ИВАС ИВО ИВ → Синтез ВЦРМ Живы ИВ Творца ИВО | AA74: 13242 | AB74: 186. ИВАС ИВО ИВ → Синтез ВЦРМ Живы ИВ Человека ИВО ИВО | AC74: 12986 | AD74: 186. ИВАС ИВО ИВ → Синтез ВЦРМ Живы ИВ Человека ВЦРМ ИВО | AE74: 12730 | AF74: 186. ИВАС ИВО ИВ → Синтез ВЦРМ Живы ИВ Человека Мг ФаИВО | AG74: 12474 | AH74: 186. ИВАС ИВО ИВ → Синтез ВЦРМ Живы ИВ Человека Планеты Земля ИВО
C75: 16313 | D75: 185. ИВАС ИВО Юсеф Она → Синтез Жизни ИВО ИВ Синтез ВЦРМ Метагалактического Центра Философии Синтеза ИВО | E75: 16057 | F75: 185. ИВАС ИВО ИВ → Синтез ВЦРМ Жизни ИВ Аватара ИВО | G75: 15801 | H75: 185. ИВАС ИВО ИВ → Синтез ВЦРМ Жизни ИВ Владыки ИВО | I75: 15545 | J75: 185. ИВАС ИВО ИВ → Синтез ВЦРМ Жизни ИВ Учителя ИВО | K75: 15289 | L75: 185. ИВАС ИВО ИВ → Синтез ВЦРМ Жизни ИВ Ипостаси ИВО | M75: 15033 | N75: 185. ИВАС ИВО ИВ → Синтез ВЦРМ Жизни ИВ Служащего ИВО | O75: 14777 | P75: 185. ИВАС ИВО ИВ → Синтез ВЦРМ Жизни ИВ Посвященного ИВО | Q75: 14521 | R75: 185. ИВАС ИВО ИВ → Синтез ВЦРМ Жизни ИВ Майтрейи ИВО | S75: 14265 | T75: 185. ИВАС ИВО ИВ → Синтез ВЦРМ Жизни ИВ Христа ИВО | U75: 14009 | V75: 185. ИВАС ИВО ИВ → Синтез ВЦРМ Жизни ИВ Будды ИВО | W75: 13753 | X75: 185. ИВАС ИВО ИВ → Синтез ВЦРМ Жизни ИВ Теурга ИВО | Y75: 13497 | Z75: 185. ИВАС ИВО ИВ → Синтез ВЦРМ Жизни ИВ Творца ИВО | AA75: 13241 | AB75: 185. ИВАС ИВО ИВ → Синтез ВЦРМ Жизни ИВ Человека ИВО ИВО | AC75: 12985 | AD75: 185. ИВАС ИВО ИВ → Синтез ВЦРМ Жизни ИВ Человека ВЦРМ ИВО | AE75: 12729 | AF75: 185. ИВАС ИВО ИВ → Синтез ВЦРМ Жизни ИВ Человека Мг ФаИВО | AG75: 12473 | AH75: 185. ИВАС ИВО ИВ → Синтез ВЦРМ Жизни ИВ Человека Планеты Земля ИВО
C76: 16312 | D76: 184. ИВАС ИВО Владомир Стефана → Синтез Воскрешения ИВО ИВ Синтез ВЦРМ Метагалактической Гражданской Конфедерации ИВО | E76: 16056 | F76: 184. ИВАС ИВО ИВ → Синтез ВЦРМ Воскрешения ИВ Аватара ИВО | G76: 15800 | H76: 184. ИВАС ИВО ИВ → Синтез ВЦРМ Воскрешения ИВ Владыки ИВО | I76: 15544 | J76: 184. ИВАС ИВО ИВ → Синтез ВЦРМ Воскрешения ИВ Учителя ИВО | K76: 15288 | L76: 184. ИВАС ИВО ИВ → Синтез ВЦРМ Воскрешения ИВ Ипостаси ИВО | M76: 15032 | N76: 184. ИВАС ИВО ИВ → Синтез ВЦРМ Воскрешения ИВ Служащего ИВО | O76: 14776 | P76: 184. ИВАС ИВО ИВ → Синтез ВЦРМ Воскрешения ИВ Посвященного ИВО | Q76: 14520 | R76: 184. ИВАС ИВО ИВ → Синтез ВЦРМ Воскрешения ИВ Майтрейи ИВО | S76: 14264 | T76: 184. ИВАС ИВО ИВ → Синтез ВЦРМ Воскрешения ИВ Христа ИВО | U76: 14008 | V76: 184. ИВАС ИВО ИВ → Синтез ВЦРМ Воскрешения ИВ Будды ИВО | W76: 13752 | X76: 184. ИВАС ИВО ИВ → Синтез ВЦРМ Воскрешения ИВ Теурга ИВО | Y76: 13496 | Z76: 184. ИВАС ИВО ИВ → Синтез ВЦРМ Воскрешения ИВ Творца ИВО | AA76: 13240 | AB76: 184. ИВАС ИВО ИВ → Синтез ВЦРМ Воскрешения ИВ Человека ИВО ИВО | AC76: 12984 | AD76: 184. ИВАС ИВО ИВ → Синтез ВЦРМ Воскрешения ИВ Человека ВЦРМ ИВО | AE76: 12728 | AF76: 184. ИВАС ИВО ИВ → Синтез ВЦРМ Воскрешения ИВ Человека Мг ФаИВО | AG76: 12472 | AH76: 184. ИВАС ИВО ИВ → Синтез ВЦРМ Воскрешения ИВ Человека Планеты Земля ИВО
C77: 16311 | D77: 183. ИВАС ИВО Савва Свята → Синтез Пробуждения ИВО ИВ Синтез ВЦРМ Метагалактической Цивилизации ИВО | E77: 16055 | F77: 183. ИВАС ИВО ИВ → Синтез ВЦРМ Пробуждения ИВ Аватара ИВО | G77: 15799 | H77: 183. ИВАС ИВО ИВ → Синтез ВЦРМ Пробуждения ИВ Владыки ИВО | I77: 15543 | J77: 183. ИВАС ИВО ИВ → Синтез ВЦРМ Пробуждения ИВ Учителя ИВО | K77: 15287 | L77: 183. ИВАС ИВО ИВ → Синтез ВЦРМ Пробуждения ИВ Ипостаси ИВО | M77: 15031 | N77: 183. ИВАС ИВО ИВ → Синтез ВЦРМ Пробуждения ИВ Служащего ИВО | O77: 14775 | P77: 183. ИВАС ИВО ИВ → Синтез ВЦРМ Пробуждения ИВ Посвященного ИВО | Q77: 14519 | R77: 183. ИВАС ИВО ИВ → Синтез ВЦРМ Пробуждения ИВ Майтрейи ИВО | S77: 14263 | T77: 183. ИВАС ИВО ИВ → Синтез ВЦРМ Пробуждения ИВ Христа ИВО | U77: 14007 | V77: 183. ИВАС ИВО ИВ → Синтез ВЦРМ Пробуждения ИВ Будды ИВО | W77: 13751 | X77: 183. ИВАС ИВО ИВ → Синтез ВЦРМ Пробуждения ИВ Теурга ИВО | Y77: 13495 | Z77: 183. ИВАС ИВО ИВ → Синтез ВЦРМ Пробуждения ИВ Творца ИВО | AA77: 13239 | AB77: 183. ИВАС ИВО ИВ → Синтез ВЦРМ Пробуждения ИВ Человека ИВО ИВО | AC77: 12983 | AD77: 183. ИВАС ИВО ИВ → Синтез ВЦРМ Пробуждения ИВ Человека ВЦРМ ИВО | AE77: 12727 | AF77: 183. ИВАС ИВО ИВ → Синтез ВЦРМ Пробуждения ИВ Человека Мг ФаИВО | AG77: 12471 | AH77: 183. ИВАС ИВО ИВ → Синтез ВЦРМ Пробуждения ИВ Человека Планеты Земля ИВО
C78: 16310 | D78: 182. ИВАС ИВО Савелий Баяна → Синтез Генезис ИВО ИВ Синтез ВЦРМ Метагалактической Нации ИВО | E78: 16054 | F78: 182. ИВАС ИВО ИВ → Синтез ВЦРМ Генезиса ИВ Аватара ИВО | G78: 15798 | H78: 182. ИВАС ИВО ИВ → Синтез ВЦРМ Генезиса ИВ Владыки ИВО | I78: 15542 | J78: 182. ИВАС ИВО ИВ → Синтез ВЦРМ Генезиса ИВ Учителя ИВО | K78: 15286 | L78: 182. ИВАС ИВО ИВ → Синтез ВЦРМ Генезиса ИВ Ипостаси ИВО | M78: 15030 | N78: 182. ИВАС ИВО ИВ → Синтез ВЦРМ Генезиса ИВ Служащего ИВО | O78: 14774 | P78: 182. ИВАС ИВО ИВ → Синтез ВЦРМ Генезиса ИВ Посвященного ИВО | Q78: 14518 | R78: 182. ИВАС ИВО ИВ → Синтез ВЦРМ Генезиса ИВ Майтрейи ИВО | S78: 14262 | T78: 182. ИВАС ИВО ИВ → Синтез ВЦРМ Генезиса ИВ Христа ИВО | U78: 14006 | V78: 182. ИВАС ИВО ИВ → Синтез ВЦРМ Генезиса ИВ Будды ИВО | W78: 13750 | X78: 182. ИВАС ИВО ИВ → Синтез ВЦРМ Генезиса ИВ Теурга ИВО | Y78: 13494 | Z78: 182. ИВАС ИВО ИВ → Синтез ВЦРМ Генезиса ИВ Творца ИВО | AA78: 13238 | AB78: 182. ИВАС ИВО ИВ → Синтез ВЦРМ Генезиса ИВ Человека ИВО ИВО | AC78: 12982 | AD78: 182. ИВАС ИВО ИВ → Синтез ВЦРМ Генезиса ИВ Человека ВЦРМ ИВО | AE78: 12726 | AF78: 182. ИВАС ИВО ИВ → Синтез ВЦРМ Генезиса ИВ Человека Мг ФаИВО | AG78: 12470 | AH78: 182. ИВАС ИВО ИВ → Синтез ВЦРМ Генезиса ИВ Человека Планеты Земля ИВО
C79: 16309 | D79: 181. ИВАС ИВО Вильгельм Екатерина → Синтез Человечности ИВО ИВ Синтез ВЦРМ Метагалактической Расы ИВО | E79: 16053 | F79: 181. ИВАС ИВО ИВ → Синтез ВЦРМ Человечности ИВ Аватара ИВО | G79: 15797 | H79: 181. ИВАС ИВО ИВ → Синтез ВЦРМ Человечности ИВ Владыки ИВО | I79: 15541 | J79: 181. ИВАС ИВО ИВ → Синтез ВЦРМ Человечности ИВ Учителя ИВО | K79: 15285 | L79: 181. ИВАС ИВО ИВ → Синтез ВЦРМ Человечности ИВ Ипостаси ИВО | M79: 15029 | N79: 181. ИВАС ИВО ИВ → Синтез ВЦРМ Человечности ИВ Служащего ИВО | O79: 14773 | P79: 181. ИВАС ИВО ИВ → Синтез ВЦРМ Человечности ИВ Посвященного ИВО | Q79: 14517 | R79: 181. ИВАС ИВО ИВ → Синтез ВЦРМ Человечности ИВ Майтрейи ИВО | S79: 14261 | T79: 181. ИВАС ИВО ИВ → Синтез ВЦРМ Человечности ИВ Христа ИВО | U79: 14005 | V79: 181. ИВАС ИВО ИВ → Синтез ВЦРМ Человечности ИВ Будды ИВО | W79: 13749 | X79: 181. ИВАС ИВО ИВ → Синтез ВЦРМ Человечности ИВ Теурга ИВО | Y79: 13493 | Z79: 181. ИВАС ИВО ИВ → Синтез ВЦРМ Человечности ИВ Творца ИВО | AA79: 13237 | AB79: 181. ИВАС ИВО ИВ → Синтез ВЦРМ Человечности ИВ Человека ИВО ИВО | AC79: 12981 | AD79: 181. ИВАС ИВО ИВ → Синтез ВЦРМ Человечности ИВ Человека ВЦРМ ИВО | AE79: 12725 | AF79: 181. ИВАС ИВО ИВ → Синтез ВЦРМ Человечности ИВ Человека Мг ФаИВО | AG79: 12469 | AH79: 181. ИВАС ИВО ИВ → Синтез ВЦРМ Человечности ИВ Человека Планеты Земля ИВО
C80: 16308 | D80: 180. ИВАС ИВО Юстас Сивилла → Синтез Служения ИВО ИВ Синтез ВЦРМ Метагалактический Синтез Человека ИВО | E80: 16052 | F80: 180. ИВАС ИВО ИВ → Синтез ВЦРМ Служения ИВ Аватара ИВО | G80: 15796 | H80: 180. ИВАС ИВО ИВ → Синтез ВЦРМ Служения ИВ Владыки ИВО | I80: 15540 | J80: 180. ИВАС ИВО ИВ → Синтез ВЦРМ Служения ИВ Учителя ИВО | K80: 15284 | L80: 180. ИВАС ИВО ИВ → Синтез ВЦРМ Служения ИВ Ипостаси ИВО | M80: 15028 | N80: 180. ИВАС ИВО ИВ → Синтез ВЦРМ Служения ИВ Служащего ИВО | O80: 14772 | P80: 180. ИВАС ИВО ИВ → Синтез ВЦРМ Служения ИВ Посвященного ИВО | Q80: 14516 | R80: 180. ИВАС ИВО ИВ → Синтез ВЦРМ Служения ИВ Майтрейи ИВО | S80: 14260 | T80: 180. ИВАС ИВО ИВ → Синтез ВЦРМ Служения ИВ Христа ИВО | U80: 14004 | V80: 180. ИВАС ИВО ИВ → Синтез ВЦРМ Служения ИВ Будды ИВО | W80: 13748 | X80: 180. ИВАС ИВО ИВ → Синтез ВЦРМ Служения ИВ Теурга ИВО | Y80: 13492 | Z80: 180. ИВАС ИВО ИВ → Синтез ВЦРМ Служения ИВ Творца ИВО | AA80: 13236 | AB80: 180. ИВАС ИВО ИВ → Синтез ВЦРМ Служения ИВ Человека ИВО ИВО | AC80: 12980 | AD80: 180. ИВАС ИВО ИВ → Синтез ВЦРМ Служения ИВ Человека ВЦРМ ИВО | AE80: 12724 | AF80: 180. ИВАС ИВО ИВ → Синтез ВЦРМ Служения ИВ Человека Мг ФаИВО | AG80: 12468 | AH80: 180. ИВАС ИВО ИВ → Синтез ВЦРМ Служения ИВ Человека Планеты Земля ИВО
C81: 16307 | D81: 179. ИВАС ИВО Александр Тамила → Синтез Вершения ИВО ИВ Синтез ВЦРМ ИВ Реальности Синтезности Человека ИВО | E81: 16051 | F81: 179. ИВАС ИВО ИВ → Синтез ВЦРМ Вершения ИВ Аватара ИВО | G81: 15795 | H81: 179. ИВАС ИВО ИВ → Синтез ВЦРМ Вершения ИВ Владыки ИВО | I81: 15539 | J81: 179. ИВАС ИВО ИВ → Синтез ВЦРМ Вершения ИВ Учителя ИВО | K81: 15283 | L81: 179. ИВАС ИВО ИВ → Синтез ВЦРМ Вершения ИВ Ипостаси ИВО | M81: 15027 | N81: 179. ИВАС ИВО ИВ → Синтез ВЦРМ Вершения ИВ Служащего ИВО | O81: 14771 | P81: 179. ИВАС ИВО ИВ → Синтез ВЦРМ Вершения ИВ Посвященного ИВО | Q81: 14515 | R81: 179. ИВАС ИВО ИВ → Синтез ВЦРМ Вершения ИВ Майтрейи ИВО | S81: 14259 | T81: 179. ИВАС ИВО ИВ → Синтез ВЦРМ Вершения ИВ Христа ИВО | U81: 14003 | V81: 179. ИВАС ИВО ИВ → Синтез ВЦРМ Вершения ИВ Будды ИВО | W81: 13747 | X81: 179. ИВАС ИВО ИВ → Синтез ВЦРМ Вершения ИВ Теурга ИВО | Y81: 13491 | Z81: 179. ИВАС ИВО ИВ → Синтез ВЦРМ Вершения ИВ Творца ИВО | AA81: 13235 | AB81: 179. ИВАС ИВО ИВ → Синтез ВЦРМ Вершения ИВ Человека ИВО ИВО | AC81: 12979 | AD81: 179. ИВАС ИВО ИВ → Синтез ВЦРМ Вершения ИВ Человека ВЦРМ ИВО | AE81: 12723 | AF81: 179. ИВАС ИВО ИВ → Синтез ВЦРМ Вершения ИВ Человека Мг ФаИВО | AG81: 12467 | AH81: 179. ИВАС ИВО ИВ → Синтез ВЦРМ Вершения ИВ Человека Планеты Земля ИВО
C82: 16306 | D82: 178. ИВАС ИВО Яромир Ника → Синтез Практики ИВО ИВ Синтез ВЦРМ Вышестоящей Реальности Творения Человека ИВО | E82: 16050 | F82: 178. ИВАС ИВО ИВ → Синтез ВЦРМ Практики ИВ Аватара ИВО | G82: 15794 | H82: 178. ИВАС ИВО ИВ → Синтез ВЦРМ Практики ИВ Владыки ИВО | I82: 15538 | J82: 178. ИВАС ИВО ИВ → Синтез ВЦРМ Практики ИВ Учителя ИВО | K82: 15282 | L82: 178. ИВАС ИВО ИВ → Синтез ВЦРМ Практики ИВ Ипостаси ИВО | M82: 15026 | N82: 178. ИВАС ИВО ИВ → Синтез ВЦРМ Практики ИВ Служащего ИВО | O82: 14770 | P82: 178. ИВАС ИВО ИВ → Синтез ВЦРМ Практики ИВ Посвященного ИВО | Q82: 14514 | R82: 178. ИВАС ИВО ИВ → Синтез ВЦРМ Практики ИВ Майтрейи ИВО | S82: 14258 | T82: 178. ИВАС ИВО ИВ → Синтез ВЦРМ Практики ИВ Христа ИВО | U82: 14002 | V82: 178. ИВАС ИВО ИВ → Синтез ВЦРМ Практики ИВ Будды ИВО | W82: 13746 | X82: 178. ИВАС ИВО ИВ → Синтез ВЦРМ Практики ИВ Теурга ИВО | Y82: 13490 | Z82: 178. ИВАС ИВО ИВ → Синтез ВЦРМ Практики ИВ Творца ИВО | AA82: 13234 | AB82: 178. ИВАС ИВО ИВ → Синтез ВЦРМ Практики ИВ Человека ИВО ИВО | AC82: 12978 | AD82: 178. ИВАС ИВО ИВ → Синтез ВЦРМ Практики ИВ Человека ВЦРМ ИВО | AE82: 12722 | AF82: 178. ИВАС ИВО ИВ → Синтез ВЦРМ Практики ИВ Человека Мг ФаИВО | AG82: 12466 | AH82: 178. ИВАС ИВО ИВ → Синтез ВЦРМ Практики ИВ Человека Планеты Земля ИВО
C83: 16305 | D83: 177. ИВАС ИВО Серапис Велетте → Синтез Могущества ИВО ИВ Синтез ВЦРМ Реальности Плана Творения Человека ИВО | E83: 16049 | F83: 177. ИВАС ИВО ИВ → Синтез ВЦРМ Могущества ИВ Аватара ИВО | G83: 15793 | H83: 177. ИВАС ИВО ИВ → Синтез ВЦРМ Могущества ИВ Владыки ИВО | I83: 15537 | J83: 177. ИВАС ИВО ИВ → Синтез ВЦРМ Могущества ИВ Учителя ИВО | K83: 15281 | L83: 177. ИВАС ИВО ИВ → Синтез ВЦРМ Могущества ИВ Ипостаси ИВО | M83: 15025 | N83: 177. ИВАС ИВО ИВ → Синтез ВЦРМ Могущества ИВ Служащего ИВО | O83: 14769 | P83: 177. ИВАС ИВО ИВ → Синтез ВЦРМ Могущества ИВ Посвященного ИВО | Q83: 14513 | R83: 177. ИВАС ИВО ИВ → Синтез ВЦРМ Могущества ИВ Майтрейи ИВО | S83: 14257 | T83: 177. ИВАС ИВО ИВ → Синтез ВЦРМ Могущества ИВ Христа ИВО | U83: 14001 | V83: 177. ИВАС ИВО ИВ → Синтез ВЦРМ Могущества ИВ Будды ИВО | W83: 13745 | X83: 177. ИВАС ИВО ИВ → Синтез ВЦРМ Могущества ИВ Теурга ИВО | Y83: 13489 | Z83: 177. ИВАС ИВО ИВ → Синтез ВЦРМ Могущества ИВ Творца ИВО | AA83: 13233 | AB83: 177. ИВАС ИВО ИВ → Синтез ВЦРМ Могущества ИВ Человека ИВО ИВО | AC83: 12977 | AD83: 177. ИВАС ИВО ИВ → Синтез ВЦРМ Могущества ИВ Человека ВЦРМ ИВО | AE83: 12721 | AF83: 177. ИВАС ИВО ИВ → Синтез ВЦРМ Могущества ИВ Человека Мг ФаИВО | AG83: 12465 | AH83: 177. ИВАС ИВО ИВ → Синтез ВЦРМ Могущества ИВ Человека Планеты Земля ИВО
C84: 16304 | D84: 176. ИВАС ИВО Эдуард Эмилия → Синтез ИВ Дома Аватара ИВО ИВ Дом Аватара ИВО | E84: 16048 | F84: 176. ИВАС ИВО ИВ → Синтез ВЦРМ ИВ Дома Аватара ИВО ИВ Аватара ИВО | G84: 15792 | H84: 176. ИВАС ИВО ИВ → Синтез ВЦРМ ИВ Дома Аватара ИВО ИВ Владыки ИВО | I84: 15536 | J84: 176. ИВАС ИВО ИВ → Синтез ВЦРМ ИВ Дома Аватара ИВО ИВ Учителя ИВО | K84: 15280 | L84: 176. ИВАС ИВО ИВ → Синтез ВЦРМ ИВ Дома Аватара ИВО ИВ Ипостаси ИВО | M84: 15024 | N84: 176. ИВАС ИВО ИВ → Синтез ВЦРМ ИВ Дома Аватара ИВО ИВ Служащего ИВО | O84: 14768 | P84: 176. ИВАС ИВО ИВ → Синтез ВЦРМ ИВ Дома Аватара ИВО ИВ Посвященного ИВО | Q84: 14512 | R84: 176. ИВАС ИВО ИВ → Синтез ВЦРМ ИВ Дома Аватара ИВО ИВ Майтрейи ИВО | S84: 14256 | T84: 176. ИВАС ИВО ИВ → Синтез ВЦРМ ИВ Дома Аватара ИВО ИВ Христа ИВО | U84: 14000 | V84: 176. ИВАС ИВО ИВ → Синтез ВЦРМ ИВ Дома Аватара ИВО ИВ Будды ИВО | W84: 13744 | X84: 176. ИВАС ИВО ИВ → Синтез ВЦРМ ИВ Дома Аватара ИВО ИВ Теурга ИВО | Y84: 13488 | Z84: 176. ИВАС ИВО ИВ → Синтез ВЦРМ ИВ Дома Аватара ИВО ИВ Творца ИВО | AA84: 13232 | AB84: 176. ИВАС ИВО ИВ → Синтез ВЦРМ ИВ Дома Аватара ИВО ИВ Человека ИВО ИВО | AC84: 12976 | AD84: 176. ИВАС ИВО ИВ → Синтез ВЦРМ ИВ Дома Аватара ИВО ИВ Человека ВЦРМ ИВО | AE84: 12720 | AF84: 176. ИВАС ИВО ИВ → Синтез ВЦРМ ИВ Дома Аватара ИВО ИВ Человека Мг ФаИВО | AG84: 12464 | AH84: 176. ИВАС ИВО ИВ → Синтез ВЦРМ ИВ Дома Аватара ИВО ИВ Человека Планеты Земля ИВО
C85: 16303 | D85: 175. ИВАС ИВО Фадей Елена → Синтез Иерархизации ИВО ИВ Синтез ВЦРМ Иерархизации ИВО | E85: 16047 | F85: 175. ИВАС ИВО ИВ → Синтез ВЦРМ Иерархизации ИВ Аватара ИВО | G85: 15791 | H85: 175. ИВАС ИВО ИВ → Синтез ВЦРМ Иерархизации ИВ Владыки ИВО | I85: 15535 | J85: 175. ИВАС ИВО ИВ → Синтез ВЦРМ Иерархизации ИВ Учителя ИВО | K85: 15279 | L85: 175. ИВАС ИВО ИВ → Синтез ВЦРМ Иерархизации ИВ Ипостаси ИВО | M85: 15023 | N85: 175. ИВАС ИВО ИВ → Синтез ВЦРМ Иерархизации ИВ Служащего ИВО | O85: 14767 | P85: 175. ИВАС ИВО ИВ → Синтез ВЦРМ Иерархизации ИВ Посвященного ИВО | Q85: 14511 | R85: 175. ИВАС ИВО ИВ → Синтез ВЦРМ Иерархизации ИВ Майтрейи ИВО | S85: 14255 | T85: 175. ИВАС ИВО ИВ → Синтез ВЦРМ Иерархизации ИВ Христа ИВО | U85: 13999 | V85: 175. ИВАС ИВО ИВ → Синтез ВЦРМ Иерархизации ИВ Будды ИВО | W85: 13743 | X85: 175. ИВАС ИВО ИВ → Синтез ВЦРМ Иерархизации ИВ Теурга ИВО | Y85: 13487 | Z85: 175. ИВАС ИВО ИВ → Синтез ВЦРМ Иерархизации ИВ Творца ИВО | AA85: 13231 | AB85: 175. ИВАС ИВО ИВ → Синтез ВЦРМ Иерархизации ИВ Человека ИВО ИВО | AC85: 12975 | AD85: 175. ИВАС ИВО ИВ → Синтез ВЦРМ Иерархизации ИВ Человека ВЦРМ ИВО | AE85: 12719 | AF85: 175. ИВАС ИВО ИВ → Синтез ВЦРМ Иерархизации ИВ Человека Мг ФаИВО | AG85: 12463 | AH85: 175. ИВАС ИВО ИВ → Синтез ВЦРМ Иерархизации ИВ Человека Планеты Земля ИВО
C86: 16302 | D86: 174. ИВАС ИВО Серафим Валерия → Синтез Полномочий Совершенств ИВО ИВ Синтез ВЦРМ Полномочий Совершенств ИВО | E86: 16046 | F86: 174. ИВАС ИВО ИВ → Синтез ВЦРМ Полномочий Совершенств ИВ Аватара ИВО | G86: 15790 | H86: 174. ИВАС ИВО ИВ → Синтез ВЦРМ Полномочий Совершенств ИВ Владыки ИВО | I86: 15534 | J86: 174. ИВАС ИВО ИВ → Синтез ВЦРМ Полномочий Совершенств ИВ Учителя ИВО | K86: 15278 | L86: 174. ИВАС ИВО ИВ → Синтез ВЦРМ Полномочий Совершенств ИВ Ипостаси ИВО | M86: 15022 | N86: 174. ИВАС ИВО ИВ → Синтез ВЦРМ Полномочий Совершенств ИВ Служащего ИВО | O86: 14766 | P86: 174. ИВАС ИВО ИВ → Синтез ВЦРМ Полномочий Совершенств ИВ Посвященного ИВО | Q86: 14510 | R86: 174. ИВАС ИВО ИВ → Синтез ВЦРМ Полномочий Совершенств ИВ Майтрейи ИВО | S86: 14254 | T86: 174. ИВАС ИВО ИВ → Синтез ВЦРМ Полномочий Совершенств ИВ Христа ИВО | U86: 13998 | V86: 174. ИВАС ИВО ИВ → Синтез ВЦРМ Полномочий Совершенств ИВ Будды ИВО | W86: 13742 | X86: 174. ИВАС ИВО ИВ → Синтез ВЦРМ Полномочий Совершенств ИВ Теурга ИВО | Y86: 13486 | Z86: 174. ИВАС ИВО ИВ → Синтез ВЦРМ Полномочий Совершенств ИВ Творца ИВО | AA86: 13230 | AB86: 174. ИВАС ИВО ИВ → Синтез ВЦРМ Полномочий Совершенств ИВ Человека ИВО ИВО | AC86: 12974 | AD86: 174. ИВАС ИВО ИВ → Синтез ВЦРМ Полномочий Совершенств ИВ Человека ВЦРМ ИВО | AE86: 12718 | AF86: 174. ИВАС ИВО ИВ → Синтез ВЦРМ Полномочий Совершенств ИВ Человека Мг ФаИВО | AG86: 12462 | AH86: 174. ИВАС ИВО ИВ → Синтез ВЦРМ Полномочий Совершенств ИВ Человека Планеты Земля ИВО
C87: 16301 | D87: 173. ИВАС ИВО Святослав Олеся → Синтез Синтезностей ИВО ИВ Синтез ВЦРМ Синтезностей ИВО | E87: 16045 | F87: 173. ИВАС ИВО ИВ → Синтез ВЦРМ Синтезностей ИВ Аватара ИВО | G87: 15789 | H87: 173. ИВАС ИВО ИВ → Синтез ВЦРМ Синтезностей ИВ Владыки ИВО | I87: 15533 | J87: 173. ИВАС ИВО ИВ → Синтез ВЦРМ Синтезностей ИВ Учителя ИВО | K87: 15277 | L87: 173. ИВАС ИВО ИВ → Синтез ВЦРМ Синтезностей ИВ Ипостаси ИВО | M87: 15021 | N87: 173. ИВАС ИВО ИВ → Синтез ВЦРМ Синтезностей ИВ Служащего ИВО | O87: 14765 | P87: 173. ИВАС ИВО ИВ → Синтез ВЦРМ Синтезностей ИВ Посвященного ИВО | Q87: 14509 | R87: 173. ИВАС ИВО ИВ → Синтез ВЦРМ Синтезностей ИВ Майтрейи ИВО | S87: 14253 | T87: 173. ИВАС ИВО ИВ → Синтез ВЦРМ Синтезностей ИВ Христа ИВО | U87: 13997 | V87: 173. ИВАС ИВО ИВ → Синтез ВЦРМ Синтезностей ИВ Будды ИВО | W87: 13741 | X87: 173. ИВАС ИВО ИВ → Синтез ВЦРМ Синтезностей ИВ Теурга ИВО | Y87: 13485 | Z87: 173. ИВАС ИВО ИВ → Синтез ВЦРМ Синтезностей ИВ Творца ИВО | AA87: 13229 | AB87: 173. ИВАС ИВО ИВ → Синтез ВЦРМ Синтезностей ИВ Человека ИВО ИВО | AC87: 12973 | AD87: 173. ИВАС ИВО ИВ → Синтез ВЦРМ Синтезностей ИВ Человека ВЦРМ ИВО | AE87: 12717 | AF87: 173. ИВАС ИВО ИВ → Синтез ВЦРМ Синтезностей ИВ Человека Мг ФаИВО | AG87: 12461 | AH87: 173. ИВАС ИВО ИВ → Синтез ВЦРМ Синтезностей ИВ Человека Планеты Земля ИВО
C88: 16300 | D88: 172. ИВАС ИВО Эоан Антуанэтта → Синтез Творящего Синтеза ИВО ИВ Синтез ВЦРМ Творящего Синтеза ИВО | E88: 16044 | F88: 172. ИВАС ИВО ИВ → Синтез ВЦРМ Степеней ИВ Аватара ИВО | G88: 15788 | H88: 172. ИВАС ИВО ИВ → Синтез ВЦРМ Степеней ИВ Владыки ИВО | I88: 15532 | J88: 172. ИВАС ИВО ИВ → Синтез ВЦРМ Степеней ИВ Учителя ИВО | K88: 15276 | L88: 172. ИВАС ИВО ИВ → Синтез ВЦРМ Степеней ИВ Ипостаси ИВО | M88: 15020 | N88: 172. ИВАС ИВО ИВ → Синтез ВЦРМ Степеней ИВ Служащего ИВО | O88: 14764 | P88: 172. ИВАС ИВО ИВ → Синтез ВЦРМ Степеней ИВ Посвященного ИВО | Q88: 14508 | R88: 172. ИВАС ИВО ИВ → Синтез ВЦРМ Степеней ИВ Майтрейи ИВО | S88: 14252 | T88: 172. ИВАС ИВО ИВ → Синтез ВЦРМ Степеней ИВ Христа ИВО | U88: 13996 | V88: 172. ИВАС ИВО ИВ → Синтез ВЦРМ Степеней ИВ Будды ИВО | W88: 13740 | X88: 172. ИВАС ИВО ИВ → Синтез ВЦРМ Степеней ИВ Теурга ИВО | Y88: 13484 | Z88: 172. ИВАС ИВО ИВ → Синтез ВЦРМ Степеней ИВ Творца ИВО | AA88: 13228 | AB88: 172. ИВАС ИВО ИВ → Синтез ВЦРМ Степеней ИВ Человека ИВО ИВО | AC88: 12972 | AD88: 172. ИВАС ИВО ИВ → Синтез ВЦРМ Степеней ИВ Человека ВЦРМ ИВО | AE88: 12716 | AF88: 172. ИВАС ИВО ИВ → Синтез ВЦРМ Степеней ИВ Человека Мг ФаИВО | AG88: 12460 | AH88: 172. ИВАС ИВО ИВ → Синтез ВЦРМ Степеней ИВ Человека Планеты Земля ИВО
C89: 16299 | D89: 171. ИВАС ИВО Сергей Юлиана → Синтез Статусов ИВО ИВ Синтез ВЦРМ Статусов ИВО | E89: 16043 | F89: 171. ИВАС ИВО ИВ → Синтез ВЦРМ Статусов ИВ Аватара ИВО | G89: 15787 | H89: 171. ИВАС ИВО ИВ → Синтез ВЦРМ Статусов ИВ Владыки ИВО | I89: 15531 | J89: 171. ИВАС ИВО ИВ → Синтез ВЦРМ Статусов ИВ Учителя ИВО | K89: 15275 | L89: 171. ИВАС ИВО ИВ → Синтез ВЦРМ Статусов ИВ Ипостаси ИВО | M89: 15019 | N89: 171. ИВАС ИВО ИВ → Синтез ВЦРМ Статусов ИВ Служащего ИВО | O89: 14763 | P89: 171. ИВАС ИВО ИВ → Синтез ВЦРМ Статусов ИВ Посвященного ИВО | Q89: 14507 | R89: 171. ИВАС ИВО ИВ → Синтез ВЦРМ Статусов ИВ Майтрейи ИВО | S89: 14251 | T89: 171. ИВАС ИВО ИВ → Синтез ВЦРМ Статусов ИВ Христа ИВО | U89: 13995 | V89: 171. ИВАС ИВО ИВ → Синтез ВЦРМ Статусов ИВ Будды ИВО | W89: 13739 | X89: 171. ИВАС ИВО ИВ → Синтез ВЦРМ Статусов ИВ Теурга ИВО | Y89: 13483 | Z89: 171. ИВАС ИВО ИВ → Синтез ВЦРМ Статусов ИВ Творца ИВО | AA89: 13227 | AB89: 171. ИВАС ИВО ИВ → Синтез ВЦРМ Статусов ИВ Человека ИВО ИВО | AC89: 12971 | AD89: 171. ИВАС ИВО ИВ → Синтез ВЦРМ Статусов ИВ Человека ВЦРМ ИВО | AE89: 12715 | AF89: 171. ИВАС ИВО ИВ → Синтез ВЦРМ Статусов ИВ Человека Мг ФаИВО | AG89: 12459 | AH89: 171. ИВАС ИВО ИВ → Синтез ВЦРМ Статусов ИВ Человека Планеты Земля ИВО
C90: 16298 | D90: 170. ИВАС ИВО Сулейман Синтия → Синтез Посвящений ИВО ИВ Синтез ВЦРМ Посвящений ИВО | E90: 16042 | F90: 170. ИВАС ИВО ИВ → Синтез ВЦРМ Посвящений ИВ Аватара ИВО | G90: 15786 | H90: 170. ИВАС ИВО ИВ → Синтез ВЦРМ Посвящений ИВ Владыки ИВО | I90: 15530 | J90: 170. ИВАС ИВО ИВ → Синтез ВЦРМ Посвящений ИВ Учителя ИВО | K90: 15274 | L90: 170. ИВАС ИВО ИВ → Синтез ВЦРМ Посвящений ИВ Ипостаси ИВО | M90: 15018 | N90: 170. ИВАС ИВО ИВ → Синтез ВЦРМ Посвящений ИВ Служащего ИВО | O90: 14762 | P90: 170. ИВАС ИВО ИВ → Синтез ВЦРМ Посвящений ИВ Посвященного ИВО | Q90: 14506 | R90: 170. ИВАС ИВО ИВ → Синтез ВЦРМ Посвящений ИВ Майтрейи ИВО | S90: 14250 | T90: 170. ИВАС ИВО ИВ → Синтез ВЦРМ Посвящений ИВ Христа ИВО | U90: 13994 | V90: 170. ИВАС ИВО ИВ → Синтез ВЦРМ Посвящений ИВ Будды ИВО | W90: 13738 | X90: 170. ИВАС ИВО ИВ → Синтез ВЦРМ Посвящений ИВ Теурга ИВО | Y90: 13482 | Z90: 170. ИВАС ИВО ИВ → Синтез ВЦРМ Посвящений ИВ Творца ИВО | AA90: 13226 | AB90: 170. ИВАС ИВО ИВ → Синтез ВЦРМ Посвящений ИВ Человека ИВО ИВО | AC90: 12970 | AD90: 170. ИВАС ИВО ИВ → Синтез ВЦРМ Посвящений ИВ Человека ВЦРМ ИВО | AE90: 12714 | AF90: 170. ИВАС ИВО ИВ → Синтез ВЦРМ Посвящений ИВ Человека Мг ФаИВО | AG90: 12458 | AH90: 170. ИВАС ИВО ИВ → Синтез ВЦРМ Посвящений ИВ Человека Планеты Земля ИВО
C91: 16297 | D91: 169. ИВАС ИВО Себастьян Виктория → Синтез Частей ИВО ИВ Синтез ВЦРМ Частей ИВО | E91: 16041 | F91: 169. ИВАС ИВО ИВ → Синтез ВЦРМ Частей ИВ Аватара ИВО | G91: 15785 | H91: 169. ИВАС ИВО ИВ → Синтез ВЦРМ Частей ИВ Владыки ИВО | I91: 15529 | J91: 169. ИВАС ИВО ИВ → Синтез ВЦРМ Частей ИВ Учителя ИВО | K91: 15273 | L91: 169. ИВАС ИВО ИВ → Синтез ВЦРМ Частей ИВ Ипостаси ИВО | M91: 15017 | N91: 169. ИВАС ИВО ИВ → Синтез ВЦРМ Частей ИВ Служащего ИВО | O91: 14761 | P91: 169. ИВАС ИВО ИВ → Синтез ВЦРМ Частей ИВ Посвященного ИВО | Q91: 14505 | R91: 169. ИВАС ИВО ИВ → Синтез ВЦРМ Частей ИВ Майтрейи ИВО | S91: 14249 | T91: 169. ИВАС ИВО ИВ → Синтез ВЦРМ Частей ИВ Христа ИВО | U91: 13993 | V91: 169. ИВАС ИВО ИВ → Синтез ВЦРМ Частей ИВ Будды ИВО | W91: 13737 | X91: 169. ИВАС ИВО ИВ → Синтез ВЦРМ Частей ИВ Теурга ИВО | Y91: 13481 | Z91: 169. ИВАС ИВО ИВ → Синтез ВЦРМ Частей ИВ Творца ИВО | AA91: 13225 | AB91: 169. ИВАС ИВО ИВ → Синтез ВЦРМ Частей ИВ Человека ИВО ИВО | AC91: 12969 | AD91: 169. ИВАС ИВО ИВ → Синтез ВЦРМ Частей ИВ Человека ВЦРМ ИВО | AE91: 12713 | AF91: 169. ИВАС ИВО ИВ → Синтез ВЦРМ Частей ИВ Человека Мг ФаИВО | AG91: 12457 | AH91: 169. ИВАС ИВО ИВ → Синтез ВЦРМ Частей ИВ Человека Планеты Земля ИВО
C92: 16296 | D92: 168. ИВАС ИВО Теодор Дарида → Синтез Систем Частей ИВО ИВ Синтез ВЦРМ Систем Частей ИВО | E92: 16040 | F92: 168. ИВАС ИВО ИВ → Синтез ВЦРМ Систем Частей ИВ Аватара ИВО | G92: 15784 | H92: 168. ИВАС ИВО ИВ → Синтез ВЦРМ Систем Частей ИВ Владыки ИВО | I92: 15528 | J92: 168. ИВАС ИВО ИВ → Синтез ВЦРМ Систем Частей ИВ Учителя ИВО | K92: 15272 | L92: 168. ИВАС ИВО ИВ → Синтез ВЦРМ Систем Частей ИВ Ипостаси ИВО | M92: 15016 | N92: 168. ИВАС ИВО ИВ → Синтез ВЦРМ Систем Частей ИВ Служащего ИВО | O92: 14760 | P92: 168. ИВАС ИВО ИВ → Синтез ВЦРМ Систем Частей ИВ Посвященного ИВО | Q92: 14504 | R92: 168. ИВАС ИВО ИВ → Синтез ВЦРМ Систем Частей ИВ Майтрейи ИВО | S92: 14248 | T92: 168. ИВАС ИВО ИВ → Синтез ВЦРМ Систем Частей ИВ Христа ИВО | U92: 13992 | V92: 168. ИВАС ИВО ИВ → Синтез ВЦРМ Систем Частей ИВ Будды ИВО | W92: 13736 | X92: 168. ИВАС ИВО ИВ → Синтез ВЦРМ Систем Частей ИВ Теурга ИВО | Y92: 13480 | Z92: 168. ИВАС ИВО ИВ → Синтез ВЦРМ Систем Частей ИВ Творца ИВО | AA92: 13224 | AB92: 168. ИВАС ИВО ИВ → Синтез ВЦРМ Систем Частей ИВ Человека ИВО ИВО | AC92: 12968 | AD92: 168. ИВАС ИВО ИВ → Синтез ВЦРМ Систем Частей ИВ Человека ВЦРМ ИВО | AE92: 12712 | AF92: 168. ИВАС ИВО ИВ → Синтез ВЦРМ Систем Частей ИВ Человека Мг ФаИВО | AG92: 12456 | AH92: 168. ИВАС ИВО ИВ → Синтез ВЦРМ Систем Частей ИВ Человека Планеты Земля ИВО
C93: 16295 | D93: 167. ИВАС ИВО Антей Алина → Синтез Аппаратов Систем Частей ИВО ИВ Синтез ВЦРМ Аппаратов Систем Частей ИВО | E93: 16039 | F93: 167. ИВАС ИВО ИВ → Синтез ВЦРМ Аппаратов Систем Частей ИВ Аватара ИВО | G93: 15783 | H93: 167. ИВАС ИВО ИВ → Синтез ВЦРМ Аппаратов Систем Частей ИВ Владыки ИВО | I93: 15527 | J93: 167. ИВАС ИВО ИВ → Синтез ВЦРМ Аппаратов Систем Частей ИВ Учителя ИВО | K93: 15271 | L93: 167. ИВАС ИВО ИВ → Синтез ВЦРМ Аппаратов Систем Частей ИВ Ипостаси ИВО | M93: 15015 | N93: 167. ИВАС ИВО ИВ → Синтез ВЦРМ Аппаратов Систем Частей ИВ Служащего ИВО | O93: 14759 | P93: 167. ИВАС ИВО ИВ → Синтез ВЦРМ Аппаратов Систем Частей ИВ Посвященного ИВО | Q93: 14503 | R93: 167. ИВАС ИВО ИВ → Синтез ВЦРМ Аппаратов Систем Частей ИВ Майтрейи ИВО | S93: 14247 | T93: 167. ИВАС ИВО ИВ → Синтез ВЦРМ Аппаратов Систем Частей ИВ Христа ИВО | U93: 13991 | V93: 167. ИВАС ИВО ИВ → Синтез ВЦРМ Аппаратов Систем Частей ИВ Будды ИВО | W93: 13735 | X93: 167. ИВАС ИВО ИВ → Синтез ВЦРМ Аппаратов Систем Частей ИВ Теурга ИВО | Y93: 13479 | Z93: 167. ИВАС ИВО ИВ → Синтез ВЦРМ Аппаратов Систем Частей ИВ Творца ИВО | AA93: 13223 | AB93: 167. ИВАС ИВО ИВ → Синтез ВЦРМ Аппаратов Систем Частей ИВ Человека ИВО ИВО | AC93: 12967 | AD93: 167. ИВАС ИВО ИВ → Синтез ВЦРМ Аппаратов Систем Частей ИВ Человека ВЦРМ ИВО | AE93: 12711 | AF93: 167. ИВАС ИВО ИВ → Синтез ВЦРМ Аппаратов Систем Частей ИВ Человека Мг ФаИВО | AG93: 12455 | AH93: 167. ИВАС ИВО ИВ → Синтез ВЦРМ Аппаратов Систем Частей ИВ Человека Планеты Земля ИВО
C94: 16294 | D94: 166. ИВАС ИВО Наум Софья → Синтез Частностей ИВО ИВ Синтез ВЦРМ Частностей ИВО | E94: 16038 | F94: 166. ИВАС ИВО ИВ → Синтез ВЦРМ Частностей ИВ Аватара ИВО | G94: 15782 | H94: 166. ИВАС ИВО ИВ → Синтез ВЦРМ Частностей ИВ Владыки ИВО | I94: 15526 | J94: 166. ИВАС ИВО ИВ → Синтез ВЦРМ Частностей ИВ Учителя ИВО | K94: 15270 | L94: 166. ИВАС ИВО ИВ → Синтез ВЦРМ Частностей ИВ Ипостаси ИВО | M94: 15014 | N94: 166. ИВАС ИВО ИВ → Синтез ВЦРМ Частностей ИВ Служащего ИВО | O94: 14758 | P94: 166. ИВАС ИВО ИВ → Синтез ВЦРМ Частностей ИВ Посвященного ИВО | Q94: 14502 | R94: 166. ИВАС ИВО ИВ → Синтез ВЦРМ Частностей ИВ Майтрейи ИВО | S94: 14246 | T94: 166. ИВАС ИВО ИВ → Синтез ВЦРМ Частностей ИВ Христа ИВО | U94: 13990 | V94: 166. ИВАС ИВО ИВ → Синтез ВЦРМ Частностей ИВ Будды ИВО | W94: 13734 | X94: 166. ИВАС ИВО ИВ → Синтез ВЦРМ Частностей ИВ Теурга ИВО | Y94: 13478 | Z94: 166. ИВАС ИВО ИВ → Синтез ВЦРМ Частностей ИВ Творца ИВО | AA94: 13222 | AB94: 166. ИВАС ИВО ИВ → Синтез ВЦРМ Частностей ИВ Человека ИВО ИВО | AC94: 12966 | AD94: 166. ИВАС ИВО ИВ → Синтез ВЦРМ Частностей ИВ Человека ВЦРМ ИВО | AE94: 12710 | AF94: 166. ИВАС ИВО ИВ → Синтез ВЦРМ Частностей ИВ Человека Мг ФаИВО | AG94: 12454 | AH94: 166. ИВАС ИВО ИВ → Синтез ВЦРМ Частностей ИВ Человека Планеты Земля ИВО
C95: 16293 | D95: 165. ИВАС ИВО Велимир Агафья → Синтез Подготовок ИВО ИВ Синтез ВЦРМ Подготовок ИВО | E95: 16037 | F95: 165. ИВАС ИВО ИВ → Синтез ВЦРМ Подготовок ИВ Аватара ИВО | G95: 15781 | H95: 165. ИВАС ИВО ИВ → Синтез ВЦРМ Подготовок ИВ Владыки ИВО | I95: 15525 | J95: 165. ИВАС ИВО ИВ → Синтез ВЦРМ Подготовок ИВ Учителя ИВО | K95: 15269 | L95: 165. ИВАС ИВО ИВ → Синтез ВЦРМ Подготовок ИВ Ипостаси ИВО | M95: 15013 | N95: 165. ИВАС ИВО ИВ → Синтез ВЦРМ Подготовок ИВ Служащего ИВО | O95: 14757 | P95: 165. ИВАС ИВО ИВ → Синтез ВЦРМ Подготовок ИВ Посвященного ИВО | Q95: 14501 | R95: 165. ИВАС ИВО ИВ → Синтез ВЦРМ Подготовок ИВ Майтрейи ИВО | S95: 14245 | T95: 165. ИВАС ИВО ИВ → Синтез ВЦРМ Подготовок ИВ Христа ИВО | U95: 13989 | V95: 165. ИВАС ИВО ИВ → Синтез ВЦРМ Подготовок ИВ Будды ИВО | W95: 13733 | X95: 165. ИВАС ИВО ИВ → Синтез ВЦРМ Подготовок ИВ Теурга ИВО | Y95: 13477 | Z95: 165. ИВАС ИВО ИВ → Синтез ВЦРМ Подготовок ИВ Творца ИВО | AA95: 13221 | AB95: 165. ИВАС ИВО ИВ → Синтез ВЦРМ Подготовок ИВ Человека ИВО ИВО | AC95: 12965 | AD95: 165. ИВАС ИВО ИВ → Синтез ВЦРМ Подготовок ИВ Человека ВЦРМ ИВО | AE95: 12709 | AF95: 165. ИВАС ИВО ИВ → Синтез ВЦРМ Подготовок ИВ Человека Мг ФаИВО | AG95: 12453 | AH95: 165. ИВАС ИВО ИВ → Синтез ВЦРМ Подготовок ИВ Человека Планеты Земля ИВО
C96: 16292 | D96: 164. ИВАС ИВО Георг Дарья → Синтез Компетенций ИВО ИВ Синтез ВЦРМ Компетенций ИВО | E96: 16036 | F96: 164. ИВАС ИВО ИВ → Синтез ВЦРМ Компетенций ИВ Аватара ИВО | G96: 15780 | H96: 164. ИВАС ИВО ИВ → Синтез ВЦРМ Компетенций ИВ Владыки ИВО | I96: 15524 | J96: 164. ИВАС ИВО ИВ → Синтез ВЦРМ Компетенций ИВ Учителя ИВО | K96: 15268 | L96: 164. ИВАС ИВО ИВ → Синтез ВЦРМ Компетенций ИВ Ипостаси ИВО | M96: 15012 | N96: 164. ИВАС ИВО ИВ → Синтез ВЦРМ Компетенций ИВ Служащего ИВО | O96: 14756 | P96: 164. ИВАС ИВО ИВ → Синтез ВЦРМ Компетенций ИВ Посвященного ИВО | Q96: 14500 | R96: 164. ИВАС ИВО ИВ → Синтез ВЦРМ Компетенций ИВ Майтрейи ИВО | S96: 14244 | T96: 164. ИВАС ИВО ИВ → Синтез ВЦРМ Компетенций ИВ Христа ИВО | U96: 13988 | V96: 164. ИВАС ИВО ИВ → Синтез ВЦРМ Компетенций ИВ Будды ИВО | W96: 13732 | X96: 164. ИВАС ИВО ИВ → Синтез ВЦРМ Компетенций ИВ Теурга ИВО | Y96: 13476 | Z96: 164. ИВАС ИВО ИВ → Синтез ВЦРМ Компетенций ИВ Творца ИВО | AA96: 13220 | AB96: 164. ИВАС ИВО ИВ → Синтез ВЦРМ Компетенций ИВ Человека ИВО ИВО | AC96: 12964 | AD96: 164. ИВАС ИВО ИВ → Синтез ВЦРМ Компетенций ИВ Человека ВЦРМ ИВО | AE96: 12708 | AF96: 164. ИВАС ИВО ИВ → Синтез ВЦРМ Компетенций ИВ Человека Мг ФаИВО | AG96: 12452 | AH96: 164. ИВАС ИВО ИВ → Синтез ВЦРМ Компетенций ИВ Человека Планеты Земля ИВО
C97: 16291 | D97: 163. ИВАС ИВО Алексей Илана → Синтез Владений ИВО ИВ Синтез ВЦРМ Владений ИВО | E97: 16035 | F97: 163. ИВАС ИВО ИВ → Синтез ВЦРМ Владений ИВ Аватара ИВО | G97: 15779 | H97: 163. ИВАС ИВО ИВ → Синтез ВЦРМ Владений ИВ Владыки ИВО | I97: 15523 | J97: 163. ИВАС ИВО ИВ → Синтез ВЦРМ Владений ИВ Учителя ИВО | K97: 15267 | L97: 163. ИВАС ИВО ИВ → Синтез ВЦРМ Владений ИВ Ипостаси ИВО | M97: 15011 | N97: 163. ИВАС ИВО ИВ → Синтез ВЦРМ Владений ИВ Служащего ИВО | O97: 14755 | P97: 163. ИВАС ИВО ИВ → Синтез ВЦРМ Владений ИВ Посвященного ИВО | Q97: 14499 | R97: 163. ИВАС ИВО ИВ → Синтез ВЦРМ Владений ИВ Майтрейи ИВО | S97: 14243 | T97: 163. ИВАС ИВО ИВ → Синтез ВЦРМ Владений ИВ Христа ИВО | U97: 13987 | V97: 163. ИВАС ИВО ИВ → Синтез ВЦРМ Владений ИВ Будды ИВО | W97: 13731 | X97: 163. ИВАС ИВО ИВ → Синтез ВЦРМ Владений ИВ Теурга ИВО | Y97: 13475 | Z97: 163. ИВАС ИВО ИВ → Синтез ВЦРМ Владений ИВ Творца ИВО | AA97: 13219 | AB97: 163. ИВАС ИВО ИВ → Синтез ВЦРМ Владений ИВ Человека ИВО ИВО | AC97: 12963 | AD97: 163. ИВАС ИВО ИВ → Синтез ВЦРМ Владений ИВ Человека ВЦРМ ИВО | AE97: 12707 | AF97: 163. ИВАС ИВО ИВ → Синтез ВЦРМ Владений ИВ Человека Мг ФаИВО | AG97: 12451 | AH97: 163. ИВАС ИВО ИВ → Синтез ВЦРМ Владений ИВ Человека Планеты Земля ИВО
C98: 16290 | D98: 162. ИВАС ИВО Эмиль Яна → Синтез Неотчуждённости ИВО ИВ Синтез ВЦРМ Неотчуждённости ИВО | E98: 16034 | F98: 162. ИВАС ИВО ИВ → Синтез ВЦРМ Неотчуждённостей ИВ Аватара ИВО | G98: 15778 | H98: 162. ИВАС ИВО ИВ → Синтез ВЦРМ Неотчуждённостей ИВ Владыки ИВО | I98: 15522 | J98: 162. ИВАС ИВО ИВ → Синтез ВЦРМ Неотчуждённостей ИВ Учителя ИВО | K98: 15266 | L98: 162. ИВАС ИВО ИВ → Синтез ВЦРМ Неотчуждённостей ИВ Ипостаси ИВО | M98: 15010 | N98: 162. ИВАС ИВО ИВ → Синтез ВЦРМ Неотчуждённостей ИВ Служащего ИВО | O98: 14754 | P98: 162. ИВАС ИВО ИВ → Синтез ВЦРМ Неотчуждённостей ИВ Посвященного ИВО | Q98: 14498 | R98: 162. ИВАС ИВО ИВ → Синтез ВЦРМ Неотчуждённостей ИВ Майтрейи ИВО | S98: 14242 | T98: 162. ИВАС ИВО ИВ → Синтез ВЦРМ Неотчуждённостей ИВ Христа ИВО | U98: 13986 | V98: 162. ИВАС ИВО ИВ → Синтез ВЦРМ Неотчуждённостей ИВ Будды ИВО | W98: 13730 | X98: 162. ИВАС ИВО ИВ → Синтез ВЦРМ Неотчуждённостей ИВ Теурга ИВО | Y98: 13474 | Z98: 162. ИВАС ИВО ИВ → Синтез ВЦРМ Неотчуждённостей ИВ Творца ИВО | AA98: 13218 | AB98: 162. ИВАС ИВО ИВ → Синтез ВЦРМ Неотчуждённостей ИВ Человека ИВО ИВО | AC98: 12962 | AD98: 162. ИВАС ИВО ИВ → Синтез ВЦРМ Неотчуждённостей ИВ Человека ВЦРМ ИВО | AE98: 12706 | AF98: 162. ИВАС ИВО ИВ → Синтез ВЦРМ Неотчуждённостей ИВ Человека Мг ФаИВО | AG98: 12450 | AH98: 162. ИВАС ИВО ИВ → Синтез ВЦРМ Неотчуждённостей ИВ Человека Планеты Земля ИВО
C99: 16289 | D99: 161. ИВАС ИВО Дарий Давлата → Синтез Пламенности ИВО ИВ Синтез ВЦРМ Пламенности ИВО | E99: 16033 | F99: 161. ИВАС ИВО ИВ → Синтез ВЦРМ Пламенностей ИВ Аватара ИВО | G99: 15777 | H99: 161. ИВАС ИВО ИВ → Синтез ВЦРМ Пламенностей ИВ Владыки ИВО | I99: 15521 | J99: 161. ИВАС ИВО ИВ → Синтез ВЦРМ Пламенностей ИВ Учителя ИВО | K99: 15265 | L99: 161. ИВАС ИВО ИВ → Синтез ВЦРМ Пламенностей ИВ Ипостаси ИВО | M99: 15009 | N99: 161. ИВАС ИВО ИВ → Синтез ВЦРМ Пламенностей ИВ Служащего ИВО | O99: 14753 | P99: 161. ИВАС ИВО ИВ → Синтез ВЦРМ Пламенностей ИВ Посвященного ИВО | Q99: 14497 | R99: 161. ИВАС ИВО ИВ → Синтез ВЦРМ Пламенностей ИВ Майтрейи ИВО | S99: 14241 | T99: 161. ИВАС ИВО ИВ → Синтез ВЦРМ Пламенностей ИВ Христа ИВО | U99: 13985 | V99: 161. ИВАС ИВО ИВ → Синтез ВЦРМ Пламенностей ИВ Будды ИВО | W99: 13729 | X99: 161. ИВАС ИВО ИВ → Синтез ВЦРМ Пламенностей ИВ Теурга ИВО | Y99: 13473 | Z99: 161. ИВАС ИВО ИВ → Синтез ВЦРМ Пламенностей ИВ Творца ИВО | AA99: 13217 | AB99: 161. ИВАС ИВО ИВ → Синтез ВЦРМ Пламенностей ИВ Человека ИВО ИВО | AC99: 12961 | AD99: 161. ИВАС ИВО ИВ → Синтез ВЦРМ Пламенностей ИВ Человека ВЦРМ ИВО | AE99: 12705 | AF99: 161. ИВАС ИВО ИВ → Синтез ВЦРМ Пламенностей ИВ Человека Мг ФаИВО | AG99: 12449 | AH99: 161. ИВАС ИВО ИВ → Синтез ВЦРМ Пламенностей ИВ Человека Планеты Земля ИВО
C100: 16288 | D100: 160. ИВАС ИВО Валентин Ирина → Синтез ИВ Дома Владыки ИВО ИВ Дом Владыки ИВО | E100: 16032 | F100: 160. ИВАС ИВО ИВ → Синтез ВЦРМ ИВ Дома Владыки ИВО ИВ Аватара ИВО | G100: 15776 | H100: 160. ИВАС ИВО ИВ → Синтез ВЦРМ ИВ Дома Владыки ИВО ИВ Владыки ИВО | I100: 15520 | J100: 160. ИВАС ИВО ИВ → Синтез ВЦРМ ИВ Дома Владыки ИВО ИВ Учителя ИВО | K100: 15264 | L100: 160. ИВАС ИВО ИВ → Синтез ВЦРМ ИВ Дома Владыки ИВО ИВ Ипостаси ИВО | M100: 15008 | N100: 160. ИВАС ИВО ИВ → Синтез ВЦРМ ИВ Дома Владыки ИВО ИВ Служащего ИВО | O100: 14752 | P100: 160. ИВАС ИВО ИВ → Синтез ВЦРМ ИВ Дома Владыки ИВО ИВ Посвященного ИВО | Q100: 14496 | R100: 160. ИВАС ИВО ИВ → Синтез ВЦРМ ИВ Дома Владыки ИВО ИВ Майтрейи ИВО | S100: 14240 | T100: 160. ИВАС ИВО ИВ → Синтез ВЦРМ ИВ Дома Владыки ИВО ИВ Христа ИВО | U100: 13984 | V100: 160. ИВАС ИВО ИВ → Синтез ВЦРМ ИВ Дома Владыки ИВО ИВ Будды ИВО | W100: 13728 | X100: 160. ИВАС ИВО ИВ → Синтез ВЦРМ ИВ Дома Владыки ИВО ИВ Теурга ИВО | Y100: 13472 | Z100: 160. ИВАС ИВО ИВ → Синтез ВЦРМ ИВ Дома Владыки ИВО ИВ Творца ИВО | AA100: 13216 | AB100: 160. ИВАС ИВО ИВ → Синтез ВЦРМ ИВ Дома Владыки ИВО ИВ Человека ИВО ИВО | AC100: 12960 | AD100: 160. ИВАС ИВО ИВ → Синтез ВЦРМ ИВ Дома Владыки ИВО ИВ Человека ВЦРМ ИВО | AE100: 12704 | AF100: 160. ИВАС ИВО ИВ → Синтез ВЦРМ ИВ Дома Владыки ИВО ИВ Человека Мг ФаИВО | AG100: 12448 | AH100: 160. ИВАС ИВО ИВ → Синтез ВЦРМ ИВ Дома Владыки ИВО ИВ Человека Планеты Земля ИВО
C101: 16287 | D101: 159. ИВАС ИВО Савий Лина → Синтез Духа Частей ИВО ИВ Синтез ВЦРМ Духа Частей ИВО | E101: 16031 | F101: 159. ИВАС ИВО ИВ → Синтез ВЦРМ Духа Частей ИВ Аватара ИВО | G101: 15775 | H101: 159. ИВАС ИВО ИВ → Синтез ВЦРМ Духа Частей ИВ Владыки ИВО | I101: 15519 | J101: 159. ИВАС ИВО ИВ → Синтез ВЦРМ Духа Частей ИВ Учителя ИВО | K101: 15263 | L101: 159. ИВАС ИВО ИВ → Синтез ВЦРМ Духа Частей ИВ Ипостаси ИВО | M101: 15007 | N101: 159. ИВАС ИВО ИВ → Синтез ВЦРМ Духа Частей ИВ Служащего ИВО | O101: 14751 | P101: 159. ИВАС ИВО ИВ → Синтез ВЦРМ Духа Частей ИВ Посвященного ИВО | Q101: 14495 | R101: 159. ИВАС ИВО ИВ → Синтез ВЦРМ Духа Частей ИВ Майтрейи ИВО | S101: 14239 | T101: 159. ИВАС ИВО ИВ → Синтез ВЦРМ Духа Частей ИВ Христа ИВО | U101: 13983 | V101: 159. ИВАС ИВО ИВ → Синтез ВЦРМ Духа Частей ИВ Будды ИВО | W101: 13727 | X101: 159. ИВАС ИВО ИВ → Синтез ВЦРМ Духа Частей ИВ Теурга ИВО | Y101: 13471 | Z101: 159. ИВАС ИВО ИВ → Синтез ВЦРМ Духа Частей ИВ Творца ИВО | AA101: 13215 | AB101: 159. ИВАС ИВО ИВ → Синтез ВЦРМ Духа Частей ИВ Человека ИВО ИВО | AC101: 12959 | AD101: 159. ИВАС ИВО ИВ → Синтез ВЦРМ Духа Частей ИВ Человека ВЦРМ ИВО | AE101: 12703 | AF101: 159. ИВАС ИВО ИВ → Синтез ВЦРМ Духа Частей ИВ Человека Мг ФаИВО | AG101: 12447 | AH101: 159. ИВАС ИВО ИВ → Синтез ВЦРМ Духа Частей ИВ Человека Планеты Земля ИВО
C102: 16286 | D102: 158. ИВАС ИВО Вячеслав Анастасия → Синтез Света Систем ИВО ИВ Синтез ВЦРМ Света Систем ИВО | E102: 16030 | F102: 158. ИВАС ИВО ИВ → Синтез ВЦРМ Света Систем ИВ Аватара ИВО | G102: 15774 | H102: 158. ИВАС ИВО ИВ → Синтез ВЦРМ Света Систем ИВ Владыки ИВО | I102: 15518 | J102: 158. ИВАС ИВО ИВ → Синтез ВЦРМ Света Систем ИВ Учителя ИВО | K102: 15262 | L102: 158. ИВАС ИВО ИВ → Синтез ВЦРМ Света Систем ИВ Ипостаси ИВО | M102: 15006 | N102: 158. ИВАС ИВО ИВ → Синтез ВЦРМ Света Систем ИВ Служащего ИВО | O102: 14750 | P102: 158. ИВАС ИВО ИВ → Синтез ВЦРМ Света Систем ИВ Посвященного ИВО | Q102: 14494 | R102: 158. ИВАС ИВО ИВ → Синтез ВЦРМ Света Систем ИВ Майтрейи ИВО | S102: 14238 | T102: 158. ИВАС ИВО ИВ → Синтез ВЦРМ Света Систем ИВ Христа ИВО | U102: 13982 | V102: 158. ИВАС ИВО ИВ → Синтез ВЦРМ Света Систем ИВ Будды ИВО | W102: 13726 | X102: 158. ИВАС ИВО ИВ → Синтез ВЦРМ Света Систем ИВ Теурга ИВО | Y102: 13470 | Z102: 158. ИВАС ИВО ИВ → Синтез ВЦРМ Света Систем ИВ Творца ИВО | AA102: 13214 | AB102: 158. ИВАС ИВО ИВ → Синтез ВЦРМ Света Систем ИВ Человека ИВО ИВО | AC102: 12958 | AD102: 158. ИВАС ИВО ИВ → Синтез ВЦРМ Света Систем ИВ Человека ВЦРМ ИВО | AE102: 12702 | AF102: 158. ИВАС ИВО ИВ → Синтез ВЦРМ Света Систем ИВ Человека Мг ФаИВО | AG102: 12446 | AH102: 158. ИВАС ИВО ИВ → Синтез ВЦРМ Света Систем ИВ Человека Планеты Земля ИВО
C103: 16285 | D103: 157. ИВАС ИВО Андрей Ома → Синтез Энергии Аппаратов ИВО ИВ Синтез ВЦРМ Энергии Аппаратов ИВО | E103: 16029 | F103: 157. ИВАС ИВО ИВ → Синтез ВЦРМ Энергии Аппаратов ИВ Аватара ИВО | G103: 15773 | H103: 157. ИВАС ИВО ИВ → Синтез ВЦРМ Энергии Аппаратов ИВ Владыки ИВО | I103: 15517 | J103: 157. ИВАС ИВО ИВ → Синтез ВЦРМ Энергии Аппаратов ИВ Учителя ИВО | K103: 15261 | L103: 157. ИВАС ИВО ИВ → Синтез ВЦРМ Энергии Аппаратов ИВ Ипостаси ИВО | M103: 15005 | N103: 157. ИВАС ИВО ИВ → Синтез ВЦРМ Энергии Аппаратов ИВ Служащего ИВО | O103: 14749 | P103: 157. ИВАС ИВО ИВ → Синтез ВЦРМ Энергии Аппаратов ИВ Посвященного ИВО | Q103: 14493 | R103: 157. ИВАС ИВО ИВ → Синтез ВЦРМ Энергии Аппаратов ИВ Майтрейи ИВО | S103: 14237 | T103: 157. ИВАС ИВО ИВ → Синтез ВЦРМ Энергии Аппаратов ИВ Христа ИВО | U103: 13981 | V103: 157. ИВАС ИВО ИВ → Синтез ВЦРМ Энергии Аппаратов ИВ Будды ИВО | W103: 13725 | X103: 157. ИВАС ИВО ИВ → Синтез ВЦРМ Энергии Аппаратов ИВ Теурга ИВО | Y103: 13469 | Z103: 157. ИВАС ИВО ИВ → Синтез ВЦРМ Энергии Аппаратов ИВ Творца ИВО | AA103: 13213 | AB103: 157. ИВАС ИВО ИВ → Синтез ВЦРМ Энергии Аппаратов ИВ Человека ИВО ИВО | AC103: 12957 | AD103: 157. ИВАС ИВО ИВ → Синтез ВЦРМ Энергии Аппаратов ИВ Человека ВЦРМ ИВО | AE103: 12701 | AF103: 157. ИВАС ИВО ИВ → Синтез ВЦРМ Энергии Аппаратов ИВ Человека Мг ФаИВО | AG103: 12445 | AH103: 157. ИВАС ИВО ИВ → Синтез ВЦРМ Энергии Аппаратов ИВ Человека Планеты Земля ИВО
C104: 16284 | D104: 156. ИВАС ИВО Давид Сольвейг → Синтез Субъядерности Частностей ИВО ИВ Синтез ВЦРМ Субъядерности Частностей ИВО | E104: 16028 | F104: 156. ИВАС ИВО ИВ → Синтез ВЦРМ Субъядерности Частностей ИВ Аватара ИВО | G104: 15772 | H104: 156. ИВАС ИВО ИВ → Синтез ВЦРМ Субъядерности Частностей ИВ Владыки ИВО | I104: 15516 | J104: 156. ИВАС ИВО ИВ → Синтез ВЦРМ Субъядерности Частностей ИВ Учителя ИВО | K104: 15260 | L104: 156. ИВАС ИВО ИВ → Синтез ВЦРМ Субъядерности Частностей ИВ Ипостаси ИВО | M104: 15004 | N104: 156. ИВАС ИВО ИВ → Синтез ВЦРМ Субъядерности Частностей ИВ Служащего ИВО | O104: 14748 | P104: 156. ИВАС ИВО ИВ → Синтез ВЦРМ Субъядерности Частностей ИВ Посвященного ИВО | Q104: 14492 | R104: 156. ИВАС ИВО ИВ → Синтез ВЦРМ Субъядерности Частностей ИВ Майтрейи ИВО | S104: 14236 | T104: 156. ИВАС ИВО ИВ → Синтез ВЦРМ Субъядерности Частностей ИВ Христа ИВО | U104: 13980 | V104: 156. ИВАС ИВО ИВ → Синтез ВЦРМ Субъядерности Частностей ИВ Будды ИВО | W104: 13724 | X104: 156. ИВАС ИВО ИВ → Синтез ВЦРМ Субъядерности Частностей ИВ Теурга ИВО | Y104: 13468 | Z104: 156. ИВАС ИВО ИВ → Синтез ВЦРМ Субъядерности Частностей ИВ Творца ИВО | AA104: 13212 | AB104: 156. ИВАС ИВО ИВ → Синтез ВЦРМ Субъядерности Частностей ИВ Человека ИВО ИВО | AC104: 12956 | AD104: 156. ИВАС ИВО ИВ → Синтез ВЦРМ Субъядерности Частностей ИВ Человека ВЦРМ ИВО | AE104: 12700 | AF104: 156. ИВАС ИВО ИВ → Синтез ВЦРМ Субъядерности Частностей ИВ Человека Мг ФаИВО | AG104: 12444 | AH104: 156. ИВАС ИВО ИВ → Синтез ВЦРМ Субъядерности Частностей ИВ Человека Планеты Земля ИВО
C105: 16283 | D105: 155. ИВАС ИВО Евгений Октавия → Синтез Формы Абсолютности ИВО ИВ Синтез ВЦРМ Формы Абсолютности ИВО | E105: 16027 | F105: 155. ИВАС ИВО ИВ → Синтез ВЦРМ Формы Абсолютности ИВ Аватара ИВО | G105: 15771 | H105: 155. ИВАС ИВО ИВ → Синтез ВЦРМ Формы Абсолютности ИВ Владыки ИВО | I105: 15515 | J105: 155. ИВАС ИВО ИВ → Синтез ВЦРМ Формы Абсолютности ИВ Учителя ИВО | K105: 15259 | L105: 155. ИВАС ИВО ИВ → Синтез ВЦРМ Формы Абсолютности ИВ Ипостаси ИВО | M105: 15003 | N105: 155. ИВАС ИВО ИВ → Синтез ВЦРМ Формы Абсолютности ИВ Служащего ИВО | O105: 14747 | P105: 155. ИВАС ИВО ИВ → Синтез ВЦРМ Формы Абсолютности ИВ Посвященного ИВО | Q105: 14491 | R105: 155. ИВАС ИВО ИВ → Синтез ВЦРМ Формы Абсолютности ИВ Майтрейи ИВО | S105: 14235 | T105: 155. ИВАС ИВО ИВ → Синтез ВЦРМ Формы Абсолютности ИВ Христа ИВО | U105: 13979 | V105: 155. ИВАС ИВО ИВ → Синтез ВЦРМ Формы Абсолютности ИВ Будды ИВО | W105: 13723 | X105: 155. ИВАС ИВО ИВ → Синтез ВЦРМ Формы Абсолютности ИВ Теурга ИВО | Y105: 13467 | Z105: 155. ИВАС ИВО ИВ → Синтез ВЦРМ Формы Абсолютности ИВ Творца ИВО | AA105: 13211 | AB105: 155. ИВАС ИВО ИВ → Синтез ВЦРМ Формы Абсолютности ИВ Человека ИВО ИВО | AC105: 12955 | AD105: 155. ИВАС ИВО ИВ → Синтез ВЦРМ Формы Абсолютности ИВ Человека ВЦРМ ИВО | AE105: 12699 | AF105: 155. ИВАС ИВО ИВ → Синтез ВЦРМ Формы Абсолютности ИВ Человека Мг ФаИВО | AG105: 12443 | AH105: 155. ИВАС ИВО ИВ → Синтез ВЦРМ Формы Абсолютности ИВ Человека Планеты Земля ИВО
C106: 16282 | D106: 154. ИВАС ИВО Дмитрий Кристина → Синтез Содержания Воскрешения ИВО ИВ Синтез ВЦРМ Содержания Воскрешения ИВО | E106: 16026 | F106: 154. ИВАС ИВО ИВ → Синтез ВЦРМ Содержания Воскрешения ИВ Аватара ИВО | G106: 15770 | H106: 154. ИВАС ИВО ИВ → Синтез ВЦРМ Содержания Воскрешения ИВ Владыки ИВО | I106: 15514 | J106: 154. ИВАС ИВО ИВ → Синтез ВЦРМ Содержания Воскрешения ИВ Учителя ИВО | K106: 15258 | L106: 154. ИВАС ИВО ИВ → Синтез ВЦРМ Содержания Воскрешения ИВ Ипостаси ИВО | M106: 15002 | N106: 154. ИВАС ИВО ИВ → Синтез ВЦРМ Содержания Воскрешения ИВ Служащего ИВО | O106: 14746 | P106: 154. ИВАС ИВО ИВ → Синтез ВЦРМ Содержания Воскрешения ИВ Посвященного ИВО | Q106: 14490 | R106: 154. ИВАС ИВО ИВ → Синтез ВЦРМ Содержания Воскрешения ИВ Майтрейи ИВО | S106: 14234 | T106: 154. ИВАС ИВО ИВ → Синтез ВЦРМ Содержания Воскрешения ИВ Христа ИВО | U106: 13978 | V106: 154. ИВАС ИВО ИВ → Синтез ВЦРМ Содержания Воскрешения ИВ Будды ИВО | W106: 13722 | X106: 154. ИВАС ИВО ИВ → Синтез ВЦРМ Содержания Воскрешения ИВ Теурга ИВО | Y106: 13466 | Z106: 154. ИВАС ИВО ИВ → Синтез ВЦРМ Содержания Воскрешения ИВ Творца ИВО | AA106: 13210 | AB106: 154. ИВАС ИВО ИВ → Синтез ВЦРМ Содержания Воскрешения ИВ Человека ИВО ИВО | AC106: 12954 | AD106: 154. ИВАС ИВО ИВ → Синтез ВЦРМ Содержания Воскрешения ИВ Человека ВЦРМ ИВО | AE106: 12698 | AF106: 154. ИВАС ИВО ИВ → Синтез ВЦРМ Содержания Воскрешения ИВ Человека Мг ФаИВО | AG106: 12442 | AH106: 154. ИВАС ИВО ИВ → Синтез ВЦРМ Содержания Воскрешения ИВ Человека Планеты Земля ИВО
C107: 16281 | D107: 153. ИВАС ИВО Есений Версавия → Синтез Поля Пробуждения ИВО ИВ Синтез ВЦРМ Поля Пробуждения ИВО | E107: 16025 | F107: 153. ИВАС ИВО ИВ → Синтез ВЦРМ Поля Пробуждения ИВ Аватара ИВО | G107: 15769 | H107: 153. ИВАС ИВО ИВ → Синтез ВЦРМ Поля Пробуждения ИВ Владыки ИВО | I107: 15513 | J107: 153. ИВАС ИВО ИВ → Синтез ВЦРМ Поля Пробуждения ИВ Учителя ИВО | K107: 15257 | L107: 153. ИВАС ИВО ИВ → Синтез ВЦРМ Поля Пробуждения ИВ Ипостаси ИВО | M107: 15001 | N107: 153. ИВАС ИВО ИВ → Синтез ВЦРМ Поля Пробуждения ИВ Служащего ИВО | O107: 14745 | P107: 153. ИВАС ИВО ИВ → Синтез ВЦРМ Поля Пробуждения ИВ Посвященного ИВО | Q107: 14489 | R107: 153. ИВАС ИВО ИВ → Синтез ВЦРМ Поля Пробуждения ИВ Майтрейи ИВО | S107: 14233 | T107: 153. ИВАС ИВО ИВ → Синтез ВЦРМ Поля Пробуждения ИВ Христа ИВО | U107: 13977 | V107: 153. ИВАС ИВО ИВ → Синтез ВЦРМ Поля Пробуждения ИВ Будды ИВО | W107: 13721 | X107: 153. ИВАС ИВО ИВ → Синтез ВЦРМ Поля Пробуждения ИВ Теурга ИВО | Y107: 13465 | Z107: 153. ИВАС ИВО ИВ → Синтез ВЦРМ Поля Пробуждения ИВ Творца ИВО | AA107: 13209 | AB107: 153. ИВАС ИВО ИВ → Синтез ВЦРМ Поля Пробуждения ИВ Человека ИВО ИВО | AC107: 12953 | AD107: 153. ИВАС ИВО ИВ → Синтез ВЦРМ Поля Пробуждения ИВ Человека ВЦРМ ИВО | AE107: 12697 | AF107: 153. ИВАС ИВО ИВ → Синтез ВЦРМ Поля Пробуждения ИВ Человека Мг ФаИВО | AG107: 12441 | AH107: 153. ИВАС ИВО ИВ → Синтез ВЦРМ Поля Пробуждения ИВ Человека Планеты Земля ИВО
C108: 16280 | D108: 152. ИВАС ИВО Константин Ксения → Синтез Времени ИВО ИВ Синтез ВЦРМ Времени ИВО | E108: 16024 | F108: 152. ИВАС ИВО ИВ → Синтез ВЦРМ Времени ИВ Аватара ИВО | G108: 15768 | H108: 152. ИВАС ИВО ИВ → Синтез ВЦРМ Времени ИВ Владыки ИВО | I108: 15512 | J108: 152. ИВАС ИВО ИВ → Синтез ВЦРМ Времени ИВ Учителя ИВО | K108: 15256 | L108: 152. ИВАС ИВО ИВ → Синтез ВЦРМ Времени ИВ Ипостаси ИВО | M108: 15000 | N108: 152. ИВАС ИВО ИВ → Синтез ВЦРМ Времени ИВ Служащего ИВО | O108: 14744 | P108: 152. ИВАС ИВО ИВ → Синтез ВЦРМ Времени ИВ Посвященного ИВО | Q108: 14488 | R108: 152. ИВАС ИВО ИВ → Синтез ВЦРМ Времени ИВ Майтрейи ИВО | S108: 14232 | T108: 152. ИВАС ИВО ИВ → Синтез ВЦРМ Времени ИВ Христа ИВО | U108: 13976 | V108: 152. ИВАС ИВО ИВ → Синтез ВЦРМ Времени ИВ Будды ИВО | W108: 13720 | X108: 152. ИВАС ИВО ИВ → Синтез ВЦРМ Времени ИВ Теурга ИВО | Y108: 13464 | Z108: 152. ИВАС ИВО ИВ → Синтез ВЦРМ Времени ИВ Творца ИВО | AA108: 13208 | AB108: 152. ИВАС ИВО ИВ → Синтез ВЦРМ Времени ИВ Человека ИВО ИВО | AC108: 12952 | AD108: 152. ИВАС ИВО ИВ → Синтез ВЦРМ Времени ИВ Человека ВЦРМ ИВО | AE108: 12696 | AF108: 152. ИВАС ИВО ИВ → Синтез ВЦРМ Времени ИВ Человека Мг ФаИВО | AG108: 12440 | AH108: 152. ИВАС ИВО ИВ → Синтез ВЦРМ Времени ИВ Человека Планеты Земля ИВО
C109: 16279 | D109: 151. ИВАС ИВО Ростислав Эмма → Синтез Пространства ИВО ИВ Синтез ВЦРМ Пространства ИВО | E109: 16023 | F109: 151. ИВАС ИВО ИВ → Синтез ВЦРМ Пространства ИВ Аватара ИВО | G109: 15767 | H109: 151. ИВАС ИВО ИВ → Синтез ВЦРМ Пространства ИВ Владыки ИВО | I109: 15511 | J109: 151. ИВАС ИВО ИВ → Синтез ВЦРМ Пространства ИВ Учителя ИВО | K109: 15255 | L109: 151. ИВАС ИВО ИВ → Синтез ВЦРМ Пространства ИВ Ипостаси ИВО | M109: 14999 | N109: 151. ИВАС ИВО ИВ → Синтез ВЦРМ Пространства ИВ Служащего ИВО | O109: 14743 | P109: 151. ИВАС ИВО ИВ → Синтез ВЦРМ Пространства ИВ Посвященного ИВО | Q109: 14487 | R109: 151. ИВАС ИВО ИВ → Синтез ВЦРМ Пространства ИВ Майтрейи ИВО | S109: 14231 | T109: 151. ИВАС ИВО ИВ → Синтез ВЦРМ Пространства ИВ Христа ИВО | U109: 13975 | V109: 151. ИВАС ИВО ИВ → Синтез ВЦРМ Пространства ИВ Будды ИВО | W109: 13719 | X109: 151. ИВАС ИВО ИВ → Синтез ВЦРМ Пространства ИВ Теурга ИВО | Y109: 13463 | Z109: 151. ИВАС ИВО ИВ → Синтез ВЦРМ Пространства ИВ Творца ИВО | AA109: 13207 | AB109: 151. ИВАС ИВО ИВ → Синтез ВЦРМ Пространства ИВ Человека ИВО ИВО | AC109: 12951 | AD109: 151. ИВАС ИВО ИВ → Синтез ВЦРМ Пространства ИВ Человека ВЦРМ ИВО | AE109: 12695 | AF109: 151. ИВАС ИВО ИВ → Синтез ВЦРМ Пространства ИВ Человека Мг ФаИВО | AG109: 12439 | AH109: 151. ИВАС ИВО ИВ → Синтез ВЦРМ Пространства ИВ Человека Планеты Земля ИВО
C110: 16278 | D110: 150. ИВАС ИВО Ян Стафия → Синтез Скорости ИВО ИВ Синтез ВЦРМ Скорости ИВО | E110: 16022 | F110: 150. ИВАС ИВО ИВ → Синтез ВЦРМ Скорости ИВ Аватара ИВО | G110: 15766 | H110: 150. ИВАС ИВО ИВ → Синтез ВЦРМ Скорости ИВ Владыки ИВО | I110: 15510 | J110: 150. ИВАС ИВО ИВ → Синтез ВЦРМ Скорости ИВ Учителя ИВО | K110: 15254 | L110: 150. ИВАС ИВО ИВ → Синтез ВЦРМ Скорости ИВ Ипостаси ИВО | M110: 14998 | N110: 150. ИВАС ИВО ИВ → Синтез ВЦРМ Скорости ИВ Служащего ИВО | O110: 14742 | P110: 150. ИВАС ИВО ИВ → Синтез ВЦРМ Скорости ИВ Посвященного ИВО | Q110: 14486 | R110: 150. ИВАС ИВО ИВ → Синтез ВЦРМ Скорости ИВ Майтрейи ИВО | S110: 14230 | T110: 150. ИВАС ИВО ИВ → Синтез ВЦРМ Скорости ИВ Христа ИВО | U110: 13974 | V110: 150. ИВАС ИВО ИВ → Синтез ВЦРМ Скорости ИВ Будды ИВО | W110: 13718 | X110: 150. ИВАС ИВО ИВ → Синтез ВЦРМ Скорости ИВ Теурга ИВО | Y110: 13462 | Z110: 150. ИВАС ИВО ИВ → Синтез ВЦРМ Скорости ИВ Творца ИВО | AA110: 13206 | AB110: 150. ИВАС ИВО ИВ → Синтез ВЦРМ Скорости ИВ Человека ИВО ИВО | AC110: 12950 | AD110: 150. ИВАС ИВО ИВ → Синтез ВЦРМ Скорости ИВ Человека ВЦРМ ИВО | AE110: 12694 | AF110: 150. ИВАС ИВО ИВ → Синтез ВЦРМ Скорости ИВ Человека Мг ФаИВО | AG110: 12438 | AH110: 150. ИВАС ИВО ИВ → Синтез ВЦРМ Скорости ИВ Человека Планеты Земля ИВО
C111: 16277 | D111: 149. ИВАС ИВО Василий Оксана → Синтез Мерности ИВО ИВ Синтез ВЦРМ Мерности ИВО | E111: 16021 | F111: 149. ИВАС ИВО ИВ → Синтез ВЦРМ Мерности ИВ Аватара ИВО | G111: 15765 | H111: 149. ИВАС ИВО ИВ → Синтез ВЦРМ Мерности ИВ Владыки ИВО | I111: 15509 | J111: 149. ИВАС ИВО ИВ → Синтез ВЦРМ Мерности ИВ Учителя ИВО | K111: 15253 | L111: 149. ИВАС ИВО ИВ → Синтез ВЦРМ Мерности ИВ Ипостаси ИВО | M111: 14997 | N111: 149. ИВАС ИВО ИВ → Синтез ВЦРМ Мерности ИВ Служащего ИВО | O111: 14741 | P111: 149. ИВАС ИВО ИВ → Синтез ВЦРМ Мерности ИВ Посвященного ИВО | Q111: 14485 | R111: 149. ИВАС ИВО ИВ → Синтез ВЦРМ Мерности ИВ Майтрейи ИВО | S111: 14229 | T111: 149. ИВАС ИВО ИВ → Синтез ВЦРМ Мерности ИВ Христа ИВО | U111: 13973 | V111: 149. ИВАС ИВО ИВ → Синтез ВЦРМ Мерности ИВ Будды ИВО | W111: 13717 | X111: 149. ИВАС ИВО ИВ → Синтез ВЦРМ Мерности ИВ Теурга ИВО | Y111: 13461 | Z111: 149. ИВАС ИВО ИВ → Синтез ВЦРМ Мерности ИВ Творца ИВО | AA111: 13205 | AB111: 149. ИВАС ИВО ИВ → Синтез ВЦРМ Мерности ИВ Человека ИВО ИВО | AC111: 12949 | AD111: 149. ИВАС ИВО ИВ → Синтез ВЦРМ Мерности ИВ Человека ВЦРМ ИВО | AE111: 12693 | AF111: 149. ИВАС ИВО ИВ → Синтез ВЦРМ Мерности ИВ Человека Мг ФаИВО | AG111: 12437 | AH111: 149. ИВАС ИВО ИВ → Синтез ВЦРМ Мерности ИВ Человека Планеты Земля ИВО
C112: 16276 | D112: 148. ИВАС ИВО Арсений Ульяна → Синтез Воссоединённости Человека ИВО ИВ Синтез ВЦРМ Воссоединённости ИВО | E112: 16020 | F112: 148. ИВАС ИВО ИВ → Синтез ВЦРМ Воссоединённости ИВ Аватара ИВО | G112: 15764 | H112: 148. ИВАС ИВО ИВ → Синтез ВЦРМ Воссоединённости ИВ Владыки ИВО | I112: 15508 | J112: 148. ИВАС ИВО ИВ → Синтез ВЦРМ Воссоединённости ИВ Учителя ИВО | K112: 15252 | L112: 148. ИВАС ИВО ИВ → Синтез ВЦРМ Воссоединённости ИВ Ипостаси ИВО | M112: 14996 | N112: 148. ИВАС ИВО ИВ → Синтез ВЦРМ Воссоединённости ИВ Служащего ИВО | O112: 14740 | P112: 148. ИВАС ИВО ИВ → Синтез ВЦРМ Воссоединённости ИВ Посвященного ИВО | Q112: 14484 | R112: 148. ИВАС ИВО ИВ → Синтез ВЦРМ Воссоединённости ИВ Майтрейи ИВО | S112: 14228 | T112: 148. ИВАС ИВО ИВ → Синтез ВЦРМ Воссоединённости ИВ Христа ИВО | U112: 13972 | V112: 148. ИВАС ИВО ИВ → Синтез ВЦРМ Воссоединённости ИВ Будды ИВО | W112: 13716 | X112: 148. ИВАС ИВО ИВ → Синтез ВЦРМ Воссоединённости ИВ Теурга ИВО | Y112: 13460 | Z112: 148. ИВАС ИВО ИВ → Синтез ВЦРМ Воссоединённости ИВ Творца ИВО | AA112: 13204 | AB112: 148. ИВАС ИВО ИВ → Синтез ВЦРМ Воссоединённости ИВ Человека ИВО ИВО | AC112: 12948 | AD112: 148. ИВАС ИВО ИВ → Синтез ВЦРМ Воссоединённости ИВ Человека ВЦРМ ИВО | AE112: 12692 | AF112: 148. ИВАС ИВО ИВ → Синтез ВЦРМ Воссоединённости ИВ Человека Мг ФаИВО | AG112: 12436 | AH112: 148. ИВАС ИВО ИВ → Синтез ВЦРМ Воссоединённости ИВ Человека Планеты Земля ИВО
C113: 16275 | D113: 147. ИВАС ИВО Огюст Беатрисс → Синтез Матрицы Самоорганизации ИВО ИВ Синтез ВЦРМ Матриц Самоорганизации Человека ИВО | E113: 16019 | F113: 147. ИВАС ИВО ИВ → Синтез ВЦРМ Матрицы Самоорганизации ИВ Аватара ИВО | G113: 15763 | H113: 147. ИВАС ИВО ИВ → Синтез ВЦРМ Матрицы Самоорганизации ИВ Владыки ИВО | I113: 15507 | J113: 147. ИВАС ИВО ИВ → Синтез ВЦРМ Матрицы Самоорганизации ИВ Учителя ИВО | K113: 15251 | L113: 147. ИВАС ИВО ИВ → Синтез ВЦРМ Матрицы Самоорганизации ИВ Ипостаси ИВО | M113: 14995 | N113: 147. ИВАС ИВО ИВ → Синтез ВЦРМ Матрицы Самоорганизации ИВ Служащего ИВО | O113: 14739 | P113: 147. ИВАС ИВО ИВ → Синтез ВЦРМ Матрицы Самоорганизации ИВ Посвященного ИВО | Q113: 14483 | R113: 147. ИВАС ИВО ИВ → Синтез ВЦРМ Матрицы Самоорганизации ИВ Майтрейи ИВО | S113: 14227 | T113: 147. ИВАС ИВО ИВ → Синтез ВЦРМ Матрицы Самоорганизации ИВ Христа ИВО | U113: 13971 | V113: 147. ИВАС ИВО ИВ → Синтез ВЦРМ Матрицы Самоорганизации ИВ Будды ИВО | W113: 13715 | X113: 147. ИВАС ИВО ИВ → Синтез ВЦРМ Матрицы Самоорганизации ИВ Теурга ИВО | Y113: 13459 | Z113: 147. ИВАС ИВО ИВ → Синтез ВЦРМ Матрицы Самоорганизации ИВ Творца ИВО | AA113: 13203 | AB113: 147. ИВАС ИВО ИВ → Синтез ВЦРМ Матрицы Самоорганизации ИВ Человека ИВО ИВО | AC113: 12947 | AD113: 147. ИВАС ИВО ИВ → Синтез ВЦРМ Матрицы Самоорганизации ИВ Человека ВЦРМ ИВО | AE113: 12691 | AF113: 147. ИВАС ИВО ИВ → Синтез ВЦРМ Матрицы Самоорганизации ИВ Человека Мг ФаИВО | AG113: 12435 | AH113: 147. ИВАС ИВО ИВ → Синтез ВЦРМ Матрицы Самоорганизации ИВ Человека Планеты Земля ИВО
C114: 16274 | D114: 146. ИВАС ИВО Илий Оливия → Синтез Эманации ИВО ИВ Синтез ВЦРМ Эманаций Человека ИВО | E114: 16018 | F114: 146. ИВАС ИВО ИВ → Синтез ВЦРМ Эманации ИВ Аватара ИВО | G114: 15762 | H114: 146. ИВАС ИВО ИВ → Синтез ВЦРМ Эманации ИВ Владыки ИВО | I114: 15506 | J114: 146. ИВАС ИВО ИВ → Синтез ВЦРМ Эманации ИВ Учителя ИВО | K114: 15250 | L114: 146. ИВАС ИВО ИВ → Синтез ВЦРМ Эманации ИВ Ипостаси ИВО | M114: 14994 | N114: 146. ИВАС ИВО ИВ → Синтез ВЦРМ Эманации ИВ Служащего ИВО | O114: 14738 | P114: 146. ИВАС ИВО ИВ → Синтез ВЦРМ Эманации ИВ Посвященного ИВО | Q114: 14482 | R114: 146. ИВАС ИВО ИВ → Синтез ВЦРМ Эманации ИВ Майтрейи ИВО | S114: 14226 | T114: 146. ИВАС ИВО ИВ → Синтез ВЦРМ Эманации ИВ Христа ИВО | U114: 13970 | V114: 146. ИВАС ИВО ИВ → Синтез ВЦРМ Эманации ИВ Будды ИВО | W114: 13714 | X114: 146. ИВАС ИВО ИВ → Синтез ВЦРМ Эманации ИВ Теурга ИВО | Y114: 13458 | Z114: 146. ИВАС ИВО ИВ → Синтез ВЦРМ Эманации ИВ Творца ИВО | AA114: 13202 | AB114: 146. ИВАС ИВО ИВ → Синтез ВЦРМ Эманации ИВ Человека ИВО ИВО | AC114: 12946 | AD114: 146. ИВАС ИВО ИВ → Синтез ВЦРМ Эманации ИВ Человека ВЦРМ ИВО | AE114: 12690 | AF114: 146. ИВАС ИВО ИВ → Синтез ВЦРМ Эманации ИВ Человека Мг ФаИВО | AG114: 12434 | AH114: 146. ИВАС ИВО ИВ → Синтез ВЦРМ Эманации ИВ Человека Планеты Земля ИВО
C115: 16273 | D115: 145. ИВАС ИВО Геральд Алла → Синтез Вещества ИВО ИВ Синтез ВЦРМ Веществ Человека ИВО | E115: 16017 | F115: 145. ИВАС ИВО ИВ → Синтез ВЦРМ Вещества ИВ Аватара ИВО | G115: 15761 | H115: 145. ИВАС ИВО ИВ → Синтез ВЦРМ Вещества ИВ Владыки ИВО | I115: 15505 | J115: 145. ИВАС ИВО ИВ → Синтез ВЦРМ Вещества ИВ Учителя ИВО | K115: 15249 | L115: 145. ИВАС ИВО ИВ → Синтез ВЦРМ Вещества ИВ Ипостаси ИВО | M115: 14993 | N115: 145. ИВАС ИВО ИВ → Синтез ВЦРМ Вещества ИВ Служащего ИВО | O115: 14737 | P115: 145. ИВАС ИВО ИВ → Синтез ВЦРМ Вещества ИВ Посвященного ИВО | Q115: 14481 | R115: 145. ИВАС ИВО ИВ → Синтез ВЦРМ Вещества ИВ Майтрейи ИВО | S115: 14225 | T115: 145. ИВАС ИВО ИВ → Синтез ВЦРМ Вещества ИВ Христа ИВО | U115: 13969 | V115: 145. ИВАС ИВО ИВ → Синтез ВЦРМ Вещества ИВ Будды ИВО | W115: 13713 | X115: 145. ИВАС ИВО ИВ → Синтез ВЦРМ Вещества ИВ Теурга ИВО | Y115: 13457 | Z115: 145. ИВАС ИВО ИВ → Синтез ВЦРМ Вещества ИВ Творца ИВО | AA115: 13201 | AB115: 145. ИВАС ИВО ИВ → Синтез ВЦРМ Вещества ИВ Человека ИВО ИВО | AC115: 12945 | AD115: 145. ИВАС ИВО ИВ → Синтез ВЦРМ Вещества ИВ Человека ВЦРМ ИВО | AE115: 12689 | AF115: 145. ИВАС ИВО ИВ → Синтез ВЦРМ Вещества ИВ Человека Мг ФаИВО | AG115: 12433 | AH115: 145. ИВАС ИВО ИВ → Синтез ВЦРМ Вещества ИВ Человека Планеты Земля ИВО
C116: 16272 | D116: 144. ИВАС ИВО Платон Натали → Синтез ИВ Дома Учителя ИВО ИВ Дом Учителя ИВО | E116: 16016 | F116: 144. ИВАС ИВО ИВ → Синтез ВЦРМ ИВ Дома Учителя ИВО ИВ Аватара ИВО | G116: 15760 | H116: 144. ИВАС ИВО ИВ → Синтез ВЦРМ ИВ Дома Учителя ИВО ИВ Владыки ИВО | I116: 15504 | J116: 144. ИВАС ИВО ИВ → Синтез ВЦРМ ИВ Дома Учителя ИВО ИВ Учителя ИВО | K116: 15248 | L116: 144. ИВАС ИВО ИВ → Синтез ВЦРМ ИВ Дома Учителя ИВО ИВ Ипостаси ИВО | M116: 14992 | N116: 144. ИВАС ИВО ИВ → Синтез ВЦРМ ИВ Дома Учителя ИВО ИВ Служащего ИВО | O116: 14736 | P116: 144. ИВАС ИВО ИВ → Синтез ВЦРМ ИВ Дома Учителя ИВО ИВ Посвященного ИВО | Q116: 14480 | R116: 144. ИВАС ИВО ИВ → Синтез ВЦРМ ИВ Дома Учителя ИВО ИВ Майтрейи ИВО | S116: 14224 | T116: 144. ИВАС ИВО ИВ → Синтез ВЦРМ ИВ Дома Учителя ИВО ИВ Христа ИВО | U116: 13968 | V116: 144. ИВАС ИВО ИВ → Синтез ВЦРМ ИВ Дома Учителя ИВО ИВ Будды ИВО | W116: 13712 | X116: 144. ИВАС ИВО ИВ → Синтез ВЦРМ ИВ Дома Учителя ИВО ИВ Теурга ИВО | Y116: 13456 | Z116: 144. ИВАС ИВО ИВ → Синтез ВЦРМ ИВ Дома Учителя ИВО ИВ Творца ИВО | AA116: 13200 | AB116: 144. ИВАС ИВО ИВ → Синтез ВЦРМ ИВ Дома Учителя ИВО ИВ Человека ИВО ИВО | AC116: 12944 | AD116: 144. ИВАС ИВО ИВ → Синтез ВЦРМ ИВ Дома Учителя ИВО ИВ Человека ВЦРМ ИВО | AE116: 12688 | AF116: 144. ИВАС ИВО ИВ → Синтез ВЦРМ ИВ Дома Учителя ИВО ИВ Человека Мг ФаИВО | AG116: 12432 | AH116: 144. ИВАС ИВО ИВ → Синтез ВЦРМ ИВ Дома Учителя ИВО ИВ Человека Планеты Земля ИВО
C117: 16271 | D117: 143. ИВАС ИВО Николай Эва → Синтез Планеты Земля ИВО ИВ Синтез ВЦРМ Планеты Земля ИВО | E117: 16015 | F117: 143. ИВАС ИВО ИВ → Синтез ВЦРМ Планеты Земля Мг Фа ИВ Аватара ИВО | G117: 15759 | H117: 143. ИВАС ИВО ИВ → Синтез ВЦРМ Планеты Земля Мг Фа ИВ Владыки ИВО | I117: 15503 | J117: 143. ИВАС ИВО ИВ → Синтез ВЦРМ Планеты Земля Мг Фа ИВ Учителя ИВО | K117: 15247 | L117: 143. ИВАС ИВО ИВ → Синтез ВЦРМ Планеты Земля Мг Фа ИВ Ипостаси ИВО | M117: 14991 | N117: 143. ИВАС ИВО ИВ → Синтез ВЦРМ Планеты Земля Мг Фа ИВ Служащего ИВО | O117: 14735 | P117: 143. ИВАС ИВО ИВ → Синтез ВЦРМ Планеты Земля Мг Фа ИВ Посвященного ИВО | Q117: 14479 | R117: 143. ИВАС ИВО ИВ → Синтез ВЦРМ Планеты Земля Мг Фа ИВ Майтрейи ИВО | S117: 14223 | T117: 143. ИВАС ИВО ИВ → Синтез ВЦРМ Планеты Земля Мг Фа ИВ Христа ИВО | U117: 13967 | V117: 143. ИВАС ИВО ИВ → Синтез ВЦРМ Планеты Земля Мг Фа ИВ Будды ИВО | W117: 13711 | X117: 143. ИВАС ИВО ИВ → Синтез ВЦРМ Планеты Земля Мг Фа ИВ Теурга ИВО | Y117: 13455 | Z117: 143. ИВАС ИВО ИВ → Синтез ВЦРМ Планеты Земля Мг Фа ИВ Творца ИВО | AA117: 13199 | AB117: 143. ИВАС ИВО ИВ → Синтез ВЦРМ Планеты Земля Мг Фа ИВ Человека ИВО ИВО | AC117: 12943 | AD117: 143. ИВАС ИВО ИВ → Синтез ВЦРМ Планеты Земля Мг Фа ИВ Человека ВЦРМ ИВО | AE117: 12687 | AF117: 143. ИВАС ИВО ИВ → Синтез ВЦРМ Планеты Земля Мг Фа ИВ Человека Мг ФаИВО | AG117: 12431 | AH117: 143. ИВАС ИВО ИВ → Синтез ВЦРМ Планеты Земля Мг Фа ИВ Человека Планеты Земля ИВО
C118: 16270 | D118: 142. ИВАС ИВО Игорь Лана → Синтез Мг Человека ИВО ИВ Синтез ВЦРМ Мг Человека ИВО | E118: 16014 | F118: 142. ИВАС ИВО ИВ → Синтез ВЦРМ Мг Человека ИВ Аватара ИВО | G118: 15758 | H118: 142. ИВАС ИВО ИВ → Синтез ВЦРМ Мг Человека ИВ Владыки ИВО | I118: 15502 | J118: 142. ИВАС ИВО ИВ → Синтез ВЦРМ Мг Человека ИВ Учителя ИВО | K118: 15246 | L118: 142. ИВАС ИВО ИВ → Синтез ВЦРМ Мг Человека ИВ Ипостаси ИВО | M118: 14990 | N118: 142. ИВАС ИВО ИВ → Синтез ВЦРМ Мг Человека ИВ Служащего ИВО | O118: 14734 | P118: 142. ИВАС ИВО ИВ → Синтез ВЦРМ Мг Человека ИВ Посвященного ИВО | Q118: 14478 | R118: 142. ИВАС ИВО ИВ → Синтез ВЦРМ Мг Человека ИВ Майтрейи ИВО | S118: 14222 | T118: 142. ИВАС ИВО ИВ → Синтез ВЦРМ Мг Человека ИВ Христа ИВО | U118: 13966 | V118: 142. ИВАС ИВО ИВ → Синтез ВЦРМ Мг Человека ИВ Будды ИВО | W118: 13710 | X118: 142. ИВАС ИВО ИВ → Синтез ВЦРМ Мг Человека ИВ Теурга ИВО | Y118: 13454 | Z118: 142. ИВАС ИВО ИВ → Синтез ВЦРМ Мг Человека ИВ Творца ИВО | AA118: 13198 | AB118: 142. ИВАС ИВО ИВ → Синтез ВЦРМ Мг Человека ИВ Человека ИВО ИВО | AC118: 12942 | AD118: 142. ИВАС ИВО ИВ → Синтез ВЦРМ Мг Человека ИВ Человека ВЦРМ ИВО | AE118: 12686 | AF118: 142. ИВАС ИВО ИВ → Синтез ВЦРМ Мг Человека ИВ Человека Мг ФаИВО | AG118: 12430 | AH118: 142. ИВАС ИВО ИВ → Синтез ВЦРМ Мг Человека ИВ Человека Планеты Земля ИВО
C119: 16269 | D119: 141. ИВАС ИВО Яр Одель → Синтез ПараМг ИВО ИВ Синтез ВЦРМ ПараМг ИВО | E119: 16013 | F119: 141. ИВАС ИВО ИВ → Синтез ВЦРМ ПараМг ИВ Аватара ИВО | G119: 15757 | H119: 141. ИВАС ИВО ИВ → Синтез ВЦРМ ПараМг ИВ Владыки ИВО | I119: 15501 | J119: 141. ИВАС ИВО ИВ → Синтез ВЦРМ ПараМг ИВ Учителя ИВО | K119: 15245 | L119: 141. ИВАС ИВО ИВ → Синтез ВЦРМ ПараМг ИВ Ипостаси ИВО | M119: 14989 | N119: 141. ИВАС ИВО ИВ → Синтез ВЦРМ ПараМг ИВ Служащего ИВО | O119: 14733 | P119: 141. ИВАС ИВО ИВ → Синтез ВЦРМ ПараМг ИВ Посвященного ИВО | Q119: 14477 | R119: 141. ИВАС ИВО ИВ → Синтез ВЦРМ ПараМг ИВ Майтрейи ИВО | S119: 14221 | T119: 141. ИВАС ИВО ИВ → Синтез ВЦРМ ПараМг ИВ Христа ИВО | U119: 13965 | V119: 141. ИВАС ИВО ИВ → Синтез ВЦРМ ПараМг ИВ Будды ИВО | W119: 13709 | X119: 141. ИВАС ИВО ИВ → Синтез ВЦРМ ПараМг ИВ Теурга ИВО | Y119: 13453 | Z119: 141. ИВАС ИВО ИВ → Синтез ВЦРМ ПараМг ИВ Творца ИВО | AA119: 13197 | AB119: 141. ИВАС ИВО ИВ → Синтез ВЦРМ ПараМг ИВ Человека ИВО ИВО | AC119: 12941 | AD119: 141. ИВАС ИВО ИВ → Синтез ВЦРМ ПараМг ИВ Человека ВЦРМ ИВО | AE119: 12685 | AF119: 141. ИВАС ИВО ИВ → Синтез ВЦРМ ПараМг ИВ Человека Мг ФаИВО | AG119: 12429 | AH119: 141. ИВАС ИВО ИВ → Синтез ВЦРМ ПараМг ИВ Человека Планеты Земля ИВО
C120: 16268 | D120: 140. ИВАС ИВО Вадим Тамара → Синтез СинтезМг ИВО ИВ Синтез ВЦРМ СинтезМг ИВО | E120: 16012 | F120: 140. ИВАС ИВО ИВ → Синтез ВЦРМ СинтезМг ИВО ИВ Аватара ИВО | G120: 15756 | H120: 140. ИВАС ИВО ИВ → Синтез ВЦРМ СинтезМг ИВО ИВ Владыки ИВО | I120: 15500 | J120: 140. ИВАС ИВО ИВ → Синтез ВЦРМ СинтезМг ИВО ИВ Учителя ИВО | K120: 15244 | L120: 140. ИВАС ИВО ИВ → Синтез ВЦРМ СинтезМг ИВО ИВ Ипостаси ИВО | M120: 14988 | N120: 140. ИВАС ИВО ИВ → Синтез ВЦРМ СинтезМг ИВО ИВ Служащего ИВО | O120: 14732 | P120: 140. ИВАС ИВО ИВ → Синтез ВЦРМ СинтезМг ИВО ИВ Посвященного ИВО | Q120: 14476 | R120: 140. ИВАС ИВО ИВ → Синтез ВЦРМ СинтезМг ИВО ИВ Майтрейи ИВО | S120: 14220 | T120: 140. ИВАС ИВО ИВ → Синтез ВЦРМ СинтезМг ИВО ИВ Христа ИВО | U120: 13964 | V120: 140. ИВАС ИВО ИВ → Синтез ВЦРМ СинтезМг ИВО ИВ Будды ИВО | W120: 13708 | X120: 140. ИВАС ИВО ИВ → Синтез ВЦРМ СинтезМг ИВО ИВ Теурга ИВО | Y120: 13452 | Z120: 140. ИВАС ИВО ИВ → Синтез ВЦРМ СинтезМг ИВО ИВ Творца ИВО | AA120: 13196 | AB120: 140. ИВАС ИВО ИВ → Синтез ВЦРМ СинтезМг ИВО ИВ Человека ИВО ИВО | AC120: 12940 | AD120: 140. ИВАС ИВО ИВ → Синтез ВЦРМ СинтезМг ИВО ИВ Человека ВЦРМ ИВО | AE120: 12684 | AF120: 140. ИВАС ИВО ИВ → Синтез ВЦРМ СинтезМг ИВО ИВ Человека Мг ФаИВО | AG120: 12428 | AH120: 140. ИВАС ИВО ИВ → Синтез ВЦРМ СинтезМг ИВО ИВ Человека Планеты Земля ИВО
C121: 16267 | D121: 139. ИВАС ИВО Огнеслав Нина → Синтез Начальной Мг ИВО ИВ Синтез ВЦРМ Начальной Мг ИВО | E121: 16011 | F121: 139. ИВАС ИВО ИВ → Синтез ВЦРМ Начальной Мг ИВ Аватара ИВО | G121: 15755 | H121: 139. ИВАС ИВО ИВ → Синтез ВЦРМ Начальной Мг ИВ Владыки ИВО | I121: 15499 | J121: 139. ИВАС ИВО ИВ → Синтез ВЦРМ Начальной Мг ИВ Учителя ИВО | K121: 15243 | L121: 139. ИВАС ИВО ИВ → Синтез ВЦРМ Начальной Мг ИВ Ипостаси ИВО | M121: 14987 | N121: 139. ИВАС ИВО ИВ → Синтез ВЦРМ Начальной Мг ИВ Служащего ИВО | O121: 14731 | P121: 139. ИВАС ИВО ИВ → Синтез ВЦРМ Начальной Мг ИВ Посвященного ИВО | Q121: 14475 | R121: 139. ИВАС ИВО ИВ → Синтез ВЦРМ Начальной Мг ИВ Майтрейи ИВО | S121: 14219 | T121: 139. ИВАС ИВО ИВ → Синтез ВЦРМ Начальной Мг ИВ Христа ИВО | U121: 13963 | V121: 139. ИВАС ИВО ИВ → Синтез ВЦРМ Начальной Мг ИВ Будды ИВО | W121: 13707 | X121: 139. ИВАС ИВО ИВ → Синтез ВЦРМ Начальной Мг ИВ Теурга ИВО | Y121: 13451 | Z121: 139. ИВАС ИВО ИВ → Синтез ВЦРМ Начальной Мг ИВ Творца ИВО | AA121: 13195 | AB121: 139. ИВАС ИВО ИВ → Синтез ВЦРМ Начальной Мг ИВ Человека ИВО ИВО | AC121: 12939 | AD121: 139. ИВАС ИВО ИВ → Синтез ВЦРМ Начальной Мг ИВ Человека ВЦРМ ИВО | AE121: 12683 | AF121: 139. ИВАС ИВО ИВ → Синтез ВЦРМ Начальной Мг ИВ Человека Мг ФаИВО | AG121: 12427 | AH121: 139. ИВАС ИВО ИВ → Синтез ВЦРМ Начальной Мг ИВ Человека Планеты Земля ИВО
C122: 16266 | D122: 138. ИВАС ИВО Марк Орфея → Синтез СуперМг Версумов ИВО ИВ Синтез ВЦРМ СуперМг Версумов ИВО | E122: 16010 | F122: 138. ИВАС ИВО ИВ → Синтез ВЦРМ СуперМг Версумов ИВО ИВ Аватара ИВО | G122: 15754 | H122: 138. ИВАС ИВО ИВ → Синтез ВЦРМ СуперМг Версумов ИВО ИВ Владыки ИВО | I122: 15498 | J122: 138. ИВАС ИВО ИВ → Синтез ВЦРМ СуперМг Версумов ИВО ИВ Учителя ИВО | K122: 15242 | L122: 138. ИВАС ИВО ИВ → Синтез ВЦРМ СуперМг Версумов ИВО ИВ Ипостаси ИВО | M122: 14986 | N122: 138. ИВАС ИВО ИВ → Синтез ВЦРМ СуперМг Версумов ИВО ИВ Служащего ИВО | O122: 14730 | P122: 138. ИВАС ИВО ИВ → Синтез ВЦРМ СуперМг Версумов ИВО ИВ Посвященного ИВО | Q122: 14474 | R122: 138. ИВАС ИВО ИВ → Синтез ВЦРМ СуперМг Версумов ИВО ИВ Майтрейи ИВО | S122: 14218 | T122: 138. ИВАС ИВО ИВ → Синтез ВЦРМ СуперМг Версумов ИВО ИВ Христа ИВО | U122: 13962 | V122: 138. ИВАС ИВО ИВ → Синтез ВЦРМ СуперМг Версумов ИВО ИВ Будды ИВО | W122: 13706 | X122: 138. ИВАС ИВО ИВ → Синтез ВЦРМ СуперМг Версумов ИВО ИВ Теурга ИВО | Y122: 13450 | Z122: 138. ИВАС ИВО ИВ → Синтез ВЦРМ СуперМг Версумов ИВО ИВ Творца ИВО | AA122: 13194 | AB122: 138. ИВАС ИВО ИВ → Синтез ВЦРМ СуперМг Версумов ИВО ИВ Человека ИВО ИВО | AC122: 12938 | AD122: 138. ИВАС ИВО ИВ → Синтез ВЦРМ СуперМг Версумов ИВО ИВ Человека ВЦРМ ИВО | AE122: 12682 | AF122: 138. ИВАС ИВО ИВ → Синтез ВЦРМ СуперМг Версумов ИВО ИВ Человека Мг ФаИВО | AG122: 12426 | AH122: 138. ИВАС ИВО ИВ → Синтез ВЦРМ СуперМг Версумов ИВО ИВ Человека Планеты Земля ИВО
C123: 16265 | D123: 137. ИВАС ИВО Теон Вергилия → Синтез Цельной Мг Синтезверсумов ИВО ИВ Синтез ВЦРМ Цельной Мг Синтезверсумов ИВО | E123: 16009 | F123: 137. ИВАС ИВО ИВ → Синтез ВЦРМ Цельной Мг Синтезверсумов ИВ Аватара ИВО | G123: 15753 | H123: 137. ИВАС ИВО ИВ → Синтез ВЦРМ Цельной Мг Синтезверсумов ИВ Владыки ИВО | I123: 15497 | J123: 137. ИВАС ИВО ИВ → Синтез ВЦРМ Цельной Мг Синтезверсумов ИВ Учителя ИВО | K123: 15241 | L123: 137. ИВАС ИВО ИВ → Синтез ВЦРМ Цельной Мг Синтезверсумов ИВ Ипостаси ИВО | M123: 14985 | N123: 137. ИВАС ИВО ИВ → Синтез ВЦРМ Цельной Мг Синтезверсумов ИВ Служащего ИВО | O123: 14729 | P123: 137. ИВАС ИВО ИВ → Синтез ВЦРМ Цельной Мг Синтезверсумов ИВ Посвященного ИВО | Q123: 14473 | R123: 137. ИВАС ИВО ИВ → Синтез ВЦРМ Цельной Мг Синтезверсумов ИВ Майтрейи ИВО | S123: 14217 | T123: 137. ИВАС ИВО ИВ → Синтез ВЦРМ Цельной Мг Синтезверсумов ИВ Христа ИВО | U123: 13961 | V123: 137. ИВАС ИВО ИВ → Синтез ВЦРМ Цельной Мг Синтезверсумов ИВ Будды ИВО | W123: 13705 | X123: 137. ИВАС ИВО ИВ → Синтез ВЦРМ Цельной Мг Синтезверсумов ИВ Теурга ИВО | Y123: 13449 | Z123: 137. ИВАС ИВО ИВ → Синтез ВЦРМ Цельной Мг Синтезверсумов ИВ Творца ИВО | AA123: 13193 | AB123: 137. ИВАС ИВО ИВ → Синтез ВЦРМ Цельной Мг Синтезверсумов ИВ Человека ИВО ИВО | AC123: 12937 | AD123: 137. ИВАС ИВО ИВ → Синтез ВЦРМ Цельной Мг Синтезверсумов ИВ Человека ВЦРМ ИВО | AE123: 12681 | AF123: 137. ИВАС ИВО ИВ → Синтез ВЦРМ Цельной Мг Синтезверсумов ИВ Человека Мг ФаИВО | AG123: 12425 | AH123: 137. ИВАС ИВО ИВ → Синтез ВЦРМ Цельной Мг Синтезверсумов ИВ Человека Планеты Земля ИВО
C124: 16264 | D124: 136. ИВАС ИВО Трофим Василиса → Синтез Аматической Мг Суперверсумов ИВО ИВ Синтез ВЦРМ Аматической Мг Суперверсумов ИВО | E124: 16008 | F124: 136. ИВАС ИВО ИВ → Синтез ВЦРМ Аматической Мг Суперверсумов ИВ Аватара ИВО | G124: 15752 | H124: 136. ИВАС ИВО ИВ → Синтез ВЦРМ Аматической Мг Суперверсумов ИВ Владыки ИВО | I124: 15496 | J124: 136. ИВАС ИВО ИВ → Синтез ВЦРМ Аматической Мг Суперверсумов ИВ Учителя ИВО | K124: 15240 | L124: 136. ИВАС ИВО ИВ → Синтез ВЦРМ Аматической Мг Суперверсумов ИВ Ипостаси ИВО | M124: 14984 | N124: 136. ИВАС ИВО ИВ → Синтез ВЦРМ Аматической Мг Суперверсумов ИВ Служащего ИВО | O124: 14728 | P124: 136. ИВАС ИВО ИВ → Синтез ВЦРМ Аматической Мг Суперверсумов ИВ Посвященного ИВО | Q124: 14472 | R124: 136. ИВАС ИВО ИВ → Синтез ВЦРМ Аматической Мг Суперверсумов ИВ Майтрейи ИВО | S124: 14216 | T124: 136. ИВАС ИВО ИВ → Синтез ВЦРМ Аматической Мг Суперверсумов ИВ Христа ИВО | U124: 13960 | V124: 136. ИВАС ИВО ИВ → Синтез ВЦРМ Аматической Мг Суперверсумов ИВ Будды ИВО | W124: 13704 | X124: 136. ИВАС ИВО ИВ → Синтез ВЦРМ Аматической Мг Суперверсумов ИВ Теурга ИВО | Y124: 13448 | Z124: 136. ИВАС ИВО ИВ → Синтез ВЦРМ Аматической Мг Суперверсумов ИВ Творца ИВО | AA124: 13192 | AB124: 136. ИВАС ИВО ИВ → Синтез ВЦРМ Аматической Мг Суперверсумов ИВ Человека ИВО ИВО | AC124: 12936 | AD124: 136. ИВАС ИВО ИВ → Синтез ВЦРМ Аматической Мг Суперверсумов ИВ Человека ВЦРМ ИВО | AE124: 12680 | AF124: 136. ИВАС ИВО ИВ → Синтез ВЦРМ Аматической Мг Суперверсумов ИВ Человека Мг ФаИВО | AG124: 12424 | AH124: 136. ИВАС ИВО ИВ → Синтез ВЦРМ Аматической Мг Суперверсумов ИВ Человека Планеты Земля ИВО
C125: 16263 | D125: 135. ИВАС ИВО Емельян Варвара → Синтез Атмической Мг Мультиверсумов ИВО ИВ Синтез ВЦРМ Атмической Мг Мультиверсумов ИВО | E125: 16007 | F125: 135. ИВАС ИВО ИВ → Синтез ВЦРМ Атмической Мг Мультиверсумов ИВ Аватара ИВО | G125: 15751 | H125: 135. ИВАС ИВО ИВ → Синтез ВЦРМ Атмической Мг Мультиверсумов ИВ Владыки ИВО | I125: 15495 | J125: 135. ИВАС ИВО ИВ → Синтез ВЦРМ Атмической Мг Мультиверсумов ИВ Учителя ИВО | K125: 15239 | L125: 135. ИВАС ИВО ИВ → Синтез ВЦРМ Атмической Мг Мультиверсумов ИВ Ипостаси ИВО | M125: 14983 | N125: 135. ИВАС ИВО ИВ → Синтез ВЦРМ Атмической Мг Мультиверсумов ИВ Служащего ИВО | O125: 14727 | P125: 135. ИВАС ИВО ИВ → Синтез ВЦРМ Атмической Мг Мультиверсумов ИВ Посвященного ИВО | Q125: 14471 | R125: 135. ИВАС ИВО ИВ → Синтез ВЦРМ Атмической Мг Мультиверсумов ИВ Майтрейи ИВО | S125: 14215 | T125: 135. ИВАС ИВО ИВ → Синтез ВЦРМ Атмической Мг Мультиверсумов ИВ Христа ИВО | U125: 13959 | V125: 135. ИВАС ИВО ИВ → Синтез ВЦРМ Атмической Мг Мультиверсумов ИВ Будды ИВО | W125: 13703 | X125: 135. ИВАС ИВО ИВ → Синтез ВЦРМ Атмической Мг Мультиверсумов ИВ Теурга ИВО | Y125: 13447 | Z125: 135. ИВАС ИВО ИВ → Синтез ВЦРМ Атмической Мг Мультиверсумов ИВ Творца ИВО | AA125: 13191 | AB125: 135. ИВАС ИВО ИВ → Синтез ВЦРМ Атмической Мг Мультиверсумов ИВ Человека ИВО ИВО | AC125: 12935 | AD125: 135. ИВАС ИВО ИВ → Синтез ВЦРМ Атмической Мг Мультиверсумов ИВ Человека ВЦРМ ИВО | AE125: 12679 | AF125: 135. ИВАС ИВО ИВ → Синтез ВЦРМ Атмической Мг Мультиверсумов ИВ Человека Мг ФаИВО | AG125: 12423 | AH125: 135. ИВАС ИВО ИВ → Синтез ВЦРМ Атмической Мг Мультиверсумов ИВ Человека Планеты Земля ИВО
C126: 16262 | D126: 134. ИВАС ИВО Ефрем Арина → Синтез Буддической Мг Универсумов ИВО ИВ Синтез ВЦРМ Буддической Мг Универсумов ИВО | E126: 16006 | F126: 134. ИВАС ИВО ИВ → Синтез ВЦРМ Буддической Мг Универсумов ИВ Аватара ИВО | G126: 15750 | H126: 134. ИВАС ИВО ИВ → Синтез ВЦРМ Буддической Мг Универсумов ИВ Владыки ИВО | I126: 15494 | J126: 134. ИВАС ИВО ИВ → Синтез ВЦРМ Буддической Мг Универсумов ИВ Учителя ИВО | K126: 15238 | L126: 134. ИВАС ИВО ИВ → Синтез ВЦРМ Буддической Мг Универсумов ИВ Ипостаси ИВО | M126: 14982 | N126: 134. ИВАС ИВО ИВ → Синтез ВЦРМ Буддической Мг Универсумов ИВ Служащего ИВО | O126: 14726 | P126: 134. ИВАС ИВО ИВ → Синтез ВЦРМ Буддической Мг Универсумов ИВ Посвященного ИВО | Q126: 14470 | R126: 134. ИВАС ИВО ИВ → Синтез ВЦРМ Буддической Мг Универсумов ИВ Майтрейи ИВО | S126: 14214 | T126: 134. ИВАС ИВО ИВ → Синтез ВЦРМ Буддической Мг Универсумов ИВ Христа ИВО | U126: 13958 | V126: 134. ИВАС ИВО ИВ → Синтез ВЦРМ Буддической Мг Универсумов ИВ Будды ИВО | W126: 13702 | X126: 134. ИВАС ИВО ИВ → Синтез ВЦРМ Буддической Мг Универсумов ИВ Теурга ИВО | Y126: 13446 | Z126: 134. ИВАС ИВО ИВ → Синтез ВЦРМ Буддической Мг Универсумов ИВ Творца ИВО | AA126: 13190 | AB126: 134. ИВАС ИВО ИВ → Синтез ВЦРМ Буддической Мг Универсумов ИВ Человека ИВО ИВО | AC126: 12934 | AD126: 134. ИВАС ИВО ИВ → Синтез ВЦРМ Буддической Мг Универсумов ИВ Человека ВЦРМ ИВО | AE126: 12678 | AF126: 134. ИВАС ИВО ИВ → Синтез ВЦРМ Буддической Мг Универсумов ИВ Человека Мг ФаИВО | AG126: 12422 | AH126: 134. ИВАС ИВО ИВ → Синтез ВЦРМ Буддической Мг Универсумов ИВ Человека Планеты Земля ИВО
C127: 16261 | D127: 133. ИВАС ИВО Натан Амалия → Синтез Причинной Мг Вселенных ИВО ИВ Синтез ВЦРМ Причинной Мг Вселенных ИВО | E127: 16005 | F127: 133. ИВАС ИВО ИВ → Синтез ВЦРМ Причинной Мг Вселенных ИВ Аватара ИВО | G127: 15749 | H127: 133. ИВАС ИВО ИВ → Синтез ВЦРМ Причинной Мг Вселенных ИВ Владыки ИВО | I127: 15493 | J127: 133. ИВАС ИВО ИВ → Синтез ВЦРМ Причинной Мг Вселенных ИВ Учителя ИВО | K127: 15237 | L127: 133. ИВАС ИВО ИВ → Синтез ВЦРМ Причинной Мг Вселенных ИВ Ипостаси ИВО | M127: 14981 | N127: 133. ИВАС ИВО ИВ → Синтез ВЦРМ Причинной Мг Вселенных ИВ Служащего ИВО | O127: 14725 | P127: 133. ИВАС ИВО ИВ → Синтез ВЦРМ Причинной Мг Вселенных ИВ Посвященного ИВО | Q127: 14469 | R127: 133. ИВАС ИВО ИВ → Синтез ВЦРМ Причинной Мг Вселенных ИВ Майтрейи ИВО | S127: 14213 | T127: 133. ИВАС ИВО ИВ → Синтез ВЦРМ Причинной Мг Вселенных ИВ Христа ИВО | U127: 13957 | V127: 133. ИВАС ИВО ИВ → Синтез ВЦРМ Причинной Мг Вселенных ИВ Будды ИВО | W127: 13701 | X127: 133. ИВАС ИВО ИВ → Синтез ВЦРМ Причинной Мг Вселенных ИВ Теурга ИВО | Y127: 13445 | Z127: 133. ИВАС ИВО ИВ → Синтез ВЦРМ Причинной Мг Вселенных ИВ Творца ИВО | AA127: 13189 | AB127: 133. ИВАС ИВО ИВ → Синтез ВЦРМ Причинной Мг Вселенных ИВ Человека ИВО ИВО | AC127: 12933 | AD127: 133. ИВАС ИВО ИВ → Синтез ВЦРМ Причинной Мг Вселенных ИВ Человека ВЦРМ ИВО | AE127: 12677 | AF127: 133. ИВАС ИВО ИВ → Синтез ВЦРМ Причинной Мг Вселенных ИВ Человека Мг ФаИВО | AG127: 12421 | AH127: 133. ИВАС ИВО ИВ → Синтез ВЦРМ Причинной Мг Вселенных ИВ Человека Планеты Земля ИВО
C128: 16260 | D128: 132. ИВАС ИВО Артём Елизавета → Синтез Ментальной Мг Супергалактик ИВО ИВ Синтез ВЦРМ Ментальной Мг Супергалактик ИВО | E128: 16004 | F128: 132. ИВАС ИВО ИВ → Синтез ВЦРМ Ментальной Мг Супергалактик ИВ Аватара ИВО | G128: 15748 | H128: 132. ИВАС ИВО ИВ → Синтез ВЦРМ Ментальной Мг Супергалактик ИВ Владыки ИВО | I128: 15492 | J128: 132. ИВАС ИВО ИВ → Синтез ВЦРМ Ментальной Мг Супергалактик ИВ Учителя ИВО | K128: 15236 | L128: 132. ИВАС ИВО ИВ → Синтез ВЦРМ Ментальной Мг Супергалактик ИВ Ипостаси ИВО | M128: 14980 | N128: 132. ИВАС ИВО ИВ → Синтез ВЦРМ Ментальной Мг Супергалактик ИВ Служащего ИВО | O128: 14724 | P128: 132. ИВАС ИВО ИВ → Синтез ВЦРМ Ментальной Мг Супергалактик ИВ Посвященного ИВО | Q128: 14468 | R128: 132. ИВАС ИВО ИВ → Синтез ВЦРМ Ментальной Мг Супергалактик ИВ Майтрейи ИВО | S128: 14212 | T128: 132. ИВАС ИВО ИВ → Синтез ВЦРМ Ментальной Мг Супергалактик ИВ Христа ИВО | U128: 13956 | V128: 132. ИВАС ИВО ИВ → Синтез ВЦРМ Ментальной Мг Супергалактик ИВ Будды ИВО | W128: 13700 | X128: 132. ИВАС ИВО ИВ → Синтез ВЦРМ Ментальной Мг Супергалактик ИВ Теурга ИВО | Y128: 13444 | Z128: 132. ИВАС ИВО ИВ → Синтез ВЦРМ Ментальной Мг Супергалактик ИВ Творца ИВО | AA128: 13188 | AB128: 132. ИВАС ИВО ИВ → Синтез ВЦРМ Ментальной Мг Супергалактик ИВ Человека ИВО ИВО | AC128: 12932 | AD128: 132. ИВАС ИВО ИВ → Синтез ВЦРМ Ментальной Мг Супергалактик ИВ Человека ВЦРМ ИВО | AE128: 12676 | AF128: 132. ИВАС ИВО ИВ → Синтез ВЦРМ Ментальной Мг Супергалактик ИВ Человека Мг ФаИВО | AG128: 12420 | AH128: 132. ИВАС ИВО ИВ → Синтез ВЦРМ Ментальной Мг Супергалактик ИВ Человека Планеты Земля ИВО
C129: 16259 | D129: 131. ИВАС ИВО Игнатий Вера → Синтез Изначальной Мг Галактик ИВО ИВ Синтез ВЦРМ Изначальной Мг Галактик ИВО | E129: 16003 | F129: 131. ИВАС ИВО ИВ → Синтез ВЦРМ Изначальной Мг Галактик ИВ Аватара ИВО | G129: 15747 | H129: 131. ИВАС ИВО ИВ → Синтез ВЦРМ Изначальной Мг Галактик ИВ Владыки ИВО | I129: 15491 | J129: 131. ИВАС ИВО ИВ → Синтез ВЦРМ Изначальной Мг Галактик ИВ Учителя ИВО | K129: 15235 | L129: 131. ИВАС ИВО ИВ → Синтез ВЦРМ Изначальной Мг Галактик ИВ Ипостаси ИВО | M129: 14979 | N129: 131. ИВАС ИВО ИВ → Синтез ВЦРМ Изначальной Мг Галактик ИВ Служащего ИВО | O129: 14723 | P129: 131. ИВАС ИВО ИВ → Синтез ВЦРМ Изначальной Мг Галактик ИВ Посвященного ИВО | Q129: 14467 | R129: 131. ИВАС ИВО ИВ → Синтез ВЦРМ Изначальной Мг Галактик ИВ Майтрейи ИВО | S129: 14211 | T129: 131. ИВАС ИВО ИВ → Синтез ВЦРМ Изначальной Мг Галактик ИВ Христа ИВО | U129: 13955 | V129: 131. ИВАС ИВО ИВ → Синтез ВЦРМ Изначальной Мг Галактик ИВ Будды ИВО | W129: 13699 | X129: 131. ИВАС ИВО ИВ → Синтез ВЦРМ Изначальной Мг Галактик ИВ Теурга ИВО | Y129: 13443 | Z129: 131. ИВАС ИВО ИВ → Синтез ВЦРМ Изначальной Мг Галактик ИВ Творца ИВО | AA129: 13187 | AB129: 131. ИВАС ИВО ИВ → Синтез ВЦРМ Изначальной Мг Галактик ИВ Человека ИВО ИВО | AC129: 12931 | AD129: 131. ИВАС ИВО ИВ → Синтез ВЦРМ Изначальной Мг Галактик ИВ Человека ВЦРМ ИВО | AE129: 12675 | AF129: 131. ИВАС ИВО ИВ → Синтез ВЦРМ Изначальной Мг Галактик ИВ Человека Мг ФаИВО | AG129: 12419 | AH129: 131. ИВАС ИВО ИВ → Синтез ВЦРМ Изначальной Мг Галактик ИВ Человека Планеты Земля ИВО
C130: 16258 | D130: 130. ИВАС ИВО Юлиан Мирослава → Синтез Основной Мг Солнечных систем ИВО ИВ Синтез ВЦРМ Основной Мг Солнечных систем ИВО | E130: 16002 | F130: 130. ИВАС ИВО ИВ → Синтез ВЦРМ Основной Мг Солнечных систем ИВ Аватара ИВО | G130: 15746 | H130: 130. ИВАС ИВО ИВ → Синтез ВЦРМ Основной Мг Солнечных систем ИВ Владыки ИВО | I130: 15490 | J130: 130. ИВАС ИВО ИВ → Синтез ВЦРМ Основной Мг Солнечных систем ИВ Учителя ИВО | K130: 15234 | L130: 130. ИВАС ИВО ИВ → Синтез ВЦРМ Основной Мг Солнечных систем ИВ Ипостаси ИВО | M130: 14978 | N130: 130. ИВАС ИВО ИВ → Синтез ВЦРМ Основной Мг Солнечных систем ИВ Служащего ИВО | O130: 14722 | P130: 130. ИВАС ИВО ИВ → Синтез ВЦРМ Основной Мг Солнечных систем ИВ Посвященного ИВО | Q130: 14466 | R130: 130. ИВАС ИВО ИВ → Синтез ВЦРМ Основной Мг Солнечных систем ИВ Майтрейи ИВО | S130: 14210 | T130: 130. ИВАС ИВО ИВ → Синтез ВЦРМ Основной Мг Солнечных систем ИВ Христа ИВО | U130: 13954 | V130: 130. ИВАС ИВО ИВ → Синтез ВЦРМ Основной Мг Солнечных систем ИВ Будды ИВО | W130: 13698 | X130: 130. ИВАС ИВО ИВ → Синтез ВЦРМ Основной Мг Солнечных систем ИВ Теурга ИВО | Y130: 13442 | Z130: 130. ИВАС ИВО ИВ → Синтез ВЦРМ Основной Мг Солнечных систем ИВ Творца ИВО | AA130: 13186 | AB130: 130. ИВАС ИВО ИВ → Синтез ВЦРМ Основной Мг Солнечных систем ИВ Человека ИВО ИВО | AC130: 12930 | AD130: 130. ИВАС ИВО ИВ → Синтез ВЦРМ Основной Мг Солнечных систем ИВ Человека ВЦРМ ИВО | AE130: 12674 | AF130: 130. ИВАС ИВО ИВ → Синтез ВЦРМ Основной Мг Солнечных систем ИВ Человека Мг ФаИВО | AG130: 12418 | AH130: 130. ИВАС ИВО ИВ → Синтез ВЦРМ Основной Мг Солнечных систем ИВ Человека Планеты Земля ИВО
C131: 16257 | D131: 129. ИВАС ИВО Аркадий Даяна → Синтез Физичности ИВО ИВ Синтез ВЦРМ Физичности ИВО | E131: 16001 | F131: 129. ИВАС ИВО ИВ → Синтез ВЦРМ Физичности ИВ Аватара ИВО | G131: 15745 | H131: 129. ИВАС ИВО ИВ → Синтез ВЦРМ Физичности ИВ Владыки ИВО | I131: 15489 | J131: 129. ИВАС ИВО ИВ → Синтез ВЦРМ Физичности ИВ Учителя ИВО | K131: 15233 | L131: 129. ИВАС ИВО ИВ → Синтез ВЦРМ Физичности ИВ Ипостаси ИВО | M131: 14977 | N131: 129. ИВАС ИВО ИВ → Синтез ВЦРМ Физичности ИВ Служащего ИВО | O131: 14721 | P131: 129. ИВАС ИВО ИВ → Синтез ВЦРМ Физичности ИВ Посвященного ИВО | Q131: 14465 | R131: 129. ИВАС ИВО ИВ → Синтез ВЦРМ Физичности ИВ Майтрейи ИВО | S131: 14209 | T131: 129. ИВАС ИВО ИВ → Синтез ВЦРМ Физичности ИВ Христа ИВО | U131: 13953 | V131: 129. ИВАС ИВО ИВ → Синтез ВЦРМ Физичности ИВ Будды ИВО | W131: 13697 | X131: 129. ИВАС ИВО ИВ → Синтез ВЦРМ Физичности ИВ Теурга ИВО | Y131: 13441 | Z131: 129. ИВАС ИВО ИВ → Синтез ВЦРМ Физичности ИВ Творца ИВО | AA131: 13185 | AB131: 129. ИВАС ИВО ИВ → Синтез ВЦРМ Физичности ИВ Человека ИВО ИВО | AC131: 12929 | AD131: 129. ИВАС ИВО ИВ → Синтез ВЦРМ Физичности ИВ Человека ВЦРМ ИВО | AE131: 12673 | AF131: 129. ИВАС ИВО ИВ → Синтез ВЦРМ Физичности ИВ Человека Мг ФаИВО | AG131: 12417 | AH131: 129. ИВАС ИВО ИВ → Синтез ВЦРМ Физичности ИВ Человека Планеты Земля ИВО
C132: 16256 | D132: 128. ИВАС ИВО Никита Стелла → Си Мг ИВ Дома Ипостаси ИВО ИВ Дом Ипостаси ИВО | E132: 16000 | F132: 128. ИВАС ИВО ИВ → Синтез ИВ Дома Ипостаси ИВО ИВ Аватара ИВО | G132: 15744 | H132: 128. ИВАС ИВО ИВ → Синтез ИВ Дома Ипостаси ИВО ИВ Владыки ИВО | I132: 15488 | J132: 128. ИВАС ИВО ИВ → Синтез ИВ Дома Ипостаси ИВО ИВ Учителя ИВО | K132: 15232 | L132: 128. ИВАС ИВО ИВ → Синтез ИВ Дома Ипостаси ИВО ИВ Ипостаси ИВО | M132: 14976 | N132: 128. ИВАС ИВО ИВ → Синтез ИВ Дома Ипостаси ИВО ИВ Служащего ИВО | O132: 14720 | P132: 128. ИВАС ИВО ИВ → Синтез ИВ Дома Ипостаси ИВО ИВ Посвященного ИВО | Q132: 14464 | R132: 128. ИВАС ИВО ИВ → Синтез ИВ Дома Ипостаси ИВО ИВ Майтрейи ИВО | S132: 14208 | T132: 128. ИВАС ИВО ИВ → Синтез ИВ Дома Ипостаси ИВО ИВ Христа ИВО | U132: 13952 | V132: 128. ИВАС ИВО ИВ → Синтез ИВ Дома Ипостаси ИВО ИВ Будды ИВО | W132: 13696 | X132: 128. ИВАС ИВО ИВ → Синтез ИВ Дома Ипостаси ИВО ИВ Теурга ИВО | Y132: 13440 | Z132: 128. ИВАС ИВО ИВ → Синтез ИВ Дома Ипостаси ИВО ИВ Творца ИВО | AA132: 13184 | AB132: 128. ИВАС ИВО ИВ → Синтез ИВ Дома Ипостаси ИВО ИВ Человека ИВО ИВО | AC132: 12928 | AD132: 128. ИВАС ИВО ИВ → Синтез ИВ Дома Ипостаси ИВО ИВ Человека ВЦРМ ИВО | AE132: 12672 | AF132: 128. ИВАС ИВО ИВ → Синтез ИВ Дома Ипостаси ИВО ИВ Человека Мг ФаИВО | AG132: 12416 | AH132: 128. ИВАС ИВО ИВ → Синтез ИВ Дома Ипостаси ИВО ИВ Человека Планеты Земля ИВО
C133: 16255 | D133: 127. ИВАС ИВО Олег Дора → Си Мг Воли ИВО ИВ Си Мг Воли ИВО | E133: 15999 | F133: 127. ИВАС ИВО ИВ → Синтез Мг Воли ИВ Аватара ИВО | G133: 15743 | H133: 127. ИВАС ИВО ИВ → Синтез Мг Воли ИВ Владыки ИВО | I133: 15487 | J133: 127. ИВАС ИВО ИВ → Синтез Мг Воли ИВ Учителя ИВО | K133: 15231 | L133: 127. ИВАС ИВО ИВ → Синтез Мг Воли ИВ Ипостаси ИВО | M133: 14975 | N133: 127. ИВАС ИВО ИВ → Синтез Мг Воли ИВ Служащего ИВО | O133: 14719 | P133: 127. ИВАС ИВО ИВ → Синтез Мг Воли ИВ Посвященного ИВО | Q133: 14463 | R133: 127. ИВАС ИВО ИВ → Синтез Мг Воли ИВ Майтрейи ИВО | S133: 14207 | T133: 127. ИВАС ИВО ИВ → Синтез Мг Воли ИВ Христа ИВО | U133: 13951 | V133: 127. ИВАС ИВО ИВ → Синтез Мг Воли ИВ Будды ИВО | W133: 13695 | X133: 127. ИВАС ИВО ИВ → Синтез Мг Воли ИВ Теурга ИВО | Y133: 13439 | Z133: 127. ИВАС ИВО ИВ → Синтез Мг Воли ИВ Творца ИВО | AA133: 13183 | AB133: 127. ИВАС ИВО ИВ → Синтез Мг Воли ИВ Человека ИВО ИВО | AC133: 12927 | AD133: 127. ИВАС ИВО ИВ → Синтез Мг Воли ИВ Человека ВЦРМ ИВО | AE133: 12671 | AF133: 127. ИВАС ИВО ИВ → Синтез Мг Воли ИВ Человека Мг ФаИВО | AG133: 12415 | AH133: 127. ИВАС ИВО ИВ → Синтез Мг Воли ИВ Человека Планеты Земля ИВО
C134: 16254 | D134: 126. ИВАС ИВО Владимир Клавдия → Си Мг Мудрости ИВО ИВ Си Мг Мудрости ИВО | E134: 15998 | F134: 126. ИВАС ИВО ИВ → Синтез Мг Мудрости ИВ Аватара ИВО | G134: 15742 | H134: 126. ИВАС ИВО ИВ → Синтез Мг Мудрости ИВ Владыки ИВО | I134: 15486 | J134: 126. ИВАС ИВО ИВ → Синтез Мг Мудрости ИВ Учителя ИВО | K134: 15230 | L134: 126. ИВАС ИВО ИВ → Синтез Мг Мудрости ИВ Ипостаси ИВО | M134: 14974 | N134: 126. ИВАС ИВО ИВ → Синтез Мг Мудрости ИВ Служащего ИВО | O134: 14718 | P134: 126. ИВАС ИВО ИВ → Синтез Мг Мудрости ИВ Посвященного ИВО | Q134: 14462 | R134: 126. ИВАС ИВО ИВ → Синтез Мг Мудрости ИВ Майтрейи ИВО | S134: 14206 | T134: 126. ИВАС ИВО ИВ → Синтез Мг Мудрости ИВ Христа ИВО | U134: 13950 | V134: 126. ИВАС ИВО ИВ → Синтез Мг Мудрости ИВ Будды ИВО | W134: 13694 | X134: 126. ИВАС ИВО ИВ → Синтез Мг Мудрости ИВ Теурга ИВО | Y134: 13438 | Z134: 126. ИВАС ИВО ИВ → Синтез Мг Мудрости ИВ Творца ИВО | AA134: 13182 | AB134: 126. ИВАС ИВО ИВ → Синтез Мг Мудрости ИВ Человека ИВО ИВО | AC134: 12926 | AD134: 126. ИВАС ИВО ИВ → Синтез Мг Мудрости ИВ Человека ВЦРМ ИВО | AE134: 12670 | AF134: 126. ИВАС ИВО ИВ → Синтез Мг Мудрости ИВ Человека Мг ФаИВО | AG134: 12414 | AH134: 126. ИВАС ИВО ИВ → Синтез Мг Мудрости ИВ Человека Планеты Земля ИВО
C135: 16253 | D135: 125. ИВАС ИВО Стефан Лада → Си Мг Любви ИВО ИВ Си Мг Любви ИВО | E135: 15997 | F135: 125. ИВАС ИВО ИВ → Синтез Мг Любви ИВ Аватара ИВО | G135: 15741 | H135: 125. ИВАС ИВО ИВ → Синтез Мг Любви ИВ Владыки ИВО | I135: 15485 | J135: 125. ИВАС ИВО ИВ → Синтез Мг Любви ИВ Учителя ИВО | K135: 15229 | L135: 125. ИВАС ИВО ИВ → Синтез Мг Любви ИВ Ипостаси ИВО | M135: 14973 | N135: 125. ИВАС ИВО ИВ → Синтез Мг Любви ИВ Служащего ИВО | O135: 14717 | P135: 125. ИВАС ИВО ИВ → Синтез Мг Любви ИВ Посвященного ИВО | Q135: 14461 | R135: 125. ИВАС ИВО ИВ → Синтез Мг Любви ИВ Майтрейи ИВО | S135: 14205 | T135: 125. ИВАС ИВО ИВ → Синтез Мг Любви ИВ Христа ИВО | U135: 13949 | V135: 125. ИВАС ИВО ИВ → Синтез Мг Любви ИВ Будды ИВО | W135: 13693 | X135: 125. ИВАС ИВО ИВ → Синтез Мг Любви ИВ Теурга ИВО | Y135: 13437 | Z135: 125. ИВАС ИВО ИВ → Синтез Мг Любви ИВ Творца ИВО | AA135: 13181 | AB135: 125. ИВАС ИВО ИВ → Синтез Мг Любви ИВ Человека ИВО ИВО | AC135: 12925 | AD135: 125. ИВАС ИВО ИВ → Синтез Мг Любви ИВ Человека ВЦРМ ИВО | AE135: 12669 | AF135: 125. ИВАС ИВО ИВ → Синтез Мг Любви ИВ Человека Мг ФаИВО | AG135: 12413 | AH135: 125. ИВАС ИВО ИВ → Синтез Мг Любви ИВ Человека Планеты Земля ИВО
C136: 16252 | D136: 124. ИВАС ИВО Горислав Ветта → Си Мг Творения ИВО ИВ Си Мг Творения ИВО | E136: 15996 | F136: 124. ИВАС ИВО ИВ → Синтез Мг Творения ИВ Аватара ИВО | G136: 15740 | H136: 124. ИВАС ИВО ИВ → Синтез Мг Творения ИВ Владыки ИВО | I136: 15484 | J136: 124. ИВАС ИВО ИВ → Синтез Мг Творения ИВ Учителя ИВО | K136: 15228 | L136: 124. ИВАС ИВО ИВ → Синтез Мг Творения ИВ Ипостаси ИВО | M136: 14972 | N136: 124. ИВАС ИВО ИВ → Синтез Мг Творения ИВ Служащего ИВО | O136: 14716 | P136: 124. ИВАС ИВО ИВ → Синтез Мг Творения ИВ Посвященного ИВО | Q136: 14460 | R136: 124. ИВАС ИВО ИВ → Синтез Мг Творения ИВ Майтрейи ИВО | S136: 14204 | T136: 124. ИВАС ИВО ИВ → Синтез Мг Творения ИВ Христа ИВО | U136: 13948 | V136: 124. ИВАС ИВО ИВ → Синтез Мг Творения ИВ Будды ИВО | W136: 13692 | X136: 124. ИВАС ИВО ИВ → Синтез Мг Творения ИВ Теурга ИВО | Y136: 13436 | Z136: 124. ИВАС ИВО ИВ → Синтез Мг Творения ИВ Творца ИВО | AA136: 13180 | AB136: 124. ИВАС ИВО ИВ → Синтез Мг Творения ИВ Человека ИВО ИВО | AC136: 12924 | AD136: 124. ИВАС ИВО ИВ → Синтез Мг Творения ИВ Человека ВЦРМ ИВО | AE136: 12668 | AF136: 124. ИВАС ИВО ИВ → Синтез Мг Творения ИВ Человека Мг ФаИВО | AG136: 12412 | AH136: 124. ИВАС ИВО ИВ → Синтез Мг Творения ИВ Человека Планеты Земля ИВО
C137: 16251 | D137: 123. ИВАС ИВО Никон Власта → Си Мг Созидания ИВО ИВ Си Мг Созидания ИВО | E137: 15995 | F137: 123. ИВАС ИВО ИВ → Синтез Мг Созидания ИВ Аватара ИВО | G137: 15739 | H137: 123. ИВАС ИВО ИВ → Синтез Мг Созидания ИВ Владыки ИВО | I137: 15483 | J137: 123. ИВАС ИВО ИВ → Синтез Мг Созидания ИВ Учителя ИВО | K137: 15227 | L137: 123. ИВАС ИВО ИВ → Синтез Мг Созидания ИВ Ипостаси ИВО | M137: 14971 | N137: 123. ИВАС ИВО ИВ → Синтез Мг Созидания ИВ Служащего ИВО | O137: 14715 | P137: 123. ИВАС ИВО ИВ → Синтез Мг Созидания ИВ Посвященного ИВО | Q137: 14459 | R137: 123. ИВАС ИВО ИВ → Синтез Мг Созидания ИВ Майтрейи ИВО | S137: 14203 | T137: 123. ИВАС ИВО ИВ → Синтез Мг Созидания ИВ Христа ИВО | U137: 13947 | V137: 123. ИВАС ИВО ИВ → Синтез Мг Созидания ИВ Будды ИВО | W137: 13691 | X137: 123. ИВАС ИВО ИВ → Синтез Мг Созидания ИВ Теурга ИВО | Y137: 13435 | Z137: 123. ИВАС ИВО ИВ → Синтез Мг Созидания ИВ Творца ИВО | AA137: 13179 | AB137: 123. ИВАС ИВО ИВ → Синтез Мг Созидания ИВ Человека ИВО ИВО | AC137: 12923 | AD137: 123. ИВАС ИВО ИВ → Синтез Мг Созидания ИВ Человека ВЦРМ ИВО | AE137: 12667 | AF137: 123. ИВАС ИВО ИВ → Синтез Мг Созидания ИВ Человека Мг ФаИВО | AG137: 12411 | AH137: 123. ИВАС ИВО ИВ → Синтез Мг Созидания ИВ Человека Планеты Земля ИВО
C138: 16250 | D138: 122. ИВАС ИВО Эрик Офелия → Си Мг Живы ИВО ИВ Си Мг Живы ИВО | E138: 15994 | F138: 122. ИВАС ИВО ИВ → Синтез Мг Живы ИВ Аватара ИВО | G138: 15738 | H138: 122. ИВАС ИВО ИВ → Синтез Мг Живы ИВ Владыки ИВО | I138: 15482 | J138: 122. ИВАС ИВО ИВ → Синтез Мг Живы ИВ Учителя ИВО | K138: 15226 | L138: 122. ИВАС ИВО ИВ → Синтез Мг Живы ИВ Ипостаси ИВО | M138: 14970 | N138: 122. ИВАС ИВО ИВ → Синтез Мг Живы ИВ Служащего ИВО | O138: 14714 | P138: 122. ИВАС ИВО ИВ → Синтез Мг Живы ИВ Посвященного ИВО | Q138: 14458 | R138: 122. ИВАС ИВО ИВ → Синтез Мг Живы ИВ Майтрейи ИВО | S138: 14202 | T138: 122. ИВАС ИВО ИВ → Синтез Мг Живы ИВ Христа ИВО | U138: 13946 | V138: 122. ИВАС ИВО ИВ → Синтез Мг Живы ИВ Будды ИВО | W138: 13690 | X138: 122. ИВАС ИВО ИВ → Синтез Мг Живы ИВ Теурга ИВО | Y138: 13434 | Z138: 122. ИВАС ИВО ИВ → Синтез Мг Живы ИВ Творца ИВО | AA138: 13178 | AB138: 122. ИВАС ИВО ИВ → Синтез Мг Живы ИВ Человека ИВО ИВО | AC138: 12922 | AD138: 122. ИВАС ИВО ИВ → Синтез Мг Живы ИВ Человека ВЦРМ ИВО | AE138: 12666 | AF138: 122. ИВАС ИВО ИВ → Синтез Мг Живы ИВ Человека Мг ФаИВО | AG138: 12410 | AH138: 122. ИВАС ИВО ИВ → Синтез Мг Живы ИВ Человека Планеты Земля ИВО
C139: 16249 | D139: 121. ИВАС ИВО Олаф Даная → Си Мг Жизни ИВО ИВ Си Мг Жизни ИВО | E139: 15993 | F139: 121. ИВАС ИВО ИВ → Синтез Мг Жизни ИВ Аватара ИВО | G139: 15737 | H139: 121. ИВАС ИВО ИВ → Синтез Мг Жизни ИВ Владыки ИВО | I139: 15481 | J139: 121. ИВАС ИВО ИВ → Синтез Мг Жизни ИВ Учителя ИВО | K139: 15225 | L139: 121. ИВАС ИВО ИВ → Синтез Мг Жизни ИВ Ипостаси ИВО | M139: 14969 | N139: 121. ИВАС ИВО ИВ → Синтез Мг Жизни ИВ Служащего ИВО | O139: 14713 | P139: 121. ИВАС ИВО ИВ → Синтез Мг Жизни ИВ Посвященного ИВО | Q139: 14457 | R139: 121. ИВАС ИВО ИВ → Синтез Мг Жизни ИВ Майтрейи ИВО | S139: 14201 | T139: 121. ИВАС ИВО ИВ → Синтез Мг Жизни ИВ Христа ИВО | U139: 13945 | V139: 121. ИВАС ИВО ИВ → Синтез Мг Жизни ИВ Будды ИВО | W139: 13689 | X139: 121. ИВАС ИВО ИВ → Синтез Мг Жизни ИВ Теурга ИВО | Y139: 13433 | Z139: 121. ИВАС ИВО ИВ → Синтез Мг Жизни ИВ Творца ИВО | AA139: 13177 | AB139: 121. ИВАС ИВО ИВ → Синтез Мг Жизни ИВ Человека ИВО ИВО | AC139: 12921 | AD139: 121. ИВАС ИВО ИВ → Синтез Мг Жизни ИВ Человека ВЦРМ ИВО | AE139: 12665 | AF139: 121. ИВАС ИВО ИВ → Синтез Мг Жизни ИВ Человека Мг ФаИВО | AG139: 12409 | AH139: 121. ИВАС ИВО ИВ → Синтез Мг Жизни ИВ Человека Планеты Земля ИВО
C140: 16248 | D140: 120. ИВАС ИВО Вацлав Ханна → Си Мг Воскрешения ИВО ИВ Си Мг Воскрешения ИВО | E140: 15992 | F140: 120. ИВАС ИВО ИВ → Синтез Мг Воскрешения ИВ Аватара ИВО | G140: 15736 | H140: 120. ИВАС ИВО ИВ → Синтез Мг Воскрешения ИВ Владыки ИВО | I140: 15480 | J140: 120. ИВАС ИВО ИВ → Синтез Мг Воскрешения ИВ Учителя ИВО | K140: 15224 | L140: 120. ИВАС ИВО ИВ → Синтез Мг Воскрешения ИВ Ипостаси ИВО | M140: 14968 | N140: 120. ИВАС ИВО ИВ → Синтез Мг Воскрешения ИВ Служащего ИВО | O140: 14712 | P140: 120. ИВАС ИВО ИВ → Синтез Мг Воскрешения ИВ Посвященного ИВО | Q140: 14456 | R140: 120. ИВАС ИВО ИВ → Синтез Мг Воскрешения ИВ Майтрейи ИВО | S140: 14200 | T140: 120. ИВАС ИВО ИВ → Синтез Мг Воскрешения ИВ Христа ИВО | U140: 13944 | V140: 120. ИВАС ИВО ИВ → Синтез Мг Воскрешения ИВ Будды ИВО | W140: 13688 | X140: 120. ИВАС ИВО ИВ → Синтез Мг Воскрешения ИВ Теурга ИВО | Y140: 13432 | Z140: 120. ИВАС ИВО ИВ → Синтез Мг Воскрешения ИВ Творца ИВО | AA140: 13176 | AB140: 120. ИВАС ИВО ИВ → Синтез Мг Воскрешения ИВ Человека ИВО ИВО | AC140: 12920 | AD140: 120. ИВАС ИВО ИВ → Синтез Мг Воскрешения ИВ Человека ВЦРМ ИВО | AE140: 12664 | AF140: 120. ИВАС ИВО ИВ → Синтез Мг Воскрешения ИВ Человека Мг ФаИВО | AG140: 12408 | AH140: 120. ИВАС ИВО ИВ → Синтез Мг Воскрешения ИВ Человека Планеты Земля ИВО
C141: 16247 | D141: 119. ИВАС ИВО Левий Хлоя → Си Мг Пробуждения ИВО ИВ Си Мг Пробуждения ИВО | E141: 15991 | F141: 119. ИВАС ИВО ИВ → Синтез Мг Пробуждения ИВ Аватара ИВО | G141: 15735 | H141: 119. ИВАС ИВО ИВ → Синтез Мг Пробуждения ИВ Владыки ИВО | I141: 15479 | J141: 119. ИВАС ИВО ИВ → Синтез Мг Пробуждения ИВ Учителя ИВО | K141: 15223 | L141: 119. ИВАС ИВО ИВ → Синтез Мг Пробуждения ИВ Ипостаси ИВО | M141: 14967 | N141: 119. ИВАС ИВО ИВ → Синтез Мг Пробуждения ИВ Служащего ИВО | O141: 14711 | P141: 119. ИВАС ИВО ИВ → Синтез Мг Пробуждения ИВ Посвященного ИВО | Q141: 14455 | R141: 119. ИВАС ИВО ИВ → Синтез Мг Пробуждения ИВ Майтрейи ИВО | S141: 14199 | T141: 119. ИВАС ИВО ИВ → Синтез Мг Пробуждения ИВ Христа ИВО | U141: 13943 | V141: 119. ИВАС ИВО ИВ → Синтез Мг Пробуждения ИВ Будды ИВО | W141: 13687 | X141: 119. ИВАС ИВО ИВ → Синтез Мг Пробуждения ИВ Теурга ИВО | Y141: 13431 | Z141: 119. ИВАС ИВО ИВ → Синтез Мг Пробуждения ИВ Творца ИВО | AA141: 13175 | AB141: 119. ИВАС ИВО ИВ → Синтез Мг Пробуждения ИВ Человека ИВО ИВО | AC141: 12919 | AD141: 119. ИВАС ИВО ИВ → Синтез Мг Пробуждения ИВ Человека ВЦРМ ИВО | AE141: 12663 | AF141: 119. ИВАС ИВО ИВ → Синтез Мг Пробуждения ИВ Человека Мг ФаИВО | AG141: 12407 | AH141: 119. ИВАС ИВО ИВ → Синтез Мг Пробуждения ИВ Человека Планеты Земля ИВО
C142: 16246 | D142: 118. ИВАС ИВО Руслан Надежда → Си Мг Генезиса ИВО ИВ Си Мг Генезиса ИВО | E142: 15990 | F142: 118. ИВАС ИВО ИВ → Синтез Мг Генезиса ИВ Аватара ИВО | G142: 15734 | H142: 118. ИВАС ИВО ИВ → Синтез Мг Генезиса ИВ Владыки ИВО | I142: 15478 | J142: 118. ИВАС ИВО ИВ → Синтез Мг Генезиса ИВ Учителя ИВО | K142: 15222 | L142: 118. ИВАС ИВО ИВ → Синтез Мг Генезиса ИВ Ипостаси ИВО | M142: 14966 | N142: 118. ИВАС ИВО ИВ → Синтез Мг Генезиса ИВ Служащего ИВО | O142: 14710 | P142: 118. ИВАС ИВО ИВ → Синтез Мг Генезиса ИВ Посвященного ИВО | Q142: 14454 | R142: 118. ИВАС ИВО ИВ → Синтез Мг Генезиса ИВ Майтрейи ИВО | S142: 14198 | T142: 118. ИВАС ИВО ИВ → Синтез Мг Генезиса ИВ Христа ИВО | U142: 13942 | V142: 118. ИВАС ИВО ИВ → Синтез Мг Генезиса ИВ Будды ИВО | W142: 13686 | X142: 118. ИВАС ИВО ИВ → Синтез Мг Генезиса ИВ Теурга ИВО | Y142: 13430 | Z142: 118. ИВАС ИВО ИВ → Синтез Мг Генезиса ИВ Творца ИВО | AA142: 13174 | AB142: 118. ИВАС ИВО ИВ → Синтез Мг Генезиса ИВ Человека ИВО ИВО | AC142: 12918 | AD142: 118. ИВАС ИВО ИВ → Синтез Мг Генезиса ИВ Человека ВЦРМ ИВО | AE142: 12662 | AF142: 118. ИВАС ИВО ИВ → Синтез Мг Генезиса ИВ Человека Мг ФаИВО | AG142: 12406 | AH142: 118. ИВАС ИВО ИВ → Синтез Мг Генезиса ИВ Человека Планеты Земля ИВО
C143: 16245 | D143: 117. ИВАС ИВО Генрих Олла → Си Мг Человечности ИВО ИВ Си Мг Человечности ИВО | E143: 15989 | F143: 117. ИВАС ИВО ИВ → Синтез Мг Человечности ИВ Аватара ИВО | G143: 15733 | H143: 117. ИВАС ИВО ИВ → Синтез Мг Человечности ИВ Владыки ИВО | I143: 15477 | J143: 117. ИВАС ИВО ИВ → Синтез Мг Человечности ИВ Учителя ИВО | K143: 15221 | L143: 117. ИВАС ИВО ИВ → Синтез Мг Человечности ИВ Ипостаси ИВО | M143: 14965 | N143: 117. ИВАС ИВО ИВ → Синтез Мг Человечности ИВ Служащего ИВО | O143: 14709 | P143: 117. ИВАС ИВО ИВ → Синтез Мг Человечности ИВ Посвященного ИВО | Q143: 14453 | R143: 117. ИВАС ИВО ИВ → Синтез Мг Человечности ИВ Майтрейи ИВО | S143: 14197 | T143: 117. ИВАС ИВО ИВ → Синтез Мг Человечности ИВ Христа ИВО | U143: 13941 | V143: 117. ИВАС ИВО ИВ → Синтез Мг Человечности ИВ Будды ИВО | W143: 13685 | X143: 117. ИВАС ИВО ИВ → Синтез Мг Человечности ИВ Теурга ИВО | Y143: 13429 | Z143: 117. ИВАС ИВО ИВ → Синтез Мг Человечности ИВ Творца ИВО | AA143: 13173 | AB143: 117. ИВАС ИВО ИВ → Синтез Мг Человечности ИВ Человека ИВО ИВО | AC143: 12917 | AD143: 117. ИВАС ИВО ИВ → Синтез Мг Человечности ИВ Человека ВЦРМ ИВО | AE143: 12661 | AF143: 117. ИВАС ИВО ИВ → Синтез Мг Человечности ИВ Человека Мг ФаИВО | AG143: 12405 | AH143: 117. ИВАС ИВО ИВ → Синтез Мг Человечности ИВ Человека Планеты Земля ИВО
C144: 16244 | D144: 116. ИВАС ИВО Владлен Илона → Си Мг Служения ИВО ИВ Си Мг Служения ИВО | E144: 15988 | F144: 116. ИВАС ИВО ИВ → Синтез Мг Служения ИВ Аватара ИВО | G144: 15732 | H144: 116. ИВАС ИВО ИВ → Синтез Мг Служения ИВ Владыки ИВО | I144: 15476 | J144: 116. ИВАС ИВО ИВ → Синтез Мг Служения ИВ Учителя ИВО | K144: 15220 | L144: 116. ИВАС ИВО ИВ → Синтез Мг Служения ИВ Ипостаси ИВО | M144: 14964 | N144: 116. ИВАС ИВО ИВ → Синтез Мг Служения ИВ Служащего ИВО | O144: 14708 | P144: 116. ИВАС ИВО ИВ → Синтез Мг Служения ИВ Посвященного ИВО | Q144: 14452 | R144: 116. ИВАС ИВО ИВ → Синтез Мг Служения ИВ Майтрейи ИВО | S144: 14196 | T144: 116. ИВАС ИВО ИВ → Синтез Мг Служения ИВ Христа ИВО | U144: 13940 | V144: 116. ИВАС ИВО ИВ → Синтез Мг Служения ИВ Будды ИВО | W144: 13684 | X144: 116. ИВАС ИВО ИВ → Синтез Мг Служения ИВ Теурга ИВО | Y144: 13428 | Z144: 116. ИВАС ИВО ИВ → Синтез Мг Служения ИВ Творца ИВО | AA144: 13172 | AB144: 116. ИВАС ИВО ИВ → Синтез Мг Служения ИВ Человека ИВО ИВО | AC144: 12916 | AD144: 116. ИВАС ИВО ИВ → Синтез Мг Служения ИВ Человека ВЦРМ ИВО | AE144: 12660 | AF144: 116. ИВАС ИВО ИВ → Синтез Мг Служения ИВ Человека Мг ФаИВО | AG144: 12404 | AH144: 116. ИВАС ИВО ИВ → Синтез Мг Служения ИВ Человека Планеты Земля ИВО
C145: 16243 | D145: 115. ИВАС ИВО Борислав Генриетта → Си Мг Вершения ИВО ИВ Си Мг Вершения ИВО | E145: 15987 | F145: 115. ИВАС ИВО ИВ → Синтез Мг Вершения ИВ Аватара ИВО | G145: 15731 | H145: 115. ИВАС ИВО ИВ → Синтез Мг Вершения ИВ Владыки ИВО | I145: 15475 | J145: 115. ИВАС ИВО ИВ → Синтез Мг Вершения ИВ Учителя ИВО | K145: 15219 | L145: 115. ИВАС ИВО ИВ → Синтез Мг Вершения ИВ Ипостаси ИВО | M145: 14963 | N145: 115. ИВАС ИВО ИВ → Синтез Мг Вершения ИВ Служащего ИВО | O145: 14707 | P145: 115. ИВАС ИВО ИВ → Синтез Мг Вершения ИВ Посвященного ИВО | Q145: 14451 | R145: 115. ИВАС ИВО ИВ → Синтез Мг Вершения ИВ Майтрейи ИВО | S145: 14195 | T145: 115. ИВАС ИВО ИВ → Синтез Мг Вершения ИВ Христа ИВО | U145: 13939 | V145: 115. ИВАС ИВО ИВ → Синтез Мг Вершения ИВ Будды ИВО | W145: 13683 | X145: 115. ИВАС ИВО ИВ → Синтез Мг Вершения ИВ Теурга ИВО | Y145: 13427 | Z145: 115. ИВАС ИВО ИВ → Синтез Мг Вершения ИВ Творца ИВО | AA145: 13171 | AB145: 115. ИВАС ИВО ИВ → Синтез Мг Вершения ИВ Человека ИВО ИВО | AC145: 12915 | AD145: 115. ИВАС ИВО ИВ → Синтез Мг Вершения ИВ Человека ВЦРМ ИВО | AE145: 12659 | AF145: 115. ИВАС ИВО ИВ → Синтез Мг Вершения ИВ Человека Мг ФаИВО | AG145: 12403 | AH145: 115. ИВАС ИВО ИВ → Синтез Мг Вершения ИВ Человека Планеты Земля ИВО
C146: 16242 | D146: 114. ИВАС ИВО Нестор Мария → Си Мг Практики ИВО ИВ Си Мг Практики ИВО | E146: 15986 | F146: 114. ИВАС ИВО ИВ → Синтез Мг Практики ИВ Аватара ИВО | G146: 15730 | H146: 114. ИВАС ИВО ИВ → Синтез Мг Практики ИВ Владыки ИВО | I146: 15474 | J146: 114. ИВАС ИВО ИВ → Синтез Мг Практики ИВ Учителя ИВО | K146: 15218 | L146: 114. ИВАС ИВО ИВ → Синтез Мг Практики ИВ Ипостаси ИВО | M146: 14962 | N146: 114. ИВАС ИВО ИВ → Синтез Мг Практики ИВ Служащего ИВО | O146: 14706 | P146: 114. ИВАС ИВО ИВ → Синтез Мг Практики ИВ Посвященного ИВО | Q146: 14450 | R146: 114. ИВАС ИВО ИВ → Синтез Мг Практики ИВ Майтрейи ИВО | S146: 14194 | T146: 114. ИВАС ИВО ИВ → Синтез Мг Практики ИВ Христа ИВО | U146: 13938 | V146: 114. ИВАС ИВО ИВ → Синтез Мг Практики ИВ Будды ИВО | W146: 13682 | X146: 114. ИВАС ИВО ИВ → Синтез Мг Практики ИВ Теурга ИВО | Y146: 13426 | Z146: 114. ИВАС ИВО ИВ → Синтез Мг Практики ИВ Творца ИВО | AA146: 13170 | AB146: 114. ИВАС ИВО ИВ → Синтез Мг Практики ИВ Человека ИВО ИВО | AC146: 12914 | AD146: 114. ИВАС ИВО ИВ → Синтез Мг Практики ИВ Человека ВЦРМ ИВО | AE146: 12658 | AF146: 114. ИВАС ИВО ИВ → Синтез Мг Практики ИВ Человека Мг ФаИВО | AG146: 12402 | AH146: 114. ИВАС ИВО ИВ → Синтез Мг Практики ИВ Человека Планеты Земля ИВО
C147: 16241 | D147: 113. ИВАС ИВО Аристарх Глория → Си Мг Могущества ИВО ИВ Си Мг Могущества ИВО | E147: 15985 | F147: 113. ИВАС ИВО ИВ → Синтез Мг Могущества ИВ Аватара ИВО | G147: 15729 | H147: 113. ИВАС ИВО ИВ → Синтез Мг Могущества ИВ Владыки ИВО | I147: 15473 | J147: 113. ИВАС ИВО ИВ → Синтез Мг Могущества ИВ Учителя ИВО | K147: 15217 | L147: 113. ИВАС ИВО ИВ → Синтез Мг Могущества ИВ Ипостаси ИВО | M147: 14961 | N147: 113. ИВАС ИВО ИВ → Синтез Мг Могущества ИВ Служащего ИВО | O147: 14705 | P147: 113. ИВАС ИВО ИВ → Синтез Мг Могущества ИВ Посвященного ИВО | Q147: 14449 | R147: 113. ИВАС ИВО ИВ → Синтез Мг Могущества ИВ Майтрейи ИВО | S147: 14193 | T147: 113. ИВАС ИВО ИВ → Синтез Мг Могущества ИВ Христа ИВО | U147: 13937 | V147: 113. ИВАС ИВО ИВ → Синтез Мг Могущества ИВ Будды ИВО | W147: 13681 | X147: 113. ИВАС ИВО ИВ → Синтез Мг Могущества ИВ Теурга ИВО | Y147: 13425 | Z147: 113. ИВАС ИВО ИВ → Синтез Мг Могущества ИВ Творца ИВО | AA147: 13169 | AB147: 113. ИВАС ИВО ИВ → Синтез Мг Могущества ИВ Человека ИВО ИВО | AC147: 12913 | AD147: 113. ИВАС ИВО ИВ → Синтез Мг Могущества ИВ Человека ВЦРМ ИВО | AE147: 12657 | AF147: 113. ИВАС ИВО ИВ → Синтез Мг Могущества ИВ Человека Мг ФаИВО | AG147: 12401 | AH147: 113. ИВАС ИВО ИВ → Синтез Мг Могущества ИВ Человека Планеты Земля ИВО
C148: 16240 | D148: 112. ИВАС ИВО Альфред Констанция → Си Мг ИВ Дома Служащего ИВО ИВ Дом Служащего ИВО | E148: 15984 | F148: 112. ИВАС ИВО ИВ → Синтез ИВ Дома Служащего ИВО ИВ Аватара ИВО | G148: 15728 | H148: 112. ИВАС ИВО ИВ → Синтез ИВ Дома Служащего ИВО ИВ Владыки ИВО | I148: 15472 | J148: 112. ИВАС ИВО ИВ → Синтез ИВ Дома Служащего ИВО ИВ Учителя ИВО | K148: 15216 | L148: 112. ИВАС ИВО ИВ → Синтез ИВ Дома Служащего ИВО ИВ Ипостаси ИВО | M148: 14960 | N148: 112. ИВАС ИВО ИВ → Синтез ИВ Дома Служащего ИВО ИВ Служащего ИВО | O148: 14704 | P148: 112. ИВАС ИВО ИВ → Синтез ИВ Дома Служащего ИВО ИВ Посвященного ИВО | Q148: 14448 | R148: 112. ИВАС ИВО ИВ → Синтез ИВ Дома Служащего ИВО ИВ Майтрейи ИВО | S148: 14192 | T148: 112. ИВАС ИВО ИВ → Синтез ИВ Дома Служащего ИВО ИВ Христа ИВО | U148: 13936 | V148: 112. ИВАС ИВО ИВ → Синтез ИВ Дома Служащего ИВО ИВ Будды ИВО | W148: 13680 | X148: 112. ИВАС ИВО ИВ → Синтез ИВ Дома Служащего ИВО ИВ Теурга ИВО | Y148: 13424 | Z148: 112. ИВАС ИВО ИВ → Синтез ИВ Дома Служащего ИВО ИВ Творца ИВО | AA148: 13168 | AB148: 112. ИВАС ИВО ИВ → Синтез ИВ Дома Служащего ИВО ИВ Человека ИВО ИВО | AC148: 12912 | AD148: 112. ИВАС ИВО ИВ → Синтез ИВ Дома Служащего ИВО ИВ Человека ВЦРМ ИВО | AE148: 12656 | AF148: 112. ИВАС ИВО ИВ → Синтез ИВ Дома Служащего ИВО ИВ Человека Мг ФаИВО | AG148: 12400 | AH148: 112. ИВАС ИВО ИВ → Синтез ИВ Дома Служащего ИВО ИВ Человека Планеты Земля ИВО
C149: 16239 | D149: 111. ИВАС ИВО Егор Стэвия → Си Мг Сверхпассионарности ИВО ИВ Си Мг Сверхпассионарности ИВО | E149: 15983 | F149: 111. ИВАС ИВО ИВ → Синтез Мг Сверхпассионарности ИВ Аватара ИВО | G149: 15727 | H149: 111. ИВАС ИВО ИВ → Синтез Мг Сверхпассионарности ИВ Владыки ИВО | I149: 15471 | J149: 111. ИВАС ИВО ИВ → Синтез Мг Сверхпассионарности ИВ Учителя ИВО | K149: 15215 | L149: 111. ИВАС ИВО ИВ → Синтез Мг Сверхпассионарности ИВ Ипостаси ИВО | M149: 14959 | N149: 111. ИВАС ИВО ИВ → Синтез Мг Сверхпассионарности ИВ Служащего ИВО | O149: 14703 | P149: 111. ИВАС ИВО ИВ → Синтез Мг Сверхпассионарности ИВ Посвященного ИВО | Q149: 14447 | R149: 111. ИВАС ИВО ИВ → Синтез Мг Сверхпассионарности ИВ Майтрейи ИВО | S149: 14191 | T149: 111. ИВАС ИВО ИВ → Синтез Мг Сверхпассионарности ИВ Христа ИВО | U149: 13935 | V149: 111. ИВАС ИВО ИВ → Синтез Мг Сверхпассионарности ИВ Будды ИВО | W149: 13679 | X149: 111. ИВАС ИВО ИВ → Синтез Мг Сверхпассионарности ИВ Теурга ИВО | Y149: 13423 | Z149: 111. ИВАС ИВО ИВ → Синтез Мг Сверхпассионарности ИВ Творца ИВО | AA149: 13167 | AB149: 111. ИВАС ИВО ИВ → Синтез Мг Сверхпассионарности ИВ Человека ИВО ИВО | AC149: 12911 | AD149: 111. ИВАС ИВО ИВ → Синтез Мг Сверхпассионарности ИВ Человека ВЦРМ ИВО | AE149: 12655 | AF149: 111. ИВАС ИВО ИВ → Синтез Мг Сверхпассионарности ИВ Человека Мг ФаИВО | AG149: 12399 | AH149: 111. ИВАС ИВО ИВ → Синтез Мг Сверхпассионарности ИВ Человека Планеты Земля ИВО
C150: 16238 | D150: 110. ИВАС ИВО Витольд Полина → Си Мг Истинности ИВО ИВ Си Мг Истинности ИВО | E150: 15982 | F150: 110. ИВАС ИВО ИВ → Синтез Мг Истинности ИВ Аватара ИВО | G150: 15726 | H150: 110. ИВАС ИВО ИВ → Синтез Мг Истинности ИВ Владыки ИВО | I150: 15470 | J150: 110. ИВАС ИВО ИВ → Синтез Мг Истинности ИВ Учителя ИВО | K150: 15214 | L150: 110. ИВАС ИВО ИВ → Синтез Мг Истинности ИВ Ипостаси ИВО | M150: 14958 | N150: 110. ИВАС ИВО ИВ → Синтез Мг Истинности ИВ Служащего ИВО | O150: 14702 | P150: 110. ИВАС ИВО ИВ → Синтез Мг Истинности ИВ Посвященного ИВО | Q150: 14446 | R150: 110. ИВАС ИВО ИВ → Синтез Мг Истинности ИВ Майтрейи ИВО | S150: 14190 | T150: 110. ИВАС ИВО ИВ → Синтез Мг Истинности ИВ Христа ИВО | U150: 13934 | V150: 110. ИВАС ИВО ИВ → Синтез Мг Истинности ИВ Будды ИВО | W150: 13678 | X150: 110. ИВАС ИВО ИВ → Синтез Мг Истинности ИВ Теурга ИВО | Y150: 13422 | Z150: 110. ИВАС ИВО ИВ → Синтез Мг Истинности ИВ Творца ИВО | AA150: 13166 | AB150: 110. ИВАС ИВО ИВ → Синтез Мг Истинности ИВ Человека ИВО ИВО | AC150: 12910 | AD150: 110. ИВАС ИВО ИВ → Синтез Мг Истинности ИВ Человека ВЦРМ ИВО | AE150: 12654 | AF150: 110. ИВАС ИВО ИВ → Синтез Мг Истинности ИВ Человека Мг ФаИВО | AG150: 12398 | AH150: 110. ИВАС ИВО ИВ → Синтез Мг Истинности ИВ Человека Планеты Земля ИВО
C151: 16237 | D151: 109. ИВАС ИВО Стократ Виру → Си Мг Окскости ИВО ИВ Си Мг Окскости ИВО | E151: 15981 | F151: 109. ИВАС ИВО ИВ → Синтез Мг Окскости ИВ Аватара ИВО | G151: 15725 | H151: 109. ИВАС ИВО ИВ → Синтез Мг Окскости ИВ Владыки ИВО | I151: 15469 | J151: 109. ИВАС ИВО ИВ → Синтез Мг Окскости ИВ Учителя ИВО | K151: 15213 | L151: 109. ИВАС ИВО ИВ → Синтез Мг Окскости ИВ Ипостаси ИВО | M151: 14957 | N151: 109. ИВАС ИВО ИВ → Синтез Мг Окскости ИВ Служащего ИВО | O151: 14701 | P151: 109. ИВАС ИВО ИВ → Синтез Мг Окскости ИВ Посвященного ИВО | Q151: 14445 | R151: 109. ИВАС ИВО ИВ → Синтез Мг Окскости ИВ Майтрейи ИВО | S151: 14189 | T151: 109. ИВАС ИВО ИВ → Синтез Мг Окскости ИВ Христа ИВО | U151: 13933 | V151: 109. ИВАС ИВО ИВ → Синтез Мг Окскости ИВ Будды ИВО | W151: 13677 | X151: 109. ИВАС ИВО ИВ → Синтез Мг Окскости ИВ Теурга ИВО | Y151: 13421 | Z151: 109. ИВАС ИВО ИВ → Синтез Мг Окскости ИВ Творца ИВО | AA151: 13165 | AB151: 109. ИВАС ИВО ИВ → Синтез Мг Окскости ИВ Человека ИВО ИВО | AC151: 12909 | AD151: 109. ИВАС ИВО ИВ → Синтез Мг Окскости ИВ Человека ВЦРМ ИВО | AE151: 12653 | AF151: 109. ИВАС ИВО ИВ → Синтез Мг Окскости ИВ Человека Мг ФаИВО | AG151: 12397 | AH151: 109. ИВАС ИВО ИВ → Синтез Мг Окскости ИВ Человека Планеты Земля ИВО
C152: 16236 | D152: 108. ИВАС ИВО Глеб Фанна → Си Мг Красоты ИВО ИВ Си Мг Красоты ИВО | E152: 15980 | F152: 108. ИВАС ИВО ИВ → Синтез Мг Красоты ИВ Аватара ИВО | G152: 15724 | H152: 108. ИВАС ИВО ИВ → Синтез Мг Красоты ИВ Владыки ИВО | I152: 15468 | J152: 108. ИВАС ИВО ИВ → Синтез Мг Красоты ИВ Учителя ИВО | K152: 15212 | L152: 108. ИВАС ИВО ИВ → Синтез Мг Красоты ИВ Ипостаси ИВО | M152: 14956 | N152: 108. ИВАС ИВО ИВ → Синтез Мг Красоты ИВ Служащего ИВО | O152: 14700 | P152: 108. ИВАС ИВО ИВ → Синтез Мг Красоты ИВ Посвященного ИВО | Q152: 14444 | R152: 108. ИВАС ИВО ИВ → Синтез Мг Красоты ИВ Майтрейи ИВО | S152: 14188 | T152: 108. ИВАС ИВО ИВ → Синтез Мг Красоты ИВ Христа ИВО | U152: 13932 | V152: 108. ИВАС ИВО ИВ → Синтез Мг Красоты ИВ Будды ИВО | W152: 13676 | X152: 108. ИВАС ИВО ИВ → Синтез Мг Красоты ИВ Теурга ИВО | Y152: 13420 | Z152: 108. ИВАС ИВО ИВ → Синтез Мг Красоты ИВ Творца ИВО | AA152: 13164 | AB152: 108. ИВАС ИВО ИВ → Синтез Мг Красоты ИВ Человека ИВО ИВО | AC152: 12908 | AD152: 108. ИВАС ИВО ИВ → Синтез Мг Красоты ИВ Человека ВЦРМ ИВО | AE152: 12652 | AF152: 108. ИВАС ИВО ИВ → Синтез Мг Красоты ИВ Человека Мг ФаИВО | AG152: 12396 | AH152: 108. ИВАС ИВО ИВ → Синтез Мг Красоты ИВ Человека Планеты Земля ИВО
C153: 16235 | D153: 107. ИВАС ИВО Клавдий Евгения → Си Мг Константы ИВО ИВ Си Мг Константы ИВО | E153: 15979 | F153: 107. ИВАС ИВО ИВ → Синтез Мг Константы ИВ Аватара ИВО | G153: 15723 | H153: 107. ИВАС ИВО ИВ → Синтез Мг Константы ИВ Владыки ИВО | I153: 15467 | J153: 107. ИВАС ИВО ИВ → Синтез Мг Константы ИВ Учителя ИВО | K153: 15211 | L153: 107. ИВАС ИВО ИВ → Синтез Мг Константы ИВ Ипостаси ИВО | M153: 14955 | N153: 107. ИВАС ИВО ИВ → Синтез Мг Константы ИВ Служащего ИВО | O153: 14699 | P153: 107. ИВАС ИВО ИВ → Синтез Мг Константы ИВ Посвященного ИВО | Q153: 14443 | R153: 107. ИВАС ИВО ИВ → Синтез Мг Константы ИВ Майтрейи ИВО | S153: 14187 | T153: 107. ИВАС ИВО ИВ → Синтез Мг Константы ИВ Христа ИВО | U153: 13931 | V153: 107. ИВАС ИВО ИВ → Синтез Мг Константы ИВ Будды ИВО | W153: 13675 | X153: 107. ИВАС ИВО ИВ → Синтез Мг Константы ИВ Теурга ИВО | Y153: 13419 | Z153: 107. ИВАС ИВО ИВ → Синтез Мг Константы ИВ Творца ИВО | AA153: 13163 | AB153: 107. ИВАС ИВО ИВ → Синтез Мг Константы ИВ Человека ИВО ИВО | AC153: 12907 | AD153: 107. ИВАС ИВО ИВ → Синтез Мг Константы ИВ Человека ВЦРМ ИВО | AE153: 12651 | AF153: 107. ИВАС ИВО ИВ → Синтез Мг Константы ИВ Человека Мг ФаИВО | AG153: 12395 | AH153: 107. ИВАС ИВО ИВ → Синтез Мг Константы ИВ Человека Планеты Земля ИВО
C154: 16234 | D154: 106. ИВАС ИВО Теонис Элина → Си Мг Знания ИВО ИВ Си Мг Знания ИВО | E154: 15978 | F154: 106. ИВАС ИВО ИВ → Синтез Мг Знания ИВ Аватара ИВО | G154: 15722 | H154: 106. ИВАС ИВО ИВ → Синтез Мг Знания ИВ Владыки ИВО | I154: 15466 | J154: 106. ИВАС ИВО ИВ → Синтез Мг Знания ИВ Учителя ИВО | K154: 15210 | L154: 106. ИВАС ИВО ИВ → Синтез Мг Знания ИВ Ипостаси ИВО | M154: 14954 | N154: 106. ИВАС ИВО ИВ → Синтез Мг Знания ИВ Служащего ИВО | O154: 14698 | P154: 106. ИВАС ИВО ИВ → Синтез Мг Знания ИВ Посвященного ИВО | Q154: 14442 | R154: 106. ИВАС ИВО ИВ → Синтез Мг Знания ИВ Майтрейи ИВО | S154: 14186 | T154: 106. ИВАС ИВО ИВ → Синтез Мг Знания ИВ Христа ИВО | U154: 13930 | V154: 106. ИВАС ИВО ИВ → Синтез Мг Знания ИВ Будды ИВО | W154: 13674 | X154: 106. ИВАС ИВО ИВ → Синтез Мг Знания ИВ Теурга ИВО | Y154: 13418 | Z154: 106. ИВАС ИВО ИВ → Синтез Мг Знания ИВ Творца ИВО | AA154: 13162 | AB154: 106. ИВАС ИВО ИВ → Синтез Мг Знания ИВ Человека ИВО ИВО | AC154: 12906 | AD154: 106. ИВАС ИВО ИВ → Синтез Мг Знания ИВ Человека ВЦРМ ИВО | AE154: 12650 | AF154: 106. ИВАС ИВО ИВ → Синтез Мг Знания ИВ Человека Мг ФаИВО | AG154: 12394 | AH154: 106. ИВАС ИВО ИВ → Синтез Мг Знания ИВ Человека Планеты Земля ИВО
C155: 16233 | D155: 105. ИВАС ИВО Донан Сара → Си Мг Меры ИВО ИВ Си Мг Меры ИВО | E155: 15977 | F155: 105. ИВАС ИВО ИВ → Синтез Мг Меры ИВ Аватара ИВО | G155: 15721 | H155: 105. ИВАС ИВО ИВ → Синтез Мг Меры ИВ Владыки ИВО | I155: 15465 | J155: 105. ИВАС ИВО ИВ → Синтез Мг Меры ИВ Учителя ИВО | K155: 15209 | L155: 105. ИВАС ИВО ИВ → Синтез Мг Меры ИВ Ипостаси ИВО | M155: 14953 | N155: 105. ИВАС ИВО ИВ → Синтез Мг Меры ИВ Служащего ИВО | O155: 14697 | P155: 105. ИВАС ИВО ИВ → Синтез Мг Меры ИВ Посвященного ИВО | Q155: 14441 | R155: 105. ИВАС ИВО ИВ → Синтез Мг Меры ИВ Майтрейи ИВО | S155: 14185 | T155: 105. ИВАС ИВО ИВ → Синтез Мг Меры ИВ Христа ИВО | U155: 13929 | V155: 105. ИВАС ИВО ИВ → Синтез Мг Меры ИВ Будды ИВО | W155: 13673 | X155: 105. ИВАС ИВО ИВ → Синтез Мг Меры ИВ Теурга ИВО | Y155: 13417 | Z155: 105. ИВАС ИВО ИВ → Синтез Мг Меры ИВ Творца ИВО | AA155: 13161 | AB155: 105. ИВАС ИВО ИВ → Синтез Мг Меры ИВ Человека ИВО ИВО | AC155: 12905 | AD155: 105. ИВАС ИВО ИВ → Синтез Мг Меры ИВ Человека ВЦРМ ИВО | AE155: 12649 | AF155: 105. ИВАС ИВО ИВ → Синтез Мг Меры ИВ Человека Мг ФаИВО | AG155: 12393 | AH155: 105. ИВАС ИВО ИВ → Синтез Мг Меры ИВ Человека Планеты Земля ИВО
C156: 16232 | D156: 104. ИВАС ИВО Альберт Алевтина → Си Мг Стандарта ИВО ИВ Си Мг Стандарта ИВО | E156: 15976 | F156: 104. ИВАС ИВО ИВ → Синтез Мг Стандарта ИВ Аватара ИВО | G156: 15720 | H156: 104. ИВАС ИВО ИВ → Синтез Мг Стандарта ИВ Владыки ИВО | I156: 15464 | J156: 104. ИВАС ИВО ИВ → Синтез Мг Стандарта ИВ Учителя ИВО | K156: 15208 | L156: 104. ИВАС ИВО ИВ → Синтез Мг Стандарта ИВ Ипостаси ИВО | M156: 14952 | N156: 104. ИВАС ИВО ИВ → Синтез Мг Стандарта ИВ Служащего ИВО | O156: 14696 | P156: 104. ИВАС ИВО ИВ → Синтез Мг Стандарта ИВ Посвященного ИВО | Q156: 14440 | R156: 104. ИВАС ИВО ИВ → Синтез Мг Стандарта ИВ Майтрейи ИВО | S156: 14184 | T156: 104. ИВАС ИВО ИВ → Синтез Мг Стандарта ИВ Христа ИВО | U156: 13928 | V156: 104. ИВАС ИВО ИВ → Синтез Мг Стандарта ИВ Будды ИВО | W156: 13672 | X156: 104. ИВАС ИВО ИВ → Синтез Мг Стандарта ИВ Теурга ИВО | Y156: 13416 | Z156: 104. ИВАС ИВО ИВ → Синтез Мг Стандарта ИВ Творца ИВО | AA156: 13160 | AB156: 104. ИВАС ИВО ИВ → Синтез Мг Стандарта ИВ Человека ИВО ИВО | AC156: 12904 | AD156: 104. ИВАС ИВО ИВ → Синтез Мг Стандарта ИВ Человека ВЦРМ ИВО | AE156: 12648 | AF156: 104. ИВАС ИВО ИВ → Синтез Мг Стандарта ИВ Человека Мг ФаИВО | AG156: 12392 | AH156: 104. ИВАС ИВО ИВ → Синтез Мг Стандарта ИВ Человека Планеты Земля ИВО
C157: 16231 | D157: 103. ИВАС ИВО Степан Раиса → Си Мг Закона ИВО ИВ Си Мг Закона ИВО | E157: 15975 | F157: 103. ИВАС ИВО ИВ → Синтез Мг Закона ИВ Аватара ИВО | G157: 15719 | H157: 103. ИВАС ИВО ИВ → Синтез Мг Закона ИВ Владыки ИВО | I157: 15463 | J157: 103. ИВАС ИВО ИВ → Синтез Мг Закона ИВ Учителя ИВО | K157: 15207 | L157: 103. ИВАС ИВО ИВ → Синтез Мг Закона ИВ Ипостаси ИВО | M157: 14951 | N157: 103. ИВАС ИВО ИВ → Синтез Мг Закона ИВ Служащего ИВО | O157: 14695 | P157: 103. ИВАС ИВО ИВ → Синтез Мг Закона ИВ Посвященного ИВО | Q157: 14439 | R157: 103. ИВАС ИВО ИВ → Синтез Мг Закона ИВ Майтрейи ИВО | S157: 14183 | T157: 103. ИВАС ИВО ИВ → Синтез Мг Закона ИВ Христа ИВО | U157: 13927 | V157: 103. ИВАС ИВО ИВ → Синтез Мг Закона ИВ Будды ИВО | W157: 13671 | X157: 103. ИВАС ИВО ИВ → Синтез Мг Закона ИВ Теурга ИВО | Y157: 13415 | Z157: 103. ИВАС ИВО ИВ → Синтез Мг Закона ИВ Творца ИВО | AA157: 13159 | AB157: 103. ИВАС ИВО ИВ → Синтез Мг Закона ИВ Человека ИВО ИВО | AC157: 12903 | AD157: 103. ИВАС ИВО ИВ → Синтез Мг Закона ИВ Человека ВЦРМ ИВО | AE157: 12647 | AF157: 103. ИВАС ИВО ИВ → Синтез Мг Закона ИВ Человека Мг ФаИВО | AG157: 12391 | AH157: 103. ИВАС ИВО ИВ → Синтез Мг Закона ИВ Человека Планеты Земля ИВО
C158: 16230 | D158: 102. ИВАС ИВО Арсан Аврора → Си Мг Императива ИВО ИВ Си Мг Императива ИВО | E158: 15974 | F158: 102. ИВАС ИВО ИВ → Синтез Мг Императива ИВ Аватара ИВО | G158: 15718 | H158: 102. ИВАС ИВО ИВ → Синтез Мг Императива ИВ Владыки ИВО | I158: 15462 | J158: 102. ИВАС ИВО ИВ → Синтез Мг Императива ИВ Учителя ИВО | K158: 15206 | L158: 102. ИВАС ИВО ИВ → Синтез Мг Императива ИВ Ипостаси ИВО | M158: 14950 | N158: 102. ИВАС ИВО ИВ → Синтез Мг Императива ИВ Служащего ИВО | O158: 14694 | P158: 102. ИВАС ИВО ИВ → Синтез Мг Императива ИВ Посвященного ИВО | Q158: 14438 | R158: 102. ИВАС ИВО ИВ → Синтез Мг Императива ИВ Майтрейи ИВО | S158: 14182 | T158: 102. ИВАС ИВО ИВ → Синтез Мг Императива ИВ Христа ИВО | U158: 13926 | V158: 102. ИВАС ИВО ИВ → Синтез Мг Императива ИВ Будды ИВО | W158: 13670 | X158: 102. ИВАС ИВО ИВ → Синтез Мг Императива ИВ Теурга ИВО | Y158: 13414 | Z158: 102. ИВАС ИВО ИВ → Синтез Мг Императива ИВ Творца ИВО | AA158: 13158 | AB158: 102. ИВАС ИВО ИВ → Синтез Мг Императива ИВ Человека ИВО ИВО | AC158: 12902 | AD158: 102. ИВАС ИВО ИВ → Синтез Мг Императива ИВ Человека ВЦРМ ИВО | AE158: 12646 | AF158: 102. ИВАС ИВО ИВ → Синтез Мг Императива ИВ Человека Мг ФаИВО | AG158: 12390 | AH158: 102. ИВАС ИВО ИВ → Синтез Мг Императива ИВ Человека Планеты Земля ИВО
C159: 16229 | D159: 101. ИВАС ИВО Остап Дилана → Си Мг Аксиомы ИВО ИВ Си Мг Аксиомы ИВО | E159: 15973 | F159: 101. ИВАС ИВО ИВ → Синтез Мг Аксиомы ИВ Аватара ИВО | G159: 15717 | H159: 101. ИВАС ИВО ИВ → Синтез Мг Аксиомы ИВ Владыки ИВО | I159: 15461 | J159: 101. ИВАС ИВО ИВ → Синтез Мг Аксиомы ИВ Учителя ИВО | K159: 15205 | L159: 101. ИВАС ИВО ИВ → Синтез Мг Аксиомы ИВ Ипостаси ИВО | M159: 14949 | N159: 101. ИВАС ИВО ИВ → Синтез Мг Аксиомы ИВ Служащего ИВО | O159: 14693 | P159: 101. ИВАС ИВО ИВ → Синтез Мг Аксиомы ИВ Посвященного ИВО | Q159: 14437 | R159: 101. ИВАС ИВО ИВ → Синтез Мг Аксиомы ИВ Майтрейи ИВО | S159: 14181 | T159: 101. ИВАС ИВО ИВ → Синтез Мг Аксиомы ИВ Христа ИВО | U159: 13925 | V159: 101. ИВАС ИВО ИВ → Синтез Мг Аксиомы ИВ Будды ИВО | W159: 13669 | X159: 101. ИВАС ИВО ИВ → Синтез Мг Аксиомы ИВ Теурга ИВО | Y159: 13413 | Z159: 101. ИВАС ИВО ИВ → Синтез Мг Аксиомы ИВ Творца ИВО | AA159: 13157 | AB159: 101. ИВАС ИВО ИВ → Синтез Мг Аксиомы ИВ Человека ИВО ИВО | AC159: 12901 | AD159: 101. ИВАС ИВО ИВ → Синтез Мг Аксиомы ИВ Человека ВЦРМ ИВО | AE159: 12645 | AF159: 101. ИВАС ИВО ИВ → Синтез Мг Аксиомы ИВ Человека Мг ФаИВО | AG159: 12389 | AH159: 101. ИВАС ИВО ИВ → Синтез Мг Аксиомы ИВ Человека Планеты Земля ИВО
C160: 16228 | D160: 100. ИВАС ИВО Роман Яся → Си Мг Начала ИВО ИВ Си Мг Начала ИВО | E160: 15972 | F160: 100. ИВАС ИВО ИВ → Синтез Мг Начала ИВ Аватара ИВО | G160: 15716 | H160: 100. ИВАС ИВО ИВ → Синтез Мг Начала ИВ Владыки ИВО | I160: 15460 | J160: 100. ИВАС ИВО ИВ → Синтез Мг Начала ИВ Учителя ИВО | K160: 15204 | L160: 100. ИВАС ИВО ИВ → Синтез Мг Начала ИВ Ипостаси ИВО | M160: 14948 | N160: 100. ИВАС ИВО ИВ → Синтез Мг Начала ИВ Служащего ИВО | O160: 14692 | P160: 100. ИВАС ИВО ИВ → Синтез Мг Начала ИВ Посвященного ИВО | Q160: 14436 | R160: 100. ИВАС ИВО ИВ → Синтез Мг Начала ИВ Майтрейи ИВО | S160: 14180 | T160: 100. ИВАС ИВО ИВ → Синтез Мг Начала ИВ Христа ИВО | U160: 13924 | V160: 100. ИВАС ИВО ИВ → Синтез Мг Начала ИВ Будды ИВО | W160: 13668 | X160: 100. ИВАС ИВО ИВ → Синтез Мг Начала ИВ Теурга ИВО | Y160: 13412 | Z160: 100. ИВАС ИВО ИВ → Синтез Мг Начала ИВ Творца ИВО | AA160: 13156 | AB160: 100. ИВАС ИВО ИВ → Синтез Мг Начала ИВ Человека ИВО ИВО | AC160: 12900 | AD160: 100. ИВАС ИВО ИВ → Синтез Мг Начала ИВ Человека ВЦРМ ИВО | AE160: 12644 | AF160: 100. ИВАС ИВО ИВ → Синтез Мг Начала ИВ Человека Мг ФаИВО | AG160: 12388 | AH160: 100. ИВАС ИВО ИВ → Синтез Мг Начала ИВ Человека Планеты Земля ИВО
C161: 16227 | D161: 099. ИВАС ИВО Клим Фира → Си Мг Принципа ИВО ИВ Си Мг Принципа ИВО | E161: 15971 | F161: 099. ИВАС ИВО ИВ → Синтез Мг Принципа ИВ Аватара ИВО | G161: 15715 | H161: 099. ИВАС ИВО ИВ → Синтез Мг Принципа ИВ Владыки ИВО | I161: 15459 | J161: 099. ИВАС ИВО ИВ → Синтез Мг Принципа ИВ Учителя ИВО | K161: 15203 | L161: 099. ИВАС ИВО ИВ → Синтез Мг Принципа ИВ Ипостаси ИВО | M161: 14947 | N161: 099. ИВАС ИВО ИВ → Синтез Мг Принципа ИВ Служащего ИВО | O161: 14691 | P161: 099. ИВАС ИВО ИВ → Синтез Мг Принципа ИВ Посвященного ИВО | Q161: 14435 | R161: 099. ИВАС ИВО ИВ → Синтез Мг Принципа ИВ Майтрейи ИВО | S161: 14179 | T161: 099. ИВАС ИВО ИВ → Синтез Мг Принципа ИВ Христа ИВО | U161: 13923 | V161: 099. ИВАС ИВО ИВ → Синтез Мг Принципа ИВ Будды ИВО | W161: 13667 | X161: 099. ИВАС ИВО ИВ → Синтез Мг Принципа ИВ Теурга ИВО | Y161: 13411 | Z161: 099. ИВАС ИВО ИВ → Синтез Мг Принципа ИВ Творца ИВО | AA161: 13155 | AB161: 099. ИВАС ИВО ИВ → Синтез Мг Принципа ИВ Человека ИВО ИВО | AC161: 12899 | AD161: 099. ИВАС ИВО ИВ → Синтез Мг Принципа ИВ Человека ВЦРМ ИВО | AE161: 12643 | AF161: 099. ИВАС ИВО ИВ → Синтез Мг Принципа ИВ Человека Мг ФаИВО | AG161: 12387 | AH161: 099. ИВАС ИВО ИВ → Синтез Мг Принципа ИВ Человека Планеты Земля ИВО
C162: 16226 | D162: 098. ИВАС ИВО Пётр Омелия → Си Мг Метода ИВО ИВ Си Мг Метода ИВО | E162: 15970 | F162: 098. ИВАС ИВО ИВ → Синтез Мг Метода ИВ Аватара ИВО | G162: 15714 | H162: 098. ИВАС ИВО ИВ → Синтез Мг Метода ИВ Владыки ИВО | I162: 15458 | J162: 098. ИВАС ИВО ИВ → Синтез Мг Метода ИВ Учителя ИВО | K162: 15202 | L162: 098. ИВАС ИВО ИВ → Синтез Мг Метода ИВ Ипостаси ИВО | M162: 14946 | N162: 098. ИВАС ИВО ИВ → Синтез Мг Метода ИВ Служащего ИВО | O162: 14690 | P162: 098. ИВАС ИВО ИВ → Синтез Мг Метода ИВ Посвященного ИВО | Q162: 14434 | R162: 098. ИВАС ИВО ИВ → Синтез Мг Метода ИВ Майтрейи ИВО | S162: 14178 | T162: 098. ИВАС ИВО ИВ → Синтез Мг Метода ИВ Христа ИВО | U162: 13922 | V162: 098. ИВАС ИВО ИВ → Синтез Мг Метода ИВ Будды ИВО | W162: 13666 | X162: 098. ИВАС ИВО ИВ → Синтез Мг Метода ИВ Теурга ИВО | Y162: 13410 | Z162: 098. ИВАС ИВО ИВ → Синтез Мг Метода ИВ Творца ИВО | AA162: 13154 | AB162: 098. ИВАС ИВО ИВ → Синтез Мг Метода ИВ Человека ИВО ИВО | AC162: 12898 | AD162: 098. ИВАС ИВО ИВ → Синтез Мг Метода ИВ Человека ВЦРМ ИВО | AE162: 12642 | AF162: 098. ИВАС ИВО ИВ → Синтез Мг Метода ИВ Человека Мг ФаИВО | AG162: 12386 | AH162: 098. ИВАС ИВО ИВ → Синтез Мг Метода ИВ Человека Планеты Земля ИВО
C163: 16225 | D163: 097. ИВАС ИВО Макей Мадлен → Си Мг Правила ИВО ИВ Си Мг Правила ИВО | E163: 15969 | F163: 097. ИВАС ИВО ИВ → Синтез Мг Правила ИВ Аватара ИВО | G163: 15713 | H163: 097. ИВАС ИВО ИВ → Синтез Мг Правила ИВ Владыки ИВО | I163: 15457 | J163: 097. ИВАС ИВО ИВ → Синтез Мг Правила ИВ Учителя ИВО | K163: 15201 | L163: 097. ИВАС ИВО ИВ → Синтез Мг Правила ИВ Ипостаси ИВО | M163: 14945 | N163: 097. ИВАС ИВО ИВ → Синтез Мг Правила ИВ Служащего ИВО | O163: 14689 | P163: 097. ИВАС ИВО ИВ → Синтез Мг Правила ИВ Посвященного ИВО | Q163: 14433 | R163: 097. ИВАС ИВО ИВ → Синтез Мг Правила ИВ Майтрейи ИВО | S163: 14177 | T163: 097. ИВАС ИВО ИВ → Синтез Мг Правила ИВ Христа ИВО | U163: 13921 | V163: 097. ИВАС ИВО ИВ → Синтез Мг Правила ИВ Будды ИВО | W163: 13665 | X163: 097. ИВАС ИВО ИВ → Синтез Мг Правила ИВ Теурга ИВО | Y163: 13409 | Z163: 097. ИВАС ИВО ИВ → Синтез Мг Правила ИВ Творца ИВО | AA163: 13153 | AB163: 097. ИВАС ИВО ИВ → Синтез Мг Правила ИВ Человека ИВО ИВО | AC163: 12897 | AD163: 097. ИВАС ИВО ИВ → Синтез Мг Правила ИВ Человека ВЦРМ ИВО | AE163: 12641 | AF163: 097. ИВАС ИВО ИВ → Синтез Мг Правила ИВ Человека Мг ФаИВО | AG163: 12385 | AH163: 097. ИВАС ИВО ИВ → Синтез Мг Правила ИВ Человека Планеты Земля ИВО
C164: 16224 | D164: 096. ИВАС ИВО Анис Римма → Си Мг ИВ Дома Посвящённого ИВО ИВ Дом Посвящённого ИВО | E164: 15968 | F164: 096. ИВАС ИВО ИВ → Синтез ИВ Дома Посвящённого ИВО ИВ Аватара ИВО | G164: 15712 | H164: 096. ИВАС ИВО ИВ → Синтез ИВ Дома Посвящённого ИВО ИВ Владыки ИВО | I164: 15456 | J164: 096. ИВАС ИВО ИВ → Синтез ИВ Дома Посвящённого ИВО ИВ Учителя ИВО | K164: 15200 | L164: 096. ИВАС ИВО ИВ → Синтез ИВ Дома Посвящённого ИВО ИВ Ипостаси ИВО | M164: 14944 | N164: 096. ИВАС ИВО ИВ → Синтез ИВ Дома Посвящённого ИВО ИВ Служащего ИВО | O164: 14688 | P164: 096. ИВАС ИВО ИВ → Синтез ИВ Дома Посвящённого ИВО ИВ Посвященного ИВО | Q164: 14432 | R164: 096. ИВАС ИВО ИВ → Синтез ИВ Дома Посвящённого ИВО ИВ Майтрейи ИВО | S164: 14176 | T164: 096. ИВАС ИВО ИВ → Синтез ИВ Дома Посвящённого ИВО ИВ Христа ИВО | U164: 13920 | V164: 096. ИВАС ИВО ИВ → Синтез ИВ Дома Посвящённого ИВО ИВ Будды ИВО | W164: 13664 | X164: 096. ИВАС ИВО ИВ → Синтез ИВ Дома Посвящённого ИВО ИВ Теурга ИВО | Y164: 13408 | Z164: 096. ИВАС ИВО ИВ → Синтез ИВ Дома Посвящённого ИВО ИВ Творца ИВО | AA164: 13152 | AB164: 096. ИВАС ИВО ИВ → Синтез ИВ Дома Посвящённого ИВО ИВ Человека ИВО ИВО | AC164: 12896 | AD164: 096. ИВАС ИВО ИВ → Синтез ИВ Дома Посвящённого ИВО ИВ Человека ВЦРМ ИВО | AE164: 12640 | AF164: 096. ИВАС ИВО ИВ → Синтез ИВ Дома Посвящённого ИВО ИВ Человека Мг ФаИВО | AG164: 12384 | AH164: 096. ИВАС ИВО ИВ → Синтез ИВ Дома Посвящённого ИВО ИВ Человека Планеты Земля ИВО
C165: 16223 | D165: 095. ИВАС ИВО Ар Белла → Си Мг Аватарскости ИВО ИВ Си Мг Аватарскости ИВО | E165: 15967 | F165: 095. ИВАС ИВО ИВ → Синтез Мг Аватарскости ИВ Аватара ИВО | G165: 15711 | H165: 095. ИВАС ИВО ИВ → Синтез Мг Аватарскости ИВ Владыки ИВО | I165: 15455 | J165: 095. ИВАС ИВО ИВ → Синтез Мг Аватарскости ИВ Учителя ИВО | K165: 15199 | L165: 095. ИВАС ИВО ИВ → Синтез Мг Аватарскости ИВ Ипостаси ИВО | M165: 14943 | N165: 095. ИВАС ИВО ИВ → Синтез Мг Аватарскости ИВ Служащего ИВО | O165: 14687 | P165: 095. ИВАС ИВО ИВ → Синтез Мг Аватарскости ИВ Посвященного ИВО | Q165: 14431 | R165: 095. ИВАС ИВО ИВ → Синтез Мг Аватарскости ИВ Майтрейи ИВО | S165: 14175 | T165: 095. ИВАС ИВО ИВ → Синтез Мг Аватарскости ИВ Христа ИВО | U165: 13919 | V165: 095. ИВАС ИВО ИВ → Синтез Мг Аватарскости ИВ Будды ИВО | W165: 13663 | X165: 095. ИВАС ИВО ИВ → Синтез Мг Аватарскости ИВ Теурга ИВО | Y165: 13407 | Z165: 095. ИВАС ИВО ИВ → Синтез Мг Аватарскости ИВ Творца ИВО | AA165: 13151 | AB165: 095. ИВАС ИВО ИВ → Синтез Мг Аватарскости ИВ Человека ИВО ИВО | AC165: 12895 | AD165: 095. ИВАС ИВО ИВ → Синтез Мг Аватарскости ИВ Человека ВЦРМ ИВО | AE165: 12639 | AF165: 095. ИВАС ИВО ИВ → Синтез Мг Аватарскости ИВ Человека Мг ФаИВО | AG165: 12383 | AH165: 095. ИВАС ИВО ИВ → Синтез Мг Аватарскости ИВ Человека Планеты Земля ИВО
C166: 16222 | D166: 094. ИВАС ИВО Дорадий Агния → Си Мг Владычества ИВО ИВ Си Мг Владычества ИВО | E166: 15966 | F166: 094. ИВАС ИВО ИВ → Синтез Мг Владычества ИВ Аватара ИВО | G166: 15710 | H166: 094. ИВАС ИВО ИВ → Синтез Мг Владычества ИВ Владыки ИВО | I166: 15454 | J166: 094. ИВАС ИВО ИВ → Синтез Мг Владычества ИВ Учителя ИВО | K166: 15198 | L166: 094. ИВАС ИВО ИВ → Синтез Мг Владычества ИВ Ипостаси ИВО | M166: 14942 | N166: 094. ИВАС ИВО ИВ → Синтез Мг Владычества ИВ Служащего ИВО | O166: 14686 | P166: 094. ИВАС ИВО ИВ → Синтез Мг Владычества ИВ Посвященного ИВО | Q166: 14430 | R166: 094. ИВАС ИВО ИВ → Синтез Мг Владычества ИВ Майтрейи ИВО | S166: 14174 | T166: 094. ИВАС ИВО ИВ → Синтез Мг Владычества ИВ Христа ИВО | U166: 13918 | V166: 094. ИВАС ИВО ИВ → Синтез Мг Владычества ИВ Будды ИВО | W166: 13662 | X166: 094. ИВАС ИВО ИВ → Синтез Мг Владычества ИВ Теурга ИВО | Y166: 13406 | Z166: 094. ИВАС ИВО ИВ → Синтез Мг Владычества ИВ Творца ИВО | AA166: 13150 | AB166: 094. ИВАС ИВО ИВ → Синтез Мг Владычества ИВ Человека ИВО ИВО | AC166: 12894 | AD166: 094. ИВАС ИВО ИВ → Синтез Мг Владычества ИВ Человека ВЦРМ ИВО | AE166: 12638 | AF166: 094. ИВАС ИВО ИВ → Синтез Мг Владычества ИВ Человека Мг ФаИВО | AG166: 12382 | AH166: 094. ИВАС ИВО ИВ → Синтез Мг Владычества ИВ Человека Планеты Земля ИВО
C167: 16221 | D167: 093. ИВАС ИВО Дор Фелиция → Си Мг Учительства ИВО ИВ Си Мг Учительства ИВО | E167: 15965 | F167: 093. ИВАС ИВО ИВ → Синтез Мг Учительства ИВ Аватара ИВО | G167: 15709 | H167: 093. ИВАС ИВО ИВ → Синтез Мг Учительства ИВ Владыки ИВО | I167: 15453 | J167: 093. ИВАС ИВО ИВ → Синтез Мг Учительства ИВ Учителя ИВО | K167: 15197 | L167: 093. ИВАС ИВО ИВ → Синтез Мг Учительства ИВ Ипостаси ИВО | M167: 14941 | N167: 093. ИВАС ИВО ИВ → Синтез Мг Учительства ИВ Служащего ИВО | O167: 14685 | P167: 093. ИВАС ИВО ИВ → Синтез Мг Учительства ИВ Посвященного ИВО | Q167: 14429 | R167: 093. ИВАС ИВО ИВ → Синтез Мг Учительства ИВ Майтрейи ИВО | S167: 14173 | T167: 093. ИВАС ИВО ИВ → Синтез Мг Учительства ИВ Христа ИВО | U167: 13917 | V167: 093. ИВАС ИВО ИВ → Синтез Мг Учительства ИВ Будды ИВО | W167: 13661 | X167: 093. ИВАС ИВО ИВ → Синтез Мг Учительства ИВ Теурга ИВО | Y167: 13405 | Z167: 093. ИВАС ИВО ИВ → Синтез Мг Учительства ИВ Творца ИВО | AA167: 13149 | AB167: 093. ИВАС ИВО ИВ → Синтез Мг Учительства ИВ Человека ИВО ИВО | AC167: 12893 | AD167: 093. ИВАС ИВО ИВ → Синтез Мг Учительства ИВ Человека ВЦРМ ИВО | AE167: 12637 | AF167: 093. ИВАС ИВО ИВ → Синтез Мг Учительства ИВ Человека Мг ФаИВО | AG167: 12381 | AH167: 093. ИВАС ИВО ИВ → Синтез Мг Учительства ИВ Человека Планеты Земля ИВО
C168: 16220 | D168: 092. ИВАС ИВО Понтелей Виталина → Си Мг Ипостасности ИВО ИВ Си Мг Ипостасности ИВО | E168: 15964 | F168: 092. ИВАС ИВО ИВ → Синтез Мг Ипостасности ИВ Аватара ИВО | G168: 15708 | H168: 092. ИВАС ИВО ИВ → Синтез Мг Ипостасности ИВ Владыки ИВО | I168: 15452 | J168: 092. ИВАС ИВО ИВ → Синтез Мг Ипостасности ИВ Учителя ИВО | K168: 15196 | L168: 092. ИВАС ИВО ИВ → Синтез Мг Ипостасности ИВ Ипостаси ИВО | M168: 14940 | N168: 092. ИВАС ИВО ИВ → Синтез Мг Ипостасности ИВ Служащего ИВО | O168: 14684 | P168: 092. ИВАС ИВО ИВ → Синтез Мг Ипостасности ИВ Посвященного ИВО | Q168: 14428 | R168: 092. ИВАС ИВО ИВ → Синтез Мг Ипостасности ИВ Майтрейи ИВО | S168: 14172 | T168: 092. ИВАС ИВО ИВ → Синтез Мг Ипостасности ИВ Христа ИВО | U168: 13916 | V168: 092. ИВАС ИВО ИВ → Синтез Мг Ипостасности ИВ Будды ИВО | W168: 13660 | X168: 092. ИВАС ИВО ИВ → Синтез Мг Ипостасности ИВ Теурга ИВО | Y168: 13404 | Z168: 092. ИВАС ИВО ИВ → Синтез Мг Ипостасности ИВ Творца ИВО | AA168: 13148 | AB168: 092. ИВАС ИВО ИВ → Синтез Мг Ипостасности ИВ Человека ИВО ИВО | AC168: 12892 | AD168: 092. ИВАС ИВО ИВ → Синтез Мг Ипостасности ИВ Человека ВЦРМ ИВО | AE168: 12636 | AF168: 092. ИВАС ИВО ИВ → Синтез Мг Ипостасности ИВ Человека Мг ФаИВО | AG168: 12380 | AH168: 092. ИВАС ИВО ИВ → Синтез Мг Ипостасности ИВ Человека Планеты Земля ИВО
C169: 16219 | D169: 091. ИВАС ИВО Явир Нона → Си Мг Статусности ИВО ИВ Си Мг Статусности ИВО | E169: 15963 | F169: 091. ИВАС ИВО ИВ → Синтез Мг Статусности ИВ Аватара ИВО | G169: 15707 | H169: 091. ИВАС ИВО ИВ → Синтез Мг Статусности ИВ Владыки ИВО | I169: 15451 | J169: 091. ИВАС ИВО ИВ → Синтез Мг Статусности ИВ Учителя ИВО | K169: 15195 | L169: 091. ИВАС ИВО ИВ → Синтез Мг Статусности ИВ Ипостаси ИВО | M169: 14939 | N169: 091. ИВАС ИВО ИВ → Синтез Мг Статусности ИВ Служащего ИВО | O169: 14683 | P169: 091. ИВАС ИВО ИВ → Синтез Мг Статусности ИВ Посвященного ИВО | Q169: 14427 | R169: 091. ИВАС ИВО ИВ → Синтез Мг Статусности ИВ Майтрейи ИВО | S169: 14171 | T169: 091. ИВАС ИВО ИВ → Синтез Мг Статусности ИВ Христа ИВО | U169: 13915 | V169: 091. ИВАС ИВО ИВ → Синтез Мг Статусности ИВ Будды ИВО | W169: 13659 | X169: 091. ИВАС ИВО ИВ → Синтез Мг Статусности ИВ Теурга ИВО | Y169: 13403 | Z169: 091. ИВАС ИВО ИВ → Синтез Мг Статусности ИВ Творца ИВО | AA169: 13147 | AB169: 091. ИВАС ИВО ИВ → Синтез Мг Статусности ИВ Человека ИВО ИВО | AC169: 12891 | AD169: 091. ИВАС ИВО ИВ → Синтез Мг Статусности ИВ Человека ВЦРМ ИВО | AE169: 12635 | AF169: 091. ИВАС ИВО ИВ → Синтез Мг Статусности ИВ Человека Мг ФаИВО | AG169: 12379 | AH169: 091. ИВАС ИВО ИВ → Синтез Мг Статусности ИВ Человека Планеты Земля ИВО
C170: 16218 | D170: 090. ИВАС ИВО Трис Клементина → Си Мг Посвящённости ИВО ИВ Си Мг Посвящённости ИВО | E170: 15962 | F170: 090. ИВАС ИВО ИВ → Синтез Мг Посвящённости ИВ Аватара ИВО | G170: 15706 | H170: 090. ИВАС ИВО ИВ → Синтез Мг Посвящённости ИВ Владыки ИВО | I170: 15450 | J170: 090. ИВАС ИВО ИВ → Синтез Мг Посвящённости ИВ Учителя ИВО | K170: 15194 | L170: 090. ИВАС ИВО ИВ → Синтез Мг Посвящённости ИВ Ипостаси ИВО | M170: 14938 | N170: 090. ИВАС ИВО ИВ → Синтез Мг Посвящённости ИВ Служащего ИВО | O170: 14682 | P170: 090. ИВАС ИВО ИВ → Синтез Мг Посвящённости ИВ Посвященного ИВО | Q170: 14426 | R170: 090. ИВАС ИВО ИВ → Синтез Мг Посвящённости ИВ Майтрейи ИВО | S170: 14170 | T170: 090. ИВАС ИВО ИВ → Синтез Мг Посвящённости ИВ Христа ИВО | U170: 13914 | V170: 090. ИВАС ИВО ИВ → Синтез Мг Посвящённости ИВ Будды ИВО | W170: 13658 | X170: 090. ИВАС ИВО ИВ → Синтез Мг Посвящённости ИВ Теурга ИВО | Y170: 13402 | Z170: 090. ИВАС ИВО ИВ → Синтез Мг Посвящённости ИВ Творца ИВО | AA170: 13146 | AB170: 090. ИВАС ИВО ИВ → Синтез Мг Посвящённости ИВ Человека ИВО ИВО | AC170: 12890 | AD170: 090. ИВАС ИВО ИВ → Синтез Мг Посвящённости ИВ Человека ВЦРМ ИВО | AE170: 12634 | AF170: 090. ИВАС ИВО ИВ → Синтез Мг Посвящённости ИВ Человека Мг ФаИВО | AG170: 12378 | AH170: 090. ИВАС ИВО ИВ → Синтез Мг Посвящённости ИВ Человека Планеты Земля ИВО
C171: 16217 | D171: 089. ИВАС ИВО Виктор Лира → Си Мг Совершенства ИВО ИВ Си Мг Совершенства ИВО | E171: 15961 | F171: 089. ИВАС ИВО ИВ → Синтез Мг Совершенства ИВ Аватара ИВО | G171: 15705 | H171: 089. ИВАС ИВО ИВ → Синтез Мг Совершенства ИВ Владыки ИВО | I171: 15449 | J171: 089. ИВАС ИВО ИВ → Синтез Мг Совершенства ИВ Учителя ИВО | K171: 15193 | L171: 089. ИВАС ИВО ИВ → Синтез Мг Совершенства ИВ Ипостаси ИВО | M171: 14937 | N171: 089. ИВАС ИВО ИВ → Синтез Мг Совершенства ИВ Служащего ИВО | O171: 14681 | P171: 089. ИВАС ИВО ИВ → Синтез Мг Совершенства ИВ Посвященного ИВО | Q171: 14425 | R171: 089. ИВАС ИВО ИВ → Синтез Мг Совершенства ИВ Майтрейи ИВО | S171: 14169 | T171: 089. ИВАС ИВО ИВ → Синтез Мг Совершенства ИВ Христа ИВО | U171: 13913 | V171: 089. ИВАС ИВО ИВ → Синтез Мг Совершенства ИВ Будды ИВО | W171: 13657 | X171: 089. ИВАС ИВО ИВ → Синтез Мг Совершенства ИВ Теурга ИВО | Y171: 13401 | Z171: 089. ИВАС ИВО ИВ → Синтез Мг Совершенства ИВ Творца ИВО | AA171: 13145 | AB171: 089. ИВАС ИВО ИВ → Синтез Мг Совершенства ИВ Человека ИВО ИВО | AC171: 12889 | AD171: 089. ИВАС ИВО ИВ → Синтез Мг Совершенства ИВ Человека ВЦРМ ИВО | AE171: 12633 | AF171: 089. ИВАС ИВО ИВ → Синтез Мг Совершенства ИВ Человека Мг ФаИВО | AG171: 12377 | AH171: 089. ИВАС ИВО ИВ → Синтез Мг Совершенства ИВ Человека Планеты Земля ИВО
C172: 16216 | D172: 088. ИВАС ИВО Визар Ванесса → Си Мг Полномочности ИВО ИВ Си Мг Полномочности ИВО | E172: 15960 | F172: 088. ИВАС ИВО ИВ → Синтез Мг Полномочности ИВ Аватара ИВО | G172: 15704 | H172: 088. ИВАС ИВО ИВ → Синтез Мг Полномочности ИВ Владыки ИВО | I172: 15448 | J172: 088. ИВАС ИВО ИВ → Синтез Мг Полномочности ИВ Учителя ИВО | K172: 15192 | L172: 088. ИВАС ИВО ИВ → Синтез Мг Полномочности ИВ Ипостаси ИВО | M172: 14936 | N172: 088. ИВАС ИВО ИВ → Синтез Мг Полномочности ИВ Служащего ИВО | O172: 14680 | P172: 088. ИВАС ИВО ИВ → Синтез Мг Полномочности ИВ Посвященного ИВО | Q172: 14424 | R172: 088. ИВАС ИВО ИВ → Синтез Мг Полномочности ИВ Майтрейи ИВО | S172: 14168 | T172: 088. ИВАС ИВО ИВ → Синтез Мг Полномочности ИВ Христа ИВО | U172: 13912 | V172: 088. ИВАС ИВО ИВ → Синтез Мг Полномочности ИВ Будды ИВО | W172: 13656 | X172: 088. ИВАС ИВО ИВ → Синтез Мг Полномочности ИВ Теурга ИВО | Y172: 13400 | Z172: 088. ИВАС ИВО ИВ → Синтез Мг Полномочности ИВ Творца ИВО | AA172: 13144 | AB172: 088. ИВАС ИВО ИВ → Синтез Мг Полномочности ИВ Человека ИВО ИВО | AC172: 12888 | AD172: 088. ИВАС ИВО ИВ → Синтез Мг Полномочности ИВ Человека ВЦРМ ИВО | AE172: 12632 | AF172: 088. ИВАС ИВО ИВ → Синтез Мг Полномочности ИВ Человека Мг ФаИВО | AG172: 12376 | AH172: 088. ИВАС ИВО ИВ → Синтез Мг Полномочности ИВ Человека Планеты Земля ИВО
C173: 16215 | D173: 087. ИВАС ИВО Ерёма Евдокия → Си Мг Непредубеждённость ИВО ИВ Си Мг Непредубеждённости ИВО | E173: 15959 | F173: 087. ИВАС ИВО ИВ → Синтез Мг Непредубеждённости ИВ Аватара ИВО | G173: 15703 | H173: 087. ИВАС ИВО ИВ → Синтез Мг Непредубеждённости ИВ Владыки ИВО | I173: 15447 | J173: 087. ИВАС ИВО ИВ → Синтез Мг Непредубеждённости ИВ Учителя ИВО | K173: 15191 | L173: 087. ИВАС ИВО ИВ → Синтез Мг Непредубеждённости ИВ Ипостаси ИВО | M173: 14935 | N173: 087. ИВАС ИВО ИВ → Синтез Мг Непредубеждённости ИВ Служащего ИВО | O173: 14679 | P173: 087. ИВАС ИВО ИВ → Синтез Мг Непредубеждённости ИВ Посвященного ИВО | Q173: 14423 | R173: 087. ИВАС ИВО ИВ → Синтез Мг Непредубеждённости ИВ Майтрейи ИВО | S173: 14167 | T173: 087. ИВАС ИВО ИВ → Синтез Мг Непредубеждённости ИВ Христа ИВО | U173: 13911 | V173: 087. ИВАС ИВО ИВ → Синтез Мг Непредубеждённости ИВ Будды ИВО | W173: 13655 | X173: 087. ИВАС ИВО ИВ → Синтез Мг Непредубеждённости ИВ Теурга ИВО | Y173: 13399 | Z173: 087. ИВАС ИВО ИВ → Синтез Мг Непредубеждённости ИВ Творца ИВО | AA173: 13143 | AB173: 087. ИВАС ИВО ИВ → Синтез Мг Непредубеждённости ИВ Человека ИВО ИВО | AC173: 12887 | AD173: 087. ИВАС ИВО ИВ → Синтез Мг Непредубеждённости ИВ Человека ВЦРМ ИВО | AE173: 12631 | AF173: 087. ИВАС ИВО ИВ → Синтез Мг Непредубеждённости ИВ Человека Мг ФаИВО | AG173: 12375 | AH173: 087. ИВАС ИВО ИВ → Синтез Мг Непредубеждённости ИВ Человека Планеты Земля ИВО
C174: 16214 | D174: 086. ИВАС ИВО Ираклий Клара → Си Мг Реализации ИВО ИВ Си Мг Реализации ИВО | E174: 15958 | F174: 086. ИВАС ИВО ИВ → Синтез Мг Реализации ИВ Аватара ИВО | G174: 15702 | H174: 086. ИВАС ИВО ИВ → Синтез Мг Реализации ИВ Владыки ИВО | I174: 15446 | J174: 086. ИВАС ИВО ИВ → Синтез Мг Реализации ИВ Учителя ИВО | K174: 15190 | L174: 086. ИВАС ИВО ИВ → Синтез Мг Реализации ИВ Ипостаси ИВО | M174: 14934 | N174: 086. ИВАС ИВО ИВ → Синтез Мг Реализации ИВ Служащего ИВО | O174: 14678 | P174: 086. ИВАС ИВО ИВ → Синтез Мг Реализации ИВ Посвященного ИВО | Q174: 14422 | R174: 086. ИВАС ИВО ИВ → Синтез Мг Реализации ИВ Майтрейи ИВО | S174: 14166 | T174: 086. ИВАС ИВО ИВ → Синтез Мг Реализации ИВ Христа ИВО | U174: 13910 | V174: 086. ИВАС ИВО ИВ → Синтез Мг Реализации ИВ Будды ИВО | W174: 13654 | X174: 086. ИВАС ИВО ИВ → Синтез Мг Реализации ИВ Теурга ИВО | Y174: 13398 | Z174: 086. ИВАС ИВО ИВ → Синтез Мг Реализации ИВ Творца ИВО | AA174: 13142 | AB174: 086. ИВАС ИВО ИВ → Синтез Мг Реализации ИВ Человека ИВО ИВО | AC174: 12886 | AD174: 086. ИВАС ИВО ИВ → Синтез Мг Реализации ИВ Человека ВЦРМ ИВО | AE174: 12630 | AF174: 086. ИВАС ИВО ИВ → Синтез Мг Реализации ИВ Человека Мг ФаИВО | AG174: 12374 | AH174: 086. ИВАС ИВО ИВ → Синтез Мг Реализации ИВ Человека Планеты Земля ИВО
C175: 16213 | D175: 085. ИВАС ИВО Елизар Лиза → Си Мг Свободы ИВО ИВ Си Мг Свободы ИВО | E175: 15957 | F175: 085. ИВАС ИВО ИВ → Синтез Мг Свободы ИВ Аватара ИВО | G175: 15701 | H175: 085. ИВАС ИВО ИВ → Синтез Мг Свободы ИВ Владыки ИВО | I175: 15445 | J175: 085. ИВАС ИВО ИВ → Синтез Мг Свободы ИВ Учителя ИВО | K175: 15189 | L175: 085. ИВАС ИВО ИВ → Синтез Мг Свободы ИВ Ипостаси ИВО | M175: 14933 | N175: 085. ИВАС ИВО ИВ → Синтез Мг Свободы ИВ Служащего ИВО | O175: 14677 | P175: 085. ИВАС ИВО ИВ → Синтез Мг Свободы ИВ Посвященного ИВО | Q175: 14421 | R175: 085. ИВАС ИВО ИВ → Синтез Мг Свободы ИВ Майтрейи ИВО | S175: 14165 | T175: 085. ИВАС ИВО ИВ → Синтез Мг Свободы ИВ Христа ИВО | U175: 13909 | V175: 085. ИВАС ИВО ИВ → Синтез Мг Свободы ИВ Будды ИВО | W175: 13653 | X175: 085. ИВАС ИВО ИВ → Синтез Мг Свободы ИВ Теурга ИВО | Y175: 13397 | Z175: 085. ИВАС ИВО ИВ → Синтез Мг Свободы ИВ Творца ИВО | AA175: 13141 | AB175: 085. ИВАС ИВО ИВ → Синтез Мг Свободы ИВ Человека ИВО ИВО | AC175: 12885 | AD175: 085. ИВАС ИВО ИВ → Синтез Мг Свободы ИВ Человека ВЦРМ ИВО | AE175: 12629 | AF175: 085. ИВАС ИВО ИВ → Синтез Мг Свободы ИВ Человека Мг ФаИВО | AG175: 12373 | AH175: 085. ИВАС ИВО ИВ → Синтез Мг Свободы ИВ Человека Планеты Земля ИВО
C176: 16212 | D176: 084. ИВАС ИВО Градимир Сюзанна → Си Мг Организованности ИВО ИВ Си Мг Организованности ИВО | E176: 15956 | F176: 084. ИВАС ИВО ИВ → Синтез Мг Организованности ИВ Аватара ИВО | G176: 15700 | H176: 084. ИВАС ИВО ИВ → Синтез Мг Организованности ИВ Владыки ИВО | I176: 15444 | J176: 084. ИВАС ИВО ИВ → Синтез Мг Организованности ИВ Учителя ИВО | K176: 15188 | L176: 084. ИВАС ИВО ИВ → Синтез Мг Организованности ИВ Ипостаси ИВО | M176: 14932 | N176: 084. ИВАС ИВО ИВ → Синтез Мг Организованности ИВ Служащего ИВО | O176: 14676 | P176: 084. ИВАС ИВО ИВ → Синтез Мг Организованности ИВ Посвященного ИВО | Q176: 14420 | R176: 084. ИВАС ИВО ИВ → Синтез Мг Организованности ИВ Майтрейи ИВО | S176: 14164 | T176: 084. ИВАС ИВО ИВ → Синтез Мг Организованности ИВ Христа ИВО | U176: 13908 | V176: 084. ИВАС ИВО ИВ → Синтез Мг Организованности ИВ Будды ИВО | W176: 13652 | X176: 084. ИВАС ИВО ИВ → Синтез Мг Организованности ИВ Теурга ИВО | Y176: 13396 | Z176: 084. ИВАС ИВО ИВ → Синтез Мг Организованности ИВ Творца ИВО | AA176: 13140 | AB176: 084. ИВАС ИВО ИВ → Синтез Мг Организованности ИВ Человека ИВО ИВО | AC176: 12884 | AD176: 084. ИВАС ИВО ИВ → Синтез Мг Организованности ИВ Человека ВЦРМ ИВО | AE176: 12628 | AF176: 084. ИВАС ИВО ИВ → Синтез Мг Организованности ИВ Человека Мг ФаИВО | AG176: 12372 | AH176: 084. ИВАС ИВО ИВ → Синтез Мг Организованности ИВ Человека Планеты Земля ИВО
C177: 16211 | D177: 083. ИВАС ИВО Рустам Сейла → Си Мг Управления ИВО ИВ Си Мг Управления ИВО | E177: 15955 | F177: 083. ИВАС ИВО ИВ → Синтез Мг Управления ИВ Аватара ИВО | G177: 15699 | H177: 083. ИВАС ИВО ИВ → Синтез Мг Управления ИВ Владыки ИВО | I177: 15443 | J177: 083. ИВАС ИВО ИВ → Синтез Мг Управления ИВ Учителя ИВО | K177: 15187 | L177: 083. ИВАС ИВО ИВ → Синтез Мг Управления ИВ Ипостаси ИВО | M177: 14931 | N177: 083. ИВАС ИВО ИВ → Синтез Мг Управления ИВ Служащего ИВО | O177: 14675 | P177: 083. ИВАС ИВО ИВ → Синтез Мг Управления ИВ Посвященного ИВО | Q177: 14419 | R177: 083. ИВАС ИВО ИВ → Синтез Мг Управления ИВ Майтрейи ИВО | S177: 14163 | T177: 083. ИВАС ИВО ИВ → Синтез Мг Управления ИВ Христа ИВО | U177: 13907 | V177: 083. ИВАС ИВО ИВ → Синтез Мг Управления ИВ Будды ИВО | W177: 13651 | X177: 083. ИВАС ИВО ИВ → Синтез Мг Управления ИВ Теурга ИВО | Y177: 13395 | Z177: 083. ИВАС ИВО ИВ → Синтез Мг Управления ИВ Творца ИВО | AA177: 13139 | AB177: 083. ИВАС ИВО ИВ → Синтез Мг Управления ИВ Человека ИВО ИВО | AC177: 12883 | AD177: 083. ИВАС ИВО ИВ → Синтез Мг Управления ИВ Человека ВЦРМ ИВО | AE177: 12627 | AF177: 083. ИВАС ИВО ИВ → Синтез Мг Управления ИВ Человека Мг ФаИВО | AG177: 12371 | AH177: 083. ИВАС ИВО ИВ → Синтез Мг Управления ИВ Человека Планеты Земля ИВО
C178: 16210 | D178: 082. ИВАС ИВО Октан Руслана → Си Мг Ответственности ИВО ИВ Си Мг Ответственности ИВО | E178: 15954 | F178: 082. ИВАС ИВО ИВ → Синтез Мг Ответственности ИВ Аватара ИВО | G178: 15698 | H178: 082. ИВАС ИВО ИВ → Синтез Мг Ответственности ИВ Владыки ИВО | I178: 15442 | J178: 082. ИВАС ИВО ИВ → Синтез Мг Ответственности ИВ Учителя ИВО | K178: 15186 | L178: 082. ИВАС ИВО ИВ → Синтез Мг Ответственности ИВ Ипостаси ИВО | M178: 14930 | N178: 082. ИВАС ИВО ИВ → Синтез Мг Ответственности ИВ Служащего ИВО | O178: 14674 | P178: 082. ИВАС ИВО ИВ → Синтез Мг Ответственности ИВ Посвященного ИВО | Q178: 14418 | R178: 082. ИВАС ИВО ИВ → Синтез Мг Ответственности ИВ Майтрейи ИВО | S178: 14162 | T178: 082. ИВАС ИВО ИВ → Синтез Мг Ответственности ИВ Христа ИВО | U178: 13906 | V178: 082. ИВАС ИВО ИВ → Синтез Мг Ответственности ИВ Будды ИВО | W178: 13650 | X178: 082. ИВАС ИВО ИВ → Синтез Мг Ответственности ИВ Теурга ИВО | Y178: 13394 | Z178: 082. ИВАС ИВО ИВ → Синтез Мг Ответственности ИВ Творца ИВО | AA178: 13138 | AB178: 082. ИВАС ИВО ИВ → Синтез Мг Ответственности ИВ Человека ИВО ИВО | AC178: 12882 | AD178: 082. ИВАС ИВО ИВ → Синтез Мг Ответственности ИВ Человека ВЦРМ ИВО | AE178: 12626 | AF178: 082. ИВАС ИВО ИВ → Синтез Мг Ответственности ИВ Человека Мг ФаИВО | AG178: 12370 | AH178: 082. ИВАС ИВО ИВ → Синтез Мг Ответственности ИВ Человека Планеты Земля ИВО
C179: 16209 | D179: 081. ИВАС ИВО Силуан Устина → Си Мг Дисциплины ИВО ИВ Си Мг Дисциплины ИВО | E179: 15953 | F179: 081. ИВАС ИВО ИВ → Синтез Мг Дисциплины ИВ Аватара ИВО | G179: 15697 | H179: 081. ИВАС ИВО ИВ → Синтез Мг Дисциплины ИВ Владыки ИВО | I179: 15441 | J179: 081. ИВАС ИВО ИВ → Синтез Мг Дисциплины ИВ Учителя ИВО | K179: 15185 | L179: 081. ИВАС ИВО ИВ → Синтез Мг Дисциплины ИВ Ипостаси ИВО | M179: 14929 | N179: 081. ИВАС ИВО ИВ → Синтез Мг Дисциплины ИВ Служащего ИВО | O179: 14673 | P179: 081. ИВАС ИВО ИВ → Синтез Мг Дисциплины ИВ Посвященного ИВО | Q179: 14417 | R179: 081. ИВАС ИВО ИВ → Синтез Мг Дисциплины ИВ Майтрейи ИВО | S179: 14161 | T179: 081. ИВАС ИВО ИВ → Синтез Мг Дисциплины ИВ Христа ИВО | U179: 13905 | V179: 081. ИВАС ИВО ИВ → Синтез Мг Дисциплины ИВ Будды ИВО | W179: 13649 | X179: 081. ИВАС ИВО ИВ → Синтез Мг Дисциплины ИВ Теурга ИВО | Y179: 13393 | Z179: 081. ИВАС ИВО ИВ → Синтез Мг Дисциплины ИВ Творца ИВО | AA179: 13137 | AB179: 081. ИВАС ИВО ИВ → Синтез Мг Дисциплины ИВ Человека ИВО ИВО | AC179: 12881 | AD179: 081. ИВАС ИВО ИВ → Синтез Мг Дисциплины ИВ Человека ВЦРМ ИВО | AE179: 12625 | AF179: 081. ИВАС ИВО ИВ → Синтез Мг Дисциплины ИВ Человека Мг ФаИВО | AG179: 12369 | AH179: 081. ИВАС ИВО ИВ → Синтез Мг Дисциплины ИВ Человека Планеты Земля ИВО
C180: 16208 | D180: 080. ИВАС ИВО Лукьян Марика → Си Мг ИВ Дома Майтрейи ИВО ИВ Дом Майтрейи ИВО | E180: 15952 | F180: 080. ИВАС ИВО ИВ → Синтез ИВ Дома Майтрейи ИВО ИВ Аватара ИВО | G180: 15696 | H180: 080. ИВАС ИВО ИВ → Синтез ИВ Дома Майтрейи ИВО ИВ Владыки ИВО | I180: 15440 | J180: 080. ИВАС ИВО ИВ → Синтез ИВ Дома Майтрейи ИВО ИВ Учителя ИВО | K180: 15184 | L180: 080. ИВАС ИВО ИВ → Синтез ИВ Дома Майтрейи ИВО ИВ Ипостаси ИВО | M180: 14928 | N180: 080. ИВАС ИВО ИВ → Синтез ИВ Дома Майтрейи ИВО ИВ Служащего ИВО | O180: 14672 | P180: 080. ИВАС ИВО ИВ → Синтез ИВ Дома Майтрейи ИВО ИВ Посвященного ИВО | Q180: 14416 | R180: 080. ИВАС ИВО ИВ → Синтез ИВ Дома Майтрейи ИВО ИВ Майтрейи ИВО | S180: 14160 | T180: 080. ИВАС ИВО ИВ → Синтез ИВ Дома Майтрейи ИВО ИВ Христа ИВО | U180: 13904 | V180: 080. ИВАС ИВО ИВ → Синтез ИВ Дома Майтрейи ИВО ИВ Будды ИВО | W180: 13648 | X180: 080. ИВАС ИВО ИВ → Синтез ИВ Дома Майтрейи ИВО ИВ Теурга ИВО | Y180: 13392 | Z180: 080. ИВАС ИВО ИВ → Синтез ИВ Дома Майтрейи ИВО ИВ Творца ИВО | AA180: 13136 | AB180: 080. ИВАС ИВО ИВ → Синтез ИВ Дома Майтрейи ИВО ИВ Человека ИВО ИВО | AC180: 12880 | AD180: 080. ИВАС ИВО ИВ → Синтез ИВ Дома Майтрейи ИВО ИВ Человека ВЦРМ ИВО | AE180: 12624 | AF180: 080. ИВАС ИВО ИВ → Синтез ИВ Дома Майтрейи ИВО ИВ Человека Мг ФаИВО | AG180: 12368 | AH180: 080. ИВАС ИВО ИВ → Синтез ИВ Дома Майтрейи ИВО ИВ Человека Планеты Земля ИВО
C181: 16207 | D181: 079. ИВАС ИВО Люсьен Франсуаза → Си Мг Я Есмь ИВО ИВ Си Мг Я Есмь ИВО | E181: 15951 | F181: 079. ИВАС ИВО ИВ → Синтез Мг Я Есмь ИВ Аватара ИВО | G181: 15695 | H181: 079. ИВАС ИВО ИВ → Синтез Мг Я Есмь ИВ Владыки ИВО | I181: 15439 | J181: 079. ИВАС ИВО ИВ → Синтез Мг Я Есмь ИВ Учителя ИВО | K181: 15183 | L181: 079. ИВАС ИВО ИВ → Синтез Мг Я Есмь ИВ Ипостаси ИВО | M181: 14927 | N181: 079. ИВАС ИВО ИВ → Синтез Мг Я Есмь ИВ Служащего ИВО | O181: 14671 | P181: 079. ИВАС ИВО ИВ → Синтез Мг Я Есмь ИВ Посвященного ИВО | Q181: 14415 | R181: 079. ИВАС ИВО ИВ → Синтез Мг Я Есмь ИВ Майтрейи ИВО | S181: 14159 | T181: 079. ИВАС ИВО ИВ → Синтез Мг Я Есмь ИВ Христа ИВО | U181: 13903 | V181: 079. ИВАС ИВО ИВ → Синтез Мг Я Есмь ИВ Будды ИВО | W181: 13647 | X181: 079. ИВАС ИВО ИВ → Синтез Мг Я Есмь ИВ Теурга ИВО | Y181: 13391 | Z181: 079. ИВАС ИВО ИВ → Синтез Мг Я Есмь ИВ Творца ИВО | AA181: 13135 | AB181: 079. ИВАС ИВО ИВ → Синтез Мг Я Есмь ИВ Человека ИВО ИВО | AC181: 12879 | AD181: 079. ИВАС ИВО ИВ → Синтез Мг Я Есмь ИВ Человека ВЦРМ ИВО | AE181: 12623 | AF181: 079. ИВАС ИВО ИВ → Синтез Мг Я Есмь ИВ Человека Мг ФаИВО | AG181: 12367 | AH181: 079. ИВАС ИВО ИВ → Синтез Мг Я Есмь ИВ Человека Планеты Земля ИВО
C182: 16206 | D182: 078. ИВАС ИВО Андриан Христина → Си Мг Имперации ИВО ИВ Си Мг Имперации ИВО | E182: 15950 | F182: 078. ИВАС ИВО ИВ → Синтез Мг Имперации ИВ Аватара ИВО | G182: 15694 | H182: 078. ИВАС ИВО ИВ → Синтез Мг Имперации ИВ Владыки ИВО | I182: 15438 | J182: 078. ИВАС ИВО ИВ → Синтез Мг Имперации ИВ Учителя ИВО | K182: 15182 | L182: 078. ИВАС ИВО ИВ → Синтез Мг Имперации ИВ Ипостаси ИВО | M182: 14926 | N182: 078. ИВАС ИВО ИВ → Синтез Мг Имперации ИВ Служащего ИВО | O182: 14670 | P182: 078. ИВАС ИВО ИВ → Синтез Мг Имперации ИВ Посвященного ИВО | Q182: 14414 | R182: 078. ИВАС ИВО ИВ → Синтез Мг Имперации ИВ Майтрейи ИВО | S182: 14158 | T182: 078. ИВАС ИВО ИВ → Синтез Мг Имперации ИВ Христа ИВО | U182: 13902 | V182: 078. ИВАС ИВО ИВ → Синтез Мг Имперации ИВ Будды ИВО | W182: 13646 | X182: 078. ИВАС ИВО ИВ → Синтез Мг Имперации ИВ Теурга ИВО | Y182: 13390 | Z182: 078. ИВАС ИВО ИВ → Синтез Мг Имперации ИВ Творца ИВО | AA182: 13134 | AB182: 078. ИВАС ИВО ИВ → Синтез Мг Имперации ИВ Человека ИВО ИВО | AC182: 12878 | AD182: 078. ИВАС ИВО ИВ → Синтез Мг Имперации ИВ Человека ВЦРМ ИВО | AE182: 12622 | AF182: 078. ИВАС ИВО ИВ → Синтез Мг Имперации ИВ Человека Мг ФаИВО | AG182: 12366 | AH182: 078. ИВАС ИВО ИВ → Синтез Мг Имперации ИВ Человека Планеты Земля ИВО
C183: 16205 | D183: 077. ИВАС ИВО Прокофий Иолана → Си Мг Взгляда ИВО ИВ Си Мг Взгляда ИВО | E183: 15949 | F183: 077. ИВАС ИВО ИВ → Синтез Мг Взгляда ИВ Аватара ИВО | G183: 15693 | H183: 077. ИВАС ИВО ИВ → Синтез Мг Взгляда ИВ Владыки ИВО | I183: 15437 | J183: 077. ИВАС ИВО ИВ → Синтез Мг Взгляда ИВ Учителя ИВО | K183: 15181 | L183: 077. ИВАС ИВО ИВ → Синтез Мг Взгляда ИВ Ипостаси ИВО | M183: 14925 | N183: 077. ИВАС ИВО ИВ → Синтез Мг Взгляда ИВ Служащего ИВО | O183: 14669 | P183: 077. ИВАС ИВО ИВ → Синтез Мг Взгляда ИВ Посвященного ИВО | Q183: 14413 | R183: 077. ИВАС ИВО ИВ → Синтез Мг Взгляда ИВ Майтрейи ИВО | S183: 14157 | T183: 077. ИВАС ИВО ИВ → Синтез Мг Взгляда ИВ Христа ИВО | U183: 13901 | V183: 077. ИВАС ИВО ИВ → Синтез Мг Взгляда ИВ Будды ИВО | W183: 13645 | X183: 077. ИВАС ИВО ИВ → Синтез Мг Взгляда ИВ Теурга ИВО | Y183: 13389 | Z183: 077. ИВАС ИВО ИВ → Синтез Мг Взгляда ИВ Творца ИВО | AA183: 13133 | AB183: 077. ИВАС ИВО ИВ → Синтез Мг Взгляда ИВ Человека ИВО ИВО | AC183: 12877 | AD183: 077. ИВАС ИВО ИВ → Синтез Мг Взгляда ИВ Человека ВЦРМ ИВО | AE183: 12621 | AF183: 077. ИВАС ИВО ИВ → Синтез Мг Взгляда ИВ Человека Мг ФаИВО | AG183: 12365 | AH183: 077. ИВАС ИВО ИВ → Синтез Мг Взгляда ИВ Человека Планеты Земля ИВО
C184: 16204 | D184: 076. ИВАС ИВО Зарк Джесика → Си Мг Синтезначала ИВО ИВ Си Мг Синтезначала ИВО | E184: 15948 | F184: 076. ИВАС ИВО ИВ → Синтез Мг Синтезначала ИВ Аватара ИВО | G184: 15692 | H184: 076. ИВАС ИВО ИВ → Синтез Мг Синтезначала ИВ Владыки ИВО | I184: 15436 | J184: 076. ИВАС ИВО ИВ → Синтез Мг Синтезначала ИВ Учителя ИВО | K184: 15180 | L184: 076. ИВАС ИВО ИВ → Синтез Мг Синтезначала ИВ Ипостаси ИВО | M184: 14924 | N184: 076. ИВАС ИВО ИВ → Синтез Мг Синтезначала ИВ Служащего ИВО | O184: 14668 | P184: 076. ИВАС ИВО ИВ → Синтез Мг Синтезначала ИВ Посвященного ИВО | Q184: 14412 | R184: 076. ИВАС ИВО ИВ → Синтез Мг Синтезначала ИВ Майтрейи ИВО | S184: 14156 | T184: 076. ИВАС ИВО ИВ → Синтез Мг Синтезначала ИВ Христа ИВО | U184: 13900 | V184: 076. ИВАС ИВО ИВ → Синтез Мг Синтезначала ИВ Будды ИВО | W184: 13644 | X184: 076. ИВАС ИВО ИВ → Синтез Мг Синтезначала ИВ Теурга ИВО | Y184: 13388 | Z184: 076. ИВАС ИВО ИВ → Синтез Мг Синтезначала ИВ Творца ИВО | AA184: 13132 | AB184: 076. ИВАС ИВО ИВ → Синтез Мг Синтезначала ИВ Человека ИВО ИВО | AC184: 12876 | AD184: 076. ИВАС ИВО ИВ → Синтез Мг Синтезначала ИВ Человека ВЦРМ ИВО | AE184: 12620 | AF184: 076. ИВАС ИВО ИВ → Синтез Мг Синтезначала ИВ Человека Мг ФаИВО | AG184: 12364 | AH184: 076. ИВАС ИВО ИВ → Синтез Мг Синтезначала ИВ Человека Планеты Земля ИВО
C185: 16203 | D185: 075. ИВАС ИВО Станис Сабина → Си Мг Основа ИВО ИВ Си Мг Основы ИВО | E185: 15947 | F185: 075. ИВАС ИВО ИВ → Синтез Мг Основа ИВ Аватара ИВО | G185: 15691 | H185: 075. ИВАС ИВО ИВ → Синтез Мг Основа ИВ Владыки ИВО | I185: 15435 | J185: 075. ИВАС ИВО ИВ → Синтез Мг Основа ИВ Учителя ИВО | K185: 15179 | L185: 075. ИВАС ИВО ИВ → Синтез Мг Основа ИВ Ипостаси ИВО | M185: 14923 | N185: 075. ИВАС ИВО ИВ → Синтез Мг Основа ИВ Служащего ИВО | O185: 14667 | P185: 075. ИВАС ИВО ИВ → Синтез Мг Основа ИВ Посвященного ИВО | Q185: 14411 | R185: 075. ИВАС ИВО ИВ → Синтез Мг Основа ИВ Майтрейи ИВО | S185: 14155 | T185: 075. ИВАС ИВО ИВ → Синтез Мг Основа ИВ Христа ИВО | U185: 13899 | V185: 075. ИВАС ИВО ИВ → Синтез Мг Основа ИВ Будды ИВО | W185: 13643 | X185: 075. ИВАС ИВО ИВ → Синтез Мг Основа ИВ Теурга ИВО | Y185: 13387 | Z185: 075. ИВАС ИВО ИВ → Синтез Мг Основа ИВ Творца ИВО | AA185: 13131 | AB185: 075. ИВАС ИВО ИВ → Синтез Мг Основа ИВ Человека ИВО ИВО | AC185: 12875 | AD185: 075. ИВАС ИВО ИВ → Синтез Мг Основа ИВ Человека ВЦРМ ИВО | AE185: 12619 | AF185: 075. ИВАС ИВО ИВ → Синтез Мг Основа ИВ Человека Мг ФаИВО | AG185: 12363 | AH185: 075. ИВАС ИВО ИВ → Синтез Мг Основа ИВ Человека Планеты Земля ИВО
C186: 16202 | D186: 074. ИВАС ИВО Панкрат Нелли → Си Мг Параметода ИВО ИВ Си Мг Параметода ИВО | E186: 15946 | F186: 074. ИВАС ИВО ИВ → Синтез Мг Параметода ИВ Аватара ИВО | G186: 15690 | H186: 074. ИВАС ИВО ИВ → Синтез Мг Параметода ИВ Владыки ИВО | I186: 15434 | J186: 074. ИВАС ИВО ИВ → Синтез Мг Параметода ИВ Учителя ИВО | K186: 15178 | L186: 074. ИВАС ИВО ИВ → Синтез Мг Параметода ИВ Ипостаси ИВО | M186: 14922 | N186: 074. ИВАС ИВО ИВ → Синтез Мг Параметода ИВ Служащего ИВО | O186: 14666 | P186: 074. ИВАС ИВО ИВ → Синтез Мг Параметода ИВ Посвященного ИВО | Q186: 14410 | R186: 074. ИВАС ИВО ИВ → Синтез Мг Параметода ИВ Майтрейи ИВО | S186: 14154 | T186: 074. ИВАС ИВО ИВ → Синтез Мг Параметода ИВ Христа ИВО | U186: 13898 | V186: 074. ИВАС ИВО ИВ → Синтез Мг Параметода ИВ Будды ИВО | W186: 13642 | X186: 074. ИВАС ИВО ИВ → Синтез Мг Параметода ИВ Теурга ИВО | Y186: 13386 | Z186: 074. ИВАС ИВО ИВ → Синтез Мг Параметода ИВ Творца ИВО | AA186: 13130 | AB186: 074. ИВАС ИВО ИВ → Синтез Мг Параметода ИВ Человека ИВО ИВО | AC186: 12874 | AD186: 074. ИВАС ИВО ИВ → Синтез Мг Параметода ИВ Человека ВЦРМ ИВО | AE186: 12618 | AF186: 074. ИВАС ИВО ИВ → Синтез Мг Параметода ИВ Человека Мг ФаИВО | AG186: 12362 | AH186: 074. ИВАС ИВО ИВ → Синтез Мг Параметода ИВ Человека Планеты Земля ИВО
C187: 16201 | D187: 073. ИВАС ИВО Старк Санта → Си Мг Мощи ИВО ИВ Си Мг Мощи ИВО | E187: 15945 | F187: 073. ИВАС ИВО ИВ → Синтез Мг Мощи ИВ Аватара ИВО | G187: 15689 | H187: 073. ИВАС ИВО ИВ → Синтез Мг Мощи ИВ Владыки ИВО | I187: 15433 | J187: 073. ИВАС ИВО ИВ → Синтез Мг Мощи ИВ Учителя ИВО | K187: 15177 | L187: 073. ИВАС ИВО ИВ → Синтез Мг Мощи ИВ Ипостаси ИВО | M187: 14921 | N187: 073. ИВАС ИВО ИВ → Синтез Мг Мощи ИВ Служащего ИВО | O187: 14665 | P187: 073. ИВАС ИВО ИВ → Синтез Мг Мощи ИВ Посвященного ИВО | Q187: 14409 | R187: 073. ИВАС ИВО ИВ → Синтез Мг Мощи ИВ Майтрейи ИВО | S187: 14153 | T187: 073. ИВАС ИВО ИВ → Синтез Мг Мощи ИВ Христа ИВО | U187: 13897 | V187: 073. ИВАС ИВО ИВ → Синтез Мг Мощи ИВ Будды ИВО | W187: 13641 | X187: 073. ИВАС ИВО ИВ → Синтез Мг Мощи ИВ Теурга ИВО | Y187: 13385 | Z187: 073. ИВАС ИВО ИВ → Синтез Мг Мощи ИВ Творца ИВО | AA187: 13129 | AB187: 073. ИВАС ИВО ИВ → Синтез Мг Мощи ИВ Человека ИВО ИВО | AC187: 12873 | AD187: 073. ИВАС ИВО ИВ → Синтез Мг Мощи ИВ Человека ВЦРМ ИВО | AE187: 12617 | AF187: 073. ИВАС ИВО ИВ → Синтез Мг Мощи ИВ Человека Мг ФаИВО | AG187: 12361 | AH187: 073. ИВАС ИВО ИВ → Синтез Мг Мощи ИВ Человека Планеты Земля ИВО
C188: 16200 | D188: 072. ИВАС ИВО Дорофей Доротея → Си Мг Права ИВО ИВ Си Мг Права ИВО | E188: 15944 | F188: 072. ИВАС ИВО ИВ → Синтез Мг Права ИВ Аватара ИВО | G188: 15688 | H188: 072. ИВАС ИВО ИВ → Синтез Мг Права ИВ Владыки ИВО | I188: 15432 | J188: 072. ИВАС ИВО ИВ → Синтез Мг Права ИВ Учителя ИВО | K188: 15176 | L188: 072. ИВАС ИВО ИВ → Синтез Мг Права ИВ Ипостаси ИВО | M188: 14920 | N188: 072. ИВАС ИВО ИВ → Синтез Мг Права ИВ Служащего ИВО | O188: 14664 | P188: 072. ИВАС ИВО ИВ → Синтез Мг Права ИВ Посвященного ИВО | Q188: 14408 | R188: 072. ИВАС ИВО ИВ → Синтез Мг Права ИВ Майтрейи ИВО | S188: 14152 | T188: 072. ИВАС ИВО ИВ → Синтез Мг Права ИВ Христа ИВО | U188: 13896 | V188: 072. ИВАС ИВО ИВ → Синтез Мг Права ИВ Будды ИВО | W188: 13640 | X188: 072. ИВАС ИВО ИВ → Синтез Мг Права ИВ Теурга ИВО | Y188: 13384 | Z188: 072. ИВАС ИВО ИВ → Синтез Мг Права ИВ Творца ИВО | AA188: 13128 | AB188: 072. ИВАС ИВО ИВ → Синтез Мг Права ИВ Человека ИВО ИВО | AC188: 12872 | AD188: 072. ИВАС ИВО ИВ → Синтез Мг Права ИВ Человека ВЦРМ ИВО | AE188: 12616 | AF188: 072. ИВАС ИВО ИВ → Синтез Мг Права ИВ Человека Мг ФаИВО | AG188: 12360 | AH188: 072. ИВАС ИВО ИВ → Синтез Мг Права ИВ Человека Планеты Земля ИВО
C189: 16199 | D189: 071. ИВАС ИВО Яков Янина → Си Мг Идеи ИВО ИВ Си Мг Идеи ИВО | E189: 15943 | F189: 071. ИВАС ИВО ИВ → Синтез Мг Идеи ИВ Аватара ИВО | G189: 15687 | H189: 071. ИВАС ИВО ИВ → Синтез Мг Идеи ИВ Владыки ИВО | I189: 15431 | J189: 071. ИВАС ИВО ИВ → Синтез Мг Идеи ИВ Учителя ИВО | K189: 15175 | L189: 071. ИВАС ИВО ИВ → Синтез Мг Идеи ИВ Ипостаси ИВО | M189: 14919 | N189: 071. ИВАС ИВО ИВ → Синтез Мг Идеи ИВ Служащего ИВО | O189: 14663 | P189: 071. ИВАС ИВО ИВ → Синтез Мг Идеи ИВ Посвященного ИВО | Q189: 14407 | R189: 071. ИВАС ИВО ИВ → Синтез Мг Идеи ИВ Майтрейи ИВО | S189: 14151 | T189: 071. ИВАС ИВО ИВ → Синтез Мг Идеи ИВ Христа ИВО | U189: 13895 | V189: 071. ИВАС ИВО ИВ → Синтез Мг Идеи ИВ Будды ИВО | W189: 13639 | X189: 071. ИВАС ИВО ИВ → Синтез Мг Идеи ИВ Теурга ИВО | Y189: 13383 | Z189: 071. ИВАС ИВО ИВ → Синтез Мг Идеи ИВ Творца ИВО | AA189: 13127 | AB189: 071. ИВАС ИВО ИВ → Синтез Мг Идеи ИВ Человека ИВО ИВО | AC189: 12871 | AD189: 071. ИВАС ИВО ИВ → Синтез Мг Идеи ИВ Человека ВЦРМ ИВО | AE189: 12615 | AF189: 071. ИВАС ИВО ИВ → Синтез Мг Идеи ИВ Человека Мг ФаИВО | AG189: 12359 | AH189: 071. ИВАС ИВО ИВ → Синтез Мг Идеи ИВ Человека Планеты Земля ИВО
C190: 16198 | D190: 070. ИВАС ИВО Ульян Люция → Си Мг Сути ИВО ИВ Си Мг Сути ИВО | E190: 15942 | F190: 070. ИВАС ИВО ИВ → Синтез Мг Сути ИВ Аватара ИВО | G190: 15686 | H190: 070. ИВАС ИВО ИВ → Синтез Мг Сути ИВ Владыки ИВО | I190: 15430 | J190: 070. ИВАС ИВО ИВ → Синтез Мг Сути ИВ Учителя ИВО | K190: 15174 | L190: 070. ИВАС ИВО ИВ → Синтез Мг Сути ИВ Ипостаси ИВО | M190: 14918 | N190: 070. ИВАС ИВО ИВ → Синтез Мг Сути ИВ Служащего ИВО | O190: 14662 | P190: 070. ИВАС ИВО ИВ → Синтез Мг Сути ИВ Посвященного ИВО | Q190: 14406 | R190: 070. ИВАС ИВО ИВ → Синтез Мг Сути ИВ Майтрейи ИВО | S190: 14150 | T190: 070. ИВАС ИВО ИВ → Синтез Мг Сути ИВ Христа ИВО | U190: 13894 | V190: 070. ИВАС ИВО ИВ → Синтез Мг Сути ИВ Будды ИВО | W190: 13638 | X190: 070. ИВАС ИВО ИВ → Синтез Мг Сути ИВ Теурга ИВО | Y190: 13382 | Z190: 070. ИВАС ИВО ИВ → Синтез Мг Сути ИВ Творца ИВО | AA190: 13126 | AB190: 070. ИВАС ИВО ИВ → Синтез Мг Сути ИВ Человека ИВО ИВО | AC190: 12870 | AD190: 070. ИВАС ИВО ИВ → Синтез Мг Сути ИВ Человека ВЦРМ ИВО | AE190: 12614 | AF190: 070. ИВАС ИВО ИВ → Синтез Мг Сути ИВ Человека Мг ФаИВО | AG190: 12358 | AH190: 070. ИВАС ИВО ИВ → Синтез Мг Сути ИВ Человека Планеты Земля ИВО
C191: 16197 | D191: 069. ИВАС ИВО Герман Ирэн → Си Мг Смысла ИВО ИВ Си Мг Смысла ИВО | E191: 15941 | F191: 069. ИВАС ИВО ИВ → Синтез Мг Смысла ИВ Аватара ИВО | G191: 15685 | H191: 069. ИВАС ИВО ИВ → Синтез Мг Смысла ИВ Владыки ИВО | I191: 15429 | J191: 069. ИВАС ИВО ИВ → Синтез Мг Смысла ИВ Учителя ИВО | K191: 15173 | L191: 069. ИВАС ИВО ИВ → Синтез Мг Смысла ИВ Ипостаси ИВО | M191: 14917 | N191: 069. ИВАС ИВО ИВ → Синтез Мг Смысла ИВ Служащего ИВО | O191: 14661 | P191: 069. ИВАС ИВО ИВ → Синтез Мг Смысла ИВ Посвященного ИВО | Q191: 14405 | R191: 069. ИВАС ИВО ИВ → Синтез Мг Смысла ИВ Майтрейи ИВО | S191: 14149 | T191: 069. ИВАС ИВО ИВ → Синтез Мг Смысла ИВ Христа ИВО | U191: 13893 | V191: 069. ИВАС ИВО ИВ → Синтез Мг Смысла ИВ Будды ИВО | W191: 13637 | X191: 069. ИВАС ИВО ИВ → Синтез Мг Смысла ИВ Теурга ИВО | Y191: 13381 | Z191: 069. ИВАС ИВО ИВ → Синтез Мг Смысла ИВ Творца ИВО | AA191: 13125 | AB191: 069. ИВАС ИВО ИВ → Синтез Мг Смысла ИВ Человека ИВО ИВО | AC191: 12869 | AD191: 069. ИВАС ИВО ИВ → Синтез Мг Смысла ИВ Человека ВЦРМ ИВО | AE191: 12613 | AF191: 069. ИВАС ИВО ИВ → Синтез Мг Смысла ИВ Человека Мг ФаИВО | AG191: 12357 | AH191: 069. ИВАС ИВО ИВ → Синтез Мг Смысла ИВ Человека Планеты Земля ИВО
C192: 16196 | D192: 068. ИВАС ИВО Радомир Сесилия → Си Мг Мысли ИВО ИВ Си Мг Мысли ИВО | E192: 15940 | F192: 068. ИВАС ИВО ИВ → Синтез Мг Мысли ИВ Аватара ИВО | G192: 15684 | H192: 068. ИВАС ИВО ИВ → Синтез Мг Мысли ИВ Владыки ИВО | I192: 15428 | J192: 068. ИВАС ИВО ИВ → Синтез Мг Мысли ИВ Учителя ИВО | K192: 15172 | L192: 068. ИВАС ИВО ИВ → Синтез Мг Мысли ИВ Ипостаси ИВО | M192: 14916 | N192: 068. ИВАС ИВО ИВ → Синтез Мг Мысли ИВ Служащего ИВО | O192: 14660 | P192: 068. ИВАС ИВО ИВ → Синтез Мг Мысли ИВ Посвященного ИВО | Q192: 14404 | R192: 068. ИВАС ИВО ИВ → Синтез Мг Мысли ИВ Майтрейи ИВО | S192: 14148 | T192: 068. ИВАС ИВО ИВ → Синтез Мг Мысли ИВ Христа ИВО | U192: 13892 | V192: 068. ИВАС ИВО ИВ → Синтез Мг Мысли ИВ Будды ИВО | W192: 13636 | X192: 068. ИВАС ИВО ИВ → Синтез Мг Мысли ИВ Теурга ИВО | Y192: 13380 | Z192: 068. ИВАС ИВО ИВ → Синтез Мг Мысли ИВ Творца ИВО | AA192: 13124 | AB192: 068. ИВАС ИВО ИВ → Синтез Мг Мысли ИВ Человека ИВО ИВО | AC192: 12868 | AD192: 068. ИВАС ИВО ИВ → Синтез Мг Мысли ИВ Человека ВЦРМ ИВО | AE192: 12612 | AF192: 068. ИВАС ИВО ИВ → Синтез Мг Мысли ИВ Человека Мг ФаИВО | AG192: 12356 | AH192: 068. ИВАС ИВО ИВ → Синтез Мг Мысли ИВ Человека Планеты Земля ИВО
C193: 16195 | D193: 067. ИВАС ИВО Октавий Верислава → Си Мг Чувства ИВО ИВ Си Мг Чувства ИВО | E193: 15939 | F193: 067. ИВАС ИВО ИВ → Синтез Мг Чувства ИВ Аватара ИВО | G193: 15683 | H193: 067. ИВАС ИВО ИВ → Синтез Мг Чувства ИВ Владыки ИВО | I193: 15427 | J193: 067. ИВАС ИВО ИВ → Синтез Мг Чувства ИВ Учителя ИВО | K193: 15171 | L193: 067. ИВАС ИВО ИВ → Синтез Мг Чувства ИВ Ипостаси ИВО | M193: 14915 | N193: 067. ИВАС ИВО ИВ → Синтез Мг Чувства ИВ Служащего ИВО | O193: 14659 | P193: 067. ИВАС ИВО ИВ → Синтез Мг Чувства ИВ Посвященного ИВО | Q193: 14403 | R193: 067. ИВАС ИВО ИВ → Синтез Мг Чувства ИВ Майтрейи ИВО | S193: 14147 | T193: 067. ИВАС ИВО ИВ → Синтез Мг Чувства ИВ Христа ИВО | U193: 13891 | V193: 067. ИВАС ИВО ИВ → Синтез Мг Чувства ИВ Будды ИВО | W193: 13635 | X193: 067. ИВАС ИВО ИВ → Синтез Мг Чувства ИВ Теурга ИВО | Y193: 13379 | Z193: 067. ИВАС ИВО ИВ → Синтез Мг Чувства ИВ Творца ИВО | AA193: 13123 | AB193: 067. ИВАС ИВО ИВ → Синтез Мг Чувства ИВ Человека ИВО ИВО | AC193: 12867 | AD193: 067. ИВАС ИВО ИВ → Синтез Мг Чувства ИВ Человека ВЦРМ ИВО | AE193: 12611 | AF193: 067. ИВАС ИВО ИВ → Синтез Мг Чувства ИВ Человека Мг ФаИВО | AG193: 12355 | AH193: 067. ИВАС ИВО ИВ → Синтез Мг Чувства ИВ Человека Планеты Земля ИВО
C194: 16194 | D194: 066. ИВАС ИВО Ким Станислава → Си Мг Ощущения ИВО ИВ Си Мг Ощущения ИВО | E194: 15938 | F194: 066. ИВАС ИВО ИВ → Синтез Мг Ощущения ИВ Аватара ИВО | G194: 15682 | H194: 066. ИВАС ИВО ИВ → Синтез Мг Ощущения ИВ Владыки ИВО | I194: 15426 | J194: 066. ИВАС ИВО ИВ → Синтез Мг Ощущения ИВ Учителя ИВО | K194: 15170 | L194: 066. ИВАС ИВО ИВ → Синтез Мг Ощущения ИВ Ипостаси ИВО | M194: 14914 | N194: 066. ИВАС ИВО ИВ → Синтез Мг Ощущения ИВ Служащего ИВО | O194: 14658 | P194: 066. ИВАС ИВО ИВ → Синтез Мг Ощущения ИВ Посвященного ИВО | Q194: 14402 | R194: 066. ИВАС ИВО ИВ → Синтез Мг Ощущения ИВ Майтрейи ИВО | S194: 14146 | T194: 066. ИВАС ИВО ИВ → Синтез Мг Ощущения ИВ Христа ИВО | U194: 13890 | V194: 066. ИВАС ИВО ИВ → Синтез Мг Ощущения ИВ Будды ИВО | W194: 13634 | X194: 066. ИВАС ИВО ИВ → Синтез Мг Ощущения ИВ Теурга ИВО | Y194: 13378 | Z194: 066. ИВАС ИВО ИВ → Синтез Мг Ощущения ИВ Творца ИВО | AA194: 13122 | AB194: 066. ИВАС ИВО ИВ → Синтез Мг Ощущения ИВ Человека ИВО ИВО | AC194: 12866 | AD194: 066. ИВАС ИВО ИВ → Синтез Мг Ощущения ИВ Человека ВЦРМ ИВО | AE194: 12610 | AF194: 066. ИВАС ИВО ИВ → Синтез Мг Ощущения ИВ Человека Мг ФаИВО | AG194: 12354 | AH194: 066. ИВАС ИВО ИВ → Синтез Мг Ощущения ИВ Человека Планеты Земля ИВО
C195: 16193 | D195: 065. ИВАС ИВО Бонифаций Милослава → Си Мг Движения ИВО ИВ Си Мг Движения ИВО | E195: 15937 | F195: 065. ИВАС ИВО ИВ → Синтез Мг Движения ИВ Аватара ИВО | G195: 15681 | H195: 065. ИВАС ИВО ИВ → Синтез Мг Движения ИВ Владыки ИВО | I195: 15425 | J195: 065. ИВАС ИВО ИВ → Синтез Мг Движения ИВ Учителя ИВО | K195: 15169 | L195: 065. ИВАС ИВО ИВ → Синтез Мг Движения ИВ Ипостаси ИВО | M195: 14913 | N195: 065. ИВАС ИВО ИВ → Синтез Мг Движения ИВ Служащего ИВО | O195: 14657 | P195: 065. ИВАС ИВО ИВ → Синтез Мг Движения ИВ Посвященного ИВО | Q195: 14401 | R195: 065. ИВАС ИВО ИВ → Синтез Мг Движения ИВ Майтрейи ИВО | S195: 14145 | T195: 065. ИВАС ИВО ИВ → Синтез Мг Движения ИВ Христа ИВО | U195: 13889 | V195: 065. ИВАС ИВО ИВ → Синтез Мг Движения ИВ Будды ИВО | W195: 13633 | X195: 065. ИВАС ИВО ИВ → Синтез Мг Движения ИВ Теурга ИВО | Y195: 13377 | Z195: 065. ИВАС ИВО ИВ → Синтез Мг Движения ИВ Творца ИВО | AA195: 13121 | AB195: 065. ИВАС ИВО ИВ → Синтез Мг Движения ИВ Человека ИВО ИВО | AC195: 12865 | AD195: 065. ИВАС ИВО ИВ → Синтез Мг Движения ИВ Человека ВЦРМ ИВО | AE195: 12609 | AF195: 065. ИВАС ИВО ИВ → Синтез Мг Движения ИВ Человека Мг ФаИВО | AG195: 12353 | AH195: 065. ИВАС ИВО ИВ → Синтез Мг Движения ИВ Человека Планеты Земля ИВО
C196: 16192 | D196: 064. ИВАС ИВО Фредерик Константа → Си Мг ИВ Дома Христа ИВО ИВ Дом Христа ИВО | E196: 15936 | F196: 064. ИВАС ИВО ИВ → Синтез ИВ Дома Христа ИВО ИВ Аватара ИВО | G196: 15680 | H196: 064. ИВАС ИВО ИВ → Синтез ИВ Дома Христа ИВО ИВ Владыки ИВО | I196: 15424 | J196: 064. ИВАС ИВО ИВ → Синтез ИВ Дома Христа ИВО ИВ Учителя ИВО | K196: 15168 | L196: 064. ИВАС ИВО ИВ → Синтез ИВ Дома Христа ИВО ИВ Ипостаси ИВО | M196: 14912 | N196: 064. ИВАС ИВО ИВ → Синтез ИВ Дома Христа ИВО ИВ Служащего ИВО | O196: 14656 | P196: 064. ИВАС ИВО ИВ → Синтез ИВ Дома Христа ИВО ИВ Посвященного ИВО | Q196: 14400 | R196: 064. ИВАС ИВО ИВ → Синтез ИВ Дома Христа ИВО ИВ Майтрейи ИВО | S196: 14144 | T196: 064. ИВАС ИВО ИВ → Синтез ИВ Дома Христа ИВО ИВ Христа ИВО | U196: 13888 | V196: 064. ИВАС ИВО ИВ → Синтез ИВ Дома Христа ИВО ИВ Будды ИВО | W196: 13632 | X196: 064. ИВАС ИВО ИВ → Синтез ИВ Дома Христа ИВО ИВ Теурга ИВО | Y196: 13376 | Z196: 064. ИВАС ИВО ИВ → Синтез ИВ Дома Христа ИВО ИВ Творца ИВО | AA196: 13120 | AB196: 064. ИВАС ИВО ИВ → Синтез ИВ Дома Христа ИВО ИВ Человека ИВО ИВО | AC196: 12864 | AD196: 064. ИВАС ИВО ИВ → Синтез ИВ Дома Христа ИВО ИВ Человека ВЦРМ ИВО | AE196: 12608 | AF196: 064. ИВАС ИВО ИВ → Синтез ИВ Дома Христа ИВО ИВ Человека Мг ФаИВО | AG196: 12352 | AH196: 064. ИВАС ИВО ИВ → Синтез ИВ Дома Христа ИВО ИВ Человека Планеты Земля ИВО
C197: 16191 | D197: 063. ИВАС ИВО Станислав Александра → Си Мг Физического Тела ИВО ИВ Си Мг Физического Тела ИВО | E197: 15935 | F197: 063. ИВАС ИВО ИВ → Синтез Мг Физического Тела ИВ Аватара ИВО | G197: 15679 | H197: 063. ИВАС ИВО ИВ → Синтез Мг Физического Тела ИВ Владыки ИВО | I197: 15423 | J197: 063. ИВАС ИВО ИВ → Синтез Мг Физического Тела ИВ Учителя ИВО | K197: 15167 | L197: 063. ИВАС ИВО ИВ → Синтез Мг Физического Тела ИВ Ипостаси ИВО | M197: 14911 | N197: 063. ИВАС ИВО ИВ → Синтез Мг Физического Тела ИВ Служащего ИВО | O197: 14655 | P197: 063. ИВАС ИВО ИВ → Синтез Мг Физического Тела ИВ Посвященного ИВО | Q197: 14399 | R197: 063. ИВАС ИВО ИВ → Синтез Мг Физического Тела ИВ Майтрейи ИВО | S197: 14143 | T197: 063. ИВАС ИВО ИВ → Синтез Мг Физического Тела ИВ Христа ИВО | U197: 13887 | V197: 063. ИВАС ИВО ИВ → Синтез Мг Физического Тела ИВ Будды ИВО | W197: 13631 | X197: 063. ИВАС ИВО ИВ → Синтез Мг Физического Тела ИВ Теурга ИВО | Y197: 13375 | Z197: 063. ИВАС ИВО ИВ → Синтез Мг Физического Тела ИВ Творца ИВО | AA197: 13119 | AB197: 063. ИВАС ИВО ИВ → Синтез Мг Физического Тела ИВ Человека ИВО ИВО | AC197: 12863 | AD197: 063. ИВАС ИВО ИВ → Синтез Мг Физического Тела ИВ Человека ВЦРМ ИВО | AE197: 12607 | AF197: 063. ИВАС ИВО ИВ → Синтез Мг Физического Тела ИВ Человека Мг ФаИВО | AG197: 12351 | AH197: 063. ИВАС ИВО ИВ → Синтез Мг Физического Тела ИВ Человека Планеты Земля ИВО
C198: 16190 | D198: 062. ИВАС ИВО Алан Илария → Си Мг Истины ИВО ИВ Си Мг Истины ИВО | E198: 15934 | F198: 062. ИВАС ИВО ИВ → Синтез Мг Истины ИВ Аватара ИВО | G198: 15678 | H198: 062. ИВАС ИВО ИВ → Синтез Мг Истины ИВ Владыки ИВО | I198: 15422 | J198: 062. ИВАС ИВО ИВ → Синтез Мг Истины ИВ Учителя ИВО | K198: 15166 | L198: 062. ИВАС ИВО ИВ → Синтез Мг Истины ИВ Ипостаси ИВО | M198: 14910 | N198: 062. ИВАС ИВО ИВ → Синтез Мг Истины ИВ Служащего ИВО | O198: 14654 | P198: 062. ИВАС ИВО ИВ → Синтез Мг Истины ИВ Посвященного ИВО | Q198: 14398 | R198: 062. ИВАС ИВО ИВ → Синтез Мг Истины ИВ Майтрейи ИВО | S198: 14142 | T198: 062. ИВАС ИВО ИВ → Синтез Мг Истины ИВ Христа ИВО | U198: 13886 | V198: 062. ИВАС ИВО ИВ → Синтез Мг Истины ИВ Будды ИВО | W198: 13630 | X198: 062. ИВАС ИВО ИВ → Синтез Мг Истины ИВ Теурга ИВО | Y198: 13374 | Z198: 062. ИВАС ИВО ИВ → Синтез Мг Истины ИВ Творца ИВО | AA198: 13118 | AB198: 062. ИВАС ИВО ИВ → Синтез Мг Истины ИВ Человека ИВО ИВО | AC198: 12862 | AD198: 062. ИВАС ИВО ИВ → Синтез Мг Истины ИВ Человека ВЦРМ ИВО | AE198: 12606 | AF198: 062. ИВАС ИВО ИВ → Синтез Мг Истины ИВ Человека Мг ФаИВО | AG198: 12350 | AH198: 062. ИВАС ИВО ИВ → Синтез Мг Истины ИВ Человека Планеты Земля ИВО
C199: 16189 | D199: 061. ИВАС ИВО Арий Феодора → Си Мг Око ИВО ИВ Си Мг Око ИВО | E199: 15933 | F199: 061. ИВАС ИВО ИВ → Синтез Мг Око ИВ Аватара ИВО | G199: 15677 | H199: 061. ИВАС ИВО ИВ → Синтез Мг Око ИВ Владыки ИВО | I199: 15421 | J199: 061. ИВАС ИВО ИВ → Синтез Мг Око ИВ Учителя ИВО | K199: 15165 | L199: 061. ИВАС ИВО ИВ → Синтез Мг Око ИВ Ипостаси ИВО | M199: 14909 | N199: 061. ИВАС ИВО ИВ → Синтез Мг Око ИВ Служащего ИВО | O199: 14653 | P199: 061. ИВАС ИВО ИВ → Синтез Мг Око ИВ Посвященного ИВО | Q199: 14397 | R199: 061. ИВАС ИВО ИВ → Синтез Мг Око ИВ Майтрейи ИВО | S199: 14141 | T199: 061. ИВАС ИВО ИВ → Синтез Мг Око ИВ Христа ИВО | U199: 13885 | V199: 061. ИВАС ИВО ИВ → Синтез Мг Око ИВ Будды ИВО | W199: 13629 | X199: 061. ИВАС ИВО ИВ → Синтез Мг Око ИВ Теурга ИВО | Y199: 13373 | Z199: 061. ИВАС ИВО ИВ → Синтез Мг Око ИВ Творца ИВО | AA199: 13117 | AB199: 061. ИВАС ИВО ИВ → Синтез Мг Око ИВ Человека ИВО ИВО | AC199: 12861 | AD199: 061. ИВАС ИВО ИВ → Синтез Мг Око ИВ Человека ВЦРМ ИВО | AE199: 12605 | AF199: 061. ИВАС ИВО ИВ → Синтез Мг Око ИВ Человека Мг ФаИВО | AG199: 12349 | AH199: 061. ИВАС ИВО ИВ → Синтез Мг Око ИВ Человека Планеты Земля ИВО
C200: 16188 | D200: 060. ИВАС ИВО Мирослав Владислава → Си Мг Хум ИВО ИВ Си Мг Хум ИВО | E200: 15932 | F200: 060. ИВАС ИВО ИВ → Синтез Мг Хум ИВ Аватара ИВО | G200: 15676 | H200: 060. ИВАС ИВО ИВ → Синтез Мг Хум ИВ Владыки ИВО | I200: 15420 | J200: 060. ИВАС ИВО ИВ → Синтез Мг Хум ИВ Учителя ИВО | K200: 15164 | L200: 060. ИВАС ИВО ИВ → Синтез Мг Хум ИВ Ипостаси ИВО | M200: 14908 | N200: 060. ИВАС ИВО ИВ → Синтез Мг Хум ИВ Служащего ИВО | O200: 14652 | P200: 060. ИВАС ИВО ИВ → Синтез Мг Хум ИВ Посвященного ИВО | Q200: 14396 | R200: 060. ИВАС ИВО ИВ → Синтез Мг Хум ИВ Майтрейи ИВО | S200: 14140 | T200: 060. ИВАС ИВО ИВ → Синтез Мг Хум ИВ Христа ИВО | U200: 13884 | V200: 060. ИВАС ИВО ИВ → Синтез Мг Хум ИВ Будды ИВО | W200: 13628 | X200: 060. ИВАС ИВО ИВ → Синтез Мг Хум ИВ Теурга ИВО | Y200: 13372 | Z200: 060. ИВАС ИВО ИВ → Синтез Мг Хум ИВ Творца ИВО | AA200: 13116 | AB200: 060. ИВАС ИВО ИВ → Синтез Мг Хум ИВ Человека ИВО ИВО | AC200: 12860 | AD200: 060. ИВАС ИВО ИВ → Синтез Мг Хум ИВ Человека ВЦРМ ИВО | AE200: 12604 | AF200: 060. ИВАС ИВО ИВ → Синтез Мг Хум ИВ Человека Мг ФаИВО | AG200: 12348 | AH200: 060. ИВАС ИВО ИВ → Синтез Мг Хум ИВ Человека Планеты Земля ИВО
C201: 16187 | D201: 059. ИВАС ИВО Рудольф Агнесса → Си Мг Абсолюта ИВО ИВ Си Мг Абсолюта ИВО | E201: 15931 | F201: 059. ИВАС ИВО ИВ → Синтез Мг Абсолюта ИВ Аватара ИВО | G201: 15675 | H201: 059. ИВАС ИВО ИВ → Синтез Мг Абсолюта ИВ Владыки ИВО | I201: 15419 | J201: 059. ИВАС ИВО ИВ → Синтез Мг Абсолюта ИВ Учителя ИВО | K201: 15163 | L201: 059. ИВАС ИВО ИВ → Синтез Мг Абсолюта ИВ Ипостаси ИВО | M201: 14907 | N201: 059. ИВАС ИВО ИВ → Синтез Мг Абсолюта ИВ Служащего ИВО | O201: 14651 | P201: 059. ИВАС ИВО ИВ → Синтез Мг Абсолюта ИВ Посвященного ИВО | Q201: 14395 | R201: 059. ИВАС ИВО ИВ → Синтез Мг Абсолюта ИВ Майтрейи ИВО | S201: 14139 | T201: 059. ИВАС ИВО ИВ → Синтез Мг Абсолюта ИВ Христа ИВО | U201: 13883 | V201: 059. ИВАС ИВО ИВ → Синтез Мг Абсолюта ИВ Будды ИВО | W201: 13627 | X201: 059. ИВАС ИВО ИВ → Синтез Мг Абсолюта ИВ Теурга ИВО | Y201: 13371 | Z201: 059. ИВАС ИВО ИВ → Синтез Мг Абсолюта ИВ Творца ИВО | AA201: 13115 | AB201: 059. ИВАС ИВО ИВ → Синтез Мг Абсолюта ИВ Человека ИВО ИВО | AC201: 12859 | AD201: 059. ИВАС ИВО ИВ → Синтез Мг Абсолюта ИВ Человека ВЦРМ ИВО | AE201: 12603 | AF201: 059. ИВАС ИВО ИВ → Синтез Мг Абсолюта ИВ Человека Мг ФаИВО | AG201: 12347 | AH201: 059. ИВАС ИВО ИВ → Синтез Мг Абсолюта ИВ Человека Планеты Земля ИВО
C202: 16186 | D202: 058. ИВАС ИВО Феликс Ония → Си Мг Омеги ИВО ИВ Си Мг Омеги ИВО | E202: 15930 | F202: 058. ИВАС ИВО ИВ → Синтез Мг Омеги ИВ Аватара ИВО | G202: 15674 | H202: 058. ИВАС ИВО ИВ → Синтез Мг Омеги ИВ Владыки ИВО | I202: 15418 | J202: 058. ИВАС ИВО ИВ → Синтез Мг Омеги ИВ Учителя ИВО | K202: 15162 | L202: 058. ИВАС ИВО ИВ → Синтез Мг Омеги ИВ Ипостаси ИВО | M202: 14906 | N202: 058. ИВАС ИВО ИВ → Синтез Мг Омеги ИВ Служащего ИВО | O202: 14650 | P202: 058. ИВАС ИВО ИВ → Синтез Мг Омеги ИВ Посвященного ИВО | Q202: 14394 | R202: 058. ИВАС ИВО ИВ → Синтез Мг Омеги ИВ Майтрейи ИВО | S202: 14138 | T202: 058. ИВАС ИВО ИВ → Синтез Мг Омеги ИВ Христа ИВО | U202: 13882 | V202: 058. ИВАС ИВО ИВ → Синтез Мг Омеги ИВ Будды ИВО | W202: 13626 | X202: 058. ИВАС ИВО ИВ → Синтез Мг Омеги ИВ Теурга ИВО | Y202: 13370 | Z202: 058. ИВАС ИВО ИВ → Синтез Мг Омеги ИВ Творца ИВО | AA202: 13114 | AB202: 058. ИВАС ИВО ИВ → Синтез Мг Омеги ИВ Человека ИВО ИВО | AC202: 12858 | AD202: 058. ИВАС ИВО ИВ → Синтез Мг Омеги ИВ Человека ВЦРМ ИВО | AE202: 12602 | AF202: 058. ИВАС ИВО ИВ → Синтез Мг Омеги ИВ Человека Мг ФаИВО | AG202: 12346 | AH202: 058. ИВАС ИВО ИВ → Синтез Мг Омеги ИВ Человека Планеты Земля ИВО
... 828 more rows

Sheet Лист1 (hidden)
T2: 256
D3: =D4099+4096 -> 16384 | E3: 256. ИВО ИВО → Синтез ИВО | P3: =И -> 
D4: 16383 | E4: 255. ИВ Аватар ИВО → Воля ИВО
D5: 16382 | E5: 254. ИВ Владыка ИВО → Мудрость ИВО
D6: 16381 | E6: 253. ИВ Учитель ИВО → Любовь ИВО
D7: 16380 | E7: 252. ИВ Ипостась ИВО → Творение ИВО
D8: 16379 | E8: 251. ИВ Служащий ИВО → Созидание ИВО
D9: 16378 | E9: 250. ИВ Посвящённый ИВО → Репликация ИВО
D10: 16377 | E10: 249. ИВ Человек-Творец ИВО → Жизнь ИВО
D11: 16376 | E11: 248. ИВ Человек ИВО → Воскрешение ИВО
D12: 16375 | E12: 247. ИВ Человек ВЦРМ ИВО → Пробуждение ИВО
D13: 16374 | E13: 246. ИВ Человек Метагалактики ФА ИВО → Генезис ИВО
D14: 16373 | E14: 245. ИВ Человек Планеты Земля ИВО → Человечность ИВО
D15: 16372 | E15: 244. ИВ Человек Полномочий Совершенств ИВО → Служение ИВО
D16: 16371 | E16: 243. ИВ Человек Изначально Вш. Реальности Синтезности ИВО → Вершение ИВО
D17: 16370 | E17: 242. ИВ Человек Вш. Реальности Творения Фа ИВО → Практика ИВО
D18: 16369 | E18: 241. ИВ Человек Плана Творения ИВО → Могущество ИВО
D19: 16368 | E19: 240. ИВ Человек ИВДИВО ИВО → Ивдивность ИВО
D20: 16367 | E20: 239. ИВ Учитель Синтеза Синтезности ИВО → Сверхпассионарность ИВО
D21: 16366 | E21: 238. ИВ Учитель Синтеза ВЦРМ ИВО → Истинность ИВО
D22: 16365 | E22: 237. ИВ Учитель Синтеза Мг Фа ИВО → Окскость ИВО
D23: 16364 | E23: 236. ИВ Учитель Синтеза Планеты Земля ИВО → Красота ИВО
D24: 16363 | E24: 235. ИВ Учитель Синтеза ИВР Синтезности ИВО → Константа ИВО
D25: 16362 | E25: 234. ИВ Учитель Синтеза Вш. Реальности Творения ИВО → Знание ИВО
D26: 16361 | E26: 233. ИВ Учитель Синтеза Плана Творения ИВО → Мера ИВО
D27: 16360 | E27: 232. ИВ Учитель Синтеза ИВДИВО ИВО → Стандарт ИВО
D28: 16359 | E28: 231. ИВ Ипостась Творящего Синтеза ИВО → Закон ИВО
D29: 16358 | E29: 230. ИВ Ипостась ВЦРМ ИВО → Императив ИВО
D30: 16357 | E30: 229. ИВ Ипостась Мг Фа ИВО → Аксиома ИВО
D31: 16356 | E31: 228. ИВ Ипостась Планеты Земля ИВО → Начало ИВО
D32: 16355 | E32: 227. ИВ Ипостась ИВР Синтезности ИВО → Принцип ИВО
D33: 16354 | E33: 226. ИВ Ипостась Вш. Реальности Творения ИВО → Метод ИВО
D34: 16353 | E34: 225. ИВ Ипостась Плана Творения ИВО → Правило ИВО
D35: 16352 | E35: 224. ИВ Ипостась ИВДИВО ИВО → Огонь ИВО
D36: 16351 | E36: 223. ИВ Служащий Начал Творения ИВО → Дух Частей ИВО
D37: 16350 | E37: 222. ИВ Служащий ВЦРМ ИВО → Свет Систем ИВО
D38: 16349 | E38: 221. ИВ Служащий Мг Фа ИВО → Энергия Аппаратов ИВО
D39: 16348 | E39: 220. ИВ Служащий Планеты Земля ИВО → Субъядерность Частностей ИВО
D40: 16347 | E40: 219. ИВ Служащий ИВР Синтезности ИВО → Форма Абсолютности ИВО
D41: 16346 | E41: 218. ИВ Служащий Вш. Реальности Творения ИВО → Содержание Воскрешения ИВО
D42: 16345 | E42: 217. ИВ Служащий Плана Творения ИВО → Поле Пробуждения ИВО
D43: 16344 | E43: 216. ИВ Служащий ИВДИВО ИВО → Время ИВО
D44: 16343 | E44: 215. ИВ Посвящённый Прав Созидания ИВО → Пространство ИВО
D45: 16342 | E45: 214. ИВ Посвящённый ВЦРМ ИВО → Скорость ИВО
D46: 16341 | E46: 213. ИВ Посвящённый Мг Фа ИВО → Мерность ИВО
D47: 16340 | E47: 212. ИВ Посвящённый Планеты Земля ИВО → Воссоединённость ИВО
D48: 16339 | E48: 211. ИВ Посвящённый ИВР Синтезности ИВО → Матрица Самоорганизации ИВО
D49: 16338 | E49: 210. ИВ Посвящённый Вш. Реальности Творения ИВО → Эманации ИВО
D50: 16337 | E50: 209. ИВ Посвящённый Плана Творения ИВО → Вещество ИВО
D51: 16336 | E51: 208. ИВ Посвящённый ИВДИВО ИВО → Выс. Ц. Мг Фа ИВО
D52: 16335 | E52: 207. ИВ Христос ИВО → Выс. Ц. Планета Земля ИВО
D53: 16334 | E53: 206. ИВ Сын ИВО → Выс. Ц. Мг Человека ИВО
D54: 16333 | E54: 205. ИВ Дочь ИВО → Выс. Ц. ПараМг ИВО
D55: 16332 | E55: 204 ИВ Аспект ИВО → Выс. Ц. СинтезМг ИВО
D56: 16331 | E56: 203. ИВ Логос ИВО → Выс. Ц. Начальная Мг ИВО
D57: 16330 | E57: 202. ИВ Ману ИВО → Выс. Ц. СуперМг Версумов ИВО
D58: 16329 | E58: 201. Изначально Вышестоящая Мать ИВО → Выс. Ц. Мг Синтезверсумов ИВО
D59: 16328 | E59: 200. ИВ Будда ИВО → Выс. Ц. Аматическая Мг Суперверсумов ИВО
D60: 16327 | E60: 199. ИВ Неизречённый ИВО → Выс. Ц. Атмическая Мг Мультиверсумов ИВО
D61: 16326 | E61: 198. ИВ Всемогущий ИВО → Выс. Ц. Буддическая Мг Универсумов ИВО
D62: 16325 | E62: 197. ИВ Предвечный ИВО → Выс. Ц. Причинная Мг Вселенных ИВО
D63: 16324 | E63: 196. ИВ Предначальный ИВО → Выс. Ц. Ментальная Мг Супергалактик ИВО
D64: 16323 | E64: 195. ИВ Вседержитель ИВО → Выс. Ц. Изначальная Мг Галактик ИВО
D65: 16322 | E65: 194. ИВ Всевышний ИВО → Выс. Ц. Основная Мг Солнечных систем ИВО
D66: 16321 | E66: 193. ИВ Человек Частей ИВО → Выс. Ц. Физичность ИВО
D67: =D4163+4096 -> 16320 | E67: 192. ИВАС ИВО Кут Хуми Фаинь → Синтез Синтеза ИВО
D68: 16319 | E68: 191. ИВАС ИВО Иосиф Славия → Синтез Воли ИВО
D69: 16318 | E69: 190. ИВАС ИВО Мория Свет → Синтез Мудрости ИВО
D70: 16317 | E70: 189. ИВАС ИВО Филипп Марина → Синтез Любви ИВО
D71: 16316 | E71: 188. ИВАС ИВО Византий Альбина → Синтез Творения ИВО
D72: 16315 | E72: 187. ИВАС ИВО Янов Вероника → Синтез Созидания ИВО
D73: 16314 | E73: 186. ИВАС ИВО Юлий Сиана → Синтез Репликации ИВО
D74: 16313 | E74: 185. ИВАС ИВО Юсеф Она → Синтез Жизни ИВО
D75: 16312 | E75: 184. ИВАС ИВО Владомир Стефана → Синтез Воскрешения ИВО
D76: 16311 | E76: 183. ИВАС ИВО Савва Свята → Синтез Пробуждения ИВО
D77: 16310 | E77: 182. ИВАС ИВО Савелий Баяна → Синтез Генезис ИВО
D78: 16309 | E78: 181. ИВАС ИВО Вильгельм Екатерина → Синтез Человечности ИВО
D79: 16308 | E79: 180. ИВАС ИВО Юстас Сивилла → Синтез Служения ИВО
D80: 16307 | E80: 179. ИВАС ИВО Александр Тамила → Синтез Вершения ИВО
D81: 16306 | E81: 178. ИВАС ИВО Яромир Ника → Синтез Практики ИВО
D82: 16305 | E82: 177. ИВАС ИВО Серапис Велетте → Синтез Могущества ИВО
D83: 16304 | E83: 176. ИВАС ИВО Эдуард Эмилия → Синтез ИВ Дома Аватара ИВО
D84: 16303 | E84: 175. ИВАС ИВО Фадей Елена → Синтез Иерархизации ИВО
D85: 16302 | E85: 174. ИВАС ИВО Серафим Валерия → Синтез Полномочий Совершенств ИВО
D86: 16301 | E86: 173. ИВАС ИВО Святослав Олеся → Синтез Синтезностей ИВО
D87: 16300 | E87: 172. ИВАС ИВО Эоан Антуанэтта → Синтез Творящего Синтеза ИВО
D88: 16299 | E88: 171. ИВАС ИВО Сергей Юлиана → Синтез Статусов ИВО
D89: 16298 | E89: 170. ИВАС ИВО Сулейман Синтия → Синтез Посвящений ИВО
D90: 16297 | E90: 169. ИВАС ИВО Себастьян Виктория → Синтез Частей ИВО
D91: 16296 | E91: 168. ИВАС ИВО Теодор Дарида → Синтез Систем Частей ИВО
D92: 16295 | E92: 167. ИВАС ИВО Антей Алина → Синтез Аппаратов Систем Частей ИВО
D93: 16294 | E93: 166. ИВАС ИВО Наум Софья → Синтез Частностей ИВО
D94: 16293 | E94: 165. ИВАС ИВО Велимир Агафья → Синтез Подготовок ИВО
D95: 16292 | E95: 164. ИВАС ИВО Георг Дарья → Синтез Компетенций ИВО
D96: 16291 | E96: 163. ИВАС ИВО Алексей Илана → Синтез Владений ИВО
D97: 16290 | E97: 162. ИВАС ИВО Эмиль Яна → Синтез Неотчуждённости ИВО
D98: 16289 | E98: 161. ИВАС ИВО Дарий Давлата → Синтез Пламенности ИВО
D99: 16288 | E99: 160. ИВАС ИВО Валентин Ирина → Синтез ИВ Дома Владыки ИВО
D100: 16287 | E100: 159. ИВАС ИВО Савий Лина → Синтез Духа Частей ИВО
D101: 16286 | E101: 158. ИВАС ИВО Вячеслав Анастасия → Синтез Света Систем ИВО
D102: 16285 | E102: 157. ИВАС ИВО Андрей Ома → Синтез Энергии Аппаратов ИВО
D103: 16284 | E103: 156. ИВАС ИВО Давид Сольвейг → Синтез Субъядерности Частностей ИВО
D104: 16283 | E104: 155. ИВАС ИВО Евгений Октавия → Синтез Формы Абсолютности ИВО
D105: 16282 | E105: 154. ИВАС ИВО Дмитрий Кристина → Синтез Содержания Воскрешения ИВО
D106: 16281 | E106: 153. ИВАС ИВО Есений Версавия → Синтез Поля Пробуждения ИВО
D107: 16280 | E107: 152. ИВАС ИВО Константин Ксения → Синтез Времени ИВО
D108: 16279 | E108: 151. ИВАС ИВО Ростислав Эмма → Синтез Пространства ИВО
D109: 16278 | E109: 150. ИВАС ИВО Ян Стафия → Синтез Скорости ИВО
D110: 16277 | E110: 149. ИВАС ИВО Василий Оксана → Синтез Мерности ИВО
D111: 16276 | E111: 148. ИВАС ИВО Арсений Ульяна → Синтез Воссоединённости Человека ИВО
D112: 16275 | E112: 147. ИВАС ИВО Огюст Беатрисс → Синтез Матрицы Самоорганизации ИВО
D113: 16274 | E113: 146. ИВАС ИВО Илий Оливия → Синтез Эманации ИВО
D114: 16273 | E114: 145. ИВАС ИВО Геральд Алла → Синтез Вещества ИВО
D115: 16272 | E115: 144. ИВАС ИВО Платон Натали → Синтез ИВ Дома Учителя ИВО
D116: 16271 | E116: 143. ИВАС ИВО Николай Эва → Синтез Планеты Земля ИВО
D117: 16270 | E117: 142. ИВАС ИВО Игорь Лана → Синтез Мг Человека ИВО
D118: 16269 | E118: 141. ИВАС ИВО Яр Одель → Синтез ПараМг ИВО
D119: 16268 | E119: 140. ИВАС ИВО Вадим Тамара → Синтез СинтезМг ИВО
D120: 16267 | E120: 139. ИВАС ИВО Огнеслав Нина → Синтез Начальной Мг ИВО
D121: 16266 | E121: 138. ИВАС ИВО Марк Орфея → Синтез СуперМг Версумов ИВО
D122: 16265 | E122: 137. ИВАС ИВО Теон Вергилия → Синтез Цельной Мг Синтезверсумов ИВО
D123: 16264 | E123: 136. ИВАС ИВО Трофим Василиса → Синтез Аматической Мг Суперверсумов ИВО
D124: 16263 | E124: 135. ИВАС ИВО Емельян Варвара → Синтез Атмической Мг Мультиверсумов ИВО
D125: 16262 | E125: 134. ИВАС ИВО Ефрем Арина → Синтез Буддической Мг Универсумов ИВО
D126: 16261 | E126: 133. ИВАС ИВО Натан Амалия → Синтез Причинной Мг Вселенных ИВО
D127: 16260 | E127: 132. ИВАС ИВО Артём Елизавета → Синтез Ментальной Мг Супергалактик ИВО
D128: 16259 | E128: 131. ИВАС ИВО Игнатий Вера → Синтез Изначальной Мг Галактик ИВО
D129: 16258 | E129: 130. ИВАС ИВО Юлиан Мирослава → Синтез Основной Мг Солнечных систем ИВО
D130: 16257 | E130: 129. ИВАС ИВО Аркадий Даяна → Синтез Физичности ИВО
D131: =D4227+4096 -> 16256 | E131: 128. ИВАС ИВО Никита Стелла → Синтез Мг ИВ Дома Ипостаси ИВО
D132: 16255 | E132: 127. ИВАС ИВО Олег Дора → Синтез Мг Воли ИВО
D133: 16254 | E133: 126. ИВАС ИВО Владимир Клавдия → Синтез Мг Мудрости ИВО
D134: 16253 | E134: 125. ИВАС ИВО Стефан Лада → Синтез Мг Любви ИВО
D135: 16252 | E135: 124. ИВАС ИВО Горислав Ветта → Синтез Мг Творения ИВО
D136: 16251 | E136: 123. ИВАС ИВО Никон Власта → Синтез Мг Созидания ИВО
D137: 16250 | E137: 122. ИВАС ИВО Эрик Офелия → Синтез Мг Репликации ИВО
D138: 16249 | E138: 121. ИВАС ИВО Олаф Даная → Синтез Мг Жизни ИВО
D139: 16248 | E139: 120. ИВАС ИВО Вацлав Ханна → Синтез Мг Воскрешения ИВО
D140: 16247 | E140: 119. ИВАС ИВО Левий Хлоя → Синтез Мг Пробуждения ИВО
D141: 16246 | E141: 118. ИВАС ИВО Руслан Надежда → Синтез Мг Генезиса ИВО
D142: 16245 | E142: 117. ИВАС ИВО Генрих Олла → Синтез Мг Человечности ИВО
D143: 16244 | E143: 116. ИВАС ИВО Владлен Илона → Синтез Мг Служения ИВО
D144: 16243 | E144: 115. ИВАС ИВО Борислав Генриетта → Синтез Мг Вершения ИВО
D145: 16242 | E145: 114. ИВАС ИВО Нестор Мария → Синтез Мг Практики ИВО
D146: 16241 | E146: 113. ИВАС ИВО Аристарх Глория → Синтез Мг Могущества ИВО
D147: 16240 | E147: 112. ИВАС ИВО Альфред Констанция → Синтез Мг ИВ Дома Служащего ИВО
D148: 16239 | E148: 111. ИВАС ИВО Егор Стэвия → Синтез Мг Сверхпассионарности ИВО
D149: 16238 | E149: 110. ИВАС ИВО Витольд Полина → Синтез Мг Истинности ИВО
D150: 16237 | E150: 109. ИВАС ИВО Стократ Виру → Синтез Мг Окскости ИВО
D151: 16236 | E151: 108. ИВАС ИВО Глеб Фанна → Синтез Мг Красоты ИВО
D152: 16235 | E152: 107. ИВАС ИВО Клавдий Евгения → Синтез Мг Константы ИВО
D153: 16234 | E153: 106. ИВАС ИВО Теонис Элина → Синтез Мг Знания ИВО
D154: 16233 | E154: 105. ИВАС ИВО Донан Сара → Синтез Мг Меры ИВО
D155: 16232 | E155: 104. ИВАС ИВО Альберт Алевтина → Синтез Мг Стандарта ИВО
D156: 16231 | E156: 103. ИВАС ИВО Степан Раиса → Синтез Мг Закона ИВО
D157: 16230 | E157: 102. ИВАС ИВО Арсан Аврора → Синтез Мг Императива ИВО
D158: 16229 | E158: 101. ИВАС ИВО Остап Дилана → Синтез Мг Аксиомы ИВО
D159: 16228 | E159: 100. ИВАС ИВО Роман Яся → Синтез Мг Начала ИВО
D160: 16227 | E160: 099. ИВАС ИВО Клим Фира → Синтез Мг Принципа ИВО
D161: 16226 | E161: 098. ИВАС ИВО Пётр Омелия → Синтез Мг Метода ИВО
D162: 16225 | E162: 097. ИВАС ИВО Макей Мадлен → Синтез Мг Правила ИВО
D163: 16224 | E163: 096. ИВАС ИВО Анис Римма → Синтез Мг ИВ Дома Посвящённого ИВО
D164: 16223 | E164: 095. ИВАС ИВО Ар Белла → Синтез Мг Аватарскости ИВО
D165: 16222 | E165: 094. ИВАС ИВО Дорадий Агния → Синтез Мг Владычества ИВО
D166: 16221 | E166: 093. ИВАС ИВО Дор Фелиция → Синтез Мг Учительства ИВО
D167: 16220 | E167: 092. ИВАС ИВО Понтелей Виталина → Синтез Мг Ипостасности ИВО
D168: 16219 | E168: 091. ИВАС ИВО Явир Нона → Синтез Мг Статусности ИВО
D169: 16218 | E169: 090. ИВАС ИВО Трис Клементина → Синтез Мг Посвящённости ИВО
D170: 16217 | E170: 089. ИВАС ИВО Виктор Лира → Синтез Мг Совершенства ИВО
D171: 16216 | E171: 088. ИВАС ИВО Визар Ванесса → Синтез Мг Полномочности ИВО
D172: 16215 | E172: 087. ИВАС ИВО Ерёма Евдокия → Синтез Мг Непредубеждённости ИВО
D173: 16214 | E173: 086. ИВАС ИВО Ираклий Клара → Синтез Мг Реализации ИВО
D174: 16213 | E174: 085. ИВАС ИВО Елизар Лиза → Синтез Мг Свободы ИВО
D175: 16212 | E175: 084. ИВАС ИВО Градимир Сюзанна → Синтез Мг Организованности ИВО
D176: 16211 | E176: 083. ИВАС ИВО Рустам Сейла → Синтез Мг Управления ИВО
D177: 16210 | E177: 082. ИВАС ИВО Октан Руслана → Синтез Мг Ответственности ИВО
D178: 16209 | E178: 081. ИВАС ИВО Силуан Устина → Синтез Мг Дисциплины ИВО
D179: 16208 | E179: 080. ИВАС ИВО Лукьян Марика → Синтез Мг ИВ Дома Человека-Творца ИВО
D180: 16207 | E180: 079. ИВАС ИВО Люсьен Франсуаза → Синтез Мг Я Есмь ИВО
D181: 16206 | E181: 078. ИВАС ИВО Андриан Христина → Синтез Мг Имперации ИВО
D182: 16205 | E182: 077. ИВАС ИВО Прокофий Иолана → Синтез Мг Взгляда ИВО
D183: 16204 | E183: 076. ИВАС ИВО Зарк Джесика → Синтез Мг Синтезначала ИВО
D184: 16203 | E184: 075. ИВАС ИВО Станис Сабина → Синтез Мг Основы ИВО
D185: 16202 | E185: 074. ИВАС ИВО Панкрат Нелли → Синтез Мг Параметода ИВО
D186: 16201 | E186: 073. ИВАС ИВО Старк Санта → Синтез Мг Мощи ИВО
D187: 16200 | E187: 072. ИВАС ИВО Дорофей Доротея → Синтез Мг Права ИВО
D188: 16199 | E188: 071. ИВАС ИВО Яков Янина → Синтез Мг Идеи ИВО
D189: 16198 | E189: 070. ИВАС ИВО Ульян Люция → Синтез Мг Сути ИВО
D190: 16197 | E190: 069. ИВАС ИВО Герман Ирэн → Синтез Мг Смысла ИВО
D191: 16196 | E191: 068. ИВАС ИВО Радомир Сесилия → Синтез Мг Мысли ИВО
D192: 16195 | E192: 067. ИВАС ИВО Октавий Верислава → Синтез Мг Чувства ИВО
D193: 16194 | E193: 066. ИВАС ИВО Ким Станислава → Синтез Мг Ощущения ИВО
D194: 16193 | E194: 065. ИВАС ИВО Бонифаций Милослава → Синтез Мг Движения ИВО
D195: =D4291+4096 -> 16192 | E195: 064. ИВАС ИВО Фредерик Константа → Синтез Мг ИВ Дома Человека ИВО
D196: 16191 | E196: 063. ИВАС ИВО Станислав Александра → Синтез Мг Физического Тела ИВО
D197: 16190 | E197: 062. ИВАС ИВО Алан Илария → Синтез Мг Истины ИВО
D198: 16189 | E198: 061. ИВАС ИВО Арий Феодора → Синтез Мг Око ИВО
D199: 16188 | E199: 060. ИВАС ИВО Мирослав Владислава → Синтез Мг Хум ИВО
D200: 16187 | E200: 059. ИВАС ИВО Рудольф Агнесса → Синтез Мг Абсолюта ИВО
D201: 16186 | E201: 058. ИВАС ИВО Феликс Ония → Синтез Мг Омеги ИВО
... 16186 more rows
